Workbook

Sheet Datos
A1: Grupo Institucional: | C1: Sector Municipal
A2: Nombre de la Entidad: | C2: Municipalidad de Buenos Aires
A3: Código de Entidad: | C3: 15603
A4: Período Contable: | C4: Del 01 de Enero 2023 al 31 de Agosto del 2023
A5: Comparativo | C5: Periodo Actual | D5: 2023-08-31 | E5: Periodo Anterior | F5: 2022-08-31

Sheet AnalisisBS
A1: =+Datos!C2 -> Municipalidad de Buenos Aires
A2: Análisis al Estado de Situación Financiera o Balance General Comparativo
A3: =+Datos!C4 -> Del 01 de Enero 2023 al 31 de Agosto del 2023
A4: - En miles de colones -
A6: Cuenta | B6: Descripción | C6: Nota | D6: =+Datos!D5 -> 2023-08-31 | E6: % análisis vertical | F6: =+Datos!F5 -> 2022-08-31 | G6: % | H6: Monto variación Absoluta | I6: % Variación relativa
A8: 1. | B8: ACTIVO
A9: 1.1. | B9: Activo Corriente
A10: 1.1.1. | B10: Efectivo y equivalentes de efectivo | C10: 03 | D10: =SUM(D11:D12) -> 1625426.439 | E10: =+IFERROR(D10/$D$91,0) -> 0.009734506389 | F10: =SUM(F11:F12) -> 2069821.549 | G10: =+IFERROR(F10/$F$91,0) -> 0.01245862249 | H10: =+D10-F10 -> -444395.1106 | I10: =+IFERROR(H10/F10,0) -> -0.2147021374 | J10: =+FIXED(E10,4) -> 0,0097 | K10: =+FIXED(I10,4) -> -0,2147 | L10: =+FIXED(H10,2) -> -444 395,11 | M10: =IF(H10 < 0, "Disminución", "Aumento") -> Disminución | N10: Activo | O10: =+CONCATENATE(Texto!$B$4,AnalisisBS!B10,Texto!$B$6,(AnalisisBS!J10*100),Texto!$B$8,N10,Texto!$B$12,AnalisisBS!L10,Texto!$B$14,AnalisisBS!M10,Texto!$B$16,(AnalisisBS!K10*100),Texto!$B$18) -> La cuenta Efectivo y equivalentes de efectivo, representa el 0,97 % del total de Activo, que comparado al periodo anterior genera una variación absoluta de ¢-444 395,11 que corresponde a un(a) Disminución del -21,47 % de recursos disponibles: | Q10: =+CONCATENATE(B10," representa el ",E10," % del total de Activo, que comparado al periodo anterior genera una variación absoluta de ",H10," que corresponde a un(a) Disminución o Aumento del ",I10, "% de recursos disponibles, producto de:") -> Efectivo y equivalentes de efectivo representa el 0,00973450638925541 % del total de Activo, que comparado al periodo anterior genera una variación absoluta de -444395,11063 que corresponde a un(a) Disminución o Aumento del -0,21470213738835% de recursos disponibles, producto de:
A11: 1.1.1.01. | B11: Efectivo | D11: =SUMIF(BCPAC!$B$10:$B$8000,$A11,BCPAC!$G$10:$G$8000)/1000 -> 1049345.613 | E11: 0.006284419479 | F11: =SUMIF(BCPAN!$B$10:$B$8000,$A11,BCPAN!$G$10:$G$8000)/1000 -> 1565894.098 | G11: 0.009425393911 | H11: =+D11-F11 -> -516548.4848 | I11: =+IFERROR(H11/F11,0) -> -0.3298744696
A12: 1.1.1.02. | B12: Equivalentes de efectivo | D12: =SUMIF(BCPAC!$B$10:$B$8000,$A12,BCPAC!$G$10:$G$8000)/1000 -> 576080.8259 | E12: 0.003450086911 | F12: =SUMIF(BCPAN!$B$10:$B$8000,$A12,BCPAN!$G$10:$G$8000)/1000 -> 503927.4517 | G12: 0.003033228583 | H12: 72153.37422 | I12: =+IFERROR(H12/F12,0) -> 0.1431820671
A13: 1.1.2. | B13: Inversiones a corto plazo | C13: 04 | D13: =SUM(D14:D18) -> 0 | E13: 0 | F13: =SUM(F14:F18) -> 0 | G13: 0 | H13: 0 | I13: =+IFERROR(H13/F13,0) -> 0 | J13: =+FIXED(E13,4) -> 0,0000 | K13: =+FIXED(I13,4) -> 0,0000 | L13: =+FIXED(H13,2) -> 0,00 | M13: =IF(H13 < 0, "Disminución", "Aumento") -> Aumento | N13: Activo | O13: =+CONCATENATE(Texto!$B$4,AnalisisBS!B13,Texto!$B$6,(AnalisisBS!J13*100),Texto!$B$8,N13,Texto!$B$12,AnalisisBS!L13,Texto!$B$14,AnalisisBS!M13,Texto!$B$16,(AnalisisBS!K13*100),Texto!$B$18) -> La cuenta Inversiones a corto plazo, representa el 0 % del total de Activo, que comparado al periodo anterior genera una variación absoluta de ¢0,00 que corresponde a un(a) Aumento del 0 % de recursos disponibles:
A14: 1.1.2.01. | B14: Títulos y valores a valor razonable a corto plazo | D14: =SUMIF(BCPAC!$B$10:$B$8000,$A14,BCPAC!$G$10:$G$8000)/1000 -> 0 | E14: 0 | F14: =SUMIF(BCPAN!$B$10:$B$8000,$A14,BCPAN!$G$10:$G$8000)/1000 -> 0 | G14: 0 | H14: 0 | I14: =+IFERROR(H14/F14,0) -> 0
A15: 1.1.2.02. | B15: Títulos y valores a costo amortizado a corto plazo | D15: =SUMIF(BCPAC!$B$10:$B$8000,$A15,BCPAC!$G$10:$G$8000)/1000 -> 0 | E15: 0 | F15: =SUMIF(BCPAN!$B$10:$B$8000,$A15,BCPAN!$G$10:$G$8000)/1000 -> 0 | G15: 0 | H15: 0 | I15: 0
A16: 1.1.2.03. | B16: Instrumentos Derivados a corto plazo | D16: =SUMIF(BCPAC!$B$10:$B$8000,$A16,BCPAC!$G$10:$G$8000)/1000 -> 0 | E16: 0 | F16: =SUMIF(BCPAN!$B$10:$B$8000,$A16,BCPAN!$G$10:$G$8000)/1000 -> 0 | G16: 0 | H16: 0 | I16: 0
A17: 1.1.2.98. | B17: Otras inversiones a corto plazo | D17: =SUMIF(BCPAC!$B$10:$B$8000,$A17,BCPAC!$G$10:$G$8000)/1000 -> 0 | E17: 0 | F17: =SUMIF(BCPAN!$B$10:$B$8000,$A17,BCPAN!$G$10:$G$8000)/1000 -> 0 | G17: 0 | H17: 0 | I17: 0
A18: 1.1.2.99. | B18: Previsiones para deterioro de inversiones a corto plazo * | D18: =SUMIF(BCPAC!$B$10:$B$8000,$A18,BCPAC!$G$10:$G$8000)/1000 -> 0 | E18: 0 | F18: =SUMIF(BCPAN!$B$10:$B$8000,$A18,BCPAN!$G$10:$G$8000)/1000 -> 0 | G18: 0 | H18: 0 | I18: 0
A19: 1.1.3. | B19: Cuentas a cobrar a corto plazo | C19: 05 | D19: =SUM(D20:D36) -> 2521436.034 | E19: 0.01510061274 | F19: =SUM(F20:F36) -> 2273691.66 | G19: 0.0136857528 | H19: 247744.3733 | I19: =+IFERROR(H19/F19,0) -> 0.1089612886 | J19: =+FIXED(E19,4) -> 0,0151 | K19: =+FIXED(I19,4) -> 0,1090 | L19: =+FIXED(H19,2) -> 247 744,37 | M19: =IF(H19 < 0, "Disminución", "Aumento") -> Aumento | N19: Activo | O19: =+CONCATENATE(Texto!$B$4,AnalisisBS!B19,Texto!$B$6,(AnalisisBS!J19*100),Texto!$B$8,N19,Texto!$B$12,AnalisisBS!L19,Texto!$B$14,AnalisisBS!M19,Texto!$B$16,(AnalisisBS!K19*100),Texto!$B$18) -> La cuenta Cuentas a cobrar a corto plazo, representa el 1,51 % del total de Activo, que comparado al periodo anterior genera una variación absoluta de ¢247 744,37 que corresponde a un(a) Aumento del 10,9 % de recursos disponibles:
A20: 1.1.3.01. | B20: Impuestos a cobrar a corto plazo | D20: =SUMIF(BCPAC!$B$10:$B$8000,$A20,BCPAC!$G$10:$G$8000)/1000 -> 545455.1621 | E20: 0.003266673062 | F20: =SUMIF(BCPAN!$B$10:$B$8000,$A20,BCPAN!$G$10:$G$8000)/1000 -> 620782.2959 | G20: 0.003736598587 | H20: -75327.13383 | I20: =+IFERROR(H20/F20,0) -> -0.1213422714
A21: 1.1.3.02. | B21: Contribuciones sociales a cobrar a corto plazo | D21: =SUMIF(BCPAC!$B$10:$B$8000,$A21,BCPAC!$G$10:$G$8000)/1000 -> 0 | E21: 0 | F21: =SUMIF(BCPAN!$B$10:$B$8000,$A21,BCPAN!$G$10:$G$8000)/1000 -> 0 | G21: 0 | H21: 0 | I21: 0
A22: 1.1.3.03. | B22: Ventas a cobrar a corto plazo | D22: =SUMIF(BCPAC!$B$10:$B$8000,$A22,BCPAC!$G$10:$G$8000)/1000 -> 0 | E22: 0 | F22: =SUMIF(BCPAN!$B$10:$B$8000,$A22,BCPAN!$G$10:$G$8000)/1000 -> 0 | G22: 0 | H22: 0 | I22: 0
A23: 1.1.3.04. | B23: Servicios y derechos a cobrar a corto plazo | D23: =SUMIF(BCPAC!$B$10:$B$8000,$A23,BCPAC!$G$10:$G$8000)/1000 -> 218693.2533 | E23: 0.001309730678 | F23: =SUMIF(BCPAN!$B$10:$B$8000,$A23,BCPAN!$G$10:$G$8000)/1000 -> 198092.5033 | G23: 0.001192353862 | H23: 20600.74999 | I23: 0.1039956063
A24: 1.1.3.05. | B24: Ingresos de la propiedad a cobrar a corto plazo | D24: =SUMIF(BCPAC!$B$10:$B$8000,$A24,BCPAC!$G$10:$G$8000)/1000 -> 0 | E24: 0 | F24: =SUMIF(BCPAN!$B$10:$B$8000,$A24,BCPAN!$G$10:$G$8000)/1000 -> 0 | G24: 0 | H24: 0 | I24: 0
A25: 1.1.3.06. | B25: Transferencias a cobrar a corto plazo | D25: =SUMIF(BCPAC!$B$10:$B$8000,$A25,BCPAC!$G$10:$G$8000)/1000 -> 1928955.162 | E25: 0.01155230769 | F25: =SUMIF(BCPAN!$B$10:$B$8000,$A25,BCPAN!$G$10:$G$8000)/1000 -> 1452907.304 | G25: 0.00874530639 | H25: 476047.8576 | I25: 0.327651913 | J25: =+FIXED(E25,4) -> 0,0116 | K25: =+FIXED(I25,4) -> 0,3277 | L25: =+FIXED(H25,2) -> 476 047,86 | M25: =IF(H25 < 0, "Disminución", "Aumento") -> Aumento | N25: Activo | O25: =+CONCATENATE(Texto!$B$4,AnalisisBS!B25,Texto!$B$6,(AnalisisBS!J25*100),Texto!$B$8,N25,Texto!$B$12,AnalisisBS!L25,Texto!$B$14,AnalisisBS!M25,Texto!$B$16,(AnalisisBS!K25*100),Texto!$B$18) -> La cuenta Transferencias a cobrar a corto plazo, representa el 1,16 % del total de Activo, que comparado al periodo anterior genera una variación absoluta de ¢476 047,86 que corresponde a un(a) Aumento del 32,77 % de recursos disponibles:
A26: 1.1.3.07. | B26: Préstamos a corto plazo | D26: =SUMIF(BCPAC!$B$10:$B$8000,$A26,BCPAC!$G$10:$G$8000)/1000 -> 0 | E26: 0 | F26: =SUMIF(BCPAN!$B$10:$B$8000,$A26,BCPAN!$G$10:$G$8000)/1000 -> 0 | G26: 0 | H26: 0 | I26: 0
A27: 1.1.3.08. | B27: Documentos a cobrar a corto plazo | D27: =SUMIF(BCPAC!$B$10:$B$8000,$A27,BCPAC!$G$10:$G$8000)/1000 -> 0 | E27: 0 | F27: =SUMIF(BCPAN!$B$10:$B$8000,$A27,BCPAN!$G$10:$G$8000)/1000 -> 0 | G27: 0 | H27: 0 | I27: 0
A28: 1.1.3.09. | B28: Anticipos a corto plazo | D28: =SUMIF(BCPAC!$B$10:$B$8000,$A28,BCPAC!$G$10:$G$8000)/1000 -> 0 | E28: 0 | F28: =SUMIF(BCPAN!$B$10:$B$8000,$A28,BCPAN!$G$10:$G$8000)/1000 -> 0 | G28: 0 | H28: 0 | I28: 0
A29: 1.1.3.10. | B29: Deudores por avales ejecutados a corto plazo | D29: =SUMIF(BCPAC!$B$10:$B$8000,$A29,BCPAC!$G$10:$G$8000)/1000 -> 0 | E29: 0 | F29: =SUMIF(BCPAN!$B$10:$B$8000,$A29,BCPAN!$G$10:$G$8000)/1000 -> 0 | G29: 0 | H29: 0 | I29: 0
A30: 1.1.3.11. | B30: Planillas salariales | D30: =SUMIF(BCPAC!$B$10:$B$8000,$A30,BCPAC!$G$10:$G$8000)/1000 -> 0 | E30: 0 | F30: =SUMIF(BCPAN!$B$10:$B$8000,$A30,BCPAN!$G$10:$G$8000)/1000 -> 0 | G30: 0 | H30: 0 | I30: 0
A31: 1.1.3.12. | B31: Beneficios Sociales | D31: =SUMIF(BCPAC!$B$10:$B$8000,$A31,BCPAC!$G$10:$G$8000)/1000 -> 0 | E31: 0 | F31: =SUMIF(BCPAN!$B$10:$B$8000,$A31,BCPAN!$G$10:$G$8000)/1000 -> 0 | G31: 0 | H31: 0 | I31: 0
A32: 1.1.3.13. | B32: Beneficios Sociales | D32: =SUMIF(BCPAC!$B$10:$B$8000,$A32,BCPAC!$G$10:$G$8000)/1000 -> 0 | E32: 0 | F32: =SUMIF(BCPAN!$B$10:$B$8000,$A32,BCPAN!$G$10:$G$8000)/1000 -> 0 | G32: 0 | H32: =+D32-F32 -> 0 | I32: =+IFERROR(H32/F32,0) -> 0
A33: 1.1.3.50. | B33: Registro transitorio de transaccion de activo fijo | D33: =SUMIF(BCPAC!$B$10:$B$8000,$A33,BCPAC!$G$10:$G$8000)/1000 -> 0 | E33: 0 | F33: =SUMIF(BCPAN!$B$10:$B$8000,$A33,BCPAN!$G$10:$G$8000)/1000 -> 0 | G33: 0 | H33: =+D33-F33 -> 0 | I33: 0
A34: 1.1.3.97. | B34: Cuentas a cobrar en gestión judicial | D34: =SUMIF(BCPAC!$B$10:$B$8000,$A34,BCPAC!$G$10:$G$8000)/1000 -> 0 | E34: 0 | F34: =SUMIF(BCPAN!$B$10:$B$8000,$A34,BCPAN!$G$10:$G$8000)/1000 -> 0 | G34: 0 | H34: 0 | I34: 0
A35: 1.1.3.98. | B35: Otras cuentas a cobrar a corto plazo | D35: =SUMIF(BCPAC!$B$10:$B$8000,$A35,BCPAC!$G$10:$G$8000)/1000 -> 3710.3538 | E35: 2.222091503e-05 | F35: =SUMIF(BCPAN!$B$10:$B$8000,$A35,BCPAN!$G$10:$G$8000)/1000 -> 1909.55695 | G35: 1.149396149e-05 | H35: 1800.79685 | I35: 0.9430443276
A36: 1.1.3.99. | B36: Previsiones para deterioro de cuentas a cobrar a corto plazo * | D36: =SUMIF(BCPAC!$B$10:$B$8000,$A36,BCPAC!$G$10:$G$8000)/1000 -> -175377.8974 | E36: -0.00105031961 | F36: =SUMIF(BCPAN!$B$10:$B$8000,$A36,BCPAN!$G$10:$G$8000)/1000 -> 0 | G36: 0 | H36: -175377.8974 | I36: 0
A37: 1.1.4. | B37: Inventarios | C37: 06 | D37: =SUM(D38:D42) -> 176238.5837 | E37: 0.001055474168 | F37: =SUM(F38:F42) -> 4761.33231 | G37: 2.865930246e-05 | H37: 171477.2514 | I37: =+IFERROR(H37/F37,0) -> 36.01455227 | J37: =+FIXED(E37,4) -> 0,0011 | K37: =+FIXED(I37,4) -> 36,0146 | L37: =+FIXED(H37,2) -> 171 477,25 | M37: =IF(H37 < 0, "Disminución", "Aumento") -> Aumento | N37: Activo | O37: =+CONCATENATE(Texto!$B$4,AnalisisBS!B37,Texto!$B$6,(AnalisisBS!J37*100),Texto!$B$8,N37,Texto!$B$12,AnalisisBS!L37,Texto!$B$14,AnalisisBS!M37,Texto!$B$16,(AnalisisBS!K37*100),Texto!$B$18) -> La cuenta Inventarios, representa el 0,11 % del total de Activo, que comparado al periodo anterior genera una variación absoluta de ¢171 477,25 que corresponde a un(a) Aumento del 3601,46 % de recursos disponibles:
A38: 1.1.4.01. | B38: Materiales y suministros para consumo y prestación de servicios | D38: =SUMIF(BCPAC!$B$10:$B$8000,$A38,BCPAC!$G$10:$G$8000)/1000 -> 176238.5837 | E38: =+IFERROR(D38/$D$91,0) -> 0.001055474168 | F38: =SUMIF(BCPAN!$B$10:$B$8000,$A38,BCPAN!$G$10:$G$8000)/1000 -> 4761.33231 | G38: =+IFERROR(F38/$F$91,0) -> 2.865930246e-05 | H38: 171477.2514 | I38: =+IFERROR(H38/F38,0) -> 36.01455227
A39: 1.1.4.02. | B39: Bienes para la venta | D39: =SUMIF(BCPAC!$B$10:$B$8000,$A39,BCPAC!$G$10:$G$8000)/1000 -> 0 | E39: 0 | F39: =SUMIF(BCPAN!$B$10:$B$8000,$A39,BCPAN!$G$10:$G$8000)/1000 -> 0 | G39: 0 | H39: 0 | I39: 0
A40: 1.1.4.03. | B40: Materias primas y bienes en producción | D40: =SUMIF(BCPAC!$B$10:$B$8000,$A40,BCPAC!$G$10:$G$8000)/1000 -> 0 | E40: 0 | F40: =SUMIF(BCPAN!$B$10:$B$8000,$A40,BCPAN!$G$10:$G$8000)/1000 -> 0 | G40: 0 | H40: 0 | I40: 0
A41: 1.1.4.04. | B41: Bienes a Transferir sin contraprestación - Donaciones | D41: =SUMIF(BCPAC!$B$10:$B$8000,$A41,BCPAC!$G$10:$G$8000)/1000 -> 0 | E41: 0 | F41: =SUMIF(BCPAN!$B$10:$B$8000,$A41,BCPAN!$G$10:$G$8000)/1000 -> 0 | G41: 0 | H41: 0 | I41: 0
A42: 1.1.4.99. | B42: Previsiones para deterioro y pérdidas de inventario * | D42: =SUMIF(BCPAC!$B$10:$B$8000,$A42,BCPAC!$G$10:$G$8000)/1000 -> 0 | E42: 0 | F42: =SUMIF(BCPAN!$B$10:$B$8000,$A42,BCPAN!$G$10:$G$8000)/1000 -> 0 | G42: 0 | H42: 0 | I42: 0
A43: 1.1.9. | B43: Otros activos a corto plazo | C43: 07 | D43: =SUM(D44:D46) -> 13860.07582 | E43: =+IFERROR(D43/$D$91,0) -> 8.300652273e-05 | F43: =SUM(F44:F46) -> 17109.74868 | G43: =+IFERROR(F43/$F$91,0) -> 0.0001029866076 | H43: -3249.67286 | I43: =+IFERROR(H43/F43,0) -> -0.1899310692 | J43: =+FIXED(E43,4) -> 0,0001 | K43: =+FIXED(I43,4) -> -0,1899 | L43: =+FIXED(H43,2) -> -3 249,67 | M43: =IF(H43 < 0, "Disminución", "Aumento") -> Disminución | N43: Activo | O43: =+CONCATENATE(Texto!$B$4,AnalisisBS!B43,Texto!$B$6,(AnalisisBS!J43*100),Texto!$B$8,N43,Texto!$B$12,AnalisisBS!L43,Texto!$B$14,AnalisisBS!M43,Texto!$B$16,(AnalisisBS!K43*100),Texto!$B$18) -> La cuenta Otros activos a corto plazo, representa el 0,01 % del total de Activo, que comparado al periodo anterior genera una variación absoluta de ¢-3 249,67 que corresponde a un(a) Disminución del -18,99 % de recursos disponibles:
A44: 1.1.9.01. | B44: Gastos a devengar a corto plazo | D44: =SUMIF(BCPAC!$B$10:$B$8000,$A44,BCPAC!$G$10:$G$8000)/1000 -> 13860.07582 | E44: =+IFERROR(D44/$D$91,0) -> 8.300652273e-05 | F44: =SUMIF(BCPAN!$B$10:$B$8000,$A44,BCPAN!$G$10:$G$8000)/1000 -> 17109.74868 | G44: =+IFERROR(F44/$F$91,0) -> 0.0001029866076 | H44: -3249.67286 | I44: =+IFERROR(H44/F44,0) -> -0.1899310692 | J44: =+FIXED(E44,4) -> 0,0001 | K44: =+FIXED(I44,4) -> -0,1899 | L44: =+FIXED(H44,2) -> -3 249,67 | M44: =IF(H44 < 0, "Disminución", "Aumento") -> Disminución | N44: Activo | O44: =+CONCATENATE(Texto!$B$4,AnalisisBS!B44,Texto!$B$6,(AnalisisBS!J44*100),Texto!$B$8,N44,Texto!$B$12,AnalisisBS!L44,Texto!$B$14,AnalisisBS!M44,Texto!$B$16,(AnalisisBS!K44*100),Texto!$B$18) -> La cuenta Gastos a devengar a corto plazo, representa el 0,01 % del total de Activo, que comparado al periodo anterior genera una variación absoluta de ¢-3 249,67 que corresponde a un(a) Disminución del -18,99 % de recursos disponibles:
A45: 1.1.9.02. | B45: Cuentas transitorias | D45: =SUMIF(BCPAC!$B$10:$B$8000,$A45,BCPAC!$G$10:$G$8000)/1000 -> 0 | E45: 0 | F45: =SUMIF(BCPAN!$B$10:$B$8000,$A45,BCPAN!$G$10:$G$8000)/1000 -> 0 | G45: 0 | H45: 0 | I45: 0
A46: 1.1.9.99. | B46: Activos a corto plazo sujetos a depuración contable | D46: =SUMIF(BCPAC!$B$10:$B$8000,$A46,BCPAC!$G$10:$G$8000)/1000 -> 0 | E46: 0 | F46: =SUMIF(BCPAN!$B$10:$B$8000,$A46,BCPAN!$G$10:$G$8000)/1000 -> 0 | G46: 0 | H46: 0 | I46: 0
B47: Total del Activo Corriente | D47: =+D43++D37+D19+D13+D10 -> 4336961.132 | E47: 0.02597359982 | F47: 4365384.291 | G47: 0.0262760212 | H47: -28423.15885 | I47: =+IFERROR(H47/F47,0) -> -0.006511032468
A49: 1.2. | B49: Activo No Corriente
A50: 1.2.2. | B50: Inversiones a largo plazo | C50: 08 | D50: =SUM(D51:D55) -> 0 | E50: =+IFERROR(D50/$D$91,0) -> 0 | F50: =SUM(F51:F55) -> 0 | G50: =+IFERROR(F50/$F$91,0) -> 0 | H50: =+D50-F50 -> 0 | I50: =+IFERROR(H50/F50,0) -> 0 | J50: =+FIXED(E50,4) -> 0,0000 | K50: =+FIXED(I50,4) -> 0,0000 | L50: =+FIXED(H50,2) -> 0,00 | M50: =IF(H50 < 0, "Disminución", "Aumento") -> Aumento | N50: Activo | O50: =+CONCATENATE(Texto!$B$4,AnalisisBS!B50,Texto!$B$6,(AnalisisBS!J50*100),Texto!$B$8,N50,Texto!$B$12,AnalisisBS!L50,Texto!$B$14,AnalisisBS!M50,Texto!$B$16,(AnalisisBS!K50*100),Texto!$B$18) -> La cuenta Inversiones a largo plazo, representa el 0 % del total de Activo, que comparado al periodo anterior genera una variación absoluta de ¢0,00 que corresponde a un(a) Aumento del 0 % de recursos disponibles:
A51: 1.2.2.01. | B51: Títulos y valores a valor razonable a largo plazo | D51: =SUMIF(BCPAC!$B$10:$B$8000,$A51,BCPAC!$G$10:$G$8000)/1000 -> 0 | E51: =+IFERROR(D51/$D$91,0) -> 0 | F51: =SUMIF(BCPAN!$B$10:$B$8000,$A51,BCPAN!$G$10:$G$8000)/1000 -> 0 | G51: =+IFERROR(F51/$F$91,0) -> 0 | H51: 0 | I51: =+IFERROR(H51/F51,0) -> 0
A52: 1.2.2.02. | B52: Títulos y valores a costo amortizado a largo plazo | D52: =SUMIF(BCPAC!$B$10:$B$8000,$A52,BCPAC!$G$10:$G$8000)/1000 -> 0 | E52: =+IFERROR(D52/$D$91,0) -> 0 | F52: =SUMIF(BCPAN!$B$10:$B$8000,$A52,BCPAN!$G$10:$G$8000)/1000 -> 0 | G52: 0 | H52: 0 | I52: 0
A53: 1.2.2.03. | B53: Instrumentos Derivados a largo plazo | D53: =SUMIF(BCPAC!$B$10:$B$8000,$A53,BCPAC!$G$10:$G$8000)/1000 -> 0 | E53: 0 | F53: =SUMIF(BCPAN!$B$10:$B$8000,$A53,BCPAN!$G$10:$G$8000)/1000 -> 0 | G53: 0 | H53: 0 | I53: 0
A54: 1.2.2.98. | B54: Otras inversiones a largo plazo | D54: =SUMIF(BCPAC!$B$10:$B$8000,$A54,BCPAC!$G$10:$G$8000)/1000 -> 0 | E54: 0 | F54: =SUMIF(BCPAN!$B$10:$B$8000,$A54,BCPAN!$G$10:$G$8000)/1000 -> 0 | G54: 0 | H54: 0 | I54: 0
A55: 1.2.2.99. | B55: Previsiones para deterioro de inversiones a largo plazo * | D55: =SUMIF(BCPAC!$B$10:$B$8000,$A55,BCPAC!$G$10:$G$8000)/1000 -> 0 | E55: 0 | F55: =SUMIF(BCPAN!$B$10:$B$8000,$A55,BCPAN!$G$10:$G$8000)/1000 -> 0 | G55: 0 | H55: 0 | I55: 0
A56: 1.2.3. | B56: Cuentas a cobrar a largo plazo | C56: 09 | D56: =SUM(D57:D63) -> 0 | E56: =+IFERROR(D56/$D$91,0) -> 0 | F56: =SUM(F57:F63) -> 0 | G56: =+IFERROR(F56/$F$91,0) -> 0 | H56: 0 | I56: =+IFERROR(H56/F56,0) -> 0 | J56: =+FIXED(E56,4) -> 0,0000 | K56: =+FIXED(I56,4) -> 0,0000 | L56: =+FIXED(H56,2) -> 0,00 | M56: =IF(H56 < 0, "Disminución", "Aumento") -> Aumento | N56: Activo | O56: =+CONCATENATE(Texto!$B$4,AnalisisBS!B56,Texto!$B$6,(AnalisisBS!J56*100),Texto!$B$8,N56,Texto!$B$12,AnalisisBS!L56,Texto!$B$14,AnalisisBS!M56,Texto!$B$16,(AnalisisBS!K56*100),Texto!$B$18) -> La cuenta Cuentas a cobrar a largo plazo, representa el 0 % del total de Activo, que comparado al periodo anterior genera una variación absoluta de ¢0,00 que corresponde a un(a) Aumento del 0 % de recursos disponibles:
A57: 1.2.3.03. | B57: Ventas a cobrar a largo plazo | D57: =SUMIF(BCPAC!$B$10:$B$8000,$A57,BCPAC!$G$10:$G$8000)/1000 -> 0 | E57: =+IFERROR(D57/$D$91,0) -> 0 | F57: =SUMIF(BCPAN!$B$10:$B$8000,$A57,BCPAN!$G$10:$G$8000)/1000 -> 0 | G57: =+IFERROR(F57/$F$91,0) -> 0 | H57: 0 | I57: =+IFERROR(H57/F57,0) -> 0
A58: 1.2.3.07. | B58: Préstamos a largo plazo | D58: =SUMIF(BCPAC!$B$10:$B$8000,$A58,BCPAC!$G$10:$G$8000)/1000 -> 0 | E58: 0 | F58: =SUMIF(BCPAN!$B$10:$B$8000,$A58,BCPAN!$G$10:$G$8000)/1000 -> 0 | G58: 0 | H58: 0 | I58: 0
A59: 1.2.3.08. | B59: Documentos a cobrar a largo plazo | D59: =SUMIF(BCPAC!$B$10:$B$8000,$A59,BCPAC!$G$10:$G$8000)/1000 -> 0 | E59: 0 | F59: =SUMIF(BCPAN!$B$10:$B$8000,$A59,BCPAN!$G$10:$G$8000)/1000 -> 0 | G59: 0 | H59: 0 | I59: 0
A60: 1.2.3.09. | B60: Anticipos a largo plazo | D60: =SUMIF(BCPAC!$B$10:$B$8000,$A60,BCPAC!$G$10:$G$8000)/1000 -> 0 | E60: 0 | F60: =SUMIF(BCPAN!$B$10:$B$8000,$A60,BCPAN!$G$10:$G$8000)/1000 -> 0 | G60: 0 | H60: 0 | I60: 0
A61: 1.2.3.10. | B61: Deudores por avales ejecutados a largo plazo | D61: =SUMIF(BCPAC!$B$10:$B$8000,$A61,BCPAC!$G$10:$G$8000)/1000 -> 0 | E61: 0 | F61: =SUMIF(BCPAN!$B$10:$B$8000,$A61,BCPAN!$G$10:$G$8000)/1000 -> 0 | G61: 0 | H61: 0 | I61: 0
A62: 1.2.3.98. | B62: Otras cuentas a cobrar a largo plazo | D62: =SUMIF(BCPAC!$B$10:$B$8000,$A62,BCPAC!$G$10:$G$8000)/1000 -> 0 | E62: 0 | F62: =SUMIF(BCPAN!$B$10:$B$8000,$A62,BCPAN!$G$10:$G$8000)/1000 -> 0 | G62: 0 | H62: 0 | I62: 0
A63: 1.2.3.99. | B63: Previsiones para deterioro de cuentas a cobrar a largo plazo * | D63: =SUMIF(BCPAC!$B$10:$B$8000,$A63,BCPAC!$G$10:$G$8000)/1000 -> 0 | E63: 0 | F63: =SUMIF(BCPAN!$B$10:$B$8000,$A63,BCPAN!$G$10:$G$8000)/1000 -> 0 | G63: 0 | H63: 0 | I63: 0
A64: 1.2.5. | B64: Bienes no concesionados | C64: 10 | D64: =SUM(D65:D73) -> 162638782 | E64: =+IFERROR(D64/$D$91,0) -> 0.9740264002 | F64: =SUM(F65:F73) -> 161770282 | G64: =+IFERROR(F64/$F$91,0) -> 0.9737239788 | H64: 868500.0164 | I64: =+IFERROR(H64/F64,0) -> 0.005368724129 | J64: =+FIXED(E64,4) -> 0,9740 | K64: =+FIXED(I64,4) -> 0,0054 | L64: =+FIXED(H64,2) -> 868 500,02 | M64: =IF(H64 < 0, "Disminución", "Aumento") -> Aumento | N64: Activo | O64: =+CONCATENATE(Texto!$B$4,AnalisisBS!B64,Texto!$B$6,(AnalisisBS!J64*100),Texto!$B$8,N64,Texto!$B$12,AnalisisBS!L64,Texto!$B$14,AnalisisBS!M64,Texto!$B$16,(AnalisisBS!K64*100),Texto!$B$18) -> La cuenta Bienes no concesionados, representa el 97,4 % del total de Activo, que comparado al periodo anterior genera una variación absoluta de ¢868 500,02 que corresponde a un(a) Aumento del 0,54 % de recursos disponibles:
A65: 1.2.5.01. | B65: Propiedades, planta y equipos explotados | D65: =SUMIF(BCPAC!$B$10:$B$8000,$A65,BCPAC!$G$10:$G$8000)/1000 -> 1787715.686 | E65: =+IFERROR(D65/$D$91,0) -> 0.01070643946 | F65: =SUMIF(BCPAN!$B$10:$B$8000,$A65,BCPAN!$G$10:$G$8000)/1000 -> 974861.9398 | G65: =+IFERROR(F65/$F$91,0) -> 0.005867866675 | H65: 812853.7463 | I65: =+IFERROR(H65/F65,0) -> 0.8338142184 | J65: =+FIXED(E65,4) -> 0,0107 | K65: =+FIXED(I65,4) -> 0,8338 | L65: =+FIXED(H65,2) -> 812 853,75 | M65: Aumento | N65: Activo | O65: =+CONCATENATE(Texto!$B$4,AnalisisBS!B65,Texto!$B$6,(AnalisisBS!J65*100),Texto!$B$8,N65,Texto!$B$12,AnalisisBS!L65,Texto!$B$14,AnalisisBS!M65,Texto!$B$16,(AnalisisBS!K65*100),Texto!$B$18) -> La cuenta Propiedades, planta y equipos explotados, representa el 1,07 % del total de Activo, que comparado al periodo anterior genera una variación absoluta de ¢812 853,75 que corresponde a un(a) Aumento del 83,38 % de recursos disponibles:
A66: 1.2.5.02. | B66: Propiedades de inversión | D66: =SUMIF(BCPAC!$B$10:$B$8000,$A66,BCPAC!$G$10:$G$8000)/1000 -> 0 | E66: 0 | F66: =SUMIF(BCPAN!$B$10:$B$8000,$A66,BCPAN!$G$10:$G$8000)/1000 -> 0 | G66: 0 | H66: 0 | I66: 0 | J66: 0,0000 | K66: 0,0000 | L66: 0,00 | M66: Aumento | N66: Activo | O66: =+CONCATENATE(Texto!$B$4,AnalisisBS!B66,Texto!$B$6,(AnalisisBS!J66*100),Texto!$B$8,N66,Texto!$B$12,AnalisisBS!L66,Texto!$B$14,AnalisisBS!M66,Texto!$B$16,(AnalisisBS!K66*100),Texto!$B$18) -> La cuenta Propiedades de inversión, representa el 0 % del total de Activo, que comparado al periodo anterior genera una variación absoluta de ¢0,00 que corresponde a un(a) Aumento del 0 % de recursos disponibles:
A67: 1.2.5.03. | B67: Activos biológicos no concesionados | D67: =SUMIF(BCPAC!$B$10:$B$8000,$A67,BCPAC!$G$10:$G$8000)/1000 -> 0 | E67: 0 | F67: =SUMIF(BCPAN!$B$10:$B$8000,$A67,BCPAN!$G$10:$G$8000)/1000 -> 0 | G67: 0 | H67: 0 | I67: 0 | J67: 0,0000 | K67: 0,0000 | L67: 0,00 | M67: Aumento | N67: Activo | O67: =+CONCATENATE(Texto!$B$4,AnalisisBS!B67,Texto!$B$6,(AnalisisBS!J67*100),Texto!$B$8,N67,Texto!$B$12,AnalisisBS!L67,Texto!$B$14,AnalisisBS!M67,Texto!$B$16,(AnalisisBS!K67*100),Texto!$B$18) -> La cuenta Activos biológicos no concesionados, representa el 0 % del total de Activo, que comparado al periodo anterior genera una variación absoluta de ¢0,00 que corresponde a un(a) Aumento del 0 % de recursos disponibles:
A68: 1.2.5.04. | B68: Bienes de infraestructura y de beneficio y uso público en servicio | D68: =SUMIF(BCPAC!$B$10:$B$8000,$A68,BCPAC!$G$10:$G$8000)/1000 -> 160765498.1 | E68: 0.9628075015 | F68: =SUMIF(BCPAN!$B$10:$B$8000,$A68,BCPAN!$G$10:$G$8000)/1000 -> 160765498.1 | G68: 0.9676760064 | H68: 0 | I68: 0 | J68: 0,9628 | K68: 0,0000 | L68: 0,00 | M68: Aumento | N68: Activo | O68: =+CONCATENATE(Texto!$B$4,AnalisisBS!B68,Texto!$B$6,(AnalisisBS!J68*100),Texto!$B$8,N68,Texto!$B$12,AnalisisBS!L68,Texto!$B$14,AnalisisBS!M68,Texto!$B$16,(AnalisisBS!K68*100),Texto!$B$18) -> La cuenta Bienes de infraestructura y de beneficio y uso público en servicio, representa el 96,28 % del total de Activo, que comparado al periodo anterior genera una variación absoluta de ¢0,00 que corresponde a un(a) Aumento del 0 % de recursos disponibles:
A69: 1.2.5.05. | B69: Bienes históricos y culturales | D69: =SUMIF(BCPAC!$B$10:$B$8000,$A69,BCPAC!$G$10:$G$8000)/1000 -> 0 | E69: 0 | F69: =SUMIF(BCPAN!$B$10:$B$8000,$A69,BCPAN!$G$10:$G$8000)/1000 -> 0 | G69: 0 | H69: 0 | I69: 0 | J69: 0,0000 | K69: 0,0000 | L69: 0,00 | M69: Aumento | N69: Activo | O69: =+CONCATENATE(Texto!$B$4,AnalisisBS!B69,Texto!$B$6,(AnalisisBS!J69*100),Texto!$B$8,N69,Texto!$B$12,AnalisisBS!L69,Texto!$B$14,AnalisisBS!M69,Texto!$B$16,(AnalisisBS!K69*100),Texto!$B$18) -> La cuenta Bienes históricos y culturales, representa el 0 % del total de Activo, que comparado al periodo anterior genera una variación absoluta de ¢0,00 que corresponde a un(a) Aumento del 0 % de recursos disponibles:
A70: 1.2.5.06. | B70: Recursos naturales en explotación | D70: =SUMIF(BCPAC!$B$10:$B$8000,$A70,BCPAC!$G$10:$G$8000)/1000 -> 0 | E70: 0 | F70: =SUMIF(BCPAN!$B$10:$B$8000,$A70,BCPAN!$G$10:$G$8000)/1000 -> 0 | G70: 0 | H70: 0 | I70: 0 | J70: 0,0000 | K70: 0,0000 | L70: 0,00 | M70: Aumento | N70: Activo | O70: =+CONCATENATE(Texto!$B$4,AnalisisBS!B70,Texto!$B$6,(AnalisisBS!J70*100),Texto!$B$8,N70,Texto!$B$12,AnalisisBS!L70,Texto!$B$14,AnalisisBS!M70,Texto!$B$16,(AnalisisBS!K70*100),Texto!$B$18) -> La cuenta Recursos naturales en explotación, representa el 0 % del total de Activo, que comparado al periodo anterior genera una variación absoluta de ¢0,00 que corresponde a un(a) Aumento del 0 % de recursos disponibles:
A71: 1.2.5.07. | B71: Recursos naturales en conservación | D71: =SUMIF(BCPAC!$B$10:$B$8000,$A71,BCPAC!$G$10:$G$8000)/1000 -> 0 | E71: 0 | F71: =SUMIF(BCPAN!$B$10:$B$8000,$A71,BCPAN!$G$10:$G$8000)/1000 -> 0 | G71: 0 | H71: 0 | I71: 0 | J71: 0,0000 | K71: 0,0000 | L71: 0,00 | M71: Aumento | N71: Activo | O71: =+CONCATENATE(Texto!$B$4,AnalisisBS!B71,Texto!$B$6,(AnalisisBS!J71*100),Texto!$B$8,N71,Texto!$B$12,AnalisisBS!L71,Texto!$B$14,AnalisisBS!M71,Texto!$B$16,(AnalisisBS!K71*100),Texto!$B$18) -> La cuenta Recursos naturales en conservación, representa el 0 % del total de Activo, que comparado al periodo anterior genera una variación absoluta de ¢0,00 que corresponde a un(a) Aumento del 0 % de recursos disponibles:
A72: 1.2.5.08. | B72: Bienes intangibles no concesionados | D72: =SUMIF(BCPAC!$B$10:$B$8000,$A72,BCPAC!$G$10:$G$8000)/1000 -> 7987.29414 | E72: 4.783505669e-05 | F72: =SUMIF(BCPAN!$B$10:$B$8000,$A72,BCPAN!$G$10:$G$8000)/1000 -> 29921.98516 | G72: 0.0001801057282 | H72: -21934.69102 | I72: =+IFERROR(H72/F72,0) -> -0.733062693 | J72: 0,0000 | K72: -0,7331 | L72: -21 934,69 | M72: Disminución | N72: Activo | O72: =+CONCATENATE(Texto!$B$4,AnalisisBS!B72,Texto!$B$6,(AnalisisBS!J72*100),Texto!$B$8,N72,Texto!$B$12,AnalisisBS!L72,Texto!$B$14,AnalisisBS!M72,Texto!$B$16,(AnalisisBS!K72*100),Texto!$B$18) -> La cuenta Bienes intangibles no concesionados, representa el 0 % del total de Activo, que comparado al periodo anterior genera una variación absoluta de ¢-21 934,69 que corresponde a un(a) Disminución del -73,31 % de recursos disponibles:
A73: 1.2.5.99. | B73: Bienes no concesionados en proceso de producción | D73: =SUMIF(BCPAC!$B$10:$B$8000,$A73,BCPAC!$G$10:$G$8000)/1000 -> 77580.96105 | E73: 0.0004646241399 | F73: =SUMIF(BCPAN!$B$10:$B$8000,$A73,BCPAN!$G$10:$G$8000)/1000 -> 0 | G73: 0 | H73: 77580.96105 | I73: 0 | J73: 0,0005 | K73: 0,0000 | L73: 77 580,96 | M73: Aumento | N73: Activo | O73: =+CONCATENATE(Texto!$B$4,AnalisisBS!B73,Texto!$B$6,(AnalisisBS!J73*100),Texto!$B$8,N73,Texto!$B$12,AnalisisBS!L73,Texto!$B$14,AnalisisBS!M73,Texto!$B$16,(AnalisisBS!K73*100),Texto!$B$18) -> La cuenta Bienes no concesionados en proceso de producción, representa el 0,05 % del total de Activo, que comparado al periodo anterior genera una variación absoluta de ¢77 580,96 que corresponde a un(a) Aumento del 0 % de recursos disponibles:
A74: 1.2.6. | B74: Bienes concesionados | C74: 11 | D74: =SUM(D75:D80) -> 0 | E74: =+IFERROR(D74/$D$91,0) -> 0 | F74: =SUM(F75:F80) -> 0 | G74: =+IFERROR(F74/$F$91,0) -> 0 | H74: 0 | I74: =+IFERROR(H74/F74,0) -> 0 | J74: =+FIXED(E74,4) -> 0,0000 | K74: =+FIXED(I74,4) -> 0,0000 | L74: =+FIXED(H74,2) -> 0,00 | M74: Aumento | N74: Activo | O74: =+CONCATENATE(Texto!$B$4,AnalisisBS!B74,Texto!$B$6,(AnalisisBS!J74*100),Texto!$B$8,N74,Texto!$B$12,AnalisisBS!L74,Texto!$B$14,AnalisisBS!M74,Texto!$B$16,(AnalisisBS!K74*100),Texto!$B$18) -> La cuenta Bienes concesionados, representa el 0 % del total de Activo, que comparado al periodo anterior genera una variación absoluta de ¢0,00 que corresponde a un(a) Aumento del 0 % de recursos disponibles:
A75: 1.2.6.01. | B75: Propiedades, planta y equipos concesionados | D75: =SUMIF(BCPAC!$B$10:$B$8000,$A75,BCPAC!$G$10:$G$8000)/1000 -> 0 | E75: =+IFERROR(D75/$D$91,0) -> 0 | F75: =SUMIF(BCPAN!$B$10:$B$8000,$A75,BCPAN!$G$10:$G$8000)/1000 -> 0 | G75: =+IFERROR(F75/$F$91,0) -> 0 | H75: 0 | I75: =+IFERROR(H75/F75,0) -> 0 | J75: =+FIXED(E75,4) -> 0,0000 | K75: =+FIXED(I75,4) -> 0,0000 | L75: =+FIXED(H75,2) -> 0,00 | M75: Aumento | N75: Activo | O75: =+CONCATENATE(Texto!$B$4,AnalisisBS!B75,Texto!$B$6,(AnalisisBS!J75*100),Texto!$B$8,N75,Texto!$B$12,AnalisisBS!L75,Texto!$B$14,AnalisisBS!M75,Texto!$B$16,(AnalisisBS!K75*100),Texto!$B$18) -> La cuenta Propiedades, planta y equipos concesionados, representa el 0 % del total de Activo, que comparado al periodo anterior genera una variación absoluta de ¢0,00 que corresponde a un(a) Aumento del 0 % de recursos disponibles:
A76: 1.2.6.03. | B76: Activos biológicos concesionados | D76: =SUMIF(BCPAC!$B$10:$B$8000,$A76,BCPAC!$G$10:$G$8000)/1000 -> 0 | E76: 0 | F76: =SUMIF(BCPAN!$B$10:$B$8000,$A76,BCPAN!$G$10:$G$8000)/1000 -> 0 | G76: 0 | H76: 0 | I76: 0 | J76: =+FIXED(E76,4) -> 0,0000 | K76: =+FIXED(I76,4) -> 0,0000 | L76: =+FIXED(H76,2) -> 0,00 | M76: Aumento | N76: Activo | O76: =+CONCATENATE(Texto!$B$4,AnalisisBS!B76,Texto!$B$6,(AnalisisBS!J76*100),Texto!$B$8,N76,Texto!$B$12,AnalisisBS!L76,Texto!$B$14,AnalisisBS!M76,Texto!$B$16,(AnalisisBS!K76*100),Texto!$B$18) -> La cuenta Activos biológicos concesionados, representa el 0 % del total de Activo, que comparado al periodo anterior genera una variación absoluta de ¢0,00 que corresponde a un(a) Aumento del 0 % de recursos disponibles:
A77: 1.2.6.04. | B77: Bienes de infraestructura y de beneficio y uso público concesionados | D77: =SUMIF(BCPAC!$B$10:$B$8000,$A77,BCPAC!$G$10:$G$8000)/1000 -> 0 | E77: 0 | F77: =SUMIF(BCPAN!$B$10:$B$8000,$A77,BCPAN!$G$10:$G$8000)/1000 -> 0 | G77: 0 | H77: 0 | I77: 0 | J77: 0,0000 | K77: 0,0000 | L77: 0,00 | M77: Aumento | N77: Activo | O77: =+CONCATENATE(Texto!$B$4,AnalisisBS!B77,Texto!$B$6,(AnalisisBS!J77*100),Texto!$B$8,N77,Texto!$B$12,AnalisisBS!L77,Texto!$B$14,AnalisisBS!M77,Texto!$B$16,(AnalisisBS!K77*100),Texto!$B$18) -> La cuenta Bienes de infraestructura y de beneficio y uso público concesionados, representa el 0 % del total de Activo, que comparado al periodo anterior genera una variación absoluta de ¢0,00 que corresponde a un(a) Aumento del 0 % de recursos disponibles:
A78: 1.2.6.06. | B78: Recursos naturales concesionados | D78: =SUMIF(BCPAC!$B$10:$B$8000,$A78,BCPAC!$G$10:$G$8000)/1000 -> 0 | E78: 0 | F78: =SUMIF(BCPAN!$B$10:$B$8000,$A78,BCPAN!$G$10:$G$8000)/1000 -> 0 | G78: 0 | H78: 0 | I78: 0 | J78: 0,0000 | K78: 0,0000 | L78: 0,00 | M78: Aumento | N78: Activo | O78: =+CONCATENATE(Texto!$B$4,AnalisisBS!B78,Texto!$B$6,(AnalisisBS!J78*100),Texto!$B$8,N78,Texto!$B$12,AnalisisBS!L78,Texto!$B$14,AnalisisBS!M78,Texto!$B$16,(AnalisisBS!K78*100),Texto!$B$18) -> La cuenta Recursos naturales concesionados, representa el 0 % del total de Activo, que comparado al periodo anterior genera una variación absoluta de ¢0,00 que corresponde a un(a) Aumento del 0 % de recursos disponibles:
A79: 1.2.6.08. | B79: Bienes intangibles concesionados | D79: =SUMIF(BCPAC!$B$10:$B$8000,$A79,BCPAC!$G$10:$G$8000)/1000 -> 0 | E79: 0 | F79: =SUMIF(BCPAN!$B$10:$B$8000,$A79,BCPAN!$G$10:$G$8000)/1000 -> 0 | G79: 0 | H79: 0 | I79: 0 | J79: 0,0000 | K79: 0,0000 | L79: 0,00 | M79: Aumento | N79: Activo | O79: =+CONCATENATE(Texto!$B$4,AnalisisBS!B79,Texto!$B$6,(AnalisisBS!J79*100),Texto!$B$8,N79,Texto!$B$12,AnalisisBS!L79,Texto!$B$14,AnalisisBS!M79,Texto!$B$16,(AnalisisBS!K79*100),Texto!$B$18) -> La cuenta Bienes intangibles concesionados, representa el 0 % del total de Activo, que comparado al periodo anterior genera una variación absoluta de ¢0,00 que corresponde a un(a) Aumento del 0 % de recursos disponibles:
A80: 1.2.6.99. | B80: Bienes concesionados en proceso de producción | D80: =SUMIF(BCPAC!$B$10:$B$8000,$A80,BCPAC!$G$10:$G$8000)/1000 -> 0 | E80: 0 | F80: =SUMIF(BCPAN!$B$10:$B$8000,$A80,BCPAN!$G$10:$G$8000)/1000 -> 0 | G80: 0 | H80: 0 | I80: 0 | J80: 0,0000 | K80: 0,0000 | L80: 0,00 | M80: Aumento | N80: Activo | O80: =+CONCATENATE(Texto!$B$4,AnalisisBS!B80,Texto!$B$6,(AnalisisBS!J80*100),Texto!$B$8,N80,Texto!$B$12,AnalisisBS!L80,Texto!$B$14,AnalisisBS!M80,Texto!$B$16,(AnalisisBS!K80*100),Texto!$B$18) -> La cuenta Bienes concesionados en proceso de producción, representa el 0 % del total de Activo, que comparado al periodo anterior genera una variación absoluta de ¢0,00 que corresponde a un(a) Aumento del 0 % de recursos disponibles:
A81: 1.2.7. | B81: Inversiones patrimoniales - Método de participación | C81: 12 | D81: =SUM(D82:D85) -> 0 | E81: =+IFERROR(D81/$D$91,0) -> 0 | F81: =SUM(F82:F85) -> 0 | G81: =+IFERROR(F81/$F$91,0) -> 0 | H81: 0 | I81: =+IFERROR(H81/F81,0) -> 0 | J81: =+FIXED(E81,4) -> 0,0000 | K81: =+FIXED(I81,4) -> 0,0000 | L81: =+FIXED(H81,2) -> 0,00 | M81: Aumento | N81: Activo | O81: =+CONCATENATE(Texto!$B$4,AnalisisBS!B81,Texto!$B$6,(AnalisisBS!J81*100),Texto!$B$8,N81,Texto!$B$12,AnalisisBS!L81,Texto!$B$14,AnalisisBS!M81,Texto!$B$16,(AnalisisBS!K81*100),Texto!$B$18) -> La cuenta Inversiones patrimoniales - Método de participación, representa el 0 % del total de Activo, que comparado al periodo anterior genera una variación absoluta de ¢0,00 que corresponde a un(a) Aumento del 0 % de recursos disponibles:
A82: 1.2.7.01. | B82: Inversiones patrimoniales en el sector privado interno | D82: =SUMIF(BCPAC!$B$10:$B$8000,$A82,BCPAC!$G$10:$G$8000)/1000 -> 0 | E82: =+IFERROR(D82/$D$91,0) -> 0 | F82: =SUMIF(BCPAN!$B$10:$B$8000,$A82,BCPAN!$G$10:$G$8000)/1000 -> 0 | G82: =+IFERROR(F82/$F$91,0) -> 0 | H82: 0 | I82: =+IFERROR(H82/F82,0) -> 0
A83: 1.2.7.02. | B83: Inversiones patrimoniales en el sector público interno | D83: =SUMIF(BCPAC!$B$10:$B$8000,$A83,BCPAC!$G$10:$G$8000)/1000 -> 0 | E83: 0 | F83: =SUMIF(BCPAN!$B$10:$B$8000,$A83,BCPAN!$G$10:$G$8000)/1000 -> 0 | G83: 0 | H83: 0 | I83: 0
A84: 1.2.7.03. | B84: Inversiones patrimoniales en el sector externo | D84: =SUMIF(BCPAC!$B$10:$B$8000,$A84,BCPAC!$G$10:$G$8000)/1000 -> 0 | E84: 0 | F84: =SUMIF(BCPAN!$B$10:$B$8000,$A84,BCPAN!$G$10:$G$8000)/1000 -> 0 | G84: 0 | H84: 0 | I84: 0
A85: 1.2.7.04. | B85: Inversiones patrimoniales en fideicomisos | D85: =SUMIF(BCPAC!$B$10:$B$8000,$A85,BCPAC!$G$10:$G$8000)/1000 -> 0 | E85: 0 | F85: =SUMIF(BCPAN!$B$10:$B$8000,$A85,BCPAN!$G$10:$G$8000)/1000 -> 0 | G85: 0 | H85: 0 | I85: 0
A86: 1.2.9. | B86: Otros activos a largo plazo | C86: 13 | D86: =SUM(D87:D89) -> 0 | E86: =+IFERROR(D86/$D$91,0) -> 0 | F86: =SUM(F87:F89) -> 0 | G86: =+IFERROR(F86/$F$91,0) -> 0 | H86: 0 | I86: =+IFERROR(H86/F86,0) -> 0 | J86: =+FIXED(E86,4) -> 0,0000 | K86: =+FIXED(I86,4) -> 0,0000 | L86: =+FIXED(H86,2) -> 0,00 | M86: =IF(H86 < 0, "Disminución", "Aumento") -> Aumento | N86: Activo | O86: =+CONCATENATE(Texto!$B$4,AnalisisBS!B86,Texto!$B$6,(AnalisisBS!J86*100),Texto!$B$8,N86,Texto!$B$12,AnalisisBS!L86,Texto!$B$14,AnalisisBS!M86,Texto!$B$16,(AnalisisBS!K86*100),Texto!$B$18) -> La cuenta Otros activos a largo plazo, representa el 0 % del total de Activo, que comparado al periodo anterior genera una variación absoluta de ¢0,00 que corresponde a un(a) Aumento del 0 % de recursos disponibles:
A87: 1.2.9.01. | B87: Gastos a devengar a largo plazo | D87: =SUMIF(BCPAC!$B$10:$B$8000,$A87,BCPAC!$G$10:$G$8000)/1000 -> 0 | E87: =+IFERROR(D87/$D$91,0) -> 0 | F87: =SUMIF(BCPAN!$B$10:$B$8000,$A87,BCPAN!$G$10:$G$8000)/1000 -> 0 | G87: =+IFERROR(F87/$F$91,0) -> 0 | H87: 0 | I87: =+IFERROR(H87/F87,0) -> 0 | J87: =+FIXED(E87,4) -> 0,0000 | K87: =+FIXED(I87,4) -> 0,0000 | L87: =+FIXED(H87,2) -> 0,00 | M87: =IF(H87 < 0, "Disminución", "Aumento") -> Aumento | N87: Activo | O87: =+CONCATENATE(Texto!$B$4,AnalisisBS!B87,Texto!$B$6,(AnalisisBS!J87*100),Texto!$B$8,N87,Texto!$B$12,AnalisisBS!L87,Texto!$B$14,AnalisisBS!M87,Texto!$B$16,(AnalisisBS!K87*100),Texto!$B$18) -> La cuenta Gastos a devengar a largo plazo, representa el 0 % del total de Activo, que comparado al periodo anterior genera una variación absoluta de ¢0,00 que corresponde a un(a) Aumento del 0 % de recursos disponibles:
A88: 1.2.9.03. | B88: Objetos de valor | D88: =SUMIF(BCPAC!$B$10:$B$8000,$A88,BCPAC!$G$10:$G$8000)/1000 -> 0 | E88: 0 | F88: =SUMIF(BCPAN!$B$10:$B$8000,$A88,BCPAN!$G$10:$G$8000)/1000 -> 0 | G88: 0 | H88: 0 | I88: 0
A89: 1.2.9.99. | B89: Activos a largo plazo sujetos a depuración contable | D89: =SUMIF(BCPAC!$B$10:$B$8000,$A89,BCPAC!$G$10:$G$8000)/1000 -> 0 | E89: =+IFERROR(D89/$D$91,0) -> 0 | F89: =SUMIF(BCPAN!$B$10:$B$8000,$A89,BCPAN!$G$10:$G$8000)/1000 -> 0 | G89: 0 | H89: 0 | I89: 0
B90: Total del Activo no Corriente | D90: =+D86+D81+D74+D64+D56+D50 -> 162638782 | E90: 0.9740264002 | F90: 161770282 | G90: 0.9737239788 | H90: 868500.0164 | I90: =+IFERROR(H90/F90,0) -> 0.005368724129
B91: TOTAL DEL ACTIVO | D91: =+D90+D47 -> 166975743.2 | E91: 1 | F91: 166135666.3 | G91: 1 | H91: 840076.8575 | I91: =+IFERROR(H91/F91,0) -> 0.005056571393
A93: 2. | B93: PASIVO
A94: 2.1. | B94: Pasivo Corriente
A95: 2.1.1. | B95: Deudas a corto plazo | C95: 14 | D95: =SUM(D96:D105) -> 290213.4014 | E95: =+IFERROR(D95/$D$151,0) -> 0.1113195645 | F95: =SUM(F96:F105) -> 334957.0733 | G95: =+IFERROR(F95/$F$151,0) -> 0.1166665654 | H95: =+D95-F95 -> -44743.67186 | I95: =+IFERROR(H95/F95,0) -> -0.1335803165 | J95: =+FIXED(E95,4) -> 0,1113 | K95: =+FIXED(I95,4) -> -0,1336 | L95: =+FIXED(H95,2) -> -44 743,67 | M95: =IF(H95 < 0, "Disminución", "Aumento") -> Disminución | N95: Pasivo | O95: =+CONCATENATE(Texto!$B$4,AnalisisBS!B95,Texto!$B$6,(AnalisisBS!J95*100),Texto!$B$8,N95,Texto!$B$12,AnalisisBS!L95,Texto!$B$14,AnalisisBS!M95,Texto!$B$16,(AnalisisBS!K95*100),Texto!$B$18) -> La cuenta Deudas a corto plazo, representa el 11,13 % del total de Pasivo, que comparado al periodo anterior genera una variación absoluta de ¢-44 743,67 que corresponde a un(a) Disminución del -13,36 % de recursos disponibles:
A96: 2.1.1.01. | B96: Deudas comerciales a corto plazo | D96: =SUMIF(BCPAC!$B$10:$B$8000,$A96,BCPAC!$G$10:$G$8000)/1000 -> 105808.9305 | E96: 0.0405860102 | F96: =SUMIF(BCPAN!$B$10:$B$8000,$A96,BCPAN!$G$10:$G$8000)/1000 -> 241399.6512 | G96: 0.08408023131 | H96: -135590.7207 | I96: =+IFERROR(H96/F96,0) -> -0.5616856528
A97: 2.1.1.02. | B97: Deudas sociales y fiscales a corto plazo | D97: =SUMIF(BCPAC!$B$10:$B$8000,$A97,BCPAC!$G$10:$G$8000)/1000 -> 154733.1344 | E97: 0.05935227337 | F97: =SUMIF(BCPAN!$B$10:$B$8000,$A97,BCPAN!$G$10:$G$8000)/1000 -> 93557.42206 | G97: 0.0325863341 | H97: 61175.71234 | I97: 0.6538841173 | J97: =+FIXED(E97,4) -> 0,0594 | K97: =+FIXED(I97,4) -> 0,6539 | L97: =+FIXED(H97,2) -> 61 175,71 | M97: =IF(H97 < 0, "Disminución", "Aumento") -> Aumento | N97: Pasivo | O97: =+CONCATENATE(Texto!$B$4,AnalisisBS!B97,Texto!$B$6,(AnalisisBS!J97*100),Texto!$B$8,N97,Texto!$B$12,AnalisisBS!L97,Texto!$B$14,AnalisisBS!M97,Texto!$B$16,(AnalisisBS!K97*100),Texto!$B$18) -> La cuenta Deudas sociales y fiscales a corto plazo, representa el 5,94 % del total de Pasivo, que comparado al periodo anterior genera una variación absoluta de ¢61 175,71 que corresponde a un(a) Aumento del 65,39 % de recursos disponibles:
A98: 2.1.1.03. | B98: Transferencias a pagar a corto plazo | D98: =SUMIF(BCPAC!$B$10:$B$8000,$A98,BCPAC!$G$10:$G$8000)/1000 -> 29489.8365 | E98: 0.01131166149 | F98: =SUMIF(BCPAN!$B$10:$B$8000,$A98,BCPAN!$G$10:$G$8000)/1000 -> 0 | G98: 0 | H98: 29489.8365 | I98: 0 | J98: =+FIXED(E98,4) -> 0,0113 | K98: =+FIXED(I98,4) -> 0,0000 | L98: =+FIXED(H98,2) -> 29 489,84 | M98: =IF(H98 < 0, "Disminución", "Aumento") -> Aumento | N98: Pasivo | O98: =+CONCATENATE(Texto!$B$4,AnalisisBS!B98,Texto!$B$6,(AnalisisBS!J98*100),Texto!$B$8,N98,Texto!$B$12,AnalisisBS!L98,Texto!$B$14,AnalisisBS!M98,Texto!$B$16,(AnalisisBS!K98*100),Texto!$B$18) -> La cuenta Transferencias a pagar a corto plazo, representa el 1,13 % del total de Pasivo, que comparado al periodo anterior genera una variación absoluta de ¢29 489,84 que corresponde a un(a) Aumento del 0 % de recursos disponibles:
A99: 2.1.1.04. | B99: Documentos a pagar a corto plazo | D99: =SUMIF(BCPAC!$B$10:$B$8000,$A99,BCPAC!$G$10:$G$8000)/1000 -> 0 | E99: 0 | F99: =SUMIF(BCPAN!$B$10:$B$8000,$A99,BCPAN!$G$10:$G$8000)/1000 -> 0 | G99: 0 | H99: 0 | I99: 0
A100: 2.1.1.05. | B100: Inversiones patrimoniales a pagar a corto plazo | D100: =SUMIF(BCPAC!$B$10:$B$8000,$A100,BCPAC!$G$10:$G$8000)/1000 -> 0 | E100: 0 | F100: =SUMIF(BCPAN!$B$10:$B$8000,$A100,BCPAN!$G$10:$G$8000)/1000 -> 0 | G100: 0 | H100: 0 | I100: 0
A101: 2.1.1.06. | B101: Deudas por avales ejecutados a corto plazo | D101: =SUMIF(BCPAC!$B$10:$B$8000,$A101,BCPAC!$G$10:$G$8000)/1000 -> 0 | E101: 0 | F101: =SUMIF(BCPAN!$B$10:$B$8000,$A101,BCPAN!$G$10:$G$8000)/1000 -> 0 | G101: 0 | H101: 0 | I101: 0
A102: 2.1.1.07. | B102: Deudas por anticipos a corto plazo | D102: =SUMIF(BCPAC!$B$10:$B$8000,$A102,BCPAC!$G$10:$G$8000)/1000 -> 0 | E102: 0 | F102: =SUMIF(BCPAN!$B$10:$B$8000,$A102,BCPAN!$G$10:$G$8000)/1000 -> 0 | G102: 0 | H102: 0 | I102: 0
A103: 2.1.1.08. | B103: Deudas por Planillas salariales | D103: =SUMIF(BCPAC!$B$10:$B$8000,$A103,BCPAC!$G$10:$G$8000)/1000 -> 0 | E103: 0 | F103: =SUMIF(BCPAN!$B$10:$B$8000,$A103,BCPAN!$G$10:$G$8000)/1000 -> 0 | G103: 0 | H103: 0 | I103: 0
A104: 2.1.1.13. | B104: Deudas por Creditos Fiscales a favor de terceros c/p | D104: =SUMIF(BCPAC!$B$10:$B$8000,$A104,BCPAC!$G$10:$G$8000)/1000 -> 0 | E104: 0 | F104: =SUMIF(BCPAN!$B$10:$B$8000,$A104,BCPAN!$G$10:$G$8000)/1000 -> 0 | G104: 0 | H104: 0 | I104: 0
A105: 2.1.1.99. | B105: Otras deudas a corto plazo | D105: =SUMIF(BCPAC!$B$10:$B$8000,$A105,BCPAC!$G$10:$G$8000)/1000 -> 181.5 | E105: 6.96194623e-05 | F105: =SUMIF(BCPAN!$B$10:$B$8000,$A105,BCPAN!$G$10:$G$8000)/1000 -> 0 | G105: 0 | H105: 181.5 | I105: 0
A106: 2.1.2. | B106: Endeudamiento público a corto plazo | C106: 15 | D106: =SUM(D107:D111) -> 248669.3421 | E106: 0.09538416466 | F106: =SUM(F107:F111) -> 304448.2722 | G106: 0.1060402574 | H106: -55778.93013 | I106: =+IFERROR(H106/F106,0) -> -0.1832131604 | J106: =+FIXED(E106,4) -> 0,0954 | K106: =+FIXED(I106,4) -> -0,1832 | L106: =+FIXED(H106,2) -> -55 778,93 | M106: =IF(H106 < 0, "Disminución", "Aumento") -> Disminución | N106: Pasivo | O106: =+CONCATENATE(Texto!$B$4,AnalisisBS!B106,Texto!$B$6,(AnalisisBS!J106*100),Texto!$B$8,N106,Texto!$B$12,AnalisisBS!L106,Texto!$B$14,AnalisisBS!M106,Texto!$B$16,(AnalisisBS!K106*100),Texto!$B$18) -> La cuenta Endeudamiento público a corto plazo, representa el 9,54 % del total de Pasivo, que comparado al periodo anterior genera una variación absoluta de ¢-55 778,93 que corresponde a un(a) Disminución del -18,32 % de recursos disponibles:
A107: 2.1.2.01. | B107: Títulos y valores de la deuda pública a pagar a corto plazo | D107: =SUMIF(BCPAC!$B$10:$B$8000,$A107,BCPAC!$G$10:$G$8000)/1000 -> 0 | E107: 0 | F107: =SUMIF(BCPAN!$B$10:$B$8000,$A107,BCPAN!$G$10:$G$8000)/1000 -> 0 | G107: 0 | H107: 0 | I107: =+IFERROR(H107/F107,0) -> 0
A108: 2.1.2.02. | B108: Préstamos a pagar a corto plazo | D108: =SUMIF(BCPAC!$B$10:$B$8000,$A108,BCPAC!$G$10:$G$8000)/1000 -> 248669.3421 | E108: 0.09538416466 | F108: =SUMIF(BCPAN!$B$10:$B$8000,$A108,BCPAN!$G$10:$G$8000)/1000 -> 304448.2722 | G108: 0.1060402574 | H108: -55778.93013 | I108: -0.1832131604
A109: 2.1.2.03. | B109: Deudas asumidas a corto plazo | D109: =SUMIF(BCPAC!$B$10:$B$8000,$A109,BCPAC!$G$10:$G$8000)/1000 -> 0 | E109: 0 | F109: =SUMIF(BCPAN!$B$10:$B$8000,$A109,BCPAN!$G$10:$G$8000)/1000 -> 0 | G109: 0 | H109: 0 | I109: 0
A110: 2.1.2.04. | B110: Endeudamiento de Tesorería a corto plazo | D110: =SUMIF(BCPAC!$B$10:$B$8000,$A110,BCPAC!$G$10:$G$8000)/1000 -> 0 | E110: 0 | F110: =SUMIF(BCPAN!$B$10:$B$8000,$A110,BCPAN!$G$10:$G$8000)/1000 -> 0 | G110: 0 | H110: 0 | I110: 0
A111: 2.1.2.05. | B111: Endeudamiento público a valor razonable | D111: =SUMIF(BCPAC!$B$10:$B$8000,$A111,BCPAC!$G$10:$G$8000)/1000 -> 0 | E111: 0 | F111: =SUMIF(BCPAN!$B$10:$B$8000,$A111,BCPAN!$G$10:$G$8000)/1000 -> 0 | G111: 0 | H111: 0 | I111: 0
A112: 2.1.3. | B112: Fondos de terceros y en garantía | C112: 16 | D112: =SUM(D113:D117) -> 905829.1208 | E112: 0.3474563985 | F112: =SUM(F113:F117) -> 938165.6131 | G112: 0.3267659309 | H112: -32336.49234 | I112: =+IFERROR(H112/F112,0) -> -0.0344677868 | J112: =+FIXED(E112,4) -> 0,3475 | K112: =+FIXED(I112,4) -> -0,0345 | L112: =+FIXED(H112,2) -> -32 336,49 | M112: =IF(H112 < 0, "Disminución", "Aumento") -> Disminución | N112: Pasivo | O112: =+CONCATENATE(Texto!$B$4,AnalisisBS!B112,Texto!$B$6,(AnalisisBS!J112*100),Texto!$B$8,N112,Texto!$B$12,AnalisisBS!L112,Texto!$B$14,AnalisisBS!M112,Texto!$B$16,(AnalisisBS!K112*100),Texto!$B$18) -> La cuenta Fondos de terceros y en garantía, representa el 34,75 % del total de Pasivo, que comparado al periodo anterior genera una variación absoluta de ¢-32 336,49 que corresponde a un(a) Disminución del -3,45 % de recursos disponibles:
A113: 2.1.3.01. | B113: Fondos de terceros en la Caja Única | D113: =SUMIF(BCPAC!$B$10:$B$8000,$A113,BCPAC!$G$10:$G$8000)/1000 -> 0 | E113: 0 | F113: =SUMIF(BCPAN!$B$10:$B$8000,$A113,BCPAN!$G$10:$G$8000)/1000 -> 0 | G113: 0 | H113: 0 | I113: =+IFERROR(H113/F113,0) -> 0
A114: 2.1.3.02. | B114: Recaudación por cuenta de terceros | D114: =SUMIF(BCPAC!$B$10:$B$8000,$A114,BCPAC!$G$10:$G$8000)/1000 -> 0 | E114: 0 | F114: =SUMIF(BCPAN!$B$10:$B$8000,$A114,BCPAN!$G$10:$G$8000)/1000 -> 0 | G114: 0 | H114: 0 | I114: 0
A115: 2.1.3.03. | B115: Depósitos en garantía | D115: =SUMIF(BCPAC!$B$10:$B$8000,$A115,BCPAC!$G$10:$G$8000)/1000 -> 64880.78311 | E115: 0.02488686079 | F115: =SUMIF(BCPAN!$B$10:$B$8000,$A115,BCPAN!$G$10:$G$8000)/1000 -> 90085.72698 | G115: 0.03137713217 | H115: -25204.94387 | I115: -0.2797884273 | J115: =+FIXED(E115,4) -> 0,0249 | K115: =+FIXED(I115,4) -> -0,2798 | L115: =+FIXED(H115,2) -> -25 204,94 | M115: =IF(H115 < 0, "Disminución", "Aumento") -> Disminución | N115: Pasivo | O115: =+CONCATENATE(Texto!$B$4,AnalisisBS!B115,Texto!$B$6,(AnalisisBS!J115*100),Texto!$B$8,N115,Texto!$B$12,AnalisisBS!L115,Texto!$B$14,AnalisisBS!M115,Texto!$B$16,(AnalisisBS!K115*100),Texto!$B$18) -> La cuenta Depósitos en garantía, representa el 2,49 % del total de Pasivo, que comparado al periodo anterior genera una variación absoluta de ¢-25 204,94 que corresponde a un(a) Disminución del -27,98 % de recursos disponibles:
A116: 2.1.3.90. | B116: Cuentas Asociadas ( Deudores ) CP | D116: =SUMIF(BCPAC!$B$10:$B$8000,$A116,BCPAC!$G$10:$G$8000)/1000 -> 0 | E116: 0 | F116: =SUMIF(BCPAN!$B$10:$B$8000,$A116,BCPAN!$G$10:$G$8000)/1000 -> 0 | G116: 0 | H116: 0 | I116: 0
A117: 2.1.3.99. | B117: Otros fondos de terceros | D117: =SUMIF(BCPAC!$B$10:$B$8000,$A117,BCPAC!$G$10:$G$8000)/1000 -> 840948.3377 | E117: 0.3225695377 | F117: =SUMIF(BCPAN!$B$10:$B$8000,$A117,BCPAN!$G$10:$G$8000)/1000 -> 848079.8861 | G117: 0.2953887987 | H117: -7131.54847 | I117: -0.008409052716
A118: 2.1.4. | B118: Provisiones y reservas técnicas a corto plazo | C118: 17 | D118: =SUM(D119:D120) -> 0 | E118: 0 | F118: =SUM(F119:F120) -> 0 | G118: 0 | H118: 0 | I118: =+IFERROR(H118/F118,0) -> 0 | J118: =+FIXED(E118,4) -> 0,0000 | K118: =+FIXED(I118,4) -> 0,0000 | L118: =+FIXED(H118,2) -> 0,00 | M118: =IF(H118 < 0, "Disminución", "Aumento") -> Aumento | N118: Pasivo | O118: =+CONCATENATE(Texto!$B$4,AnalisisBS!B118,Texto!$B$6,(AnalisisBS!J118*100),Texto!$B$8,N118,Texto!$B$12,AnalisisBS!L118,Texto!$B$14,AnalisisBS!M118,Texto!$B$16,(AnalisisBS!K118*100),Texto!$B$18) -> La cuenta Provisiones y reservas técnicas a corto plazo, representa el 0 % del total de Pasivo, que comparado al periodo anterior genera una variación absoluta de ¢0,00 que corresponde a un(a) Aumento del 0 % de recursos disponibles:
A119: 2.1.4.01. | B119: Provisiones a corto plazo | D119: =SUMIF(BCPAC!$B$10:$B$8000,$A119,BCPAC!$G$10:$G$8000)/1000 -> 0 | E119: =+IFERROR(D119/$D$151,0) -> 0 | F119: =SUMIF(BCPAN!$B$10:$B$8000,$A119,BCPAN!$G$10:$G$8000)/1000 -> 0 | G119: =+IFERROR(F119/$F$151,0) -> 0 | H119: 0 | I119: =+IFERROR(H119/F119,0) -> 0 | J119: =+FIXED(E119,4) -> 0,0000 | K119: =+FIXED(I119,4) -> 0,0000 | L119: =+FIXED(H119,2) -> 0,00 | M119: =IF(H119 < 0, "Disminución", "Aumento") -> Aumento | N119: Pasivo | O119: =+CONCATENATE(Texto!$B$4,AnalisisBS!B119,Texto!$B$6,(AnalisisBS!J119*100),Texto!$B$8,N119,Texto!$B$12,AnalisisBS!L119,Texto!$B$14,AnalisisBS!M119,Texto!$B$16,(AnalisisBS!K119*100),Texto!$B$18) -> La cuenta Provisiones a corto plazo, representa el 0 % del total de Pasivo, que comparado al periodo anterior genera una variación absoluta de ¢0,00 que corresponde a un(a) Aumento del 0 % de recursos disponibles:
A120: 2.1.4.02. | B120: Reservas técnicas a corto plazo | D120: =SUMIF(BCPAC!$B$10:$B$8000,$A120,BCPAC!$G$10:$G$8000)/1000 -> 0 | E120: 0 | F120: =SUMIF(BCPAN!$B$10:$B$8000,$A120,BCPAN!$G$10:$G$8000)/1000 -> 0 | G120: 0 | H120: 0 | I120: 0
A121: 2.1.9. | B121: Otros pasivos a corto plazo | C121: 18 | D121: =SUM(D122:D124) -> 0 | E121: =+IFERROR(D121/$D$151,0) -> 0 | F121: =SUM(F122:F124) -> 556.53649 | G121: =+IFERROR(F121/$F$151,0) -> 0.0001938433489 | H121: -556.53649 | I121: =+IFERROR(H121/F121,0) -> -1 | J121: =+FIXED(E121,4) -> 0,0000 | K121: =+FIXED(I121,4) -> -1,0000 | L121: =+FIXED(H121,2) -> -556,54 | M121: =IF(H121 < 0, "Disminución", "Aumento") -> Disminución | N121: Pasivo | O121: =+CONCATENATE(Texto!$B$4,AnalisisBS!B121,Texto!$B$6,(AnalisisBS!J121*100),Texto!$B$8,N121,Texto!$B$12,AnalisisBS!L121,Texto!$B$14,AnalisisBS!M121,Texto!$B$16,(AnalisisBS!K121*100),Texto!$B$18) -> La cuenta Otros pasivos a corto plazo, representa el 0 % del total de Pasivo, que comparado al periodo anterior genera una variación absoluta de ¢-556,54 que corresponde a un(a) Disminución del -100 % de recursos disponibles:
A122: 2.1.9.01. | B122: Ingresos a devengar a corto plazo | D122: =SUMIF(BCPAC!$B$10:$B$8000,$A122,BCPAC!$G$10:$G$8000)/1000 -> 0 | E122: =+IFERROR(D122/$D$151,0) -> 0 | F122: =SUMIF(BCPAN!$B$10:$B$8000,$A122,BCPAN!$G$10:$G$8000)/1000 -> 0 | G122: =+IFERROR(F122/$F$151,0) -> 0 | H122: 0 | I122: 0 | J122: =+FIXED(E122,4) -> 0,0000 | K122: =+FIXED(I122,4) -> 0,0000 | L122: =+FIXED(H122,2) -> 0,00 | M122: =IF(H122 < 0, "Disminución", "Aumento") -> Aumento | N122: Pasivo | O122: =+CONCATENATE(Texto!$B$4,AnalisisBS!B122,Texto!$B$6,(AnalisisBS!J122*100),Texto!$B$8,N122,Texto!$B$12,AnalisisBS!L122,Texto!$B$14,AnalisisBS!M122,Texto!$B$16,(AnalisisBS!K122*100),Texto!$B$18) -> La cuenta Ingresos a devengar a corto plazo, representa el 0 % del total de Pasivo, que comparado al periodo anterior genera una variación absoluta de ¢0,00 que corresponde a un(a) Aumento del 0 % de recursos disponibles:
A123: 2.1.9.02. | B123: Instrumentos Derivados a pagar a corto plazo | D123: =SUMIF(BCPAC!$B$10:$B$8000,$A123,BCPAC!$G$10:$G$8000)/1000 -> 0 | E123: 0 | F123: =SUMIF(BCPAN!$B$10:$B$8000,$A123,BCPAN!$G$10:$G$8000)/1000 -> 0 | G123: 0 | H123: 0 | I123: 0
A124: 2.1.9.99. | B124: Pasivos a corto plazo sujetos a depuración contable | D124: =SUMIF(BCPAC!$B$10:$B$8000,$A124,BCPAC!$G$10:$G$8000)/1000 -> 0 | E124: 0 | F124: =SUMIF(BCPAN!$B$10:$B$8000,$A124,BCPAN!$G$10:$G$8000)/1000 -> 556.53649 | G124: 0.0001938433489 | H124: -556.53649 | I124: -1
B125: Total del Pasivo Corriente | D125: =+D95+D106+D112+D118+D121 -> 1444711.864 | E125: 0.5541601277 | F125: 1578127.495 | G125: 0.5496665971 | H125: -133415.6308 | I125: =+IFERROR(H125/F125,0) -> -0.08454046408
A127: 2.2. | B127: Pasivo No Corriente
A128: 2.2.1. | B128: Deudas a largo plazo | C128: 19 | D128: =SUM(D129:D135) -> 0 | E128: =+IFERROR(D128/$D$151,0) -> 0 | F128: =SUM(F129:F135) -> 0 | G128: =+IFERROR(F128/$F$151,0) -> 0 | H128: =+D128-F128 -> 0 | I128: =+IFERROR(H128/F128,0) -> 0 | J128: =+FIXED(E128,4) -> 0,0000 | K128: =+FIXED(I128,4) -> 0,0000 | L128: =+FIXED(H128,2) -> 0,00 | M128: =IF(H128 < 0, "Disminución", "Aumento") -> Aumento | N128: Pasivo | O128: =+CONCATENATE(Texto!$B$4,AnalisisBS!B128,Texto!$B$6,(AnalisisBS!J128*100),Texto!$B$8,N128,Texto!$B$12,AnalisisBS!L128,Texto!$B$14,AnalisisBS!M128,Texto!$B$16,(AnalisisBS!K128*100),Texto!$B$18) -> La cuenta Deudas a largo plazo, representa el 0 % del total de Pasivo, que comparado al periodo anterior genera una variación absoluta de ¢0,00 que corresponde a un(a) Aumento del 0 % de recursos disponibles:
A129: 2.2.1.01. | B129: Deudas comerciales a largo plazo | D129: =SUMIF(BCPAC!$B$10:$B$8000,$A129,BCPAC!$G$10:$G$8000)/1000 -> 0 | E129: =+IFERROR(D129/$D$151,0) -> 0 | F129: =SUMIF(BCPAN!$B$10:$B$8000,$A129,BCPAN!$G$10:$G$8000)/1000 -> 0 | G129: =+IFERROR(F129/$F$151,0) -> 0 | H129: 0 | I129: =+IFERROR(H129/F129,0) -> 0
A130: 2.2.1.02. | B130: Deudas sociales y fiscales a largo plazo | D130: =SUMIF(BCPAC!$B$10:$B$8000,$A130,BCPAC!$G$10:$G$8000)/1000 -> 0 | E130: 0 | F130: =SUMIF(BCPAN!$B$10:$B$8000,$A130,BCPAN!$G$10:$G$8000)/1000 -> 0 | G130: 0 | H130: 0 | I130: 0
A131: 2.2.1.04. | B131: Documentos a pagar a largo plazo | D131: =SUMIF(BCPAC!$B$10:$B$8000,$A131,BCPAC!$G$10:$G$8000)/1000 -> 0 | E131: 0 | F131: =SUMIF(BCPAN!$B$10:$B$8000,$A131,BCPAN!$G$10:$G$8000)/1000 -> 0 | G131: 0 | H131: 0 | I131: 0
A132: 2.2.1.05. | B132: Inversiones patrimoniales a pagar a largo plazo | D132: =SUMIF(BCPAC!$B$10:$B$8000,$A132,BCPAC!$G$10:$G$8000)/1000 -> 0 | E132: 0 | F132: =SUMIF(BCPAN!$B$10:$B$8000,$A132,BCPAN!$G$10:$G$8000)/1000 -> 0 | G132: 0 | H132: 0 | I132: 0
A133: 2.2.1.06. | B133: Deudas por avales ejecutados a largo plazo | D133: =SUMIF(BCPAC!$B$10:$B$8000,$A133,BCPAC!$G$10:$G$8000)/1000 -> 0 | E133: 0 | F133: =SUMIF(BCPAN!$B$10:$B$8000,$A133,BCPAN!$G$10:$G$8000)/1000 -> 0 | G133: 0 | H133: 0 | I133: 0
A134: 2.2.1.07. | B134: Deudas por anticipos a largo plazo | D134: =SUMIF(BCPAC!$B$10:$B$8000,$A134,BCPAC!$G$10:$G$8000)/1000 -> 0 | E134: 0 | F134: =SUMIF(BCPAN!$B$10:$B$8000,$A134,BCPAN!$G$10:$G$8000)/1000 -> 0 | G134: 0 | H134: 0 | I134: 0
A135: 2.2.1.99. | B135: Otras deudas a largo plazo | D135: =SUMIF(BCPAC!$B$10:$B$8000,$A135,BCPAC!$G$10:$G$8000)/1000 -> 0 | E135: 0 | F135: =SUMIF(BCPAN!$B$10:$B$8000,$A135,BCPAN!$G$10:$G$8000)/1000 -> 0 | G135: 0 | H135: 0 | I135: 0
A136: 2.2.2. | B136: Endeudamiento público a largo plazo | C136: 20 | D136: =SUM(D137:D139) -> 1153101.091 | E136: =+IFERROR(D136/$D$151,0) -> 0.4423045615 | F136: =SUM(F137:F139) -> 1292935.625 | G136: =+IFERROR(F136/$F$151,0) -> 0.4503334029 | H136: =+D136-F136 -> -139834.5342 | I136: =+IFERROR(H136/F136,0) -> -0.1081527429 | J136: =+FIXED(E136,4) -> 0,4423 | K136: =+FIXED(I136,4) -> -0,1082 | L136: =+FIXED(H136,2) -> -139 834,53 | M136: =IF(H136 < 0, "Disminución", "Aumento") -> Disminución | N136: Pasivo | O136: =+CONCATENATE(Texto!$B$4,AnalisisBS!B136,Texto!$B$6,(AnalisisBS!J136*100),Texto!$B$8,N136,Texto!$B$12,AnalisisBS!L136,Texto!$B$14,AnalisisBS!M136,Texto!$B$16,(AnalisisBS!K136*100),Texto!$B$18) -> La cuenta Endeudamiento público a largo plazo, representa el 44,23 % del total de Pasivo, que comparado al periodo anterior genera una variación absoluta de ¢-139 834,53 que corresponde a un(a) Disminución del -10,82 % de recursos disponibles:
A137: 2.2.2.01. | B137: Títulos y valores de la deuda pública a pagar a largo plazo | D137: =SUMIF(BCPAC!$B$10:$B$8000,$A137,BCPAC!$G$10:$G$8000)/1000 -> 0 | E137: =+IFERROR(D137/$D$151,0) -> 0 | F137: =SUMIF(BCPAN!$B$10:$B$8000,$A137,BCPAN!$G$10:$G$8000)/1000 -> 0 | G137: =+IFERROR(F137/$F$151,0) -> 0 | H137: =+D137-F137 -> 0 | I137: =+IFERROR(H137/F137,0) -> 0
A138: 2.2.2.02. | B138: Préstamos a pagar a largo plazo | D138: =SUMIF(BCPAC!$B$10:$B$8000,$A138,BCPAC!$G$10:$G$8000)/1000 -> 1153101.091 | E138: 0.4423045615 | F138: =SUMIF(BCPAN!$B$10:$B$8000,$A138,BCPAN!$G$10:$G$8000)/1000 -> 1292935.625 | G138: 0.4503334029 | H138: -139834.5342 | I138: -0.1081527429
A139: 2.2.2.03. | B139: Deudas asumidas a largo plazo | D139: =SUMIF(BCPAC!$B$10:$B$8000,$A139,BCPAC!$G$10:$G$8000)/1000 -> 0 | E139: 0 | F139: =SUMIF(BCPAN!$B$10:$B$8000,$A139,BCPAN!$G$10:$G$8000)/1000 -> 0 | G139: 0 | H139: 0 | I139: 0
A140: 2.2.3. | B140: Fondos de terceros y en garantía | C140: 21 | D140: =SUM(D141:D142) -> 0 | E140: =+IFERROR(D140/$D$151,0) -> 0 | F140: =SUM(F141:F142) -> 0 | G140: =+IFERROR(F140/$F$151,0) -> 0 | H140: 0 | I140: =+IFERROR(H140/F140,0) -> 0 | J140: =+FIXED(E140,4) -> 0,0000 | K140: =+FIXED(I140,4) -> 0,0000 | L140: =+FIXED(H140,2) -> 0,00 | M140: =IF(H140 < 0, "Disminución", "Aumento") -> Aumento | N140: Pasivo | O140: =+CONCATENATE(Texto!$B$4,AnalisisBS!B140,Texto!$B$6,(AnalisisBS!J140*100),Texto!$B$8,N140,Texto!$B$12,AnalisisBS!L140,Texto!$B$14,AnalisisBS!M140,Texto!$B$16,(AnalisisBS!K140*100),Texto!$B$18) -> La cuenta Fondos de terceros y en garantía, representa el 0 % del total de Pasivo, que comparado al periodo anterior genera una variación absoluta de ¢0,00 que corresponde a un(a) Aumento del 0 % de recursos disponibles:
A141: 2.2.3.01. | B141: Fondos de terceros en la Caja Única | D141: =SUMIF(BCPAC!$B$10:$B$8000,$A141,BCPAC!$G$10:$G$8000)/1000 -> 0 | E141: =+IFERROR(D141/$D$151,0) -> 0 | F141: =SUMIF(BCPAN!$B$10:$B$8000,$A141,BCPAN!$G$10:$G$8000)/1000 -> 0 | G141: =+IFERROR(F141/$F$151,0) -> 0 | H141: 0 | I141: =+IFERROR(H141/F141,0) -> 0
A142: 2.2.3.99. | B142: Otros fondos de terceros | D142: =SUMIF(BCPAC!$B$10:$B$8000,$A142,BCPAC!$G$10:$G$8000)/1000 -> 0 | E142: 0 | F142: =SUMIF(BCPAN!$B$10:$B$8000,$A142,BCPAN!$G$10:$G$8000)/1000 -> 0 | G142: 0 | H142: 0 | I142: 0
A143: 2.2.4. | B143: Provisiones y reservas técnicas a largo plazo | C143: 22 | D143: =SUM(D144:D145) -> 9216.66 | E143: =+IFERROR(D143/$D$151,0) -> 0.003535310818 | F143: =SUM(F144:F145) -> 0 | G143: =+IFERROR(F143/$F$151,0) -> 0 | H143: 9216.66 | I143: =+IFERROR(H143/F143,0) -> 0 | J143: =+FIXED(E143,4) -> 0,0035 | K143: =+FIXED(I143,4) -> 0,0000 | L143: =+FIXED(H143,2) -> 9 216,66 | M143: =IF(H143 < 0, "Disminución", "Aumento") -> Aumento | N143: Pasivo | O143: =+CONCATENATE(Texto!$B$4,AnalisisBS!B143,Texto!$B$6,(AnalisisBS!J143*100),Texto!$B$8,N143,Texto!$B$12,AnalisisBS!L143,Texto!$B$14,AnalisisBS!M143,Texto!$B$16,(AnalisisBS!K143*100),Texto!$B$18) -> La cuenta Provisiones y reservas técnicas a largo plazo, representa el 0,35 % del total de Pasivo, que comparado al periodo anterior genera una variación absoluta de ¢9 216,66 que corresponde a un(a) Aumento del 0 % de recursos disponibles:
A144: 2.2.4.01. | B144: Provisiones a largo plazo | D144: =SUMIF(BCPAC!$B$10:$B$8000,$A144,BCPAC!$G$10:$G$8000)/1000 -> 9216.66 | E144: =+IFERROR(D144/$D$151,0) -> 0.003535310818 | F144: =SUMIF(BCPAN!$B$10:$B$8000,$A144,BCPAN!$G$10:$G$8000)/1000 -> 0 | G144: =+IFERROR(F144/$F$151,0) -> 0 | H144: 9216.66 | I144: =+IFERROR(H144/F144,0) -> 0 | J144: =+FIXED(E144,4) -> 0,0035 | K144: =+FIXED(I144,4) -> 0,0000 | L144: =+FIXED(H144,2) -> 9 216,66 | M144: =IF(H144 < 0, "Disminución", "Aumento") -> Aumento | N144: Pasivo | O144: =+CONCATENATE(Texto!$B$4,AnalisisBS!B144,Texto!$B$6,(AnalisisBS!J144*100),Texto!$B$8,N144,Texto!$B$12,AnalisisBS!L144,Texto!$B$14,AnalisisBS!M144,Texto!$B$16,(AnalisisBS!K144*100),Texto!$B$18) -> La cuenta Provisiones a largo plazo, representa el 0,35 % del total de Pasivo, que comparado al periodo anterior genera una variación absoluta de ¢9 216,66 que corresponde a un(a) Aumento del 0 % de recursos disponibles:
A145: 2.2.4.02. | B145: Reservas técnicas a largo plazo | D145: =SUMIF(BCPAC!$B$10:$B$8000,$A145,BCPAC!$G$10:$G$8000)/1000 -> 0 | E145: 0 | F145: =SUMIF(BCPAN!$B$10:$B$8000,$A145,BCPAN!$G$10:$G$8000)/1000 -> 0 | G145: 0 | H145: 0 | I145: 0
A146: 2.2.9. | B146: Otros pasivos a largo plazo | C146: 23 | D146: =SUM(D147:D149) -> 0 | E146: =+IFERROR(D146/$D$151,0) -> 0 | F146: =SUM(F147:F149) -> 0 | G146: =+IFERROR(F146/$F$151,0) -> 0 | H146: 0 | I146: =+IFERROR(H146/F146,0) -> 0 | J146: =+FIXED(E146,4) -> 0,0000 | K146: =+FIXED(I146,4) -> 0,0000 | L146: =+FIXED(H146,2) -> 0,00 | M146: =IF(H146 < 0, "Disminución", "Aumento") -> Aumento | N146: Pasivo | O146: =+CONCATENATE(Texto!$B$4,AnalisisBS!B146,Texto!$B$6,(AnalisisBS!J146*100),Texto!$B$8,N146,Texto!$B$12,AnalisisBS!L146,Texto!$B$14,AnalisisBS!M146,Texto!$B$16,(AnalisisBS!K146*100),Texto!$B$18) -> La cuenta Otros pasivos a largo plazo, representa el 0 % del total de Pasivo, que comparado al periodo anterior genera una variación absoluta de ¢0,00 que corresponde a un(a) Aumento del 0 % de recursos disponibles:
A147: 2.2.9.01. | B147: Ingresos a devengar a largo plazo | D147: =SUMIF(BCPAC!$B$10:$B$8000,$A147,BCPAC!$G$10:$G$8000)/1000 -> 0 | E147: =+IFERROR(D147/$D$151,0) -> 0 | F147: =SUMIF(BCPAN!$B$10:$B$8000,$A147,BCPAN!$G$10:$G$8000)/1000 -> 0 | G147: =+IFERROR(F147/$F$151,0) -> 0 | H147: 0 | I147: =+IFERROR(H147/F147,0) -> 0 | J147: =+FIXED(E147,4) -> 0,0000 | K147: =+FIXED(I147,4) -> 0,0000 | L147: =+FIXED(H147,2) -> 0,00 | M147: =IF(H147 < 0, "Disminución", "Aumento") -> Aumento | N147: Pasivo | O147: =+CONCATENATE(Texto!$B$4,AnalisisBS!B147,Texto!$B$6,(AnalisisBS!J147*100),Texto!$B$8,N147,Texto!$B$12,AnalisisBS!L147,Texto!$B$14,AnalisisBS!M147,Texto!$B$16,(AnalisisBS!K147*100),Texto!$B$18) -> La cuenta Ingresos a devengar a largo plazo, representa el 0 % del total de Pasivo, que comparado al periodo anterior genera una variación absoluta de ¢0,00 que corresponde a un(a) Aumento del 0 % de recursos disponibles:
A148: 2.2.9.02. | B148: Instrumentos Derivados a pagar a largo plazo | D148: =SUMIF(BCPAC!$B$10:$B$8000,$A148,BCPAC!$G$10:$G$8000)/1000 -> 0 | E148: 0 | F148: =SUMIF(BCPAN!$B$10:$B$8000,$A148,BCPAN!$G$10:$G$8000)/1000 -> 0 | G148: 0 | H148: 0 | I148: 0
A149: 2.2.9.99. | B149: Pasivos a largo plazo sujetos a depuración contable | D149: =SUMIF(BCPAC!$B$10:$B$8000,$A149,BCPAC!$G$10:$G$8000)/1000 -> 0 | E149: =+IFERROR(D149/$D$151,0) -> 0 | F149: =SUMIF(BCPAN!$B$10:$B$8000,$A149,BCPAN!$G$10:$G$8000)/1000 -> 0 | G149: 0 | H149: 0 | I149: 0
B150: Total del Pasivo no Corriente | D150: =+D146+D143+D140+D136+D128 -> 1162317.751 | E150: 0.4458398723 | F150: 1292935.625 | G150: 0.4503334029 | H150: -130617.8742 | I150: =+IFERROR(H150/F150,0) -> -0.1010242673
B151: TOTAL DEL PASIVO | D151: =+D150+D125 -> 2607029.615 | E151: 1 | F151: 2871063.12 | G151: 1 | H151: -264033.505 | I151: =+IFERROR(H151/F151,0) -> -0.09196367129
A153: 3. | B153: PATRIMONIO
A154: 3.1. | B154: Patrimonio público
A155: 3.1.1. | B155: Capital | C155: 24 | D155: =SUM(D156:D157) -> 0.5248 | E155: =+IFERROR(D155/$D$181,0) -> 3.192821728e-09 | F155: =SUM(F156:F157) -> 0.5248 | G155: =+IFERROR(F155/$F$181,0) -> 3.21441384e-09 | H155: =+D155-F155 -> 0 | I155: =+IFERROR(H155/F155,0) -> 0 | J155: =+FIXED(E155,4) -> 0,0000 | K155: =+FIXED(I155,4) -> 0,0000 | L155: =+FIXED(H155,2) -> 0,00 | M155: =IF(H155 < 0, "Disminución", "Aumento") -> Aumento | N155: Patrimonio | O155: =+CONCATENATE(Texto!$B$4,AnalisisBS!B155,Texto!$B$6,(AnalisisBS!J155*100),Texto!$B$8,N155,Texto!$B$12,AnalisisBS!L155,Texto!$B$14,AnalisisBS!M155,Texto!$B$16,(AnalisisBS!K155*100),Texto!$B$18) -> La cuenta Capital, representa el 0 % del total de Patrimonio, que comparado al periodo anterior genera una variación absoluta de ¢0,00 que corresponde a un(a) Aumento del 0 % de recursos disponibles:
A156: 3.1.1.01. | B156: Capital inicial | D156: =SUMIF(BCPAC!$B$10:$B$8000,$A156,BCPAC!$G$10:$G$8000)/1000 -> 0.5248 | E156: =+IFERROR(D156/$D$181,0) -> 3.192821728e-09 | F156: =SUMIF(BCPAN!$B$10:$B$8000,$A156,BCPAN!$G$10:$G$8000)/1000 -> 0.5248 | G156: =+IFERROR(F156/$F$181,0) -> 3.21441384e-09 | H156: 0 | I156: =+IFERROR(H156/F156,0) -> 0 | J156: =+FIXED(E156,4) -> 0,0000 | K156: =+FIXED(I156,4) -> 0,0000 | L156: =+FIXED(H156,2) -> 0,00 | M156: =IF(H156 < 0, "Disminución", "Aumento") -> Aumento | N156: Patrimonio | O156: =+CONCATENATE(Texto!$B$4,AnalisisBS!B156,Texto!$B$6,(AnalisisBS!J156*100),Texto!$B$8,N156,Texto!$B$12,AnalisisBS!L156,Texto!$B$14,AnalisisBS!M156,Texto!$B$16,(AnalisisBS!K156*100),Texto!$B$18) -> La cuenta Capital inicial, representa el 0 % del total de Patrimonio, que comparado al periodo anterior genera una variación absoluta de ¢0,00 que corresponde a un(a) Aumento del 0 % de recursos disponibles:
A157: 3.1.1.02. | B157: Incorporaciones al capital | D157: =SUMIF(BCPAC!$B$10:$B$8000,$A157,BCPAC!$G$10:$G$8000)/1000 -> 0 | E157: =+IFERROR(D157/$D$181,0) -> 0 | F157: =SUMIF(BCPAN!$B$10:$B$8000,$A157,BCPAN!$G$10:$G$8000)/1000 -> 0 | G157: =+IFERROR(F157/$F$181,0) -> 0 | H157: 0 | I157: 0 | J157: 0,0000 | K157: 0,0000 | L157: 0,00 | M157: =IF(H157 < 0, "Disminución", "Aumento") -> Aumento | N157: Patrimonio | O157: =+CONCATENATE(Texto!$B$4,AnalisisBS!B157,Texto!$B$6,(AnalisisBS!J157*100),Texto!$B$8,N157,Texto!$B$12,AnalisisBS!L157,Texto!$B$14,AnalisisBS!M157,Texto!$B$16,(AnalisisBS!K157*100),Texto!$B$18) -> La cuenta Incorporaciones al capital, representa el 0 % del total de Patrimonio, que comparado al periodo anterior genera una variación absoluta de ¢0,00 que corresponde a un(a) Aumento del 0 % de recursos disponibles:
A158: 3.1.2. | B158: Transferencias de capital | C158: 25 | D158: =SUM(D159:D160) -> 0 | E158: =+IFERROR(D158/$D$181,0) -> 0 | F158: =SUM(F159:F160) -> 0 | G158: =+IFERROR(F158/$F$181,0) -> 0 | H158: 0 | I158: =+IFERROR(H158/F158,0) -> 0 | J158: =+FIXED(E158,4) -> 0,0000 | K158: =+FIXED(I158,4) -> 0,0000 | L158: =+FIXED(H158,2) -> 0,00 | M158: =IF(H158 < 0, "Disminución", "Aumento") -> Aumento | N158: Patrimonio | O158: =+CONCATENATE(Texto!$B$4,AnalisisBS!B158,Texto!$B$6,(AnalisisBS!J158*100),Texto!$B$8,N158,Texto!$B$12,AnalisisBS!L158,Texto!$B$14,AnalisisBS!M158,Texto!$B$16,(AnalisisBS!K158*100),Texto!$B$18) -> La cuenta Transferencias de capital, representa el 0 % del total de Patrimonio, que comparado al periodo anterior genera una variación absoluta de ¢0,00 que corresponde a un(a) Aumento del 0 % de recursos disponibles:
A159: 3.1.2.01. | B159: Donaciones de capital | D159: =SUMIF(BCPAC!$B$10:$B$8000,$A159,BCPAC!$G$10:$G$8000)/1000 -> 0 | E159: =+IFERROR(D159/$D$181,0) -> 0 | F159: =SUMIF(BCPAN!$B$10:$B$8000,$A159,BCPAN!$G$10:$G$8000)/1000 -> 0 | G159: =+IFERROR(F159/$F$181,0) -> 0 | H159: 0 | I159: =+IFERROR(H159/F159,0) -> 0
A160: 3.1.2.99. | B160: Otras transferencias de capital | D160: =SUMIF(BCPAC!$B$10:$B$8000,$A160,BCPAC!$G$10:$G$8000)/1000 -> 0 | E160: 0 | F160: =SUMIF(BCPAN!$B$10:$B$8000,$A160,BCPAN!$G$10:$G$8000)/1000 -> 0 | G160: 0 | H160: 0 | I160: 0
A161: 3.1.3. | B161: Reservas | C161: 26 | D161: =SUM(D162:D163) -> 0 | E161: =+IFERROR(D161/$D$181,0) -> 0 | F161: =SUM(F162:F163) -> 0 | G161: =+IFERROR(F161/$F$181,0) -> 0 | H161: 0 | I161: =+IFERROR(H161/F161,0) -> 0 | J161: =+FIXED(E161,4) -> 0,0000 | K161: =+FIXED(I161,4) -> 0,0000 | L161: =+FIXED(H161,2) -> 0,00 | M161: =IF(H161 < 0, "Disminución", "Aumento") -> Aumento | N161: Patrimonio | O161: =+CONCATENATE(Texto!$B$4,AnalisisBS!B161,Texto!$B$6,(AnalisisBS!J161*100),Texto!$B$8,N161,Texto!$B$12,AnalisisBS!L161,Texto!$B$14,AnalisisBS!M161,Texto!$B$16,(AnalisisBS!K161*100),Texto!$B$18) -> La cuenta Reservas, representa el 0 % del total de Patrimonio, que comparado al periodo anterior genera una variación absoluta de ¢0,00 que corresponde a un(a) Aumento del 0 % de recursos disponibles:
A162: 3.1.3.01. | B162: Revaluación de bienes | D162: =SUMIF(BCPAC!$B$10:$B$8000,$A162,BCPAC!$G$10:$G$8000)/1000 -> 0 | E162: =+IFERROR(D162/$D$181,0) -> 0 | F162: =SUMIF(BCPAN!$B$10:$B$8000,$A162,BCPAN!$G$10:$G$8000)/1000 -> 0 | G162: =+IFERROR(F162/$F$181,0) -> 0 | H162: 0 | I162: =+IFERROR(H162/F162,0) -> 0
A163: 3.1.3.99. | B163: Otras reservas | D163: =SUMIF(BCPAC!$B$10:$B$8000,$A163,BCPAC!$G$10:$G$8000)/1000 -> 0 | E163: 0 | F163: =SUMIF(BCPAN!$B$10:$B$8000,$A163,BCPAN!$G$10:$G$8000)/1000 -> 0 | G163: 0 | H163: 0 | I163: 0
A164: 3.1.4. | B164: Variaciones no asignables a reservas | C164: 27 | D164: =SUM(D165:D168) -> 0 | E164: =+IFERROR(D164/$D$181,0) -> 0 | F164: =SUM(F165:F168) -> 0 | G164: =+IFERROR(F164/$F$181,0) -> 0 | H164: 0 | I164: =+IFERROR(H164/F164,0) -> 0 | J164: =+FIXED(E164,4) -> 0,0000 | K164: =+FIXED(I164,4) -> 0,0000 | L164: =+FIXED(H164,2) -> 0,00 | M164: =IF(H164 < 0, "Disminución", "Aumento") -> Aumento | N164: Patrimonio | O164: =+CONCATENATE(Texto!$B$4,AnalisisBS!B164,Texto!$B$6,(AnalisisBS!J164*100),Texto!$B$8,N164,Texto!$B$12,AnalisisBS!L164,Texto!$B$14,AnalisisBS!M164,Texto!$B$16,(AnalisisBS!K164*100),Texto!$B$18) -> La cuenta Variaciones no asignables a reservas, representa el 0 % del total de Patrimonio, que comparado al periodo anterior genera una variación absoluta de ¢0,00 que corresponde a un(a) Aumento del 0 % de recursos disponibles:
A165: 3.1.4.01. | B165: Diferencias de conversión de moneda extranjera | D165: =SUMIF(BCPAC!$B$10:$B$8000,$A165,BCPAC!$G$10:$G$8000)/1000 -> 0 | E165: =+IFERROR(D165/$D$181,0) -> 0 | F165: =SUMIF(BCPAN!$B$10:$B$8000,$A165,BCPAN!$G$10:$G$8000)/1000 -> 0 | G165: =+IFERROR(F165/$F$181,0) -> 0 | H165: 0 | I165: =+IFERROR(H165/F165,0) -> 0
A166: 3.1.4.02. | B166: Diferencias de valor razonable de activos financieros destinados a la venta | D166: =SUMIF(BCPAC!$B$10:$B$8000,$A166,BCPAC!$G$10:$G$8000)/1000 -> 0 | E166: 0 | F166: =SUMIF(BCPAN!$B$10:$B$8000,$A166,BCPAN!$G$10:$G$8000)/1000 -> 0 | G166: 0 | H166: 0 | I166: 0
A167: 3.1.4.03. | B167: Diferencias de valor razonable de instrumentos financieros designados como cobertura | D167: =SUMIF(BCPAC!$B$10:$B$8000,$A167,BCPAC!$G$10:$G$8000)/1000 -> 0 | E167: 0 | F167: =SUMIF(BCPAN!$B$10:$B$8000,$A167,BCPAN!$G$10:$G$8000)/1000 -> 0 | G167: 0 | H167: 0 | I167: 0
A168: 3.1.4.99. | B168: Otras variaciones no asignables a reservas | D168: =SUMIF(BCPAC!$B$10:$B$8000,$A168,BCPAC!$G$10:$G$8000)/1000 -> 0 | E168: 0 | F168: =SUMIF(BCPAN!$B$10:$B$8000,$A168,BCPAN!$G$10:$G$8000)/1000 -> 0 | G168: 0 | H168: 0 | I168: 0
A169: 3.1.5. | B169: Resultados acumulados | C169: 28 | D169: =SUM(D170:D171) -> 164368713 | E169: =+IFERROR(D169/$D$181,0) -> 0.9999999968 | F169: =SUM(F170:F171) -> 163264602.7 | G169: =+IFERROR(F169/$F$181,0) -> 0.9999999968 | H169: 1104110.362 | I169: =+IFERROR(H169/F169,0) -> 0.006762705108 | J169: =+FIXED(E169,4) -> 1,0000 | K169: =+FIXED(I169,4) -> 0,0068 | L169: =+FIXED(H169,2) -> 1 104 110,36 | M169: =IF(H169 < 0, "Disminución", "Aumento") -> Aumento | N169: Patrimonio | O169: =+CONCATENATE(Texto!$B$4,AnalisisBS!B169,Texto!$B$6,(AnalisisBS!J169*100),Texto!$B$8,N169,Texto!$B$12,AnalisisBS!L169,Texto!$B$14,AnalisisBS!M169,Texto!$B$16,(AnalisisBS!K169*100),Texto!$B$18) -> La cuenta Resultados acumulados, representa el 100 % del total de Patrimonio, que comparado al periodo anterior genera una variación absoluta de ¢1 104 110,36 que corresponde a un(a) Aumento del 0,68 % de recursos disponibles:
A170: 3.1.5.01. | B170: Resultados acumulados de ejercicios anteriores | D170: =SUMIF(BCPAC!$B$10:$B$8000,$A170,BCPAC!$G$10:$G$8000)/1000 -> 163345806.1 | E170: =+IFERROR(D170/$D$181,0) -> 0.9937767507 | F170: =SUMIF(BCPAN!$B$10:$B$8000,$A170,BCPAN!$G$10:$G$8000)/1000 -> 161895939.4 | G170: =+IFERROR(F170/$F$181,0) -> 0.9916168985 | H170: 1449866.607 | I170: =+IFERROR(H170/F170,0) -> 0.008955546456 | J170: =+FIXED(E170,4) -> 0,9938 | K170: =+FIXED(I170,4) -> 0,0090 | L170: =+FIXED(H170,2) -> 1 449 866,61 | M170: =IF(H170 < 0, "Disminución", "Aumento") -> Aumento | N170: Patrimonio | O170: =+CONCATENATE(Texto!$B$4,AnalisisBS!B170,Texto!$B$6,(AnalisisBS!J170*100),Texto!$B$8,N170,Texto!$B$12,AnalisisBS!L170,Texto!$B$14,AnalisisBS!M170,Texto!$B$16,(AnalisisBS!K170*100),Texto!$B$18) -> La cuenta Resultados acumulados de ejercicios anteriores, representa el 99,38 % del total de Patrimonio, que comparado al periodo anterior genera una variación absoluta de ¢1 449 866,61 que corresponde a un(a) Aumento del 0,9 % de recursos disponibles:
A171: 3.1.5.02. | B171: Resultado del ejercicio | D171: =+((SUMIF(BCPAC!B:B,"4.",BCPAC!G:G)-SUMIF(BCPAC!B:B,"5.",BCPAC!G:G))/1000) -> 1022906.964 | E171: 0.006223246152 | F171: =+((SUMIF(BCPAN!B:B,"4.",BCPAN!G:G)-SUMIF(BCPAN!B:B,"5.",BCPAN!G:G))/1000) -> 1368663.209 | G171: 0.008383098246 | H171: -345756.2445 | I171: -0.2526233205 | J171: 0,0062 | K171: -0,2526 | L171: -345 756,24 | M171: =IF(H171 < 0, "Disminución", "Aumento") -> Disminución | N171: Patrimonio | O171: =+CONCATENATE(Texto!$B$4,AnalisisBS!B171,Texto!$B$6,(AnalisisBS!J171*100),Texto!$B$8,N171,Texto!$B$12,AnalisisBS!L171,Texto!$B$14,AnalisisBS!M171,Texto!$B$16,(AnalisisBS!K171*100),Texto!$B$18) -> La cuenta Resultado del ejercicio, representa el 0,62 % del total de Patrimonio, que comparado al periodo anterior genera una variación absoluta de ¢-345 756,24 que corresponde a un(a) Disminución del -25,26 % de recursos disponibles:
A172: 3.2. | B172: Intereses minoritarios | D172: =SUMIF(BCPAC!$B$10:$B$8000,$A172,BCPAC!$G$10:$G$8000)/1000 -> 0 | E172: 0 | F172: =SUMIF(BCPAN!$B$10:$B$8000,$A172,BCPAN!$G$10:$G$8000)/1000 -> 0 | G172: 0 | H172: 0 | I172: 0
A173: 3.2.1. | B173: Intereses minoritarios - Participaciones en el patrimonio de entidades controladas | C173: 29 | D173: =SUM(D174:D175) -> 0 | E173: =+IFERROR(D173/$D$181,0) -> 0 | F173: =SUM(F174:F175) -> 0 | G173: =+IFERROR(F173/$F$181,0) -> 0 | H173: 0 | I173: =+IFERROR(H173/F173,0) -> 0 | J173: =+FIXED(E173,4) -> 0,0000 | K173: =+FIXED(I173,4) -> 0,0000 | L173: =+FIXED(H173,2) -> 0,00 | M173: =IF(H173 < 0, "Disminución", "Aumento") -> Aumento | N173: Patrimonio | O173: =+CONCATENATE(Texto!$B$4,AnalisisBS!B173,Texto!$B$6,(AnalisisBS!J173*100),Texto!$B$8,N173,Texto!$B$12,AnalisisBS!L173,Texto!$B$14,AnalisisBS!M173,Texto!$B$16,(AnalisisBS!K173*100),Texto!$B$18) -> La cuenta Intereses minoritarios - Participaciones en el patrimonio de entidades controladas, representa el 0 % del total de Patrimonio, que comparado al periodo anterior genera una variación absoluta de ¢0,00 que corresponde a un(a) Aumento del 0 % de recursos disponibles:
A174: 3.2.1.01. | B174: Intereses minoritarios - Participaciones en el patrimonio de entidades del sector gobierno general | D174: =SUMIF(BCPAC!$B$10:$B$8000,$A174,BCPAC!$G$10:$G$8000)/1000 -> 0 | E174: =+IFERROR(D174/$D$181,0) -> 0 | F174: =SUMIF(BCPAN!$B$10:$B$8000,$A174,BCPAN!$G$10:$G$8000)/1000 -> 0 | G174: =+IFERROR(F174/$F$181,0) -> 0 | H174: 0 | I174: =+IFERROR(H174/F174,0) -> 0
A175: 3.2.1.02. | B175: Intereses minoritarios - Participaciones en el patrimonio de empresas públicas e instituciones públicas financieras | D175: =SUMIF(BCPAC!$B$10:$B$8000,$A175,BCPAC!$G$10:$G$8000)/1000 -> 0 | E175: 0 | F175: =SUMIF(BCPAN!$B$10:$B$8000,$A175,BCPAN!$G$10:$G$8000)/1000 -> 0 | G175: 0 | H175: 0 | I175: 0
A176: 3.2.2. | B176: Intereses minoritarios - Evolución | C176: 30 | D176: =SUM(D177:D180) -> 0 | E176: =+IFERROR(D176/$D$181,0) -> 0 | F176: =SUM(F177:F180) -> 0 | G176: =+IFERROR(F176/$F$181,0) -> 0 | H176: 0 | I176: =+IFERROR(H176/F176,0) -> 0 | J176: =+FIXED(E176,4) -> 0,0000 | K176: =+FIXED(I176,4) -> 0,0000 | L176: =+FIXED(H176,2) -> 0,00 | M176: =IF(H176 < 0, "Disminución", "Aumento") -> Aumento | N176: Patrimonio | O176: =+CONCATENATE(Texto!$B$4,AnalisisBS!B176,Texto!$B$6,(AnalisisBS!J176*100),Texto!$B$8,N176,Texto!$B$12,AnalisisBS!L176,Texto!$B$14,AnalisisBS!M176,Texto!$B$16,(AnalisisBS!K176*100),Texto!$B$18) -> La cuenta Intereses minoritarios - Evolución, representa el 0 % del total de Patrimonio, que comparado al periodo anterior genera una variación absoluta de ¢0,00 que corresponde a un(a) Aumento del 0 % de recursos disponibles:
A177: 3.2.2.01. | B177: Intereses minoritarios - Evolución por reservas | D177: =SUMIF(BCPAC!$B$10:$B$8000,$A177,BCPAC!$G$10:$G$8000)/1000 -> 0 | E177: =+IFERROR(D177/$D$181,0) -> 0 | F177: =SUMIF(BCPAN!$B$10:$B$8000,$A177,BCPAN!$G$10:$G$8000)/1000 -> 0 | G177: =+IFERROR(F177/$F$181,0) -> 0 | H177: 0 | I177: =+IFERROR(H177/F177,0) -> 0
A178: 3.2.2.02. | B178: Intereses minoritarios - Evolución por variaciones no asignables a reservas | D178: =SUMIF(BCPAC!$B$10:$B$8000,$A178,BCPAC!$G$10:$G$8000)/1000 -> 0 | E178: 0 | F178: =SUMIF(BCPAN!$B$10:$B$8000,$A178,BCPAN!$G$10:$G$8000)/1000 -> 0 | G178: 0 | H178: 0 | I178: 0
A179: 3.2.2.03. | B179: Intereses minoritarios - Evolución por resultados acumulados | D179: =SUMIF(BCPAC!$B$10:$B$8000,$A179,BCPAC!$G$10:$G$8000)/1000 -> 0 | E179: 0 | F179: =SUMIF(BCPAN!$B$10:$B$8000,$A179,BCPAN!$G$10:$G$8000)/1000 -> 0 | G179: 0 | H179: 0 | I179: 0
A180: 3.2.2.99. | B180: Intereses minoritarios - Evolución por otros componentes del patrimonio | D180: =SUMIF(BCPAC!$B$10:$B$8000,$A180,BCPAC!$G$10:$G$8000)/1000 -> 0 | E180: 0 | F180: =SUMIF(BCPAN!$B$10:$B$8000,$A180,BCPAN!$G$10:$G$8000)/1000 -> 0 | G180: 0 | H180: 0 | I180: 0
B181: TOTAL DEL PATRIMONIO | D181: =+D176+D173+D169+D164+D161+D158+D155 -> 164368713.5 | E181: 1 | F181: 163264603.2 | G181: 1 | H181: 1104110.362 | I181: =+IFERROR(H181/F181,0) -> 0.006762705086
B182: TOTAL DEL PASIVO Y PATRIMONIO | D182: =+D181+D151 -> 166975743.2 | F182: =+F181+F151 -> 166135666.3 | H182: 840076.8573 | I182: =+IFERROR(H182/F182,0) -> 0.005056571391
F184: =+F91-F151-F181 -> -0.0002700090408

Sheet AnalisisER
A1: =+Datos!C2 -> Municipalidad de Buenos Aires
A2: Análisis al Estado de Rendimiento Financiero Comparativo
A3: =+Datos!C4 -> Del 01 de Enero 2023 al 31 de Agosto del 2023
A4: - En miles de colones -
A6: Cuenta | B6: Descripción | C6: Nota | D6: =+Datos!D5 -> 2023-08-31 | E6: % análisis vertical | F6: =+Datos!F5 -> 2022-08-31 | G6: % | H6: Monto variación Absoluta | I6: % Variación relativa
A8: 4. | B8: INGRESOS
A9: 4.1. | B9: Impuestos
A10: 4.1.1. | B10: Impuestos sobre los ingresos, las utilidades y las ganancias de capital | C10: 31 | D10: =SUM(D11:D14) -> 0 | E10: =+IFERROR(D10/$D$133,0) -> 0 | F10: =SUM(F11:F14) -> 0 | G10: =+IFERROR(F10/$F$133,0) -> 0 | H10: =+D10-F10 -> 0 | I10: =+IFERROR(H10/F10,0) -> 0 | J10: =+FIXED(E10,4) -> 0,0000 | K10: =+FIXED(I10,4) -> 0,0000 | L10: =+FIXED(H10,2) -> 0,00 | M10: =IF(H10 < 0, "Disminución", "Aumento") -> Aumento | N10: Ingresos | O10: =+CONCATENATE(Texto!$B$4,AnalisisER!B10,Texto!$B$6,(AnalisisER!J10*100),Texto!$B$8,N10,Texto!$B$12,AnalisisER!L10,Texto!$B$14,AnalisisER!M10,Texto!$B$16,(AnalisisER!K10*100),Texto!$B$18) -> La cuenta Impuestos sobre los ingresos, las utilidades y las ganancias de capital, representa el 0 % del total de Ingresos, que comparado al periodo anterior genera una variación absoluta de ¢0,00 que corresponde a un(a) Aumento del 0 % de recursos disponibles:
A11: 4.1.1.01. | B11: Impuestos sobre los ingresos y utilidades de personas físicas | D11: =SUMIF(BCPAC!$B$10:$B$8000,$A11,BCPAC!$G$10:$G$8000)/1000 -> 0 | E11: =+IFERROR(D11/$D$133,0) -> 0 | F11: =SUMIF(BCPAN!$B$10:$B$8000,$A11,BCPAN!$G$10:$G$8000)/1000 -> 0 | G11: =+IFERROR(F11/$F$133,0) -> 0 | H11: 0 | I11: =+IFERROR(H11/F11,0) -> 0
A12: 4.1.1.02. | B12: Impuestos sobre los ingresos y utilidades de personas jurídicas | D12: =SUMIF(BCPAC!$B$10:$B$8000,$A12,BCPAC!$G$10:$G$8000)/1000 -> 0 | E12: =+IFERROR(D12/$D$133,0) -> 0 | F12: =SUMIF(BCPAN!$B$10:$B$8000,$A12,BCPAN!$G$10:$G$8000)/1000 -> 0 | G12: =+IFERROR(F12/$F$133,0) -> 0 | H12: 0 | I12: 0
A13: 4.1.1.03. | B13: Impuestos sobre dividendos e intereses de títulos valores | D13: =SUMIF(BCPAC!$B$10:$B$8000,$A13,BCPAC!$G$10:$G$8000)/1000 -> 0 | E13: 0 | F13: =SUMIF(BCPAN!$B$10:$B$8000,$A13,BCPAN!$G$10:$G$8000)/1000 -> 0 | G13: 0 | H13: 0 | I13: 0
A14: 4.1.1.99. | B14: Otros impuestos sobre los ingresos, las utilidades y las ganancias de capital | D14: =SUMIF(BCPAC!$B$10:$B$8000,$A14,BCPAC!$G$10:$G$8000)/1000 -> 0 | E14: 0 | F14: =SUMIF(BCPAN!$B$10:$B$8000,$A14,BCPAN!$G$10:$G$8000)/1000 -> 0 | G14: 0 | H14: 0 | I14: 0
A15: 4.1.2. | B15: Impuestos sobre la propiedad | C15: 32 | D15: =SUM(D16:D21) -> 546116.2014 | E15: =+IFERROR(D15/$D$133,0) -> 0.1022698499 | F15: =SUM(F16:F21) -> 641452.7166 | G15: =+IFERROR(F15/$F$133,0) -> 0.1387608016 | H15: -95336.51521 | I15: -0.1486259435 | J15: =+FIXED(E15,4) -> 0,1023 | K15: =+FIXED(I15,4) -> -0,1486 | L15: =+FIXED(H15,2) -> -95 336,52 | M15: =IF(H15 < 0, "Disminución", "Aumento") -> Disminución | N15: Ingresos | O15: =+CONCATENATE(Texto!$B$4,AnalisisER!B15,Texto!$B$6,(AnalisisER!J15*100),Texto!$B$8,N15,Texto!$B$12,AnalisisER!L15,Texto!$B$14,AnalisisER!M15,Texto!$B$16,(AnalisisER!K15*100),Texto!$B$18) -> La cuenta Impuestos sobre la propiedad, representa el 10,23 % del total de Ingresos, que comparado al periodo anterior genera una variación absoluta de ¢-95 336,52 que corresponde a un(a) Disminución del -14,86 % de recursos disponibles:
A16: 4.1.2.01. | B16: Impuesto sobre la propiedad de bienes inmuebles | D16: =SUMIF(BCPAC!$B$10:$B$8000,$A16,BCPAC!$G$10:$G$8000)/1000 -> 546116.2014 | E16: =+IFERROR(D16/$D$133,0) -> 0.1022698499 | F16: =SUMIF(BCPAN!$B$10:$B$8000,$A16,BCPAN!$G$10:$G$8000)/1000 -> 641452.7166 | G16: =+IFERROR(F16/$F$133,0) -> 0.1387608016 | H16: -95336.51521 | I16: -0.1486259435
A17: 4.1.2.02. | B17: Impuesto sobre la propiedad de vehículos, aeronaves y embarcaciones | D17: =SUMIF(BCPAC!$B$10:$B$8000,$A17,BCPAC!$G$10:$G$8000)/1000 -> 0 | E17: 0 | F17: =SUMIF(BCPAN!$B$10:$B$8000,$A17,BCPAN!$G$10:$G$8000)/1000 -> 0 | G17: 0 | H17: 0 | I17: 0
A18: 4.1.2.03. | B18: Impuesto sobre el patrimonio | D18: =SUMIF(BCPAC!$B$10:$B$8000,$A18,BCPAC!$G$10:$G$8000)/1000 -> 0 | E18: 0 | F18: =SUMIF(BCPAN!$B$10:$B$8000,$A18,BCPAN!$G$10:$G$8000)/1000 -> 0 | G18: 0 | H18: 0 | I18: 0
A19: 4.1.2.04. | B19: Impuesto sobre los traspasos de bienes inmuebles | D19: =SUMIF(BCPAC!$B$10:$B$8000,$A19,BCPAC!$G$10:$G$8000)/1000 -> 0 | E19: 0 | F19: =SUMIF(BCPAN!$B$10:$B$8000,$A19,BCPAN!$G$10:$G$8000)/1000 -> 0 | G19: 0 | H19: 0 | I19: 0
A20: 4.1.2.05. | B20: Impuesto a los traspasos de vehículos, aeronaves y embarcaciones | D20: =SUMIF(BCPAC!$B$10:$B$8000,$A20,BCPAC!$G$10:$G$8000)/1000 -> 0 | E20: 0 | F20: =SUMIF(BCPAN!$B$10:$B$8000,$A20,BCPAN!$G$10:$G$8000)/1000 -> 0 | G20: 0 | H20: 0 | I20: 0
A21: 4.1.2.99. | B21: Otros impuestos a la propiedad | D21: =SUMIF(BCPAC!$B$10:$B$8000,$A21,BCPAC!$G$10:$G$8000)/1000 -> 0 | E21: 0 | F21: =SUMIF(BCPAN!$B$10:$B$8000,$A21,BCPAN!$G$10:$G$8000)/1000 -> 0 | G21: 0 | H21: 0 | I21: 0
A22: 4.1.3. | B22: Impuestos sobre bienes y servicios | C22: 33 | D22: =SUM(D23:D25) -> 266034.7025 | E22: =+IFERROR(D22/$D$133,0) -> 0.04981967027 | F22: =SUM(F23:F25) -> 275314.8896 | G22: =+IFERROR(F22/$F$133,0) -> 0.05955686801 | H22: -9280.1871 | I22: -0.03370753799 | J22: =+FIXED(E22,4) -> 0,0498 | K22: =+FIXED(I22,4) -> -0,0337 | L22: =+FIXED(H22,2) -> -9 280,19 | M22: =IF(H22 < 0, "Disminución", "Aumento") -> Disminución | N22: Ingresos | O22: =+CONCATENATE(Texto!$B$4,AnalisisER!B22,Texto!$B$6,(AnalisisER!J22*100),Texto!$B$8,N22,Texto!$B$12,AnalisisER!L22,Texto!$B$14,AnalisisER!M22,Texto!$B$16,(AnalisisER!K22*100),Texto!$B$18) -> La cuenta Impuestos sobre bienes y servicios, representa el 4,98 % del total de Ingresos, que comparado al periodo anterior genera una variación absoluta de ¢-9 280,19 que corresponde a un(a) Disminución del -3,37 % de recursos disponibles:
A23: 4.1.3.01. | B23: Impuestos generales y selectivos sobre ventas y consumo | D23: =SUMIF(BCPAC!$B$10:$B$8000,$A23,BCPAC!$G$10:$G$8000)/1000 -> 225076.2659 | E23: =+IFERROR(D23/$D$133,0) -> 0.04214948368 | F23: =SUMIF(BCPAN!$B$10:$B$8000,$A23,BCPAN!$G$10:$G$8000)/1000 -> 225977.0724 | G23: =+IFERROR(F23/$F$133,0) -> 0.0488839768 | H23: -900.80654 | I23: -0.003986274052
A24: 4.1.3.02. | B24: Impuestos específicos sobre la producción y consumo de bienes y servicios | D24: =SUMIF(BCPAC!$B$10:$B$8000,$A24,BCPAC!$G$10:$G$8000)/1000 -> 36833.4366 | E24: 0.00689770789 | F24: =SUMIF(BCPAN!$B$10:$B$8000,$A24,BCPAN!$G$10:$G$8000)/1000 -> 44837.81716 | G24: 0.009699438932 | H24: -8004.38056 | I24: -0.1785185156
A25: 4.1.3.99. | B25: Otros impuestos sobre bienes y servicios | D25: =SUMIF(BCPAC!$B$10:$B$8000,$A25,BCPAC!$G$10:$G$8000)/1000 -> 4125 | E25: 0.0007724786952 | F25: =SUMIF(BCPAN!$B$10:$B$8000,$A25,BCPAN!$G$10:$G$8000)/1000 -> 4500 | G25: 0.0009734522767 | H25: -375 | I25: -0.08333333333
A26: 4.1.4. | B26: Impuestos sobre el comercio exterior y transacciones internacionales | C26: 34 | D26: =SUM(D27:D29) -> 0 | E26: =+IFERROR(D26/$D$133,0) -> 0 | F26: =SUM(F27:F29) -> 0 | G26: =+IFERROR(F26/$F$133,0) -> 0 | H26: 0 | I26: 0 | J26: =+FIXED(E26,4) -> 0,0000 | K26: =+FIXED(I26,4) -> 0,0000 | L26: =+FIXED(H26,2) -> 0,00 | M26: =IF(H26 < 0, "Disminución", "Aumento") -> Aumento | N26: Ingresos | O26: =+CONCATENATE(Texto!$B$4,AnalisisER!B26,Texto!$B$6,(AnalisisER!J26*100),Texto!$B$8,N26,Texto!$B$12,AnalisisER!L26,Texto!$B$14,AnalisisER!M26,Texto!$B$16,(AnalisisER!K26*100),Texto!$B$18) -> La cuenta Impuestos sobre el comercio exterior y transacciones internacionales, representa el 0 % del total de Ingresos, que comparado al periodo anterior genera una variación absoluta de ¢0,00 que corresponde a un(a) Aumento del 0 % de recursos disponibles:
A27: 4.1.4.01. | B27: Impuestos a las importaciones | D27: =SUMIF(BCPAC!$B$10:$B$8000,$A27,BCPAC!$G$10:$G$8000)/1000 -> 0 | E27: =+IFERROR(D27/$D$133,0) -> 0 | F27: =SUMIF(BCPAN!$B$10:$B$8000,$A27,BCPAN!$G$10:$G$8000)/1000 -> 0 | G27: =+IFERROR(F27/$F$133,0) -> 0 | H27: 0 | I27: =+IFERROR(H27/F27,0) -> 0
A28: 4.1.4.02. | B28: Impuestos a las exportaciones | D28: =SUMIF(BCPAC!$B$10:$B$8000,$A28,BCPAC!$G$10:$G$8000)/1000 -> 0 | E28: 0 | F28: =SUMIF(BCPAN!$B$10:$B$8000,$A28,BCPAN!$G$10:$G$8000)/1000 -> 0 | G28: 0 | H28: 0 | I28: 0
A29: 4.1.4.99. | B29: Otros impuestos sobre el comercio exterior y transacciones internacionales | D29: =SUMIF(BCPAC!$B$10:$B$8000,$A29,BCPAC!$G$10:$G$8000)/1000 -> 0 | E29: 0 | F29: =SUMIF(BCPAN!$B$10:$B$8000,$A29,BCPAN!$G$10:$G$8000)/1000 -> 0 | G29: 0 | H29: 0 | I29: 0
A30: 4.1.9. | B30: Otros impuestos | C30: 35 | D30: =SUM(D31:D32) -> 0 | E30: =+IFERROR(D30/$D$133,0) -> 0 | F30: =SUM(F31:F32) -> 0 | G30: =+IFERROR(F30/$F$133,0) -> 0 | H30: 0 | I30: =+IFERROR(H30/F30,0) -> 0 | J30: =+FIXED(E30,4) -> 0,0000 | K30: =+FIXED(I30,4) -> 0,0000 | L30: =+FIXED(H30,2) -> 0,00 | M30: =IF(H30 < 0, "Disminución", "Aumento") -> Aumento | N30: Ingresos | O30: =+CONCATENATE(Texto!$B$4,AnalisisER!B30,Texto!$B$6,(AnalisisER!J30*100),Texto!$B$8,N30,Texto!$B$12,AnalisisER!L30,Texto!$B$14,AnalisisER!M30,Texto!$B$16,(AnalisisER!K30*100),Texto!$B$18) -> La cuenta Otros impuestos, representa el 0 % del total de Ingresos, que comparado al periodo anterior genera una variación absoluta de ¢0,00 que corresponde a un(a) Aumento del 0 % de recursos disponibles:
A31: 4.1.9.99. | B31: Otros impuestos sin discriminar | D31: =SUMIF(BCPAC!$B$10:$B$8000,$A31,BCPAC!$G$10:$G$8000)/1000 -> 0 | E31: =+IFERROR(D31/$D$133,0) -> 0 | F31: =SUMIF(BCPAN!$B$10:$B$8000,$A31,BCPAN!$G$10:$G$8000)/1000 -> 0 | G31: =+IFERROR(F31/$F$133,0) -> 0 | H31: 0 | I31: =+IFERROR(H31/F31,0) -> 0
A32: 4.2. | B32: Contribuciones sociales
A33: 4.2.1. | B33: Contribuciones a la seguridad social | C33: 36 | D33: =SUM(D34:D36) -> 0 | E33: =+IFERROR(D33/$D$133,0) -> 0 | F33: =SUM(F34:F36) -> 0 | G33: =+IFERROR(F33/$F$133,0) -> 0 | H33: =+D33-F33 -> 0 | I33: =+IFERROR(H33/F33,0) -> 0 | J33: =+FIXED(E33,4) -> 0,0000 | K33: =+FIXED(I33,4) -> 0,0000 | L33: =+FIXED(H33,2) -> 0,00 | M33: =IF(H33 < 0, "Disminución", "Aumento") -> Aumento | N33: Ingresos | O33: =+CONCATENATE(Texto!$B$4,AnalisisER!B33,Texto!$B$6,(AnalisisER!J33*100),Texto!$B$8,N33,Texto!$B$12,AnalisisER!L33,Texto!$B$14,AnalisisER!M33,Texto!$B$16,(AnalisisER!K33*100),Texto!$B$18) -> La cuenta Contribuciones a la seguridad social, representa el 0 % del total de Ingresos, que comparado al periodo anterior genera una variación absoluta de ¢0,00 que corresponde a un(a) Aumento del 0 % de recursos disponibles:
A34: 4.2.1.01. | B34: Contribuciones al seguro de pensiones | D34: =SUMIF(BCPAC!$B$10:$B$8000,$A34,BCPAC!$G$10:$G$8000)/1000 -> 0 | E34: =+IFERROR(D34/$D$133,0) -> 0 | F34: =SUMIF(BCPAN!$B$10:$B$8000,$A34,BCPAN!$G$10:$G$8000)/1000 -> 0 | G34: =+IFERROR(F34/$F$133,0) -> 0 | H34: 0 | I34: =+IFERROR(H34/F34,0) -> 0
A35: 4.2.1.02. | B35: Contribuciones a regímenes especiales de pensiones | D35: =SUMIF(BCPAC!$B$10:$B$8000,$A35,BCPAC!$G$10:$G$8000)/1000 -> 0 | E35: 0 | F35: =SUMIF(BCPAN!$B$10:$B$8000,$A35,BCPAN!$G$10:$G$8000)/1000 -> 0 | G35: 0 | H35: 0 | I35: 0
A36: 4.2.1.03. | B36: Contribuciones al seguro de salud | D36: =SUMIF(BCPAC!$B$10:$B$8000,$A36,BCPAC!$G$10:$G$8000)/1000 -> 0 | E36: 0 | F36: =SUMIF(BCPAN!$B$10:$B$8000,$A36,BCPAN!$G$10:$G$8000)/1000 -> 0 | G36: 0 | H36: 0 | I36: 0
A37: 4.2.9. | B37: Contribuciones sociales diversas | C37: 37 | D37: =SUM(D38:D39) -> 0 | E37: =+IFERROR(D37/$D$133,0) -> 0 | F37: =SUM(F38:F39) -> 0 | G37: =+IFERROR(F37/$F$133,0) -> 0 | H37: 0 | I37: =+IFERROR(H37/F37,0) -> 0 | J37: =+FIXED(E37,4) -> 0,0000 | K37: =+FIXED(I37,4) -> 0,0000 | L37: =+FIXED(H37,2) -> 0,00 | M37: =IF(H37 < 0, "Disminución", "Aumento") -> Aumento | N37: Ingresos | O37: =+CONCATENATE(Texto!$B$4,AnalisisER!B37,Texto!$B$6,(AnalisisER!J37*100),Texto!$B$8,N37,Texto!$B$12,AnalisisER!L37,Texto!$B$14,AnalisisER!M37,Texto!$B$16,(AnalisisER!K37*100),Texto!$B$18) -> La cuenta Contribuciones sociales diversas, representa el 0 % del total de Ingresos, que comparado al periodo anterior genera una variación absoluta de ¢0,00 que corresponde a un(a) Aumento del 0 % de recursos disponibles:
A38: 4.2.9.99. | B38: Otras contribuciones sociales | D38: =SUMIF(BCPAC!$B$10:$B$8000,$A38,BCPAC!$G$10:$G$8000)/1000 -> 0 | E38: =+IFERROR(D38/$D$133,0) -> 0 | F38: =SUMIF(BCPAN!$B$10:$B$8000,$A38,BCPAN!$G$10:$G$8000)/1000 -> 0 | G38: =+IFERROR(F38/$F$133,0) -> 0 | H38: 0 | I38: =+IFERROR(H38/F38,0) -> 0
A39: 4.3. | B39: Multas, sanciones, remates y confiscaciones de origen no tributario
A40: 4.3.1. | B40: Multas y sanciones administrativas | C40: 38 | D40: =SUM(D41:D44) -> 0 | E40: =+IFERROR(D40/$D$133,0) -> 0 | F40: =SUM(F41:F44) -> 0 | G40: =+IFERROR(F40/$F$133,0) -> 0 | H40: =+D40-F40 -> 0 | I40: =+IFERROR(H40/F40,0) -> 0 | J40: =+FIXED(E40,4) -> 0,0000 | K40: =+FIXED(I40,4) -> 0,0000 | L40: =+FIXED(H40,2) -> 0,00 | M40: =IF(H40 < 0, "Disminución", "Aumento") -> Aumento | N40: Ingresos | O40: =+CONCATENATE(Texto!$B$4,AnalisisER!B40,Texto!$B$6,(AnalisisER!J40*100),Texto!$B$8,N40,Texto!$B$12,AnalisisER!L40,Texto!$B$14,AnalisisER!M40,Texto!$B$16,(AnalisisER!K40*100),Texto!$B$18) -> La cuenta Multas y sanciones administrativas, representa el 0 % del total de Ingresos, que comparado al periodo anterior genera una variación absoluta de ¢0,00 que corresponde a un(a) Aumento del 0 % de recursos disponibles:
A41: 4.3.1.01. | B41: Multas de tránsito | D41: =SUMIF(BCPAC!$B$10:$B$8000,$A41,BCPAC!$G$10:$G$8000)/1000 -> 0 | E41: =+IFERROR(D41/$D$133,0) -> 0 | F41: =SUMIF(BCPAN!$B$10:$B$8000,$A41,BCPAN!$G$10:$G$8000)/1000 -> 0 | G41: =+IFERROR(F41/$F$133,0) -> 0 | H41: 0 | I41: =+IFERROR(H41/F41,0) -> 0
A42: 4.3.1.02. | B42: Multas por atraso en el pago de bienes y servicios | D42: =SUMIF(BCPAC!$B$10:$B$8000,$A42,BCPAC!$G$10:$G$8000)/1000 -> 0 | E42: 0 | F42: =SUMIF(BCPAN!$B$10:$B$8000,$A42,BCPAN!$G$10:$G$8000)/1000 -> 0 | G42: 0 | H42: 0 | I42: 0
A43: 4.3.1.03. | B43: Sanciones administrativas | D43: =SUMIF(BCPAC!$B$10:$B$8000,$A43,BCPAC!$G$10:$G$8000)/1000 -> 0 | E43: 0 | F43: =SUMIF(BCPAN!$B$10:$B$8000,$A43,BCPAN!$G$10:$G$8000)/1000 -> 0 | G43: 0 | H43: 0 | I43: 0
A44: 4.3.1.99. | B44: Otras multas | D44: =SUMIF(BCPAC!$B$10:$B$8000,$A44,BCPAC!$G$10:$G$8000)/1000 -> 0 | E44: 0 | F44: =SUMIF(BCPAN!$B$10:$B$8000,$A44,BCPAN!$G$10:$G$8000)/1000 -> 0 | G44: 0 | H44: 0 | I44: 0
A45: 4.3.2. | B45: Remates y confiscaciones de origen no tributario | C45: 39 | D45: =SUM(D46) -> 0 | E45: =+IFERROR(D45/$D$133,0) -> 0 | F45: =SUM(F46) -> 0 | G45: =+IFERROR(F45/$F$133,0) -> 0 | H45: =+D45-F45 -> 0 | I45: =+IFERROR(H45/F45,0) -> 0 | J45: =+FIXED(E45,4) -> 0,0000 | K45: =+FIXED(I45,4) -> 0,0000 | L45: =+FIXED(H45,2) -> 0,00 | M45: =IF(H45 < 0, "Disminución", "Aumento") -> Aumento | N45: Ingresos | O45: =+CONCATENATE(Texto!$B$4,AnalisisER!B45,Texto!$B$6,(AnalisisER!J45*100),Texto!$B$8,N45,Texto!$B$12,AnalisisER!L45,Texto!$B$14,AnalisisER!M45,Texto!$B$16,(AnalisisER!K45*100),Texto!$B$18) -> La cuenta Remates y confiscaciones de origen no tributario, representa el 0 % del total de Ingresos, que comparado al periodo anterior genera una variación absoluta de ¢0,00 que corresponde a un(a) Aumento del 0 % de recursos disponibles:
A46: 4.3.2.99. | B46: Otros remates y confiscaciones de origen no tributario | D46: =SUMIF(BCPAC!$B$10:$B$8000,$A46,BCPAC!$G$10:$G$8000)/1000 -> 0 | E46: =+IFERROR(D46/$D$133,0) -> 0 | F46: =SUMIF(BCPAN!$B$10:$B$8000,$A46,BCPAN!$G$10:$G$8000)/1000 -> 0 | G46: =+IFERROR(F46/$F$133,0) -> 0 | H46: 0 | I46: =+IFERROR(H46/F46,0) -> 0
A47: 4.3.3. | B47: Intereses Moratorios | C47: 40 | D47: =SUM(D48:D49) -> 0 | E47: =+IFERROR(D47/$D$133,0) -> 0 | F47: =SUM(F48:F49) -> 0 | G47: =+IFERROR(F47/$F$133,0) -> 0 | H47: =+D47-F47 -> 0 | I47: =+IFERROR(H47/F47,0) -> 0 | J47: =+FIXED(E47,4) -> 0,0000 | K47: =+FIXED(I47,4) -> 0,0000 | L47: =+FIXED(H47,2) -> 0,00 | M47: =IF(H47 < 0, "Disminución", "Aumento") -> Aumento | N47: Ingresos | O47: =+CONCATENATE(Texto!$B$4,AnalisisER!B47,Texto!$B$6,(AnalisisER!J47*100),Texto!$B$8,N47,Texto!$B$12,AnalisisER!L47,Texto!$B$14,AnalisisER!M47,Texto!$B$16,(AnalisisER!K47*100),Texto!$B$18) -> La cuenta Intereses Moratorios, representa el 0 % del total de Ingresos, que comparado al periodo anterior genera una variación absoluta de ¢0,00 que corresponde a un(a) Aumento del 0 % de recursos disponibles:
A48: 4.3.3.01. | B48: Otros remates y confiscaciones de origen no tributario | D48: =SUMIF(BCPAC!$B$10:$B$8000,$A48,BCPAC!$G$10:$G$8000)/1000 -> 0 | E48: =+IFERROR(D48/$D$133,0) -> 0 | F48: =SUMIF(BCPAN!$B$10:$B$8000,$A48,BCPAN!$G$10:$G$8000)/1000 -> 0 | G48: =+IFERROR(F48/$F$133,0) -> 0 | H48: =+D48-F48 -> 0 | I48: =+IFERROR(H48/F48,0) -> 0
A49: 4.3.3.02. | B49: Intereses moratorios por atraso en el pago de multas de transito | D49: =SUMIF(BCPAC!$B$10:$B$8000,$A49,BCPAC!$G$10:$G$8000)/1000 -> 0 | E49: =+IFERROR(D49/$D$133,0) -> 0 | F49: =SUMIF(BCPAN!$B$10:$B$8000,$A49,BCPAN!$G$10:$G$8000)/1000 -> 0 | G49: =+IFERROR(F49/$F$133,0) -> 0 | H49: =+D49-F49 -> 0 | I49: =+IFERROR(H49/F49,0) -> 0
A50: 4.4. | B50: Ingresos y resultados positivos por ventas
A51: 4.4.1. | B51: Ventas de bienes y servicios | C51: 41 | D51: =SUM(D52:D53) -> 321394.1462 | E51: =+IFERROR(D51/$D$133,0) -> 0.06018669836 | F51: =SUM(F52:F53) -> 306537.0226 | G51: =+IFERROR(F51/$F$133,0) -> 0.06631092501 | H51: =+D51-F51 -> 14857.1236 | I51: =+IFERROR(H51/F51,0) -> 0.04846763198 | J51: =+FIXED(E51,4) -> 0,0602 | K51: =+FIXED(I51,4) -> 0,0485 | L51: =+FIXED(H51,2) -> 14 857,12 | M51: =IF(H51 < 0, "Disminución", "Aumento") -> Aumento | N51: Ingresos | O51: =+CONCATENATE(Texto!$B$4,AnalisisER!B51,Texto!$B$6,(AnalisisER!J51*100),Texto!$B$8,N51,Texto!$B$12,AnalisisER!L51,Texto!$B$14,AnalisisER!M51,Texto!$B$16,(AnalisisER!K51*100),Texto!$B$18) -> La cuenta Ventas de bienes y servicios, representa el 6,02 % del total de Ingresos, que comparado al periodo anterior genera una variación absoluta de ¢14 857,12 que corresponde a un(a) Aumento del 4,85 % de recursos disponibles:
A52: 4.4.1.01. | B52: Ventas de bienes | D52: =SUMIF(BCPAC!$B$10:$B$8000,$A52,BCPAC!$G$10:$G$8000)/1000 -> 0 | E52: =+IFERROR(D52/$D$133,0) -> 0 | F52: =SUMIF(BCPAN!$B$10:$B$8000,$A52,BCPAN!$G$10:$G$8000)/1000 -> 0 | G52: =+IFERROR(F52/$F$133,0) -> 0 | H52: 0 | I52: =+IFERROR(H52/F52,0) -> 0
A53: 4.4.1.02. | B53: Ventas de servicios | D53: =SUMIF(BCPAC!$B$10:$B$8000,$A53,BCPAC!$G$10:$G$8000)/1000 -> 321394.1462 | E53: 0.06018669836 | F53: =SUMIF(BCPAN!$B$10:$B$8000,$A53,BCPAN!$G$10:$G$8000)/1000 -> 306537.0226 | G53: 0.06631092501 | H53: 14857.1236 | I53: 0.04846763198
A54: 4.4.2. | B54: Derechos administrativos | C54: 42 | D54: =SUM(D55:D56) -> 467 | E54: =+IFERROR(D54/$D$133,0) -> 8.745395168e-05 | F54: =SUM(F55:F56) -> 408 | G54: =+IFERROR(F54/$F$133,0) -> 8.825967309e-05 | H54: 59 | I54: =+IFERROR(H54/F54,0) -> 0.1446078431 | J54: =+FIXED(E54,4) -> 0,0001 | K54: =+FIXED(I54,4) -> 0,1446 | L54: =+FIXED(H54,2) -> 59,00 | M54: =IF(H54 < 0, "Disminución", "Aumento") -> Aumento | N54: Ingresos | O54: =+CONCATENATE(Texto!$B$4,AnalisisER!B54,Texto!$B$6,(AnalisisER!J54*100),Texto!$B$8,N54,Texto!$B$12,AnalisisER!L54,Texto!$B$14,AnalisisER!M54,Texto!$B$16,(AnalisisER!K54*100),Texto!$B$18) -> La cuenta Derechos administrativos, representa el 0,01 % del total de Ingresos, que comparado al periodo anterior genera una variación absoluta de ¢59,00 que corresponde a un(a) Aumento del 14,46 % de recursos disponibles:
A55: 4.4.2.01. | B55: Derechos administrativos a los servicios de transporte | D55: =SUMIF(BCPAC!$B$10:$B$8000,$A55,BCPAC!$G$10:$G$8000)/1000 -> 320 | E55: =+IFERROR(D55/$D$133,0) -> 5.992561999e-05 | F55: =SUMIF(BCPAN!$B$10:$B$8000,$A55,BCPAN!$G$10:$G$8000)/1000 -> 240 | G55: =+IFERROR(F55/$F$133,0) -> 5.191745476e-05 | H55: 80 | I55: =+IFERROR(H55/F55,0) -> 0.3333333333
A56: 4.4.2.99. | B56: Otros derechos administrativos | D56: =SUMIF(BCPAC!$B$10:$B$8000,$A56,BCPAC!$G$10:$G$8000)/1000 -> 147 | E56: 2.752833168e-05 | F56: =SUMIF(BCPAN!$B$10:$B$8000,$A56,BCPAN!$G$10:$G$8000)/1000 -> 168 | G56: 3.634221833e-05 | H56: -21 | I56: -0.125
A57: 4.4.3. | B57: Comisiones por préstamos | C57: 43 | D57: =SUM(D58:D60) -> 0 | E57: =+IFERROR(D57/$D$133,0) -> 0 | F57: =SUM(F58:F60) -> 0 | G57: =+IFERROR(F57/$F$133,0) -> 0 | H57: 0 | I57: =+IFERROR(H57/F57,0) -> 0 | J57: =+FIXED(E57,4) -> 0,0000 | K57: =+FIXED(I57,4) -> 0,0000 | L57: =+FIXED(H57,2) -> 0,00 | M57: =IF(H57 < 0, "Disminución", "Aumento") -> Aumento | N57: Ingresos | O57: =+CONCATENATE(Texto!$B$4,AnalisisER!B57,Texto!$B$6,(AnalisisER!J57*100),Texto!$B$8,N57,Texto!$B$12,AnalisisER!L57,Texto!$B$14,AnalisisER!M57,Texto!$B$16,(AnalisisER!K57*100),Texto!$B$18) -> La cuenta Comisiones por préstamos, representa el 0 % del total de Ingresos, que comparado al periodo anterior genera una variación absoluta de ¢0,00 que corresponde a un(a) Aumento del 0 % de recursos disponibles:
A58: 4.4.3.01. | B58: Comisiones por préstamos al sector privado interno | D58: =SUMIF(BCPAC!$B$10:$B$8000,$A58,BCPAC!$G$10:$G$8000)/1000 -> 0 | E58: =+IFERROR(D58/$D$133,0) -> 0 | F58: =SUMIF(BCPAN!$B$10:$B$8000,$A58,BCPAN!$G$10:$G$8000)/1000 -> 0 | G58: =+IFERROR(F58/$F$133,0) -> 0 | H58: 0 | I58: =+IFERROR(H58/F58,0) -> 0
A59: 4.4.3.02. | B59: Comisiones por préstamos al sector público interno | D59: =SUMIF(BCPAC!$B$10:$B$8000,$A59,BCPAC!$G$10:$G$8000)/1000 -> 0 | E59: 0 | F59: =SUMIF(BCPAN!$B$10:$B$8000,$A59,BCPAN!$G$10:$G$8000)/1000 -> 0 | G59: 0 | H59: 0 | I59: 0
A60: 4.4.3.03. | B60: Comisiones por préstamos al sector externo | D60: =SUMIF(BCPAC!$B$10:$B$8000,$A60,BCPAC!$G$10:$G$8000)/1000 -> 0 | E60: 0 | F60: =SUMIF(BCPAN!$B$10:$B$8000,$A60,BCPAN!$G$10:$G$8000)/1000 -> 0 | G60: 0 | H60: 0 | I60: 0
A61: 4.4.4. | B61: Resultados positivos por ventas de inversiones | C61: 44 | D61: =SUM(D62:D63) -> 0 | E61: =+IFERROR(D61/$D$133,0) -> 0 | F61: =SUM(F62:F63) -> 0 | G61: =+IFERROR(F61/$F$133,0) -> 0 | H61: 0 | I61: =+IFERROR(H61/F61,0) -> 0 | J61: =+FIXED(E61,4) -> 0,0000 | K61: =+FIXED(I61,4) -> 0,0000 | L61: =+FIXED(H61,2) -> 0,00 | M61: =IF(H61 < 0, "Disminución", "Aumento") -> Aumento | N61: Ingresos | O61: =+CONCATENATE(Texto!$B$4,AnalisisER!B61,Texto!$B$6,(AnalisisER!J61*100),Texto!$B$8,N61,Texto!$B$12,AnalisisER!L61,Texto!$B$14,AnalisisER!M61,Texto!$B$16,(AnalisisER!K61*100),Texto!$B$18) -> La cuenta Resultados positivos por ventas de inversiones, representa el 0 % del total de Ingresos, que comparado al periodo anterior genera una variación absoluta de ¢0,00 que corresponde a un(a) Aumento del 0 % de recursos disponibles:
A62: 4.4.4.01. | B62: Resultados positivos por ventas de inversiones patrimoniales - Método de participación | D62: =SUMIF(BCPAC!$B$10:$B$8000,$A62,BCPAC!$G$10:$G$8000)/1000 -> 0 | E62: =+IFERROR(D62/$D$133,0) -> 0 | F62: =SUMIF(BCPAN!$B$10:$B$8000,$A62,BCPAN!$G$10:$G$8000)/1000 -> 0 | G62: =+IFERROR(F62/$F$133,0) -> 0 | H62: 0 | I62: =+IFERROR(H62/F62,0) -> 0
A63: 4.4.4.98. | B63: Resultados positivos por ventas de otras inversiones | D63: =SUMIF(BCPAC!$B$10:$B$8000,$A63,BCPAC!$G$10:$G$8000)/1000 -> 0 | E63: 0 | F63: =SUMIF(BCPAN!$B$10:$B$8000,$A63,BCPAN!$G$10:$G$8000)/1000 -> 0 | G63: 0 | H63: 0 | I63: 0
A64: 4.4.5. | B64: Resultados positivos por ventas e intercambio de bienes | C64: 45 | D64: =SUM(D65:D74) -> 0 | E64: =+IFERROR(D64/$D$133,0) -> 0 | F64: =SUM(F65:F74) -> 0 | G64: =+IFERROR(F64/$F$133,0) -> 0 | H64: =+D64-F64 -> 0 | I64: =+IFERROR(H64/F64,0) -> 0 | J64: =+FIXED(E64,4) -> 0,0000 | K64: =+FIXED(I64,4) -> 0,0000 | L64: =+FIXED(H64,2) -> 0,00 | M64: =IF(H64 < 0, "Disminución", "Aumento") -> Aumento | N64: Ingresos | O64: =+CONCATENATE(Texto!$B$4,AnalisisER!B64,Texto!$B$6,(AnalisisER!J64*100),Texto!$B$8,N64,Texto!$B$12,AnalisisER!L64,Texto!$B$14,AnalisisER!M64,Texto!$B$16,(AnalisisER!K64*100),Texto!$B$18) -> La cuenta Resultados positivos por ventas e intercambio de bienes, representa el 0 % del total de Ingresos, que comparado al periodo anterior genera una variación absoluta de ¢0,00 que corresponde a un(a) Aumento del 0 % de recursos disponibles:
A65: 4.4.5.01. | B65: Resultados positivos por ventas de construcciones terminadas | D65: =SUMIF(BCPAC!$B$10:$B$8000,$A65,BCPAC!$G$10:$G$8000)/1000 -> 0 | E65: =+IFERROR(D65/$D$133,0) -> 0 | F65: =SUMIF(BCPAN!$B$10:$B$8000,$A65,BCPAN!$G$10:$G$8000)/1000 -> 0 | G65: =+IFERROR(F65/$F$133,0) -> 0 | H65: 0 | I65: =+IFERROR(H65/F65,0) -> 0
A66: 4.4.5.02. | B66: Resultados positivos por ventas de propiedades, planta y equipo | D66: =SUMIF(BCPAC!$B$10:$B$8000,$A66,BCPAC!$G$10:$G$8000)/1000 -> 0 | E66: 0 | F66: =SUMIF(BCPAN!$B$10:$B$8000,$A66,BCPAN!$G$10:$G$8000)/1000 -> 0 | G66: 0 | H66: 0 | I66: 0
A67: 4.4.5.03. | B67: Resultados positivos por ventas de activos biológicos | D67: =SUMIF(BCPAC!$B$10:$B$8000,$A67,BCPAC!$G$10:$G$8000)/1000 -> 0 | E67: 0 | F67: =SUMIF(BCPAN!$B$10:$B$8000,$A67,BCPAN!$G$10:$G$8000)/1000 -> 0 | G67: 0 | H67: 0 | I67: 0
A68: 4.4.5.04. | B68: Resultados positivos por ventas de bienes intangibles | D68: =SUMIF(BCPAC!$B$10:$B$8000,$A68,BCPAC!$G$10:$G$8000)/1000 -> 0 | E68: 0 | F68: =SUMIF(BCPAN!$B$10:$B$8000,$A68,BCPAN!$G$10:$G$8000)/1000 -> 0 | G68: 0 | H68: 0 | I68: 0
A69: 4.4.5.05. | B69: Resultados positivos por ventas por arrendamientos financieros | D69: =SUMIF(BCPAC!$B$10:$B$8000,$A69,BCPAC!$G$10:$G$8000)/1000 -> 0 | E69: 0 | F69: =SUMIF(BCPAN!$B$10:$B$8000,$A69,BCPAN!$G$10:$G$8000)/1000 -> 0 | G69: 0 | H69: 0 | I69: 0
A70: 4.4.5.06. | B70: Resultados positivos por intercambio de propiedades, planta y equipo | D70: =SUMIF(BCPAC!$B$10:$B$8000,$A70,BCPAC!$G$10:$G$8000)/1000 -> 0 | E70: 0 | F70: =SUMIF(BCPAN!$B$10:$B$8000,$A70,BCPAN!$G$10:$G$8000)/1000 -> 0 | G70: 0 | H70: 0 | I70: 0
A71: 4.4.5.07. | B71: Resultados positivos por intercambio de bienes intangibles | D71: =SUMIF(BCPAC!$B$10:$B$8000,$A71,BCPAC!$G$10:$G$8000)/1000 -> 0 | E71: 0 | F71: =SUMIF(BCPAN!$B$10:$B$8000,$A71,BCPAN!$G$10:$G$8000)/1000 -> 0 | G71: 0 | H71: 0 | I71: 0
A72: 4.4.5.08. | B72: Resultados positivos por intercambio de Inventario | D72: =SUMIF(BCPAC!$B$10:$B$8000,$A72,BCPAC!$G$10:$G$8000)/1000 -> 0 | E72: 0 | F72: =SUMIF(BCPAN!$B$10:$B$8000,$A72,BCPAN!$G$10:$G$8000)/1000 -> 0 | G72: 0 | H72: 0 | I72: 0
A73: 4.4.5.09. | B73: Resultados positivos por la entrega de activos como medio de pago de impuestos | D73: =SUMIF(BCPAC!$B$10:$B$8000,$A73,BCPAC!$G$10:$G$8000)/1000 -> 0 | E73: 0 | F73: =SUMIF(BCPAN!$B$10:$B$8000,$A73,BCPAN!$G$10:$G$8000)/1000 -> 0 | G73: 0 | H73: 0 | I73: 0
A74: 4.4.5.10. | B74: Resultados positivos por intercambio de Infra | D74: =SUMIF(BCPAC!$B$10:$B$8000,$A74,BCPAC!$G$10:$G$8000)/1000 -> 0 | E74: 0 | F74: =SUMIF(BCPAN!$B$10:$B$8000,$A74,BCPAN!$G$10:$G$8000)/1000 -> 0 | G74: 0 | H74: 0 | I74: 0
A75: 4.4.6. | B75: Resultados positivos por la recuperación de dinero mal acreditado de periodos anteriores | C75: 46 | D75: =SUM(D76:D77) -> 0 | E75: =+IFERROR(D75/$D$133,0) -> 0 | F75: =SUM(F76:F77) -> 0 | G75: =+IFERROR(F75/$F$133,0) -> 0 | H75: 0 | I75: =+IFERROR(H75/F75,0) -> 0 | J75: =+FIXED(E75,4) -> 0,0000 | K75: =+FIXED(I75,4) -> 0,0000 | L75: =+FIXED(H75,2) -> 0,00 | M75: =IF(H75 < 0, "Disminución", "Aumento") -> Aumento | N75: Ingresos | O75: =+CONCATENATE(Texto!$B$4,AnalisisER!B75,Texto!$B$6,(AnalisisER!J75*100),Texto!$B$8,N75,Texto!$B$12,AnalisisER!L75,Texto!$B$14,AnalisisER!M75,Texto!$B$16,(AnalisisER!K75*100),Texto!$B$18) -> La cuenta Resultados positivos por la recuperación de dinero mal acreditado de periodos anteriores, representa el 0 % del total de Ingresos, que comparado al periodo anterior genera una variación absoluta de ¢0,00 que corresponde a un(a) Aumento del 0 % de recursos disponibles:
A76: 4.4.6.01. | B76: Resultados positivos por la recuperacion de sumas de periodos anteriores | D76: =SUMIF(BCPAC!$B$10:$B$8000,$A76,BCPAC!$G$10:$G$8000)/1000 -> 0 | E76: =+IFERROR(D76/$D$133,0) -> 0 | F76: =SUMIF(BCPAN!$B$10:$B$8000,$A76,BCPAN!$G$10:$G$8000)/1000 -> 0 | G76: =+IFERROR(F76/$F$133,0) -> 0 | H76: 0 | I76: =+IFERROR(H76/F76,0) -> 0
A77: 4.5. | B77: Ingresos de la propiedad
A78: 4.5.1. | B78: Rentas de inversiones y de colocación de efectivo | C78: 47 | D78: =SUM(D79:D81) -> 19879.0485 | E78: =+IFERROR(D78/$D$133,0) -> 0.003722700957 | F78: =SUM(F79:F81) -> 4944.57291 | G78: =+IFERROR(F78/$F$133,0) -> 0.001069623501 | H78: =+D78-F78 -> 14934.47559 | I78: =+IFERROR(H78/F78,0) -> 3.020377262 | J78: =+FIXED(E78,4) -> 0,0037 | K78: =+FIXED(I78,4) -> 3,0204 | L78: =+FIXED(H78,2) -> 14 934,48 | M78: =IF(H78 < 0, "Disminución", "Aumento") -> Aumento | N78: Ingresos | O78: =+CONCATENATE(Texto!$B$4,AnalisisER!B78,Texto!$B$6,(AnalisisER!J78*100),Texto!$B$8,N78,Texto!$B$12,AnalisisER!L78,Texto!$B$14,AnalisisER!M78,Texto!$B$16,(AnalisisER!K78*100),Texto!$B$18) -> La cuenta Rentas de inversiones y de colocación de efectivo, representa el 0,37 % del total de Ingresos, que comparado al periodo anterior genera una variación absoluta de ¢14 934,48 que corresponde a un(a) Aumento del 302,04 % de recursos disponibles:
A79: 4.5.1.01. | B79: Intereses por equivalentes de efectivo | D79: =SUMIF(BCPAC!$B$10:$B$8000,$A79,BCPAC!$G$10:$G$8000)/1000 -> 3798.22263 | E79: =+IFERROR(D79/$D$133,0) -> 0.0007112838937 | F79: =SUMIF(BCPAN!$B$10:$B$8000,$A79,BCPAN!$G$10:$G$8000)/1000 -> 1017.12126 | G79: =+IFERROR(F79/$F$133,0) -> 0.0002200264458 | H79: 2781.10137 | I79: =+IFERROR(H79/F79,0) -> 2.734286933
A80: 4.5.1.02. | B80: Intereses por títulos y valores a costo amortizado | D80: =SUMIF(BCPAC!$B$10:$B$8000,$A80,BCPAC!$G$10:$G$8000)/1000 -> 0 | E80: 0 | F80: =SUMIF(BCPAN!$B$10:$B$8000,$A80,BCPAN!$G$10:$G$8000)/1000 -> 0 | G80: 0 | H80: 0 | I80: 0
A81: 4.5.1.98. | B81: Resultados positivos de otras inversiones | D81: =SUMIF(BCPAC!$B$10:$B$8000,$A81,BCPAC!$G$10:$G$8000)/1000 -> 16080.82587 | E81: 0.003011417063 | F81: =SUMIF(BCPAN!$B$10:$B$8000,$A81,BCPAN!$G$10:$G$8000)/1000 -> 3927.45165 | G81: 0.0008495970556 | H81: 12153.37422 | I81: 3.094468195
A82: 4.5.2. | B82: Alquileres y derechos sobre bienes | C82: 48 | D82: =SUM(D83:D85) -> 27947.12832 | E82: =+IFERROR(D82/$D$133,0) -> 0.005233590599 | F82: =SUM(F83:F85) -> 28681.52824 | G82: =+IFERROR(F82/$F$133,0) -> 0.006204466436 | H82: -734.39992 | I82: =+IFERROR(H82/F82,0) -> -0.02560532737 | J82: =+FIXED(E82,4) -> 0,0052 | K82: =+FIXED(I82,4) -> -0,0256 | L82: =+FIXED(H82,2) -> -734,40 | M82: =IF(H82 < 0, "Disminución", "Aumento") -> Disminución | N82: Ingresos | O82: =+CONCATENATE(Texto!$B$4,AnalisisER!B82,Texto!$B$6,(AnalisisER!J82*100),Texto!$B$8,N82,Texto!$B$12,AnalisisER!L82,Texto!$B$14,AnalisisER!M82,Texto!$B$16,(AnalisisER!K82*100),Texto!$B$18) -> La cuenta Alquileres y derechos sobre bienes, representa el 0,52 % del total de Ingresos, que comparado al periodo anterior genera una variación absoluta de ¢-734,40 que corresponde a un(a) Disminución del -2,56 % de recursos disponibles:
A83: 4.5.2.01. | B83: Alquileres | D83: =SUMIF(BCPAC!$B$10:$B$8000,$A83,BCPAC!$G$10:$G$8000)/1000 -> 27947.12832 | E83: =+IFERROR(D83/$D$133,0) -> 0.005233590599 | F83: =SUMIF(BCPAN!$B$10:$B$8000,$A83,BCPAN!$G$10:$G$8000)/1000 -> 28681.52824 | G83: =+IFERROR(F83/$F$133,0) -> 0.006204466436 | H83: -734.39992 | I83: =+IFERROR(H83/F83,0) -> -0.02560532737 | J83: =+FIXED(E83,4) -> 0,0052 | K83: =+FIXED(I83,4) -> -0,0256 | L83: =+FIXED(H83,2) -> -734,40 | M83: =IF(H83 < 0, "Disminución", "Aumento") -> Disminución | N83: Ingresos | O83: =+CONCATENATE(Texto!$B$4,AnalisisER!B83,Texto!$B$6,(AnalisisER!J83*100),Texto!$B$8,N83,Texto!$B$12,AnalisisER!L83,Texto!$B$14,AnalisisER!M83,Texto!$B$16,(AnalisisER!K83*100),Texto!$B$18) -> La cuenta Alquileres, representa el 0,52 % del total de Ingresos, que comparado al periodo anterior genera una variación absoluta de ¢-734,40 que corresponde a un(a) Disminución del -2,56 % de recursos disponibles:
A84: 4.5.2.02. | B84: Ingresos por concesiones | D84: =SUMIF(BCPAC!$B$10:$B$8000,$A84,BCPAC!$G$10:$G$8000)/1000 -> 0 | E84: 0 | F84: =SUMIF(BCPAN!$B$10:$B$8000,$A84,BCPAN!$G$10:$G$8000)/1000 -> 0 | G84: 0 | H84: 0 | I84: 0
A85: 4.5.2.03. | B85: Derechos sobre bienes intangibles | D85: =SUMIF(BCPAC!$B$10:$B$8000,$A85,BCPAC!$G$10:$G$8000)/1000 -> 0 | E85: 0 | F85: =SUMIF(BCPAN!$B$10:$B$8000,$A85,BCPAN!$G$10:$G$8000)/1000 -> 0 | G85: 0 | H85: 0 | I85: 0
A86: 4.5.9. | B86: Otros ingresos de la propiedad | C86: 49 | D86: =SUM(D87:D93) -> 0 | E86: =+IFERROR(D86/$D$133,0) -> 0 | F86: =SUM(F87:F93) -> 0 | G86: =+IFERROR(F86/$F$133,0) -> 0 | H86: 0 | I86: =+IFERROR(H86/F86,0) -> 0 | J86: =+FIXED(E86,4) -> 0,0000 | K86: =+FIXED(I86,4) -> 0,0000 | L86: =+FIXED(H86,2) -> 0,00 | M86: =IF(H86 < 0, "Disminución", "Aumento") -> Aumento | N86: Ingresos | O86: =+CONCATENATE(Texto!$B$4,AnalisisER!B86,Texto!$B$6,(AnalisisER!J86*100),Texto!$B$8,N86,Texto!$B$12,AnalisisER!L86,Texto!$B$14,AnalisisER!M86,Texto!$B$16,(AnalisisER!K86*100),Texto!$B$18) -> La cuenta Otros ingresos de la propiedad, representa el 0 % del total de Ingresos, que comparado al periodo anterior genera una variación absoluta de ¢0,00 que corresponde a un(a) Aumento del 0 % de recursos disponibles:
A87: 4.5.9.03. | B87: Intereses por ventas | D87: =SUMIF(BCPAC!$B$10:$B$8000,$A87,BCPAC!$G$10:$G$8000)/1000 -> 0 | E87: =+IFERROR(D87/$D$133,0) -> 0 | F87: =SUMIF(BCPAN!$B$10:$B$8000,$A87,BCPAN!$G$10:$G$8000)/1000 -> 0 | G87: =+IFERROR(F87/$F$133,0) -> 0 | H87: 0 | I87: =+IFERROR(H87/F87,0) -> 0
A88: 4.5.9.07. | B88: Intereses por préstamos | D88: =SUMIF(BCPAC!$B$10:$B$8000,$A88,BCPAC!$G$10:$G$8000)/1000 -> 0 | E88: 0 | F88: =SUMIF(BCPAN!$B$10:$B$8000,$A88,BCPAN!$G$10:$G$8000)/1000 -> 0 | G88: 0 | H88: 0 | I88: 0
A89: 4.5.9.08. | B89: Intereses por documentos a cobrar | D89: =SUMIF(BCPAC!$B$10:$B$8000,$A89,BCPAC!$G$10:$G$8000)/1000 -> 0 | E89: 0 | F89: =SUMIF(BCPAN!$B$10:$B$8000,$A89,BCPAN!$G$10:$G$8000)/1000 -> 0 | G89: 0 | H89: 0 | I89: 0
A90: 4.5.9.10. | B90: Intereses por deudores por avales ejecutados | D90: =SUMIF(BCPAC!$B$10:$B$8000,$A90,BCPAC!$G$10:$G$8000)/1000 -> 0 | E90: 0 | F90: =SUMIF(BCPAN!$B$10:$B$8000,$A90,BCPAN!$G$10:$G$8000)/1000 -> 0 | G90: 0 | H90: 0 | I90: 0
A91: 4.5.9.97. | B91: Intereses por cuentas a cobrar en gestión judicial | D91: =SUMIF(BCPAC!$B$10:$B$8000,$A91,BCPAC!$G$10:$G$8000)/1000 -> 0 | E91: 0 | F91: =SUMIF(BCPAN!$B$10:$B$8000,$A91,BCPAN!$G$10:$G$8000)/1000 -> 0 | G91: 0 | H91: 0 | I91: 0
A92: 4.5.9.99. | B92: Intereses por otras cuentas a cobrar | D92: =SUMIF(BCPAC!$B$10:$B$8000,$A92,BCPAC!$G$10:$G$8000)/1000 -> 0 | E92: 0 | F92: =SUMIF(BCPAN!$B$10:$B$8000,$A92,BCPAN!$G$10:$G$8000)/1000 -> 0 | G92: 0 | H92: 0 | I92: 0
A93: 4.6. | B93: Transferencias
A94: 4.6.1. | B94: Transferencias corrientes | C94: 50 | D94: =SUM(D95:D97) -> 18390.35778 | E94: =+IFERROR(D94/$D$133,0) -> 0.003443917475 | F94: =SUM(F95:F97) -> 19800.99356 | G94: =+IFERROR(F94/$F$133,0) -> 0.004283404947 | H94: =+D94-F94 -> -1410.63578 | I94: =+IFERROR(H94/F94,0) -> -0.07124065647 | J94: =+FIXED(E94,4) -> 0,0034 | K94: =+FIXED(I94,4) -> -0,0712 | L94: =+FIXED(H94,2) -> -1 410,64 | M94: =IF(H94 < 0, "Disminución", "Aumento") -> Disminución | N94: Ingresos | O94: =+CONCATENATE(Texto!$B$4,AnalisisER!B94,Texto!$B$6,(AnalisisER!J94*100),Texto!$B$8,N94,Texto!$B$12,AnalisisER!L94,Texto!$B$14,AnalisisER!M94,Texto!$B$16,(AnalisisER!K94*100),Texto!$B$18) -> La cuenta Transferencias corrientes, representa el 0,34 % del total de Ingresos, que comparado al periodo anterior genera una variación absoluta de ¢-1 410,64 que corresponde a un(a) Disminución del -7,12 % de recursos disponibles:
A95: 4.6.1.01. | B95: Transferencias corrientes del sector privado interno | D95: =SUMIF(BCPAC!$B$10:$B$8000,$A95,BCPAC!$G$10:$G$8000)/1000 -> 0 | E95: =+IFERROR(D95/$D$133,0) -> 0 | F95: =SUMIF(BCPAN!$B$10:$B$8000,$A95,BCPAN!$G$10:$G$8000)/1000 -> 0 | G95: =+IFERROR(F95/$F$133,0) -> 0 | H95: 0 | I95: =+IFERROR(H95/F95,0) -> 0
A96: 4.6.1.02. | B96: Transferencias corrientes del sector público interno | D96: =SUMIF(BCPAC!$B$10:$B$8000,$A96,BCPAC!$G$10:$G$8000)/1000 -> 18390.35778 | E96: 0.003443917475 | F96: =SUMIF(BCPAN!$B$10:$B$8000,$A96,BCPAN!$G$10:$G$8000)/1000 -> 19800.99356 | G96: 0.004283404947 | H96: -1410.63578 | I96: -0.07124065647 | J96: =+FIXED(E96,4) -> 0,0034 | K96: =+FIXED(I96,4) -> -0,0712 | L96: =+FIXED(H96,2) -> -1 410,64 | M96: =IF(H96 < 0, "Disminución", "Aumento") -> Disminución | N96: Ingresos | O96: =+CONCATENATE(Texto!$B$4,AnalisisER!B96,Texto!$B$6,(AnalisisER!J96*100),Texto!$B$8,N96,Texto!$B$12,AnalisisER!L96,Texto!$B$14,AnalisisER!M96,Texto!$B$16,(AnalisisER!K96*100),Texto!$B$18) -> La cuenta Transferencias corrientes del sector público interno, representa el 0,34 % del total de Ingresos, que comparado al periodo anterior genera una variación absoluta de ¢-1 410,64 que corresponde a un(a) Disminución del -7,12 % de recursos disponibles:
A97: 4.6.1.03. | B97: Transferencias corrientes del sector externo | D97: =SUMIF(BCPAC!$B$10:$B$8000,$A97,BCPAC!$G$10:$G$8000)/1000 -> 0 | E97: 0 | F97: =SUMIF(BCPAN!$B$10:$B$8000,$A97,BCPAN!$G$10:$G$8000)/1000 -> 0 | G97: 0 | H97: 0 | I97: 0
A98: 4.6.2. | B98: Transferencias de capital | C98: 51 | D98: =SUM(D99:D102) -> 4139431.351 | E98: =+IFERROR(D98/$D$133,0) -> 0.7751812192 | F98: =SUM(F99:F102) -> 3345400.395 | G98: =+IFERROR(F98/$F$133,0) -> 0.7236861401 | H98: 794030.9564 | I98: =+IFERROR(H98/F98,0) -> 0.2373500516 | J98: =+FIXED(E98,4) -> 0,7752 | K98: =+FIXED(I98,4) -> 0,2374 | L98: =+FIXED(H98,2) -> 794 030,96 | M98: =IF(H98 < 0, "Disminución", "Aumento") -> Aumento | N98: Ingresos | O98: =+CONCATENATE(Texto!$B$4,AnalisisER!B98,Texto!$B$6,(AnalisisER!J98*100),Texto!$B$8,N98,Texto!$B$12,AnalisisER!L98,Texto!$B$14,AnalisisER!M98,Texto!$B$16,(AnalisisER!K98*100),Texto!$B$18) -> La cuenta Transferencias de capital, representa el 77,52 % del total de Ingresos, que comparado al periodo anterior genera una variación absoluta de ¢794 030,96 que corresponde a un(a) Aumento del 23,74 % de recursos disponibles:
A99: 4.6.2.01. | B99: Transferencias de capital del sector privado interno | D99: =SUMIF(BCPAC!$B$10:$B$8000,$A99,BCPAC!$G$10:$G$8000)/1000 -> 0 | E99: =+IFERROR(D99/$D$133,0) -> 0 | F99: =SUMIF(BCPAN!$B$10:$B$8000,$A99,BCPAN!$G$10:$G$8000)/1000 -> 0 | G99: =+IFERROR(F99/$F$133,0) -> 0 | H99: 0 | I99: =+IFERROR(H99/F99,0) -> 0
A100: 4.6.2.02. | B100: Transferencias de capital del sector público interno | D100: =SUMIF(BCPAC!$B$10:$B$8000,$A100,BCPAC!$G$10:$G$8000)/1000 -> 4139431.351 | E100: 0.7751812192 | F100: =SUMIF(BCPAN!$B$10:$B$8000,$A100,BCPAN!$G$10:$G$8000)/1000 -> 3345400.395 | G100: 0.7236861401 | H100: 794030.9564 | I100: 0.2373500516 | J100: =+FIXED(E100,4) -> 0,7752 | K100: =+FIXED(I100,4) -> 0,2374 | L100: =+FIXED(H100,2) -> 794 030,96 | M100: =IF(H100 < 0, "Disminución", "Aumento") -> Aumento | N100: Ingresos | O100: =+CONCATENATE(Texto!$B$4,AnalisisER!B100,Texto!$B$6,(AnalisisER!J100*100),Texto!$B$8,N100,Texto!$B$12,AnalisisER!L100,Texto!$B$14,AnalisisER!M100,Texto!$B$16,(AnalisisER!K100*100),Texto!$B$18) -> La cuenta Transferencias de capital del sector público interno, representa el 77,52 % del total de Ingresos, que comparado al periodo anterior genera una variación absoluta de ¢794 030,96 que corresponde a un(a) Aumento del 23,74 % de recursos disponibles:
A101: 4.6.2.03. | B101: Transferencias de capital del sector externo | D101: =SUMIF(BCPAC!$B$10:$B$8000,$A101,BCPAC!$G$10:$G$8000)/1000 -> 0 | E101: 0 | F101: =SUMIF(BCPAN!$B$10:$B$8000,$A101,BCPAN!$G$10:$G$8000)/1000 -> 0 | G101: 0 | H101: 0 | I101: 0
A102: 4.9. | B102: Otros ingresos
A103: 4.9.1. | B103: Resultados positivos por tenencia y por exposición a la inflación | C103: 52 | D103: =SUM(D104:D109) -> 0 | E103: =+IFERROR(D103/$D$133,0) -> 0 | F103: =SUM(F104:F109) -> 0 | G103: =+IFERROR(F103/$F$133,0) -> 0 | H103: =+D103-F103 -> 0 | I103: =+IFERROR(H103/F103,0) -> 0 | J103: =+FIXED(E103,4) -> 0,0000 | K103: =+FIXED(I103,4) -> 0,0000 | L103: =+FIXED(H103,2) -> 0,00 | M103: =IF(H103 < 0, "Disminución", "Aumento") -> Aumento | N103: Ingresos | O103: =+CONCATENATE(Texto!$B$4,AnalisisER!B103,Texto!$B$6,(AnalisisER!J103*100),Texto!$B$8,N103,Texto!$B$12,AnalisisER!L103,Texto!$B$14,AnalisisER!M103,Texto!$B$16,(AnalisisER!K103*100),Texto!$B$18) -> La cuenta Resultados positivos por tenencia y por exposición a la inflación, representa el 0 % del total de Ingresos, que comparado al periodo anterior genera una variación absoluta de ¢0,00 que corresponde a un(a) Aumento del 0 % de recursos disponibles:
A104: 4.9.1.01. | B104: Diferencias de cambio positivas por activos | D104: =SUMIF(BCPAC!$B$10:$B$8000,$A104,BCPAC!$G$10:$G$8000)/1000 -> 0 | E104: =+IFERROR(D104/$D$133,0) -> 0 | F104: =SUMIF(BCPAN!$B$10:$B$8000,$A104,BCPAN!$G$10:$G$8000)/1000 -> 0 | G104: =+IFERROR(F104/$F$133,0) -> 0 | H104: 0 | I104: =+IFERROR(H104/F104,0) -> 0
A105: 4.9.1.02. | B105: Diferencias de cambio positivas por pasivos | D105: =SUMIF(BCPAC!$B$10:$B$8000,$A105,BCPAC!$G$10:$G$8000)/1000 -> 0 | E105: 0 | F105: =SUMIF(BCPAN!$B$10:$B$8000,$A105,BCPAN!$G$10:$G$8000)/1000 -> 0 | G105: 0 | H105: 0 | I105: 0
A106: 4.9.1.03. | B106: Resultados positivos por tenencia de activos no derivados | D106: =SUMIF(BCPAC!$B$10:$B$8000,$A106,BCPAC!$G$10:$G$8000)/1000 -> 0 | E106: 0 | F106: =SUMIF(BCPAN!$B$10:$B$8000,$A106,BCPAN!$G$10:$G$8000)/1000 -> 0 | G106: 0 | H106: 0 | I106: 0
A107: 4.9.1.04. | B107: Resultados positivos por tenencia de pasivos no derivados | D107: =SUMIF(BCPAC!$B$10:$B$8000,$A107,BCPAC!$G$10:$G$8000)/1000 -> 0 | E107: 0 | F107: =SUMIF(BCPAN!$B$10:$B$8000,$A107,BCPAN!$G$10:$G$8000)/1000 -> 0 | G107: 0 | H107: 0 | I107: 0
A108: 4.9.1.05. | B108: Resultados positivos por tenencia de instrumentos financieros derivados | D108: =SUMIF(BCPAC!$B$10:$B$8000,$A108,BCPAC!$G$10:$G$8000)/1000 -> 0 | E108: 0 | F108: =SUMIF(BCPAN!$B$10:$B$8000,$A108,BCPAN!$G$10:$G$8000)/1000 -> 0 | G108: 0 | H108: 0 | I108: 0
A109: 4.9.1.06. | B109: Resultado positivo por exposición a la inflación | D109: =SUMIF(BCPAC!$B$10:$B$8000,$A109,BCPAC!$G$10:$G$8000)/1000 -> 0 | E109: 0 | F109: =SUMIF(BCPAN!$B$10:$B$8000,$A109,BCPAN!$G$10:$G$8000)/1000 -> 0 | G109: 0 | H109: 0 | I109: 0
A110: 4.9.2. | B110: Reversión de consumo de bienes | C110: 53 | D110: =SUM(D111:D112) -> 0 | E110: =+IFERROR(D110/$D$133,0) -> 0 | F110: =SUM(F111:F112) -> 0 | G110: =+IFERROR(F110/$F$133,0) -> 0 | H110: 0 | I110: =+IFERROR(H110/F110,0) -> 0 | J110: =+FIXED(E110,4) -> 0,0000 | K110: =+FIXED(I110,4) -> 0,0000 | L110: =+FIXED(H110,2) -> 0,00 | M110: =IF(H110 < 0, "Disminución", "Aumento") -> Aumento | N110: Ingresos | O110: =+CONCATENATE(Texto!$B$4,AnalisisER!B110,Texto!$B$6,(AnalisisER!J110*100),Texto!$B$8,N110,Texto!$B$12,AnalisisER!L110,Texto!$B$14,AnalisisER!M110,Texto!$B$16,(AnalisisER!K110*100),Texto!$B$18) -> La cuenta Reversión de consumo de bienes, representa el 0 % del total de Ingresos, que comparado al periodo anterior genera una variación absoluta de ¢0,00 que corresponde a un(a) Aumento del 0 % de recursos disponibles:
A111: 4.9.2.01. | B111: Reversión de consumo de bienes no concesionados | D111: =SUMIF(BCPAC!$B$10:$B$8000,$A111,BCPAC!$G$10:$G$8000)/1000 -> 0 | E111: =+IFERROR(D111/$D$133,0) -> 0 | F111: =SUMIF(BCPAN!$B$10:$B$8000,$A111,BCPAN!$G$10:$G$8000)/1000 -> 0 | G111: =+IFERROR(F111/$F$133,0) -> 0 | H111: 0 | I111: =+IFERROR(H111/F111,0) -> 0
A112: 4.9.2.02. | B112: Reversión de consumo de bienes concesionados | D112: =SUMIF(BCPAC!$B$10:$B$8000,$A112,BCPAC!$G$10:$G$8000)/1000 -> 0 | E112: 0 | F112: =SUMIF(BCPAN!$B$10:$B$8000,$A112,BCPAN!$G$10:$G$8000)/1000 -> 0 | G112: 0 | H112: 0 | I112: 0
A113: 4.9.3. | B113: Reversión de pérdidas por deterioro y desvalorización de bienes | C113: 54 | D113: =SUM(D114:D118) -> 0 | E113: =+IFERROR(D113/$D$133,0) -> 0 | F113: =SUM(F114:F118) -> 0 | G113: =+IFERROR(F113/$F$133,0) -> 0 | H113: 0 | I113: =+IFERROR(H113/F113,0) -> 0 | J113: =+FIXED(E113,4) -> 0,0000 | K113: =+FIXED(I113,4) -> 0,0000 | L113: =+FIXED(H113,2) -> 0,00 | M113: =IF(H113 < 0, "Disminución", "Aumento") -> Aumento | N113: Ingresos | O113: =+CONCATENATE(Texto!$B$4,AnalisisER!B113,Texto!$B$6,(AnalisisER!J113*100),Texto!$B$8,N113,Texto!$B$12,AnalisisER!L113,Texto!$B$14,AnalisisER!M113,Texto!$B$16,(AnalisisER!K113*100),Texto!$B$18) -> La cuenta Reversión de pérdidas por deterioro y desvalorización de bienes, representa el 0 % del total de Ingresos, que comparado al periodo anterior genera una variación absoluta de ¢0,00 que corresponde a un(a) Aumento del 0 % de recursos disponibles:
A114: 4.9.3.01. | B114: Reversión de deterioro y desvalorización de bienes no concesionados | D114: =SUMIF(BCPAC!$B$10:$B$8000,$A114,BCPAC!$G$10:$G$8000)/1000 -> 0 | E114: =+IFERROR(D114/$D$133,0) -> 0 | F114: =SUMIF(BCPAN!$B$10:$B$8000,$A114,BCPAN!$G$10:$G$8000)/1000 -> 0 | G114: =+IFERROR(F114/$F$133,0) -> 0 | H114: 0 | I114: =+IFERROR(H114/F114,0) -> 0
A115: 4.9.3.02. | B115: Reversión de deterioro y desvalorización de bienes concesionados | D115: =SUMIF(BCPAC!$B$10:$B$8000,$A115,BCPAC!$G$10:$G$8000)/1000 -> 0 | E115: 0 | F115: =SUMIF(BCPAN!$B$10:$B$8000,$A115,BCPAN!$G$10:$G$8000)/1000 -> 0 | G115: 0 | H115: 0 | I115: 0
A116: 4.9.3.03. | B116: Reversión de deterioro y desvalorización de inventarios por materiales y suministros para consumo y prestación de servicios | D116: =SUMIF(BCPAC!$B$10:$B$8000,$A116,BCPAC!$G$10:$G$8000)/1000 -> 0 | E116: 0 | F116: =SUMIF(BCPAN!$B$10:$B$8000,$A116,BCPAN!$G$10:$G$8000)/1000 -> 0 | G116: 0 | H116: 0 | I116: 0
A117: 4.9.3.04. | B117: Reversión de deterioro y desvalorización de inventarios por bienes para la venta | D117: =SUMIF(BCPAC!$B$10:$B$8000,$A117,BCPAC!$G$10:$G$8000)/1000 -> 0 | E117: 0 | F117: =SUMIF(BCPAN!$B$10:$B$8000,$A117,BCPAN!$G$10:$G$8000)/1000 -> 0 | G117: 0 | H117: 0 | I117: 0
A118: 4.9.3.05. | B118: Reversión de deterioro y desvalorización de inventarios por materias primas y bienes en producción | D118: =SUMIF(BCPAC!$B$10:$B$8000,$A118,BCPAC!$G$10:$G$8000)/1000 -> 0 | E118: 0 | F118: =SUMIF(BCPAN!$B$10:$B$8000,$A118,BCPAN!$G$10:$G$8000)/1000 -> 0 | G118: 0 | H118: 0 | I118: 0
A119: 4.9.4. | B119: Recuperación de previsiones | C119: 55 | D119: =SUM(D120:D122) -> 0 | E119: =+IFERROR(D119/$D$133,0) -> 0 | F119: =SUM(F120:F122) -> 0 | G119: =+IFERROR(F119/$F$133,0) -> 0 | H119: 0 | I119: =+IFERROR(H119/F119,0) -> 0 | J119: =+FIXED(E119,4) -> 0,0000 | K119: =+FIXED(I119,4) -> 0,0000 | L119: =+FIXED(H119,2) -> 0,00 | M119: =IF(H119 < 0, "Disminución", "Aumento") -> Aumento | N119: Ingresos | O119: =+CONCATENATE(Texto!$B$4,AnalisisER!B119,Texto!$B$6,(AnalisisER!J119*100),Texto!$B$8,N119,Texto!$B$12,AnalisisER!L119,Texto!$B$14,AnalisisER!M119,Texto!$B$16,(AnalisisER!K119*100),Texto!$B$18) -> La cuenta Recuperación de previsiones, representa el 0 % del total de Ingresos, que comparado al periodo anterior genera una variación absoluta de ¢0,00 que corresponde a un(a) Aumento del 0 % de recursos disponibles:
A120: 4.9.4.01. | B120: Recuperación de previsiones para deterioro de inversiones | D120: =SUMIF(BCPAC!$B$10:$B$8000,$A120,BCPAC!$G$10:$G$8000)/1000 -> 0 | E120: =+IFERROR(D120/$D$133,0) -> 0 | F120: =SUMIF(BCPAN!$B$10:$B$8000,$A120,BCPAN!$G$10:$G$8000)/1000 -> 0 | G120: =+IFERROR(F120/$F$133,0) -> 0 | H120: 0 | I120: =+IFERROR(H120/F120,0) -> 0
A121: 4.9.4.02. | B121: Recuperación de previsiones para deterioro de cuentas a cobrar | D121: =SUMIF(BCPAC!$B$10:$B$8000,$A121,BCPAC!$G$10:$G$8000)/1000 -> 0 | E121: 0 | F121: =SUMIF(BCPAN!$B$10:$B$8000,$A121,BCPAN!$G$10:$G$8000)/1000 -> 0 | G121: 0 | H121: 0 | I121: 0
A122: 4.9.4.03. | B122: Recuperación de previsiones para deterioro y pérdidas de inventarios | D122: =SUMIF(BCPAC!$B$10:$B$8000,$A122,BCPAC!$G$10:$G$8000)/1000 -> 0 | E122: 0 | F122: =SUMIF(BCPAN!$B$10:$B$8000,$A122,BCPAN!$G$10:$G$8000)/1000 -> 0 | G122: 0 | H122: 0 | I122: 0
A123: 4.9.5. | B123: Recuperación de provisiones y reservas técnicas | C123: 56 | D123: =SUM(D124:D127) -> 0 | E123: =+IFERROR(D123/$D$133,0) -> 0 | F123: =SUM(F124:F127) -> 0 | G123: =+IFERROR(F123/$F$133,0) -> 0 | H123: 0 | I123: =+IFERROR(H123/F123,0) -> 0 | J123: =+FIXED(E123,4) -> 0,0000 | K123: =+FIXED(I123,4) -> 0,0000 | L123: =+FIXED(H123,2) -> 0,00 | M123: =IF(H123 < 0, "Disminución", "Aumento") -> Aumento | N123: Ingresos | O123: =+CONCATENATE(Texto!$B$4,AnalisisER!B123,Texto!$B$6,(AnalisisER!J123*100),Texto!$B$8,N123,Texto!$B$12,AnalisisER!L123,Texto!$B$14,AnalisisER!M123,Texto!$B$16,(AnalisisER!K123*100),Texto!$B$18) -> La cuenta Recuperación de provisiones y reservas técnicas, representa el 0 % del total de Ingresos, que comparado al periodo anterior genera una variación absoluta de ¢0,00 que corresponde a un(a) Aumento del 0 % de recursos disponibles:
A124: 4.9.5.01. | B124: Recuperación de provisiones para litigios y demandas | D124: =SUMIF(BCPAC!$B$10:$B$8000,$A124,BCPAC!$G$10:$G$8000)/1000 -> 0 | E124: =+IFERROR(D124/$D$133,0) -> 0 | F124: =SUMIF(BCPAN!$B$10:$B$8000,$A124,BCPAN!$G$10:$G$8000)/1000 -> 0 | G124: =+IFERROR(F124/$F$133,0) -> 0 | H124: 0 | I124: =+IFERROR(H124/F124,0) -> 0
A125: 4.9.5.02. | B125: Recuperación de provisiones para reestructuración | D125: =SUMIF(BCPAC!$B$10:$B$8000,$A125,BCPAC!$G$10:$G$8000)/1000 -> 0 | E125: 0 | F125: =SUMIF(BCPAN!$B$10:$B$8000,$A125,BCPAN!$G$10:$G$8000)/1000 -> 0 | G125: 0 | H125: 0 | I125: 0
A126: 4.9.5.03. | B126: Recuperación de provisiones para beneficios a los empleados | D126: =SUMIF(BCPAC!$B$10:$B$8000,$A126,BCPAC!$G$10:$G$8000)/1000 -> 0 | E126: 0 | F126: =SUMIF(BCPAN!$B$10:$B$8000,$A126,BCPAN!$G$10:$G$8000)/1000 -> 0 | G126: 0 | H126: 0 | I126: 0
A127: 4.9.5.99. | B127: Recuperación de otras provisiones y reservas técnicas | D127: =SUMIF(BCPAC!$B$10:$B$8000,$A127,BCPAC!$G$10:$G$8000)/1000 -> 0 | E127: 0 | F127: =SUMIF(BCPAN!$B$10:$B$8000,$A127,BCPAN!$G$10:$G$8000)/1000 -> 0 | G127: 0 | H127: 0 | I127: 0
A128: 4.9.6. | B128: Resultados positivos de inversiones patrimoniales y participación de los intereses minoritarios | C128: 57 | D128: =SUM(D129:D130) -> 0 | E128: =+IFERROR(D128/$D$133,0) -> 0 | F128: =SUM(F129:F130) -> 0 | G128: =+IFERROR(F128/$F$133,0) -> 0 | H128: 0 | I128: =+IFERROR(H128/F128,0) -> 0 | J128: =+FIXED(E128,4) -> 0,0000 | K128: =+FIXED(I128,4) -> 0,0000 | L128: =+FIXED(H128,2) -> 0,00 | M128: =IF(H128 < 0, "Disminución", "Aumento") -> Aumento | N128: Ingresos | O128: =+CONCATENATE(Texto!$B$4,AnalisisER!B128,Texto!$B$6,(AnalisisER!J128*100),Texto!$B$8,N128,Texto!$B$12,AnalisisER!L128,Texto!$B$14,AnalisisER!M128,Texto!$B$16,(AnalisisER!K128*100),Texto!$B$18) -> La cuenta Resultados positivos de inversiones patrimoniales y participación de los intereses minoritarios, representa el 0 % del total de Ingresos, que comparado al periodo anterior genera una variación absoluta de ¢0,00 que corresponde a un(a) Aumento del 0 % de recursos disponibles:
A129: 4.9.6.01. | B129: Resultados positivos de inversiones patrimoniales | D129: =SUMIF(BCPAC!$B$10:$B$8000,$A129,BCPAC!$G$10:$G$8000)/1000 -> 0 | E129: =+IFERROR(D129/$D$133,0) -> 0 | F129: =SUMIF(BCPAN!$B$10:$B$8000,$A129,BCPAN!$G$10:$G$8000)/1000 -> 0 | G129: 0 | H129: 0 | I129: =+IFERROR(H129/F129,0) -> 0
A130: 4.9.6.02. | B130: Participación de los intereses minoritarios en el resultado neto negativo | D130: =SUMIF(BCPAC!$B$10:$B$8000,$A130,BCPAC!$G$10:$G$8000)/1000 -> 0 | E130: 0 | F130: =SUMIF(BCPAN!$B$10:$B$8000,$A130,BCPAN!$G$10:$G$8000)/1000 -> 0 | G130: 0 | H130: 0 | I130: 0
A131: 4.9.9. | B131: Otros ingresos y resultados positivos | C131: 58 | D131: =SUM(D132) -> 293.16007 | E131: =+IFERROR(D131/$D$133,0) -> 5.489937173e-05 | F131: =SUM(F132) -> 182.64691 | G131: 3.951067786e-05 | H131: 110.51316 | I131: =+IFERROR(H131/F131,0) -> 0.605064493 | J131: =+FIXED(E131,4) -> 0,0001 | K131: =+FIXED(I131,4) -> 0,6051 | L131: =+FIXED(H131,2) -> 110,51 | M131: =IF(H131 < 0, "Disminución", "Aumento") -> Aumento | N131: Ingresos | O131: =+CONCATENATE(Texto!$B$4,AnalisisER!B131,Texto!$B$6,(AnalisisER!J131*100),Texto!$B$8,N131,Texto!$B$12,AnalisisER!L131,Texto!$B$14,AnalisisER!M131,Texto!$B$16,(AnalisisER!K131*100),Texto!$B$18) -> La cuenta Otros ingresos y resultados positivos, representa el 0,01 % del total de Ingresos, que comparado al periodo anterior genera una variación absoluta de ¢110,51 que corresponde a un(a) Aumento del 60,51 % de recursos disponibles:
A132: 4.9.9.99. | B132: Ingresos y resultados positivos varios | D132: =SUMIF(BCPAC!$B$10:$B$8000,$A132,BCPAC!$G$10:$G$8000)/1000 -> 293.16007 | E132: =+IFERROR(D132/$D$133,0) -> 5.489937173e-05 | F132: =SUMIF(BCPAN!$B$10:$B$8000,$A132,BCPAN!$G$10:$G$8000)/1000 -> 182.64691 | G132: 3.951067786e-05 | H132: 110.51316 | I132: =+IFERROR(H132/F132,0) -> 0.605064493
B133: TOTAL DE INGRESOS | D133: =+D131+D128+D123+D119+D113+D110+D103+D98+D94+D86+D82+D78+D75+D64+D61+D57+D54+D51+D45+D40+D37+D33+D30+D26+D22+D15+D10 -> 5339953.096 | E133: =+IFERROR(D133/$D$133,0) -> 1 | F133: =+F131+F128+F123+F119+F113+F110+F103+F98+F94+F86+F82+F78+F75+F64+F61+F57+F54+F51+F45+F40+F37+F33+F30+F26+F22+F15+F10 -> 4622722.765 | G133: 1 | H133: 717230.3308 | I133: =+IFERROR(H133/F133,0) -> 0.1551532219
A135: 5. | B135: GASTOS
A136: 5.1. | B136: Gastos de funcionamiento
A137: 5.1.1. | B137: Gastos en personal | C137: 59 | D137: =SUM(D138:D145) -> 874715.4666 | E137: =+IFERROR(D137/$D$233,0) -> 0.202618976 | F137: =SUM(F138:F145) -> 778033.4292 | G137: =+IFERROR(F137/$F$233,0) -> 0.2390962475 | H137: =+D137-F137 -> 96682.03742 | I137: =+IFERROR(H137/F137,0) -> 0.1242646316 | J137: =+FIXED(E137,4) -> 0,2026 | K137: =+FIXED(I137,4) -> 0,1243 | L137: =+FIXED(H137,2) -> 96 682,04 | M137: =IF(H137 < 0, "Disminución", "Aumento") -> Aumento | N137: Gastos | O137: =+CONCATENATE(Texto!$B$4,AnalisisER!B137,Texto!$B$6,(AnalisisER!J137*100),Texto!$B$8,N137,Texto!$B$12,AnalisisER!L137,Texto!$B$14,AnalisisER!M137,Texto!$B$16,(AnalisisER!K137*100),Texto!$B$18) -> La cuenta Gastos en personal, representa el 20,26 % del total de Gastos, que comparado al periodo anterior genera una variación absoluta de ¢96 682,04 que corresponde a un(a) Aumento del 12,43 % de recursos disponibles:
A138: 5.1.1.01. | B138: Remuneraciones Básicas | D138: =SUMIF(BCPAC!$B$10:$B$8000,$A138,BCPAC!$G$10:$G$8000)/1000 -> 535206.2768 | E138: =+IFERROR(D138/$D$233,0) -> 0.1239751118 | F138: =SUMIF(BCPAN!$B$10:$B$8000,$A138,BCPAN!$G$10:$G$8000)/1000 -> 494171.6069 | G138: =+IFERROR(F138/$F$233,0) -> 0.1518631108 | H138: 41034.66983 | I138: =+IFERROR(H138/F138,0) -> 0.08303728756
A139: 5.1.1.02. | B139: Remuneraciones eventuales | D139: =SUMIF(BCPAC!$B$10:$B$8000,$A139,BCPAC!$G$10:$G$8000)/1000 -> 53148.53051 | E139: =+IFERROR(D139/$D$233,0) -> 0.01231131864 | F139: =SUMIF(BCPAN!$B$10:$B$8000,$A139,BCPAN!$G$10:$G$8000)/1000 -> 28350.36583 | G139: =+IFERROR(F139/$F$233,0) -> 0.008712306993 | H139: 24798.16468 | I139: 0.8747035163
A140: 5.1.1.03. | B140: Incentivos salariales | D140: =SUMIF(BCPAC!$B$10:$B$8000,$A140,BCPAC!$G$10:$G$8000)/1000 -> 149176.7619 | E140: 0.03455528558 | F140: =SUMIF(BCPAN!$B$10:$B$8000,$A140,BCPAN!$G$10:$G$8000)/1000 -> 123693.435 | G140: 0.03801203783 | H140: 25483.32698 | I140: 0.2060200446
A141: 5.1.1.04. | B141: Contribuciones patronales al desarrollo y la seguridad social | D141: =SUMIF(BCPAC!$B$10:$B$8000,$A141,BCPAC!$G$10:$G$8000)/1000 -> 127801.7701 | E141: 0.02960398526 | F141: =SUMIF(BCPAN!$B$10:$B$8000,$A141,BCPAN!$G$10:$G$8000)/1000 -> 124308.3541 | G141: 0.03820100768 | H141: 3493.41597 | I141: 0.02810282539
A142: 5.1.1.05. | B142: Contribuciones patronales a fondos de pensiones y a otros fondos de capitalización | D142: =SUMIF(BCPAC!$B$10:$B$8000,$A142,BCPAC!$G$10:$G$8000)/1000 -> 165.46731 | E142: 3.8328826e-05 | F142: =SUMIF(BCPAN!$B$10:$B$8000,$A142,BCPAN!$G$10:$G$8000)/1000 -> 7509.66735 | G142: 0.002307784237 | H142: -7344.20004 | I142: -0.9779660933
A143: 5.1.1.06. | B143: Asistencia social y beneficios al personal | D143: =SUMIF(BCPAC!$B$10:$B$8000,$A143,BCPAC!$G$10:$G$8000)/1000 -> 9216.66 | E143: 0.002134945914 | F143: =SUMIF(BCPAN!$B$10:$B$8000,$A143,BCPAN!$G$10:$G$8000)/1000 -> 0 | G143: 0 | H143: 9216.66 | I143: 0
A144: 5.1.1.07. | B144: Contribuciones estatales a la seguridad social | D144: =SUMIF(BCPAC!$B$10:$B$8000,$A144,BCPAC!$G$10:$G$8000)/1000 -> 0 | E144: 0 | F144: =SUMIF(BCPAN!$B$10:$B$8000,$A144,BCPAN!$G$10:$G$8000)/1000 -> 0 | G144: 0 | H144: 0 | I144: 0
A145: 5.1.1.99. | B145: Otros gastos en personal | D145: =SUMIF(BCPAC!$B$10:$B$8000,$A145,BCPAC!$G$10:$G$8000)/1000 -> 0 | E145: 0 | F145: =SUMIF(BCPAN!$B$10:$B$8000,$A145,BCPAN!$G$10:$G$8000)/1000 -> 0 | G145: 0 | H145: 0 | I145: 0
A146: 5.1.2. | B146: Servicios | C146: 60 | D146: =SUM(D147:D155) -> 2648257.373 | E146: =+IFERROR(D146/$D$233,0) -> 0.6134419908 | F146: =SUM(F147:F155) -> 1917335.682 | G146: =+IFERROR(F146/$F$233,0) -> 0.5892134575 | H146: 730921.691 | I146: =+IFERROR(H146/F146,0) -> 0.3812173829 | J146: =+FIXED(E146,4) -> 0,6134 | K146: =+FIXED(I146,4) -> 0,3812 | L146: =+FIXED(H146,2) -> 730 921,69 | M146: =IF(H146 < 0, "Disminución", "Aumento") -> Aumento | N146: Gastos | O146: =+CONCATENATE(Texto!$B$4,AnalisisER!B146,Texto!$B$6,(AnalisisER!J146*100),Texto!$B$8,N146,Texto!$B$12,AnalisisER!L146,Texto!$B$14,AnalisisER!M146,Texto!$B$16,(AnalisisER!K146*100),Texto!$B$18) -> La cuenta Servicios, representa el 61,34 % del total de Gastos, que comparado al periodo anterior genera una variación absoluta de ¢730 921,69 que corresponde a un(a) Aumento del 38,12 % de recursos disponibles:
A147: 5.1.2.01. | B147: Alquileres y derechos sobre bienes | D147: =SUMIF(BCPAC!$B$10:$B$8000,$A147,BCPAC!$G$10:$G$8000)/1000 -> 139130.5172 | E147: =+IFERROR(D147/$D$233,0) -> 0.03222817476 | F147: =SUMIF(BCPAN!$B$10:$B$8000,$A147,BCPAN!$G$10:$G$8000)/1000 -> 86500.4869 | G147: =+IFERROR(F147/$F$233,0) -> 0.02658233059 | H147: 52630.03027 | I147: =+IFERROR(H147/F147,0) -> 0.6084362315 | J147: =+FIXED(E147,4) -> 0,0322 | K147: =+FIXED(I147,4) -> 0,6084 | L147: =+FIXED(H147,2) -> 52 630,03 | M147: =IF(H147 < 0, "Disminución", "Aumento") -> Aumento | N147: Gastos | O147: =+CONCATENATE(Texto!$B$4,AnalisisER!B147,Texto!$B$6,(AnalisisER!J147*100),Texto!$B$8,N147,Texto!$B$12,AnalisisER!L147,Texto!$B$14,AnalisisER!M147,Texto!$B$16,(AnalisisER!K147*100),Texto!$B$18) -> La cuenta Alquileres y derechos sobre bienes, representa el 3,22 % del total de Gastos, que comparado al periodo anterior genera una variación absoluta de ¢52 630,03 que corresponde a un(a) Aumento del 60,84 % de recursos disponibles:
A148: 5.1.2.02. | B148: Servicios básicos | D148: =SUMIF(BCPAC!$B$10:$B$8000,$A148,BCPAC!$G$10:$G$8000)/1000 -> 83757.13667 | E148: 0.01940149216 | F148: =SUMIF(BCPAN!$B$10:$B$8000,$A148,BCPAN!$G$10:$G$8000)/1000 -> 95788.03986 | G148: 0.0294364741 | H148: -12030.90319 | I148: -0.125599221
A149: 5.1.2.03. | B149: Servicios comerciales y financieros | D149: =SUMIF(BCPAC!$B$10:$B$8000,$A149,BCPAC!$G$10:$G$8000)/1000 -> 25799.34072 | E149: 0.005976155902 | F149: =SUMIF(BCPAN!$B$10:$B$8000,$A149,BCPAN!$G$10:$G$8000)/1000 -> 9908.31026 | G149: 0.003044907473 | H149: 15891.03046 | I149: 1.603808323
A150: 5.1.2.04. | B150: Servicios de gestión y apoyo | D150: =SUMIF(BCPAC!$B$10:$B$8000,$A150,BCPAC!$G$10:$G$8000)/1000 -> 101629.775 | E150: 0.02354150776 | F150: =SUMIF(BCPAN!$B$10:$B$8000,$A150,BCPAN!$G$10:$G$8000)/1000 -> 56117.1027 | G150: 0.01724525988 | H150: 45512.67231 | I150: 0.8110303298
A151: 5.1.2.05. | B151: Gastos de viaje y transporte | D151: =SUMIF(BCPAC!$B$10:$B$8000,$A151,BCPAC!$G$10:$G$8000)/1000 -> 4405.22351 | E151: 0.001020425396 | F151: =SUMIF(BCPAN!$B$10:$B$8000,$A151,BCPAN!$G$10:$G$8000)/1000 -> 10361.49668 | G151: 0.003184175489 | H151: -5956.27317 | I151: -0.5748467962
A152: 5.1.2.06. | B152: Seguros, reaseguros y otras obligaciones | D152: =SUMIF(BCPAC!$B$10:$B$8000,$A152,BCPAC!$G$10:$G$8000)/1000 -> 38123.26669 | E152: 0.008830868498 | F152: =SUMIF(BCPAN!$B$10:$B$8000,$A152,BCPAN!$G$10:$G$8000)/1000 -> 34625.14475 | G152: 0.01064059958 | H152: 3498.12194 | I152: 0.1010283701
A153: 5.1.2.07. | B153: Capacitación y protocolo | D153: =SUMIF(BCPAC!$B$10:$B$8000,$A153,BCPAC!$G$10:$G$8000)/1000 -> 0 | E153: 0 | F153: =SUMIF(BCPAN!$B$10:$B$8000,$A153,BCPAN!$G$10:$G$8000)/1000 -> 1040 | G153: 0.0003196007885 | H153: -1040 | I153: -1
A154: 5.1.2.08. | B154: Mantenimiento y reparaciones | D154: =SUMIF(BCPAC!$B$10:$B$8000,$A154,BCPAC!$G$10:$G$8000)/1000 -> 2255262.113 | E154: 0.5224086203 | F154: =SUMIF(BCPAN!$B$10:$B$8000,$A154,BCPAN!$G$10:$G$8000)/1000 -> 1622995.101 | G154: 0.4987601096 | H154: 632267.0123 | I154: 0.389568035
A155: 5.1.2.99. | B155: Otros servicios | D155: =SUMIF(BCPAC!$B$10:$B$8000,$A155,BCPAC!$G$10:$G$8000)/1000 -> 150 | E155: 3.474598034e-05 | F155: =SUMIF(BCPAN!$B$10:$B$8000,$A155,BCPAN!$G$10:$G$8000)/1000 -> 0 | G155: 0 | H155: 150 | I155: 0
A156: 5.1.3. | B156: Materiales y suministros consumidos | C156: 61 | D156: =SUM(D157:D161) -> 366007.0307 | E156: =+IFERROR(D156/$D$233,0) -> 0.08478182061 | F156: =SUM(F157:F161) -> 317393.329 | G156: =+IFERROR(F156/$F$233,0) -> 0.09753765213 | H156: 48613.70167 | I156: =+IFERROR(H156/F156,0) -> 0.1531654803 | J156: =+FIXED(E156,4) -> 0,0848 | K156: =+FIXED(I156,4) -> 0,1532 | L156: =+FIXED(H156,2) -> 48 613,70 | M156: =IF(H156 < 0, "Disminución", "Aumento") -> Aumento | N156: Gastos | O156: =+CONCATENATE(Texto!$B$4,AnalisisER!B156,Texto!$B$6,(AnalisisER!J156*100),Texto!$B$8,N156,Texto!$B$12,AnalisisER!L156,Texto!$B$14,AnalisisER!M156,Texto!$B$16,(AnalisisER!K156*100),Texto!$B$18) -> La cuenta Materiales y suministros consumidos, representa el 8,48 % del total de Gastos, que comparado al periodo anterior genera una variación absoluta de ¢48 613,70 que corresponde a un(a) Aumento del 15,32 % de recursos disponibles:
A157: 5.1.3.01. | B157: Productos químicos y conexos | D157: =SUMIF(BCPAC!$B$10:$B$8000,$A157,BCPAC!$G$10:$G$8000)/1000 -> 103152.6686 | E157: =+IFERROR(D157/$D$233,0) -> 0.02389427063 | F157: =SUMIF(BCPAN!$B$10:$B$8000,$A157,BCPAN!$G$10:$G$8000)/1000 -> 121778.7737 | G157: =+IFERROR(F157/$F$233,0) -> 0.03742364624 | H157: -18626.10507 | I157: =+IFERROR(H157/F157,0) -> -0.1529503419
A158: 5.1.3.02. | B158: Alimentos y productos agropecuarios | D158: =SUMIF(BCPAC!$B$10:$B$8000,$A158,BCPAC!$G$10:$G$8000)/1000 -> 1360 | E158: =+IFERROR(D158/$D$233,0) -> 0.0003150302217 | F158: =SUMIF(BCPAN!$B$10:$B$8000,$A158,BCPAN!$G$10:$G$8000)/1000 -> 1284 | G158: 0.0003945840504 | H158: 76 | I158: 0.05919003115
A159: 5.1.3.03. | B159: Materiales y productos de uso en la construcción y mantenimiento | D159: =SUMIF(BCPAC!$B$10:$B$8000,$A159,BCPAC!$G$10:$G$8000)/1000 -> 142252.4261 | E159: 0.03295133334 | F159: =SUMIF(BCPAN!$B$10:$B$8000,$A159,BCPAN!$G$10:$G$8000)/1000 -> 73394.17759 | G159: 0.02255465099 | H159: 68858.24855 | I159: 0.9381976992
A160: 5.1.3.04. | B160: Herramientas, repuestos y accesorios | D160: =SUMIF(BCPAC!$B$10:$B$8000,$A160,BCPAC!$G$10:$G$8000)/1000 -> 99376.88937 | E160: 0.02301964963 | F160: =SUMIF(BCPAN!$B$10:$B$8000,$A160,BCPAN!$G$10:$G$8000)/1000 -> 100495.459 | G160: 0.03088310377 | H160: -1118.56959 | I160: -0.0111305486
A161: 5.1.3.99. | B161: Útiles, materiales y suministros diversos | D161: =SUMIF(BCPAC!$B$10:$B$8000,$A161,BCPAC!$G$10:$G$8000)/1000 -> 19865.04656 | E161: 0.004601536781 | F161: =SUMIF(BCPAN!$B$10:$B$8000,$A161,BCPAN!$G$10:$G$8000)/1000 -> 20440.91878 | G161: 0.006281667076 | H161: -575.87222 | I161: -0.02817252131
A162: 5.1.4. | B162: Consumo de bienes distintos de inventarios | C162: 62 | D162: =SUM(D163:D164) -> 260028.2229 | E162: =+IFERROR(D162/$D$233,0) -> 0.06023290346 | F162: =SUM(F163:F164) -> 92979.63866 | G162: =+IFERROR(F162/$F$233,0) -> 0.02857342868 | H162: 167048.5842 | I162: =+IFERROR(H162/F162,0) -> 1.796614685 | J162: =+FIXED(E162,4) -> 0,0602 | K162: =+FIXED(I162,4) -> 1,7966 | L162: =+FIXED(H162,2) -> 167 048,58 | M162: =IF(H162 < 0, "Disminución", "Aumento") -> Aumento | N162: Gastos | O162: =+CONCATENATE(Texto!$B$4,AnalisisER!B162,Texto!$B$6,(AnalisisER!J162*100),Texto!$B$8,N162,Texto!$B$12,AnalisisER!L162,Texto!$B$14,AnalisisER!M162,Texto!$B$16,(AnalisisER!K162*100),Texto!$B$18) -> La cuenta Consumo de bienes distintos de inventarios, representa el 6,02 % del total de Gastos, que comparado al periodo anterior genera una variación absoluta de ¢167 048,58 que corresponde a un(a) Aumento del 179,66 % de recursos disponibles:
A163: 5.1.4.01. | B163: Consumo de bienes no concesionados | D163: =SUMIF(BCPAC!$B$10:$B$8000,$A163,BCPAC!$G$10:$G$8000)/1000 -> 260028.2229 | E163: 0.06023290346 | F163: =SUMIF(BCPAN!$B$10:$B$8000,$A163,BCPAN!$G$10:$G$8000)/1000 -> 92979.63866 | G163: =+IFERROR(F163/$F$233,0) -> 0.02857342868 | H163: 167048.5842 | I163: =+IFERROR(H163/F163,0) -> 1.796614685
A164: 5.1.4.02. | B164: Consumo de bienes concesionados | D164: =SUMIF(BCPAC!$B$10:$B$8000,$A164,BCPAC!$G$10:$G$8000)/1000 -> 0 | E164: 0 | F164: =SUMIF(BCPAN!$B$10:$B$8000,$A164,BCPAN!$G$10:$G$8000)/1000 -> 0 | G164: 0 | H164: 0 | I164: 0
A165: 5.1.5. | B165: Pérdidas por deterioro y desvalorización de bienes | C165: 63 | D165: =SUM(D166:D167) -> 155.07773 | E165: =+IFERROR(D165/$D$233,0) -> 3.592218505e-05 | F165: =SUM(F166:F167) -> 0 | G165: =+IFERROR(F165/$F$233,0) -> 0 | H165: 155.07773 | I165: =+IFERROR(H165/F165,0) -> 0 | J165: =+FIXED(E165,4) -> 0,0000 | K165: =+FIXED(I165,4) -> 0,0000 | L165: =+FIXED(H165,2) -> 155,08 | M165: =IF(H165 < 0, "Disminución", "Aumento") -> Aumento | N165: Gastos | O165: =+CONCATENATE(Texto!$B$4,AnalisisER!B165,Texto!$B$6,(AnalisisER!J165*100),Texto!$B$8,N165,Texto!$B$12,AnalisisER!L165,Texto!$B$14,AnalisisER!M165,Texto!$B$16,(AnalisisER!K165*100),Texto!$B$18) -> La cuenta Pérdidas por deterioro y desvalorización de bienes, representa el 0 % del total de Gastos, que comparado al periodo anterior genera una variación absoluta de ¢155,08 que corresponde a un(a) Aumento del 0 % de recursos disponibles:
A166: 5.1.5.01. | B166: Deterioro y desvalorización de bienes no concesionados | D166: =SUMIF(BCPAC!$B$10:$B$8000,$A166,BCPAC!$G$10:$G$8000)/1000 -> 155.07773 | E166: 3.592218505e-05 | F166: =SUMIF(BCPAN!$B$10:$B$8000,$A166,BCPAN!$G$10:$G$8000)/1000 -> 0 | G166: =+IFERROR(F166/$F$233,0) -> 0 | H166: 155.07773 | I166: =+IFERROR(H166/F166,0) -> 0
A167: 5.1.5.02. | B167: Deterioro y desvalorización de bienes concesionados | D167: =SUMIF(BCPAC!$B$10:$B$8000,$A167,BCPAC!$G$10:$G$8000)/1000 -> 0 | E167: 0 | F167: =SUMIF(BCPAN!$B$10:$B$8000,$A167,BCPAN!$G$10:$G$8000)/1000 -> 0 | G167: 0 | H167: 0 | I167: 0
A168: 5.1.6. | B168: Deterioro y pérdidas de inventarios | C168: 64 | D168: =SUM(D169:D171) -> 0 | E168: =+IFERROR(D168/$D$233,0) -> 0 | F168: =SUM(F169:F171) -> 0 | G168: =+IFERROR(F168/$F$233,0) -> 0 | H168: 0 | I168: =+IFERROR(H168/F168,0) -> 0 | J168: =+FIXED(E168,4) -> 0,0000 | K168: =+FIXED(I168,4) -> 0,0000 | L168: =+FIXED(H168,2) -> 0,00 | M168: =IF(H168 < 0, "Disminución", "Aumento") -> Aumento | N168: Gastos | O168: =+CONCATENATE(Texto!$B$4,AnalisisER!B168,Texto!$B$6,(AnalisisER!J168*100),Texto!$B$8,N168,Texto!$B$12,AnalisisER!L168,Texto!$B$14,AnalisisER!M168,Texto!$B$16,(AnalisisER!K168*100),Texto!$B$18) -> La cuenta Deterioro y pérdidas de inventarios, representa el 0 % del total de Gastos, que comparado al periodo anterior genera una variación absoluta de ¢0,00 que corresponde a un(a) Aumento del 0 % de recursos disponibles:
A169: 5.1.6.01. | B169: Deterioro y pérdidas de inventarios por materiales y suministros para consumo y prestación de servicios | D169: =SUMIF(BCPAC!$B$10:$B$8000,$A169,BCPAC!$G$10:$G$8000)/1000 -> 0 | E169: 0 | F169: =SUMIF(BCPAN!$B$10:$B$8000,$A169,BCPAN!$G$10:$G$8000)/1000 -> 0 | G169: =+IFERROR(F169/$F$233,0) -> 0 | H169: 0 | I169: =+IFERROR(H169/F169,0) -> 0
A170: 5.1.6.02. | B170: Deterioro y pérdidas de inventarios por bienes para la venta | D170: =SUMIF(BCPAC!$B$10:$B$8000,$A170,BCPAC!$G$10:$G$8000)/1000 -> 0 | E170: 0 | F170: =SUMIF(BCPAN!$B$10:$B$8000,$A170,BCPAN!$G$10:$G$8000)/1000 -> 0 | G170: 0 | H170: 0 | I170: 0
A171: 5.1.6.03. | B171: Deterioro y pérdidas de inventarios por materias primas y bienes en producción | D171: =SUMIF(BCPAC!$B$10:$B$8000,$A171,BCPAC!$G$10:$G$8000)/1000 -> 0 | E171: 0 | F171: =SUMIF(BCPAN!$B$10:$B$8000,$A171,BCPAN!$G$10:$G$8000)/1000 -> 0 | G171: 0 | H171: 0 | I171: 0
A172: 5.1.7. | B172: Deterioro de inversiones y cuentas a cobrar | C172: 65 | D172: =SUM(D173:D174) -> 0 | E172: =+IFERROR(D172/$D$233,0) -> 0 | F172: =SUM(F173:F174) -> 0 | G172: =+IFERROR(F172/$F$233,0) -> 0 | H172: 0 | I172: =+IFERROR(H172/F172,0) -> 0 | J172: =+FIXED(E172,4) -> 0,0000 | K172: =+FIXED(I172,4) -> 0,0000 | L172: =+FIXED(H172,2) -> 0,00 | M172: =IF(H172 < 0, "Disminución", "Aumento") -> Aumento | N172: Gastos | O172: =+CONCATENATE(Texto!$B$4,AnalisisER!B172,Texto!$B$6,(AnalisisER!J172*100),Texto!$B$8,N172,Texto!$B$12,AnalisisER!L172,Texto!$B$14,AnalisisER!M172,Texto!$B$16,(AnalisisER!K172*100),Texto!$B$18) -> La cuenta Deterioro de inversiones y cuentas a cobrar, representa el 0 % del total de Gastos, que comparado al periodo anterior genera una variación absoluta de ¢0,00 que corresponde a un(a) Aumento del 0 % de recursos disponibles:
A173: 5.1.7.01. | B173: Deterioro de inversiones | D173: =SUMIF(BCPAC!$B$10:$B$8000,$A173,BCPAC!$G$10:$G$8000)/1000 -> 0 | E173: 0 | F173: =SUMIF(BCPAN!$B$10:$B$8000,$A173,BCPAN!$G$10:$G$8000)/1000 -> 0 | G173: =+IFERROR(F173/$F$233,0) -> 0 | H173: 0 | I173: =+IFERROR(H173/F173,0) -> 0
A174: 5.1.7.02. | B174: Deterioro de cuentas a cobrar | D174: =SUMIF(BCPAC!$B$10:$B$8000,$A174,BCPAC!$G$10:$G$8000)/1000 -> 0 | E174: 0 | F174: =SUMIF(BCPAN!$B$10:$B$8000,$A174,BCPAN!$G$10:$G$8000)/1000 -> 0 | G174: 0 | H174: 0 | I174: 0
A175: 5.1.8. | B175: Cargos por provisiones y reservas técnicas | C175: 66 | D175: =SUM(D176:D180) -> 181.5 | E175: =+IFERROR(D175/$D$233,0) -> 4.204263621e-05 | F175: =SUM(F176:F180) -> 0 | G175: =+IFERROR(F175/$F$233,0) -> 0 | H175: 181.5 | I175: =+IFERROR(H175/F175,0) -> 0 | J175: =+FIXED(E175,4) -> 0,0000 | K175: =+FIXED(I175,4) -> 0,0000 | L175: =+FIXED(H175,2) -> 181,50 | M175: =IF(H175 < 0, "Disminución", "Aumento") -> Aumento | N175: Gastos | O175: =+CONCATENATE(Texto!$B$4,AnalisisER!B175,Texto!$B$6,(AnalisisER!J175*100),Texto!$B$8,N175,Texto!$B$12,AnalisisER!L175,Texto!$B$14,AnalisisER!M175,Texto!$B$16,(AnalisisER!K175*100),Texto!$B$18) -> La cuenta Cargos por provisiones y reservas técnicas, representa el 0 % del total de Gastos, que comparado al periodo anterior genera una variación absoluta de ¢181,50 que corresponde a un(a) Aumento del 0 % de recursos disponibles:
A176: 5.1.8.01. | B176: Cargos por litigios y demandas | D176: =SUMIF(BCPAC!$B$10:$B$8000,$A176,BCPAC!$G$10:$G$8000)/1000 -> 181.5 | E176: 4.204263621e-05 | F176: =SUMIF(BCPAN!$B$10:$B$8000,$A176,BCPAN!$G$10:$G$8000)/1000 -> 0 | G176: =+IFERROR(F176/$F$233,0) -> 0 | H176: 181.5 | I176: =+IFERROR(H176/F176,0) -> 0 | J176: =+FIXED(E176,4) -> 0,0000 | K176: =+FIXED(I176,4) -> 0,0000 | L176: =+FIXED(H176,2) -> 181,50 | M176: =IF(H176 < 0, "Disminución", "Aumento") -> Aumento | N176: Gastos | O176: =+CONCATENATE(Texto!$B$4,AnalisisER!B176,Texto!$B$6,(AnalisisER!J176*100),Texto!$B$8,N176,Texto!$B$12,AnalisisER!L176,Texto!$B$14,AnalisisER!M176,Texto!$B$16,(AnalisisER!K176*100),Texto!$B$18) -> La cuenta Cargos por litigios y demandas, representa el 0 % del total de Gastos, que comparado al periodo anterior genera una variación absoluta de ¢181,50 que corresponde a un(a) Aumento del 0 % de recursos disponibles:
A177: 5.1.8.02. | B177: Cargos por reestructuración | D177: =SUMIF(BCPAC!$B$10:$B$8000,$A177,BCPAC!$G$10:$G$8000)/1000 -> 0 | E177: 0 | F177: =SUMIF(BCPAN!$B$10:$B$8000,$A177,BCPAN!$G$10:$G$8000)/1000 -> 0 | G177: 0 | H177: 0 | I177: 0
A178: 5.1.8.03. | B178: Cargos por beneficios a los empleados | D178: =SUMIF(BCPAC!$B$10:$B$8000,$A178,BCPAC!$G$10:$G$8000)/1000 -> 0 | E178: 0 | F178: =SUMIF(BCPAN!$B$10:$B$8000,$A178,BCPAN!$G$10:$G$8000)/1000 -> 0 | G178: 0 | H178: 0 | I178: 0
A179: 5.1.8.99. | B179: Cargos por otras provisiones y reservas técnicas | D179: =SUMIF(BCPAC!$B$10:$B$8000,$A179,BCPAC!$G$10:$G$8000)/1000 -> 0 | E179: 0 | F179: =SUMIF(BCPAN!$B$10:$B$8000,$A179,BCPAN!$G$10:$G$8000)/1000 -> 0 | G179: 0 | H179: 0 | I179: 0
A180: 5.2. | B180: Gastos financieros
A181: 5.2.1. | B181: Intereses sobre endeudamiento público | C181: 67 | D181: =SUM(D182:D185) -> 82462.5948 | E181: =+IFERROR(D181/$D$233,0) -> 0.01910162465 | F181: =SUM(F182:F185) -> 56440.39514 | G181: =+IFERROR(F181/$F$233,0) -> 0.01734461037 | H181: =+D181-F181 -> 26022.19966 | I181: =+IFERROR(H181/F181,0) -> 0.4610562983 | J181: =+FIXED(E181,4) -> 0,0191 | K181: =+FIXED(I181,4) -> 0,4611 | L181: =+FIXED(H181,2) -> 26 022,20 | M181: =IF(H181 < 0, "Disminución", "Aumento") -> Aumento | N181: Gastos | O181: =+CONCATENATE(Texto!$B$4,AnalisisER!B181,Texto!$B$6,(AnalisisER!J181*100),Texto!$B$8,N181,Texto!$B$12,AnalisisER!L181,Texto!$B$14,AnalisisER!M181,Texto!$B$16,(AnalisisER!K181*100),Texto!$B$18) -> La cuenta Intereses sobre endeudamiento público, representa el 1,91 % del total de Gastos, que comparado al periodo anterior genera una variación absoluta de ¢26 022,20 que corresponde a un(a) Aumento del 46,11 % de recursos disponibles:
A182: 5.2.1.01. | B182: Intereses sobre títulos y valores de la deuda pública | D182: =SUMIF(BCPAC!$B$10:$B$8000,$A182,BCPAC!$G$10:$G$8000)/1000 -> 0 | E182: =+IFERROR(D182/$D$233,0) -> 0 | F182: =SUMIF(BCPAN!$B$10:$B$8000,$A182,BCPAN!$G$10:$G$8000)/1000 -> 0 | G182: =+IFERROR(F182/$F$233,0) -> 0 | H182: 0 | I182: =+IFERROR(H182/F182,0) -> 0
A183: 5.2.1.02. | B183: Intereses sobre préstamos | D183: =SUMIF(BCPAC!$B$10:$B$8000,$A183,BCPAC!$G$10:$G$8000)/1000 -> 82462.5948 | E183: 0.01910162465 | F183: =SUMIF(BCPAN!$B$10:$B$8000,$A183,BCPAN!$G$10:$G$8000)/1000 -> 56440.39514 | G183: 0.01734461037 | H183: 26022.19966 | I183: 0.4610562983
A184: 5.2.1.03. | B184: Intereses sobre deudas asumidas | D184: =SUMIF(BCPAC!$B$10:$B$8000,$A184,BCPAC!$G$10:$G$8000)/1000 -> 0 | E184: 0 | F184: =SUMIF(BCPAN!$B$10:$B$8000,$A184,BCPAN!$G$10:$G$8000)/1000 -> 0 | G184: 0 | H184: 0 | I184: 0
A185: 5.2.1.04. | B185: Intereses sobre endeudamiento de Tesorería | D185: =SUMIF(BCPAC!$B$10:$B$8000,$A185,BCPAC!$G$10:$G$8000)/1000 -> 0 | E185: 0 | F185: =SUMIF(BCPAN!$B$10:$B$8000,$A185,BCPAN!$G$10:$G$8000)/1000 -> 0 | G185: 0 | H185: 0 | I185: 0
A186: 5.2.9. | B186: Otros gastos financieros | C186: 68 | D186: =SUM(D187:D192) -> 0 | E186: =+IFERROR(D186/$D$233,0) -> 0 | F186: =SUM(F187:F192) -> 0 | G186: =+IFERROR(F186/$F$233,0) -> 0 | H186: 0 | I186: =+IFERROR(H186/F186,0) -> 0 | J186: =+FIXED(E186,4) -> 0,0000 | K186: =+FIXED(I186,4) -> 0,0000 | L186: =+FIXED(H186,2) -> 0,00 | M186: =IF(H186 < 0, "Disminución", "Aumento") -> Aumento | N186: Gastos | O186: =+CONCATENATE(Texto!$B$4,AnalisisER!B186,Texto!$B$6,(AnalisisER!J186*100),Texto!$B$8,N186,Texto!$B$12,AnalisisER!L186,Texto!$B$14,AnalisisER!M186,Texto!$B$16,(AnalisisER!K186*100),Texto!$B$18) -> La cuenta Otros gastos financieros, representa el 0 % del total de Gastos, que comparado al periodo anterior genera una variación absoluta de ¢0,00 que corresponde a un(a) Aumento del 0 % de recursos disponibles:
A187: 5.2.9.01. | B187: Intereses por deudas comerciales | D187: =SUMIF(BCPAC!$B$10:$B$8000,$A187,BCPAC!$G$10:$G$8000)/1000 -> 0 | E187: =+IFERROR(D187/$D$233,0) -> 0 | F187: =SUMIF(BCPAN!$B$10:$B$8000,$A187,BCPAN!$G$10:$G$8000)/1000 -> 0 | G187: =+IFERROR(F187/$F$233,0) -> 0 | H187: 0 | I187: =+IFERROR(H187/F187,0) -> 0
A188: 5.2.9.02. | B188: Intereses por deudas sociales y fiscales | D188: =SUMIF(BCPAC!$B$10:$B$8000,$A188,BCPAC!$G$10:$G$8000)/1000 -> 0 | E188: 0 | F188: =SUMIF(BCPAN!$B$10:$B$8000,$A188,BCPAN!$G$10:$G$8000)/1000 -> 0 | G188: 0 | H188: 0 | I188: 0
A189: 5.2.9.04. | B189: Intereses por documentos a pagar | D189: =SUMIF(BCPAC!$B$10:$B$8000,$A189,BCPAC!$G$10:$G$8000)/1000 -> 0 | E189: 0 | F189: =SUMIF(BCPAN!$B$10:$B$8000,$A189,BCPAN!$G$10:$G$8000)/1000 -> 0 | G189: 0 | H189: 0 | I189: 0
A190: 5.2.9.06. | B190: Intereses sobre deudas por avales ejecutados | D190: =SUMIF(BCPAC!$B$10:$B$8000,$A190,BCPAC!$G$10:$G$8000)/1000 -> 0 | E190: 0 | F190: =SUMIF(BCPAN!$B$10:$B$8000,$A190,BCPAN!$G$10:$G$8000)/1000 -> 0 | G190: 0 | H190: 0 | I190: 0
A191: 5.2.9.99. | B191: Otros gastos financieros varios | D191: =SUMIF(BCPAC!$B$10:$B$8000,$A191,BCPAC!$G$10:$G$8000)/1000 -> 0 | E191: 0 | F191: =SUMIF(BCPAN!$B$10:$B$8000,$A191,BCPAN!$G$10:$G$8000)/1000 -> 0 | G191: 0 | H191: 0 | I191: 0
A192: 5.3. | B192: Gastos y resultados negativos por ventas
A193: 5.3.1. | B193: Costo de ventas de bienes y servicios | C193: 69 | D193: =SUM(D194:D195) -> 0 | E193: =+IFERROR(D193/$D$233,0) -> 0 | F193: =SUM(F194:F195) -> 0 | G193: =+IFERROR(F193/$F$233,0) -> 0 | H193: =+D193-F193 -> 0 | I193: =+IFERROR(H193/F193,0) -> 0 | J193: =+FIXED(E193,4) -> 0,0000 | K193: =+FIXED(I193,4) -> 0,0000 | L193: =+FIXED(H193,2) -> 0,00 | M193: =IF(H193 < 0, "Disminución", "Aumento") -> Aumento | N193: Gastos | O193: =+CONCATENATE(Texto!$B$4,AnalisisER!B193,Texto!$B$6,(AnalisisER!J193*100),Texto!$B$8,N193,Texto!$B$12,AnalisisER!L193,Texto!$B$14,AnalisisER!M193,Texto!$B$16,(AnalisisER!K193*100),Texto!$B$18) -> La cuenta Costo de ventas de bienes y servicios, representa el 0 % del total de Gastos, que comparado al periodo anterior genera una variación absoluta de ¢0,00 que corresponde a un(a) Aumento del 0 % de recursos disponibles:
A194: 5.3.1.01. | B194: Costo de ventas de bienes | D194: =SUMIF(BCPAC!$B$10:$B$8000,$A194,BCPAC!$G$10:$G$8000)/1000 -> 0 | E194: =+IFERROR(D194/$D$233,0) -> 0 | F194: =SUMIF(BCPAN!$B$10:$B$8000,$A194,BCPAN!$G$10:$G$8000)/1000 -> 0 | G194: =+IFERROR(F194/$F$233,0) -> 0 | H194: 0 | I194: =+IFERROR(H194/F194,0) -> 0
A195: 5.3.1.02. | B195: Costo de ventas de servicios | D195: =SUMIF(BCPAC!$B$10:$B$8000,$A195,BCPAC!$G$10:$G$8000)/1000 -> 0 | E195: 0 | F195: =SUMIF(BCPAN!$B$10:$B$8000,$A195,BCPAN!$G$10:$G$8000)/1000 -> 0 | G195: 0 | H195: 0 | I195: 0
A196: 5.3.2. | B196: Resultados negativos por ventas de inversiones | C196: 70 | D196: =SUM(D197:D198) -> 0 | E196: =+IFERROR(D196/$D$233,0) -> 0 | F196: =SUM(F197:F198) -> 0 | G196: =+IFERROR(F196/$F$233,0) -> 0 | H196: 0 | I196: =+IFERROR(H196/F196,0) -> 0 | J196: =+FIXED(E196,4) -> 0,0000 | K196: =+FIXED(I196,4) -> 0,0000 | L196: =+FIXED(H196,2) -> 0,00 | M196: =IF(H196 < 0, "Disminución", "Aumento") -> Aumento | N196: Gastos | O196: =+CONCATENATE(Texto!$B$4,AnalisisER!B196,Texto!$B$6,(AnalisisER!J196*100),Texto!$B$8,N196,Texto!$B$12,AnalisisER!L196,Texto!$B$14,AnalisisER!M196,Texto!$B$16,(AnalisisER!K196*100),Texto!$B$18) -> La cuenta Resultados negativos por ventas de inversiones, representa el 0 % del total de Gastos, que comparado al periodo anterior genera una variación absoluta de ¢0,00 que corresponde a un(a) Aumento del 0 % de recursos disponibles:
A197: 5.3.2.02. | B197: Resultados negativos por ventas de inversiones patrimoniales - Método de participación | D197: =SUMIF(BCPAC!$B$10:$B$8000,$A197,BCPAC!$G$10:$G$8000)/1000 -> 0 | E197: =+IFERROR(D197/$D$233,0) -> 0 | F197: =SUMIF(BCPAN!$B$10:$B$8000,$A197,BCPAN!$G$10:$G$8000)/1000 -> 0 | G197: =+IFERROR(F197/$F$233,0) -> 0 | H197: 0 | I197: =+IFERROR(H197/F197,0) -> 0
A198: 5.3.2.99. | B198: Resultados negativos por ventas de otras inversiones | D198: =SUMIF(BCPAC!$B$10:$B$8000,$A198,BCPAC!$G$10:$G$8000)/1000 -> 0 | E198: 0 | F198: =SUMIF(BCPAN!$B$10:$B$8000,$A198,BCPAN!$G$10:$G$8000)/1000 -> 0 | G198: 0 | H198: 0 | I198: 0
A199: 5.3.3. | B199: Resultados negativos por ventas e intercambio de bienes | C199: 71 | D199: =SUM(D200:D208) -> 0 | E199: =+IFERROR(D199/$D$233,0) -> 0 | F199: =SUM(F200:F208) -> 0 | G199: =+IFERROR(F199/$F$233,0) -> 0 | H199: =+D199-F199 -> 0 | I199: =+IFERROR(H199/F199,0) -> 0 | J199: =+FIXED(E199,4) -> 0,0000 | K199: =+FIXED(I199,4) -> 0,0000 | L199: =+FIXED(H199,2) -> 0,00 | M199: =IF(H199 < 0, "Disminución", "Aumento") -> Aumento | N199: Gastos | O199: =+CONCATENATE(Texto!$B$4,AnalisisER!B199,Texto!$B$6,(AnalisisER!J199*100),Texto!$B$8,N199,Texto!$B$12,AnalisisER!L199,Texto!$B$14,AnalisisER!M199,Texto!$B$16,(AnalisisER!K199*100),Texto!$B$18) -> La cuenta Resultados negativos por ventas e intercambio de bienes, representa el 0 % del total de Gastos, que comparado al periodo anterior genera una variación absoluta de ¢0,00 que corresponde a un(a) Aumento del 0 % de recursos disponibles:
A200: 5.3.3.01. | B200: Resultados negativos por ventas de construcciones terminadas | D200: =SUMIF(BCPAC!$B$10:$B$8000,$A200,BCPAC!$G$10:$G$8000)/1000 -> 0 | E200: =+IFERROR(D200/$D$233,0) -> 0 | F200: =SUMIF(BCPAN!$B$10:$B$8000,$A200,BCPAN!$G$10:$G$8000)/1000 -> 0 | G200: =+IFERROR(F200/$F$233,0) -> 0 | H200: 0 | I200: =+IFERROR(H200/F200,0) -> 0
A201: 5.3.3.02. | B201: Resultados negativos por ventas de propiedades, planta y equipo | D201: =SUMIF(BCPAC!$B$10:$B$8000,$A201,BCPAC!$G$10:$G$8000)/1000 -> 0 | E201: 0 | F201: =SUMIF(BCPAN!$B$10:$B$8000,$A201,BCPAN!$G$10:$G$8000)/1000 -> 0 | G201: 0 | H201: 0 | I201: 0
A202: 5.3.3.03. | B202: Resultados negativos por ventas de activos biológicos | D202: =SUMIF(BCPAC!$B$10:$B$8000,$A202,BCPAC!$G$10:$G$8000)/1000 -> 0 | E202: 0 | F202: =SUMIF(BCPAN!$B$10:$B$8000,$A202,BCPAN!$G$10:$G$8000)/1000 -> 0 | G202: 0 | H202: 0 | I202: 0
A203: 5.3.3.04. | B203: Resultados negativos por ventas de bienes intangibles | D203: =SUMIF(BCPAC!$B$10:$B$8000,$A203,BCPAC!$G$10:$G$8000)/1000 -> 0 | E203: 0 | F203: =SUMIF(BCPAN!$B$10:$B$8000,$A203,BCPAN!$G$10:$G$8000)/1000 -> 0 | G203: 0 | H203: 0 | I203: 0
... 31 more rows

Sheet AnalisisFlujo
A1: =+Datos!C2 -> Municipalidad de Buenos Aires
A2: Análisis al Estado de Flujo de Efectivo Comparativo
A3: =+Datos!C4 -> Del 01 de Enero 2023 al 31 de Agosto del 2023 | M3: ¢
A4: - En miles de colones -
D5: TOTAL SECTOR MUNICIPAL 2019 | F5: TOTAL SECTOR MUNICIPAL 2018
B7: Descripción | C7: Nota Nº | D7: =+Datos!D5 -> 2023-08-31 | E7: % análisis vertical | F7: =+Datos!F5 -> 2022-08-31 | G7: % | H7: Monto variación Absoluta | I7: % Variación relativa
A8: FLUJOS DE EFECTIVO DE LAS ACTIVIDADES DE OPERACIÓN
A9: Cobros | C9: 77 | D9: =SUM(D10:D17) -> 3527002.578 | F9: =SUM(F10:F17) -> 2842506.999 | H9: =+D9-F9 -> 684495.579 | I9: =+IFERROR(H9/F9,0) -> 0.2408069986 | K9: =+FIXED(I9,4) -> 0,2408 | L9: =+FIXED(H9,2) -> 684 495,58 | M9: =IF(H9 < 0, "Disminución", "Aumento") -> Aumento | N9: =+CONCATENATE("Los Cobros de los Flujos de Efectivo de las Actividades de Operación, comparado al periodo anterior genera una variación absoluta de ¢",L9," que corresponde a un(a) ",M9," del ",K9*100,"% de recursos disponibles.") -> Los Cobros de los Flujos de Efectivo de las Actividades de Operación, comparado al periodo anterior genera una variación absoluta de ¢684 495,58 que corresponde a un(a) Aumento del 24,08% de recursos disponibles.
B10: Cobros por impuestos | D10: 886137.4875 | E10: =+IFERROR(D10/$D$9,0) -> 0.2512437878 | F10: 614793.2949 | G10: =+IFERROR(F10/$F$9,0) -> 0.216285587 | H10: 271344.1926 | I10: 0.4413584124
B11: Cobros por contribuciones sociales | D11: 0 | E11: 0 | F11: 0 | G11: =+IFERROR(F11/$F$9,0) -> 0 | H11: 0 | I11: 0
B12: Cobros por multas, sanciones, remates y confiscaciones de origen no tributario | D12: 0 | E12: 0 | F12: 0 | G12: 0 | H12: 0 | I12: 0
B13: Cobros por ventas de inventarios, servicios y derechos administrativos | D13: 274648.1445 | E13: 0.07787012864 | F13: 241010.5707 | G13: 0.08478803071 | H13: 33637.57375 | I13: 0.1395688731
B14: Cobros por ingresos de la propiedad | D14: 47826.17682 | E14: 0.0135600062 | F14: 51138.5291 | G14: 0.01799064316 | H14: -3312.35228 | I14: -0.06477214614
B15: Cobros por transferencias | D15: 2228866.547 | E15: 0.6319435548 | F15: 1912294.084 | G15: 0.6727491206 | H15: 316572.463 | I15: 0.1655459093
B16: Cobros por concesiones | D16: 0 | E16: 0 | F16: 0 | G16: 0 | H16: 0 | I16: 0
B17: Otros cobros por actividades de operación | D17: 89524.22245 | E17: 0.02538252254 | F17: 23270.52046 | G17: =+IFERROR(F17/$F$9,0) -> 0.008186618526 | H17: 66253.70199 | I17: 2.847108732
A18: Pagos | C18: 78 | D18: =SUM(D19:D23) -> 4178746.17 | F18: =SUM(F19:F23) -> 2870522.16 | H18: =+D18-F18 -> 1308224.01 | I18: 0.4557442643 | K18: =+FIXED(I18,4) -> 0,4557 | L18: =+FIXED(H18,2) -> 1 308 224,01 | M18: =IF(H18 < 0, "Disminución", "Aumento") -> Aumento | N18: =+CONCATENATE("Los Pagos de los Flujos de Efectivo de las Actividades de Operación, comparado al periodo anterior genera una variación absoluta de ¢",L18," que corresponde a un(a) ",M18," del ",K18*100, "% de recursos disponibles.") -> Los Pagos de los Flujos de Efectivo de las Actividades de Operación, comparado al periodo anterior genera una variación absoluta de ¢1 308 224,01 que corresponde a un(a) Aumento del 45,57% de recursos disponibles.
B19: Pagos por beneficios al personal | D19: 737531.5692 | E19: =+IFERROR(D19/$D$18,0) -> 0.1764959007 | F19: 646215.4077 | G19: =+IFERROR(F19/$F$18,0) -> 0.225121205 | H19: 91316.16149 | I19: 0.1413091678
B20: Pagos por servicios y adquisiciones de inventarios (incluye anticipos) | D20: 3092387.221 | E20: =+IFERROR(D20/$D$18,0) -> 0.7400275335 | F20: 1997863.766 | G20: =+IFERROR(F20/$F$18,0) -> 0.6959931521 | H20: 1094523.455 | I20: 0.547846892
B21: Pagos por prestaciones de la seguridad social | D21: 22044.84376 | E21: 0.005275468493 | F21: 70556.97128 | G21: 0.02457983856 | H21: -48512.12752 | I21: -0.6875596648
B22: Pagos por otras transferencias | D22: 109750.0857 | E22: 0.02626387946 | F22: 149417.4845 | G22: 0.05205237104 | H22: -39667.39881 | I22: -0.2654803013
B23: Otros pagos por actividades de operación | D23: 217032.45 | E23: 0.0519372178 | F23: 6468.53003 | G23: =+IFERROR(F23/$F$18,0) -> 0.002253433233 | H23: 210563.9199 | I23: 32.55205108
A24: Flujos netos de efectivo por actividades de operación | D24: =+D9-D18 -> -651743.5916 | F24: =+F9-F18 -> -28015.16066 | H24: -623728.431 | I24: 22.26396052
A26: FLUJOS DE EFECTIVO DE LAS ACTIVIDADES DE INVERSIÓN
A27: Cobros | C27: 79 | D27: =SUM(D28:D32) -> 0 | F27: =SUM(F28:F32) -> 0 | H27: =+D27-F27 -> 0 | I27: =+IFERROR(H27/F27,0) -> 0 | K27: =+FIXED(I27,4) -> 0,0000 | L27: =+FIXED(H27,2) -> 0,00 | M27: =IF(H27 < 0, "Disminución", "Aumento") -> Aumento | N27: =+CONCATENATE("Los Cobros de los Flujos de Efectivo de las Actividades de Inversión, comparado al periodo anterior genera una variación absoluta de ¢",L27," que corresponde a un(a) ",M27," del ",K27*100,"% de recursos disponibles.") -> Los Cobros de los Flujos de Efectivo de las Actividades de Inversión, comparado al periodo anterior genera una variación absoluta de ¢0,00 que corresponde a un(a) Aumento del 0% de recursos disponibles.
B28: Cobros por ventas de bienes distintos de inventarios | D28: 0 | E28: =+IFERROR(D28/$D$27,0) -> 0 | F28: 0 | G28: =+IFERROR(F28/$F$27,0) -> 0 | H28: 0 | I28: 0
B29: Cobros por ventas y reembolso de inversiones patrimoniales | D29: 0 | E29: =+IFERROR(D29/$D$27,0) -> 0 | F29: 0 | G29: =+IFERROR(F29/$F$27,0) -> 0 | H29: 0 | I29: 0
B30: Cobros por ventas y reembolso de inversiones en otros instrumentos financieros | D30: 0 | E30: 0 | F30: 0 | G30: 0 | H30: 0 | I30: 0
B31: Cobros por reembolsos de préstamos | D31: 0 | E31: 0 | F31: 0 | G31: 0 | H31: 0 | I31: 0
B32: Otros cobros por actividades de inversión | D32: 0 | E32: 0 | F32: 0 | G32: =+IFERROR(F32/$F$27,0) -> 0 | H32: 0 | I32: 0
A33: Pagos | C33: 80 | D33: =SUM(D34:D38) -> 105304.1104 | F33: =SUM(F34:F38) -> 36944.25629 | H33: 68359.85415 | I33: 1.850351341 | K33: =+FIXED(I33,4) -> 1,8504 | L33: =+FIXED(H33,2) -> 68 359,85 | M33: =IF(H33 < 0, "Disminución", "Aumento") -> Aumento | N33: =+CONCATENATE("Los Pagos de los Flujos de Efectivo de las Actividades de Inversión, comparado al periodo anterior genera una variación absoluta de ¢",L33," que corresponde a un(a) ",M33," del ",K33*100,"% de recursos disponibles.") -> Los Pagos de los Flujos de Efectivo de las Actividades de Inversión, comparado al periodo anterior genera una variación absoluta de ¢68 359,85 que corresponde a un(a) Aumento del 185,04% de recursos disponibles.
B34: Pagos por adquisición de bienes distintos de inventarios | D34: 105304.1104 | E34: =+IFERROR(D34/$D$33,0) -> 1 | F34: 36944.25629 | G34: =+IFERROR(F34/F33,0) -> 1 | H34: 68359.85415 | I34: 1.850351341
B35: Pagos por adquisición de inversiones patrimoniales | D35: 0 | E35: =+IFERROR(D35/$D$33,0) -> 0 | F35: 0 | G35: =+IFERROR(F35/F34,0) -> 0 | H35: 0 | I35: 0
B36: Pagos por adquisición de inversiones en otros instrumentos financieros | D36: 0 | E36: 0 | F36: 0 | G36: 0 | H36: 0 | I36: 0
B37: Pagos por préstamos otorgados | D37: 0 | E37: 0 | F37: 0 | G37: 0 | H37: 0 | I37: 0
B38: Otros pagos por actividades de inversión | D38: 0 | E38: 0 | F38: 0 | G38: =+IFERROR(F38/F37,0) -> 0 | H38: 0 | I38: 0
A39: Flujos netos de efectivo por actividades de inversión | D39: =+D27-D33 -> -105304.1104 | F39: =+F27-F33 -> -36944.25629 | H39: -68359.85415 | I39: 1.850351341
A41: FLUJOS DE EFECTIVO DE LAS ACTIVIDADES DE FINANCIACIÓN
A42: Cobros | C42: 81 | D42: =SUM(D43:D45) -> 0 | F42: =SUM(F43:F45) -> 738902.3612 | H42: =+D42-F42 -> -738902.3612 | I42: =+IFERROR(H42/F42,0) -> -1 | K42: =+FIXED(I42,4) -> -1,0000 | L42: =+FIXED(H42,2) -> -738 902,36 | M42: =IF(H42 < 0, "Disminución", "Aumento") -> Disminución | N42: =+CONCATENATE("Los Cobros de los Flujos de Efectivo de las Actividades de Financiamiento, comparado al periodo anterior genera una variación absoluta de ¢",L42," que corresponde a un(a) ",M42," del ",K42*100,"% de recursos disponibles.") -> Los Cobros de los Flujos de Efectivo de las Actividades de Financiamiento, comparado al periodo anterior genera una variación absoluta de ¢-738 902,36 que corresponde a un(a) Disminución del -100% de recursos disponibles.
B43: Cobros por incrementos de capital y transferencias de capital | D43: 0 | E43: =+IFERROR(D43/$D$42,0) -> 0 | F43: 0 | G43: =+IFERROR(F43/$F$42,0) -> 0 | H43: 0 | I43: 0
B44: Cobros por endeudamiento público | D44: 0 | E44: =+IFERROR(D44/$D$42,0) -> 0 | F44: 738902.3612 | G44: =+IFERROR(F44/$F$42,0) -> 1 | H44: -738902.3612 | I44: -1
B45: Otros cobros por actividades de financiación | D45: 0 | E45: 0 | F45: 0 | G45: =+IFERROR(F45/$F$42,0) -> 0 | H45: 0 | I45: 0
A46: Pagos | C46: 82 | D46: =SUM(D47:D49) -> 323293.2527 | F46: =SUM(F47:F49) -> 188842.4421 | H46: 134450.8106 | I46: 0.7119734795 | K46: =+FIXED(I46,4) -> 0,7120 | L46: =+FIXED(H46,2) -> 134 450,81 | M46: =IF(H46 < 0, "Disminución", "Aumento") -> Aumento | N46: =+CONCATENATE("Los Pagos de los Flujos de Efectivo de las Actividades de Financiamiento, comparado al periodo anterior genera una variación absoluta de ¢",L46," que corresponde a un(a) ",M46," del ",K46*100,"% de recursos disponibles.") -> Los Pagos de los Flujos de Efectivo de las Actividades de Financiamiento, comparado al periodo anterior genera una variación absoluta de ¢134 450,81 que corresponde a un(a) Aumento del 71,2% de recursos disponibles.
B47: Pagos por disminuciones del patrimonio que no afectan resultados | D47: 0 | E47: =+IFERROR(D47/$D$46,0) -> 0 | F47: 0 | G47: =+IFERROR(F47/$F$46,0) -> 0 | H47: 0 | I47: 0
B48: Pagos por amortizaciones de endeudamiento público | D48: 240830.6579 | E48: =+IFERROR(D48/$D$46,0) -> 0.7449294283 | F48: 132402.047 | G48: =+IFERROR(F48/$F$46,0) -> 0.7011244162 | H48: 108428.6109 | I48: 0.8189345512
B49: Otros pagos por actividades de financiación | D49: 82462.5948 | E49: 0.2550705717 | F49: 56440.39514 | G49: 0.2988755838 | H49: 26022.19966 | I49: 0.4610562983
A50: Flujos netos de efectivo por actividades de financiación | D50: =+D42-D46 -> -323293.2527 | F50: =+F42-F46 -> 550059.9191 | H50: =+D50-F50 -> -873353.1718 | I50: -1.587741883
A52: Incremento/Disminución neta de efectivo y equivalentes de efectivo por flujos de actividades | D52: =+D24+D39+D50 -> -1080340.955 | F52: =+F24+F39+F50 -> 485100.5021 | H52: =+D52-F52 -> -1565441.457 | I52: =+IFERROR(H52/F52,0) -> -3.227045633
A54: Incremento/Disminución neta de efectivo y equivalentes de efectivo por diferencias de cambio no realizadas | D54: 0 | F54: 0 | H54: =+D54-F54 -> 0 | I54: =+IFERROR(H54/F54,0) -> 0
A55: Efectivo y equivalentes de efectivo al inicio del ejercicio | D55: 2705767.389 | F55: 1584721.048 | H55: =+D55-F55 -> 1121046.342 | I55: =+IFERROR(H55/F55,0) -> 0.7074092588
A56: Efectivo y equivalentes de efectivo al final del ejercicio | C56: 83 | D56: =+D52+D54+D55 -> 1625426.434 | F56: =+F52+F54+F55 -> 2069821.55 | H56: =+D56-F56 -> -444395.1153 | I56: =+IFERROR(H56/F56,0) -> -0.2147021396 | K56: =+FIXED(I56,4) -> -0,2147 | L56: =+FIXED(H56,2) -> -444 395,12 | M56: =IF(H56 < 0, "Disminución", "Aumento") -> Disminución | N56: =+CONCATENATE("La cuenta Efectivo y Equivalentes de Efectivo al final de ejercicio, comparado al periodo anterior genera una variación absoluta de ¢",L56," que corresponde a un(a) ",M56," del ",K56*100,"% de recursos disponibles.") -> La cuenta Efectivo y Equivalentes de Efectivo al final de ejercicio, comparado al periodo anterior genera una variación absoluta de ¢-444 395,12 que corresponde a un(a) Disminución del -21,47% de recursos disponibles.
A59: Validaciones
A60: Balanza de comprobación periodo actual saldo final
A61: 1.1.1. | B61: Efectivo y equivalentes de efectivo | D61: =+BCPAC!G12/1000 -> 1625426.439
B62: No debe haber diferencia con Efectivo y equivalentes de efectivo al final del ejercicio | D62: =+D56-D61 -> -0.004110593349
A64: Balanza de comprobación periodo actual saldo inicial
A65: 1.1.1. | B65: Efectivo y equivalentes de efectivo | D65: =+BCPAC!D12/1000 -> 2705767.389
B66: No debe haber diferencia con Efectivo y equivalentes de efectivo al inicio del ejercicio | D66: =+D55-D65 -> 9.000021964e-05

Sheet AnalisisECP
A1: =+Datos!C2 -> Municipalidad de Buenos Aires
A2: Análisis al Estado de Cambios en el Patrimonio Comparativo
A3: =+Datos!C4 -> Del 01 de Enero 2023 al 31 de Agosto del 2023
A4: - En miles de colones -
A6: Cuenta | B6: Concepto | C6: =+Datos!D5 -> 2023-08-31 | D6: % análisis vertical | E6: =+Datos!F5 -> 2022-08-31 | F6: % | G6: Monto variación Absoluta | H6: % Variación relativa
A7: 3. | B7: Saldos al 31 de Mayo del 2022 y 2021 | C7: =SUMIF(BCPAC!$B$10:$B$8000,$A7,BCPAC!$D$10:$D$8000)/1000 -> 163528314.2 | E7: =SUMIF(BCPAN!$B$10:$B$8000,$A7,BCPAN!$D$10:$D$8000)/1000 -> 161906090.6
A8: Variaciones del ejercicio
A9: 3.1.1.01. | B9: Capital inicial | C9: =+SUMIF(BCPAC!$B$10:$B$8000,$A9,BCPAC!$F$10:$F$8000)/1000-SUMIF(BCPAC!$B$10:$B$8000,$A9,BCPAC!$E$10:$E$8000)/1000 -> 0 | D9: =+IFERROR(C9/$C$28,0) -> 0 | E9: =+SUMIF(BCPAN!$B$10:$B$8000,$A9,BCPAN!$G$10:$G$8000)/1000-(SUMIF(BCPAN!$B$10:$B$8000,$A9,BCPAN!$D$10:$D$8000)/1000) -> 0 | F9: =+IFERROR(E9/$E$28,0) -> 0 | G9: =+C9-E9 -> 0 | H9: =+IFERROR(G9/E9,0) -> 0
A10: 3.1.1.02. | B10: Incorporaciones al capital | C10: =+SUMIF(BCPAC!$B$10:$B$8000,$A10,BCPAC!$F$10:$F$8000)/1000-SUMIF(BCPAC!$B$10:$B$8000,$A10,BCPAC!$E$10:$E$8000)/1000 -> 0 | D10: =+IFERROR(C10/$C$28,0) -> 0 | E10: =+SUMIF(BCPAN!$B$10:$B$8000,$A10,BCPAN!$G$10:$G$8000)/1000-(SUMIF(BCPAN!$B$10:$B$8000,$A10,BCPAN!$D$10:$D$8000)/1000) -> 0 | F10: =+IFERROR(E10/$E$28,0) -> 0 | G10: 0 | H10: 0
A11: 3.1.2.01. | B11: Donaciones de capital | C11: =+SUMIF(BCPAC!$B$10:$B$8000,$A11,BCPAC!$F$10:$F$8000)/1000-SUMIF(BCPAC!$B$10:$B$8000,$A11,BCPAC!$E$10:$E$8000)/1000 -> 0 | D11: 0 | E11: =+SUMIF(BCPAN!$B$10:$B$8000,$A11,BCPAN!$G$10:$G$8000)/1000-(SUMIF(BCPAN!$B$10:$B$8000,$A11,BCPAN!$D$10:$D$8000)/1000) -> 0 | F11: 0 | G11: 0 | H11: 0
A12: 3.1.2.99. | B12: Otras transferencias de capital | C12: =+SUMIF(BCPAC!$B$10:$B$8000,$A12,BCPAC!$F$10:$F$8000)/1000-SUMIF(BCPAC!$B$10:$B$8000,$A12,BCPAC!$E$10:$E$8000)/1000 -> 0 | D12: 0 | E12: =+SUMIF(BCPAN!$B$10:$B$8000,$A12,BCPAN!$G$10:$G$8000)/1000-(SUMIF(BCPAN!$B$10:$B$8000,$A12,BCPAN!$D$10:$D$8000)/1000) -> 0 | F12: 0 | G12: 0 | H12: 0
A13: 3.1.3.01. | B13: Revaluación de bienes | C13: =+SUMIF(BCPAC!$B$10:$B$8000,$A13,BCPAC!$F$10:$F$8000)/1000-SUMIF(BCPAC!$B$10:$B$8000,$A13,BCPAC!$E$10:$E$8000)/1000 -> 0 | D13: 0 | E13: =+SUMIF(BCPAN!$B$10:$B$8000,$A13,BCPAN!$G$10:$G$8000)/1000-(SUMIF(BCPAN!$B$10:$B$8000,$A13,BCPAN!$D$10:$D$8000)/1000) -> 0 | F13: 0 | G13: 0 | H13: 0
A14: 3.1.3.99. | B14: Otras reservas | C14: =+SUMIF(BCPAC!$B$10:$B$8000,$A14,BCPAC!$F$10:$F$8000)/1000-SUMIF(BCPAC!$B$10:$B$8000,$A14,BCPAC!$E$10:$E$8000)/1000 -> 0 | D14: 0 | E14: =+SUMIF(BCPAN!$B$10:$B$8000,$A14,BCPAN!$G$10:$G$8000)/1000-(SUMIF(BCPAN!$B$10:$B$8000,$A14,BCPAN!$D$10:$D$8000)/1000) -> 0 | F14: 0 | G14: 0 | H14: 0
A15: 3.1.4.01. | B15: Diferencias de conversión de moneda extranjera | C15: =+SUMIF(BCPAC!$B$10:$B$8000,$A15,BCPAC!$F$10:$F$8000)/1000-SUMIF(BCPAC!$B$10:$B$8000,$A15,BCPAC!$E$10:$E$8000)/1000 -> 0 | D15: 0 | E15: =+SUMIF(BCPAN!$B$10:$B$8000,$A15,BCPAN!$G$10:$G$8000)/1000-(SUMIF(BCPAN!$B$10:$B$8000,$A15,BCPAN!$D$10:$D$8000)/1000) -> 0 | F15: 0 | G15: 0 | H15: 0
A16: 3.1.4.02. | B16: Diferencias de valor razonable de activos financieros destinados a la venta | C16: =+SUMIF(BCPAC!$B$10:$B$8000,$A16,BCPAC!$F$10:$F$8000)/1000-SUMIF(BCPAC!$B$10:$B$8000,$A16,BCPAC!$E$10:$E$8000)/1000 -> 0 | D16: 0 | E16: =+SUMIF(BCPAN!$B$10:$B$8000,$A16,BCPAN!$G$10:$G$8000)/1000-(SUMIF(BCPAN!$B$10:$B$8000,$A16,BCPAN!$D$10:$D$8000)/1000) -> 0 | F16: 0 | G16: 0 | H16: 0
A17: 3.1.4.03. | B17: Diferencias de valor razonable de instrumentos financieros designados como cobertura | C17: =+SUMIF(BCPAC!$B$10:$B$8000,$A17,BCPAC!$F$10:$F$8000)/1000-SUMIF(BCPAC!$B$10:$B$8000,$A17,BCPAC!$E$10:$E$8000)/1000 -> 0 | D17: 0 | E17: =+SUMIF(BCPAN!$B$10:$B$8000,$A17,BCPAN!$G$10:$G$8000)/1000-(SUMIF(BCPAN!$B$10:$B$8000,$A17,BCPAN!$D$10:$D$8000)/1000) -> 0 | F17: 0 | G17: 0 | H17: 0
A18: 3.1.4.99. | B18: Otras variaciones no asignables a reservas | C18: =+SUMIF(BCPAC!$B$10:$B$8000,$A18,BCPAC!$F$10:$F$8000)/1000-SUMIF(BCPAC!$B$10:$B$8000,$A18,BCPAC!$E$10:$E$8000)/1000 -> 0 | D18: 0 | E18: =+SUMIF(BCPAN!$B$10:$B$8000,$A18,BCPAN!$G$10:$G$8000)/1000-(SUMIF(BCPAN!$B$10:$B$8000,$A18,BCPAN!$D$10:$D$8000)/1000) -> 0 | F18: 0 | G18: 0 | H18: 0
A19: 3.1.5.01. | B19: Resultados acumulados de ejercicios anteriores | C19: =+SUMIF(BCPAC!$B$10:$B$8000,$A19,BCPAC!$F$10:$F$8000)/1000-SUMIF(BCPAC!$B$10:$B$8000,$A19,BCPAC!$E$10:$E$8000)/1000 -> -182507.6043 | D19: -0.001110354887 | E19: =+SUMIF(BCPAN!$B$10:$B$8000,$A19,BCPAN!$G$10:$G$8000)/1000-(SUMIF(BCPAN!$B$10:$B$8000,$A19,BCPAN!$D$10:$D$8000)/1000) -> -10150.582 | F19: -6.217258244e-05 | G19: -172357.0223 | H19: 16.98001379
A20: 3.1.5.02. | B20: Resultado del ejercicio | C20: =+((SUMIF(BCPAC!B:B,"4.",BCPAC!G:G)-SUMIF(BCPAC!B:B,"5.",BCPAC!G:G))/1000) -> 1022906.964 | D20: 0.006223246152 | E20: =(+SUMIF(BCPAN!$B$10:$B$8000,$A20,BCPAN!$G$10:$G$8000)/1000-(SUMIF(BCPAN!$B$10:$B$8000,$A20,BCPAN!$D$10:$D$8000)/1000))+((SUMIF(BCPAN!B:B,"4.",BCPAN!G:G)-SUMIF(BCPAN!B:B,"5.",BCPAN!G:G))/1000) -> 1368663.209 | F20: 0.008383098246 | G20: -345756.2445 | H20: -0.2526233205
A21: 3.2.1.01. | B21: Intereses minoritarios - Participaciones en el patrimonio de entidades del sector gobierno general | C21: =+SUMIF(BCPAC!$B$10:$B$8000,$A21,BCPAC!$F$10:$F$8000)/1000-SUMIF(BCPAC!$B$10:$B$8000,$A21,BCPAC!$E$10:$E$8000)/1000 -> 0 | D21: 0 | E21: =+SUMIF(BCPAN!$B$10:$B$8000,$A21,BCPAN!$G$10:$G$8000)/1000-(SUMIF(BCPAN!$B$10:$B$8000,$A21,BCPAN!$D$10:$D$8000)/1000) -> 0 | F21: 0 | G21: 0 | H21: 0
A22: 3.2.1.02. | B22: Intereses minoritarios - Participaciones en el patrimonio de empresas públicas e instituciones públicas financieras | C22: =+SUMIF(BCPAC!$B$10:$B$8000,$A22,BCPAC!$F$10:$F$8000)/1000-SUMIF(BCPAC!$B$10:$B$8000,$A22,BCPAC!$E$10:$E$8000)/1000 -> 0 | D22: 0 | E22: =+SUMIF(BCPAN!$B$10:$B$8000,$A22,BCPAN!$G$10:$G$8000)/1000-(SUMIF(BCPAN!$B$10:$B$8000,$A22,BCPAN!$D$10:$D$8000)/1000) -> 0 | F22: 0 | G22: 0 | H22: 0
A23: 3.2.2.01. | B23: Intereses minoritarios - Evolución por reservas | C23: =+SUMIF(BCPAC!$B$10:$B$8000,$A23,BCPAC!$F$10:$F$8000)/1000-SUMIF(BCPAC!$B$10:$B$8000,$A23,BCPAC!$E$10:$E$8000)/1000 -> 0 | D23: 0 | E23: =+SUMIF(BCPAN!$B$10:$B$8000,$A23,BCPAN!$G$10:$G$8000)/1000-(SUMIF(BCPAN!$B$10:$B$8000,$A23,BCPAN!$D$10:$D$8000)/1000) -> 0 | F23: 0 | G23: 0 | H23: 0
A24: 3.2.2.02. | B24: Intereses minoritarios - Evolución por variaciones no asignables a reservas | C24: =+SUMIF(BCPAC!$B$10:$B$8000,$A24,BCPAC!$F$10:$F$8000)/1000-SUMIF(BCPAC!$B$10:$B$8000,$A24,BCPAC!$E$10:$E$8000)/1000 -> 0 | D24: 0 | E24: =+SUMIF(BCPAN!$B$10:$B$8000,$A24,BCPAN!$G$10:$G$8000)/1000-(SUMIF(BCPAN!$B$10:$B$8000,$A24,BCPAN!$D$10:$D$8000)/1000) -> 0 | F24: 0 | G24: 0 | H24: 0
A25: 3.2.2.03. | B25: Intereses minoritarios - Evolución por resultados acumulados | C25: =+SUMIF(BCPAC!$B$10:$B$8000,$A25,BCPAC!$F$10:$F$8000)/1000-SUMIF(BCPAC!$B$10:$B$8000,$A25,BCPAC!$E$10:$E$8000)/1000 -> 0 | D25: 0 | E25: =+SUMIF(BCPAN!$B$10:$B$8000,$A25,BCPAN!$G$10:$G$8000)/1000-(SUMIF(BCPAN!$B$10:$B$8000,$A25,BCPAN!$D$10:$D$8000)/1000) -> 0 | F25: 0 | G25: 0 | H25: 0
A26: 3.2.2.99. | B26: Intereses minoritarios - Evolución por otros componentes del patrimonio | C26: =+SUMIF(BCPAC!$B$10:$B$8000,$A26,BCPAC!$F$10:$F$8000)/1000-SUMIF(BCPAC!$B$10:$B$8000,$A26,BCPAC!$E$10:$E$8000)/1000 -> 0 | D26: =+IFERROR(C26/$C$28,0) -> 0 | E26: =+SUMIF(BCPAN!$B$10:$B$8000,$A26,BCPAN!$G$10:$G$8000)/1000-(SUMIF(BCPAN!$B$10:$B$8000,$A26,BCPAN!$D$10:$D$8000)/1000) -> 0 | F26: 0 | G26: 0 | H26: 0
B27: Total de variaciones del ejercicio | C27: =SUM(C9:C26) -> 840399.3598 | D27: =+IFERROR(C27/$C$28,0) -> 0.005112891266 | E27: =SUM(E9:E26) -> 1358512.627 | F27: =+IFERROR(E27/$E$28,0) -> 0.008320925664 | G27: -518113.2668
A28: 84 | B28: Saldos del período | C28: =+C7+C27 -> 164368713.5 | D28: =+IFERROR(C28/$C$28,0) -> 1 | E28: =+E7+E27 -> 163264603.2 | F28: =+IFERROR(E28/$E$28,0) -> 1 | G28: 1104110.362 | H28: =+IFERROR(G28/E28,0) -> 0.006762705086 | J28: =+FIXED(H28,4) -> 0,0068 | K28: =+FIXED(G28,2) -> 1 104 110,36 | L28: =IF(G28 < 0, "Disminución", "Aumento") -> Aumento | M28: =+CONCATENATE("En el Estado de Cambios al Patrimonio, el Saldo del periodo al ",K24,", comparado al periodo anterior genera una variación absoluta de ¢",K28," que corresponde a un(a) ",L28," del ",J28*100,"% de recursos disponibles.") -> En el Estado de Cambios al Patrimonio, el Saldo del periodo al , comparado al periodo anterior genera una variación absoluta de ¢1 104 110,36 que corresponde a un(a) Aumento del 0,68% de recursos disponibles.
B29: (*) De uso exclusivo en Estados Contables consolidados

Sheet BCPAC
A10: 3.1 | B10: 1. | C10: ACTIVO | D10: 1.662327302e+11 | E10: 1.07847554e+10 | F10: 1.004174247e+10 | G10: 1.669757432e+11
A11: 3.1 | B11: 1.1. | C11: Activo Corriente | D11: 3349699858 | E11: 1.06783548e+10 | F11: 9691093524 | G11: 4336961132
A12: 3.1 | B12: 1.1.1. | C12: Efectivo equivalentes de efectivo | D12: 2705767389 | E12: 4709124710 | F12: 5789465660 | G12: 1625426439
A13: 3.1 | B13: 1.1.1.01. | C13: Efectivo | D13: 2705767389 | E13: 4133043884 | F13: 5789465660 | G13: 1049345613
A14: 3.1 | B14: 1.1.1.01.02. | C14: Depósitos bancarios | D14: 2704317389 | E14: 4129293884 | F14: 5787515660 | G14: 1046095613
A15: 3.1 | B15: 1.1.1.01.02.02. | C15: Depósitos bancarios en el sector público interno | D15: 2704317389 | E15: 4129293884 | F15: 5787515660 | G15: 1046095613
A16: 3.1 | B16: 1.1.1.01.02.02.2. | C16: Cuentas corrientes en el sector público interno | D16: 600136255.9 | E16: 1313448808 | F16: 1780922411 | G16: 132662652.7
A17: 3.1 | B17: 1.1.1.01.02.02.2.21101 | C17: Banco Costa Rica | D17: 478691142.3 | E17: 169124300.6 | F17: 646107550.9 | G17: 1707891.96
A18: 3.1 | B18: 1.1.1.01.02.02.2.21103 | C18: Banco Nacional de Costa Rica | D18: 121445113.7 | E18: 1144324507 | F18: 1134814860 | G18: 130954760.7
A19: 3.1 | B19: 1.1.1.01.02.02.3. | C19: Caja Única | D19: 2104181133 | E19: 2815845076 | F19: 4006593249 | G19: 913432960.1
A20: 3.1 | B20: 1.1.1.01.02.02.3.11206 | C20: Ministerio de Hacienda | D20: 2104181133 | E20: 2815845076 | F20: 4006593249 | G20: 913432960.1
A21: 3.1 | B21: 1.1.1.01.03. | C21: Cajas chicas fondos rotatorios | D21: 1450000 | E21: 3750000 | F21: 1950000 | G21: 3250000
A22: 3.1 | B22: 1.1.1.01.03.01. | C22: Cajas chicas | D22: 450000 | E22: 3750000 | F22: 1950000 | G22: 2250000
A23: 3.1 | B23: 1.1.1.01.03.01.2. | C23: Cajas chicas en el país | D23: 450000 | E23: 3750000 | F23: 1950000 | G23: 2250000
A24: 3.1 | B24: 1.1.1.01.03.01.2.99999 | C24: Cajas chicas en el país | D24: 450000 | E24: 3750000 | F24: 1950000 | G24: 2250000
A25: 3.1 | B25: 1.1.1.01.03.02. | C25: Fondos rotatorios | D25: 1000000 | E25: 0 | F25: 0 | G25: 1000000
A26: 3.1 | B26: 1.1.1.01.03.02.2. | C26: Fondos rotatorios en el sector público interno | D26: 1000000 | E26: 0 | F26: 0 | G26: 1000000
A27: 3.1 | B27: 1.1.1.01.03.02.2.99999 | C27: Fondos rotatorios en el sector público interno | D27: 1000000 | E27: 0 | F27: 0 | G27: 1000000
A28: 3.1 | B28: 1.1.1.02. | C28: Equivalentes de efectivo | D28: 0 | E28: 576080825.9 | F28: 0 | G28: 576080825.9
A29: 3.1 | B29: 1.1.1.02.99. | C29: Otros equivalentes de efectivo | D29: 0 | E29: 576080825.9 | F29: 0 | G29: 576080825.9
A30: 3.1 | B30: 1.1.1.02.99.02. | C30: Otros equivalentes de efectivo en el sector público interno | D30: 0 | E30: 576080825.9 | F30: 0 | G30: 576080825.9
A31: 3.1 | B31: 1.1.1.02.99.02.0. | C31: Otros equivalentes de efectivo en el sector público interno | D31: 0 | E31: 576080825.9 | F31: 0 | G31: 576080825.9
A32: 3.1 | B32: 1.1.1.02.99.02.0.21101 | C32: Banco Costa Rica | D32: 0 | E32: 288099772.4 | F32: 0 | G32: 288099772.4
A33: 3.1 | B33: 1.1.1.02.99.02.0.21103 | C33: Banco Nacional de Costa Rica | D33: 0 | E33: 287981053.4 | F33: 0 | G33: 287981053.4
A34: 3.1 | B34: 1.1.3. | C34: Cuentas a cobrar a c/p | D34: 616617332.2 | E34: 5758701664 | F34: 3853882963 | G34: 2521436034
A35: 3.1 | B35: 1.1.3.01. | C35: Impuestos a cobrar a c/p | D35: 619441745.8 | E35: 1174288225 | F35: 1248274808 | G35: 545455162.1
A36: 3.1 | B36: 1.1.3.01.02. | C36: Impuestos sobre la propiedad a cobrar c/p | D36: 583097545.6 | E36: 936535287.1 | F36: 1034183022 | G36: 485449811.1
A37: 3.1 | B37: 1.1.3.01.02.01. | C37: Impuesto sobre la propiedad de bienes inmuebles a cobrar c/p | D37: 583097545.6 | E37: 936535287.1 | F37: 1034183022 | G37: 485449811.1
A38: 3.1 | B38: 1.1.3.01.02.01.0. | C38: Impuesto sobre la propiedad de bienes inmuebles a cobrar c/p | D38: 583097545.6 | E38: 936535287.1 | F38: 1034183022 | G38: 485449811.1
A39: 3.1 | B39: 1.1.3.01.02.01.0.99999 | C39: Impuesto sobre la propiedad de bienes inmuebles a cobrar c/p | D39: 583097545.6 | E39: 936535287.1 | F39: 1034183022 | G39: 485449811.1
A40: 3.1 | B40: 1.1.3.01.03. | C40: Impuestos sobre bienes y servicios a cobrar c/p | D40: 36344200.19 | E40: 237752937.7 | F40: 214091786.9 | G40: 60005350.95
A41: 3.1 | B41: 1.1.3.01.03.99. | C41: Otros Impuestos sobre bienes y servicios a cobrar c/p | D41: 36344200.19 | E41: 237752937.7 | F41: 214091786.9 | G41: 60005350.95
A42: 3.1 | B42: 1.1.3.01.03.99.1. | C42: Licencias profesionales, comerciales y otros permisos a cobrar c/p | D42: 34052862.94 | E42: 227926745.4 | F42: 205779782.8 | G42: 56199825.51
A43: 3.1 | B43: 1.1.3.01.03.99.1.99999 | C43: Licencias profesionales, comerciales y otros permisos a cobrar c/p | D43: 34052862.94 | E43: 227926745.4 | F43: 205779782.8 | G43: 56199825.51
A44: 3.1 | B44: 1.1.3.01.03.99.9. | C44: Otros impuestos varios sobre bienes y servicios a cobrar c/p | D44: 2291337.25 | E44: 9826192.25 | F44: 8312004.06 | G44: 3805525.44
A45: 3.1 | B45: 1.1.3.01.03.99.9.99999 | C45: Otros impuestos varios sobre bienes y servicios a cobrar c/p | D45: 2291337.25 | E45: 9826192.25 | F45: 8312004.06 | G45: 3805525.44
A46: 3.1 | B46: 1.1.3.04. | C46: Servicios y derechos a cobrar a corto plazo | D46: 171480251.5 | E46: 415270928.2 | F46: 368057926.5 | G46: 218693253.3
A47: 3.1 | B47: 1.1.3.04.01. | C47: Servicios a cobrar c/p | D47: 170633251.5 | E47: 414527928.2 | F47: 367066331.5 | G47: 218094848.3
A48: 3.1 | B48: 1.1.3.04.01.04. | C48: Servicios comunitarios a cobrar c/p | D48: 170633251.5 | E48: 414527928.2 | F48: 367066331.5 | G48: 218094848.3
A49: 3.1 | B49: 1.1.3.04.01.04.0. | C49: Servicios comunitarios a cobrar c/p | D49: 170633251.5 | E49: 414527928.2 | F49: 367066331.5 | G49: 218094848.3
A50: 3.1 | B50: 1.1.3.04.01.04.0.99999 | C50: Servicios comunitarios a cobrar c/p | D50: 170633251.5 | E50: 414527928.2 | F50: 367066331.5 | G50: 218094848.3
A51: 3.1 | B51: 1.1.3.04.02. | C51: Derechos administrativos a cobrar c/p | D51: 847000 | E51: 743000 | F51: 991595 | G51: 598405
A52: 3.1 | B52: 1.1.3.04.02.01. | C52: Derechos administrativos a los servicios de transporte a cobrar c/p | D52: 340000 | E52: 470000 | F52: 640000 | G52: 170000
A53: 3.1 | B53: 1.1.3.04.02.01.0. | C53: Derechos administrativos a los servicios de transporte a cobrar c/p | D53: 340000 | E53: 470000 | F53: 640000 | G53: 170000
A54: 3.1 | B54: 1.1.3.04.02.01.0.99999 | C54: Derechos administrativos a los servicios de transporte a cobrar c/p Derecho de piso uso terminal | D54: 340000 | E54: 470000 | F54: 640000 | G54: 170000
A55: 3.1 | B55: 1.1.3.04.02.99. | C55: Otros derechos administrativos a cobrar c/p | D55: 507000 | E55: 273000 | F55: 351595 | G55: 428405
A56: 3.1 | B56: 1.1.3.04.02.99.0. | C56: Otros derechos administrativos a cobrar c/p | D56: 507000 | E56: 273000 | F56: 351595 | G56: 428405
A57: 3.1 | B57: 1.1.3.04.02.99.0.99999 | C57: Otros derechos administrativos a cobrar c/p Derecho cementerio | D57: 507000 | E57: 273000 | F57: 351595 | G57: 428405
A58: 3.1 | B58: 1.1.3.06. | C58: Transferencias a cobrar a c/p | D58: 0 | E58: 4157821709 | F58: 2228866547 | G58: 1928955162
A59: 3.1 | B59: 1.1.3.06.02. | C59: Transferencias del sector público interno a cobrar c/p | D59: 0 | E59: 4157821709 | F59: 2228866547 | G59: 1928955162
A60: 3.1 | B60: 1.1.3.06.02.01. | C60: Transferencias del Gobierno Central a cobrar c/p | D60: 0 | E60: 4139431351 | F60: 2216469341 | G60: 1922962010
A61: 3.1 | B61: 1.1.3.06.02.01.0. | C61: Transferencias del Gobierno Central a cobrar c/p | D61: 0 | E61: 4139431351 | F61: 2216469341 | G61: 1922962010
A62: 3.1 | B62: 1.1.3.06.02.01.0.11206 | C62: Ministerio de Hacienda | D62: 0 | E62: 4139431351 | F62: 2216469341 | G62: 1922962010
A63: 3.1 | B63: 1.1.3.06.02.02. | C63: Transferencias de Órganos Desconcentrados a cobrar c/p | D63: 0 | E63: 6428232 | F63: 6428232 | G63: 0
A64: 3.1 | B64: 1.1.3.06.02.02.0. | C64: Transferencias de Órganos Desconcentrados a cobrar c/p | D64: 0 | E64: 6428232 | F64: 6428232 | G64: 0
A65: 3.1 | B65: 1.1.3.06.02.02.0.12583 | C65: Transfrencias de Organos desconcentrados a cobrar.Consejo Nacional de la Política Pública de la Persona Joven (CPJ) | D65: 0 | E65: 6428232 | F65: 6428232 | G65: 0
A66: 3.1 | B66: 1.1.3.06.02.03. | C66: Transferencias de Instituciones Descentralizadas no Empresariales a cobrar c/p | D66: 0 | E66: 11962125.78 | F66: 5968973.67 | G66: 5993152.11
A67: 3.1 | B67: 1.1.3.06.02.03.0. | C67: Transferencias de Instituciones Descentralizadas no Empresariales a cobrar c/p | D67: 0 | E67: 11962125.78 | F67: 5968973.67 | G67: 5993152.11
A68: 3.1 | B68: 1.1.3.06.02.03.0.14226 | C68: Transferencias de Instituciones Descentralizadas no Empresariales a cobrar c/p (Aporte IFAM Licores Nacionales y Ext) | D68: 0 | E68: 11962125.78 | F68: 5968973.67 | G68: 5993152.11
A69: 3.1 | B69: 1.1.3.98. | C69: Otras cuentas a cobrar a corto plazo | D69: 1073232.35 | E69: 11320802.65 | F69: 8683681.2 | G69: 3710353.8
A70: 3.1 | B70: 1.1.3.98.01. | C70: Multas, sanciones, remates y confiscaciones de origen no tributario a cobrar c/p | D70: 1073232.35 | E70: 10820802.65 | F70: 8683681.2 | G70: 3210353.8
A71: 3.1 | B71: 1.1.3.98.01.01. | C71: Multas y sanciones administrativas a cobrar c/p | D71: 1073232.35 | E71: 10820802.65 | F71: 8683681.2 | G71: 3210353.8
A72: 3.1 | B72: 1.1.3.98.01.01.0. | C72: Multas y sanciones administrativas a cobrar c/p | D72: 1073232.35 | E72: 10820802.65 | F72: 8683681.2 | G72: 3210353.8
A73: 3.1 | B73: 1.1.3.98.01.01.0.99999 | C73: Multas y sanciones administrativas a cobrar c/p | D73: 1073232.35 | E73: 10820802.65 | F73: 8683681.2 | G73: 3210353.8
A74: 3.1 | B74: 1.1.3.98.03. | C74: Depósitos en garantía c/p | D74: 0 | E74: 500000 | F74: 0 | G74: 500000
A75: 3.1 | B75: 1.1.3.98.03.02. | C75: Depósitos en garantía en el sector público interno c/p | D75: 0 | E75: 500000 | F75: 0 | G75: 500000
A76: 3.1 | B76: 1.1.3.98.03.02.0. | C76: Depósitos en garantía en el sector público interno c/p | D76: 0 | E76: 500000 | F76: 0 | G76: 500000
A77: 3.1 | B77: 1.1.3.98.03.02.0.99999 | C77: Depósitos en garantía en el sector público interno c/p | D77: 0 | E77: 500000 | F77: 0 | G77: 500000
A78: 3.1 | B78: 1.1.3.99. | C78: Previsiones para deterioro de cuentas a cobrar a corto plazo * | D78: -175377897.4 | E78: 0 | F78: 0 | G78: -175377897.4
A79: 3.1 | B79: 1.1.3.99.01. | C79: Previsiones para impuestos a cobrar c/p * | D79: -116983004.6 | E79: 0 | F79: 0 | G79: -116983004.6
A80: 3.1 | B80: 1.1.3.99.01.02. | C80: Previsiones para impuestos sobre la propiedad a cobrar c/p * | D80: -106283608.3 | E80: 0 | F80: 0 | G80: -106283608.3
A81: 3.1 | B81: 1.1.3.99.01.02.0. | C81: Previsiones para impuestos sobre la propiedad a cobrar c/p * | D81: -106283608.3 | E81: 0 | F81: 0 | G81: -106283608.3
A82: 3.1 | B82: 1.1.3.99.01.02.0.99999 | C82: Previsiones para impuestos sobre la propiedad a cobrar c/p * | D82: -106283608.3 | E82: 0 | F82: 0 | G82: -106283608.3
A83: 3.1 | B83: 1.1.3.99.01.03. | C83: Previsiones para impuestos sobre bienes y servicios a cobrar c/p * | D83: -9270015.01 | E83: 0 | F83: 0 | G83: -9270015.01
A84: 3.1 | B84: 1.1.3.99.01.03.0. | C84: Previsiones para impuestos sobre bienes y servicios a cobrar c/p * | D84: -9270015.01 | E84: 0 | F84: 0 | G84: -9270015.01
A85: 3.1 | B85: 1.1.3.99.01.03.0.99999 | C85: Previsiones para impuestos sobre bienes y servicios a cobrar c/p * | D85: -9270015.01 | E85: 0 | F85: 0 | G85: -9270015.01
A86: 3.1 | B86: 1.1.3.99.01.99. | C86: Previsiones para otros impuestos a cobrar c/p * | D86: -1429381.33 | E86: 0 | F86: 0 | G86: -1429381.33
A87: 3.1 | B87: 1.1.3.99.01.99.0. | C87: Previsiones para otros impuestos a cobrar c/p * | D87: -1429381.33 | E87: 0 | F87: 0 | G87: -1429381.33
A88: 3.1 | B88: 1.1.3.99.01.99.0.99999 | C88: Previsiones para otros impuestos a cobrar c/p * | D88: -1429381.33 | E88: 0 | F88: 0 | G88: -1429381.33
A89: 3.1 | B89: 1.1.3.99.04. | C89: Previsiones para servicios a cobrar c/p * | D89: -51378929.55 | E89: 0 | F89: 0 | G89: -51378929.55
A90: 3.1 | B90: 1.1.3.99.04.01. | C90: Previsiones para ventas de servicios a cobrar c/p * | D90: -50738208.69 | E90: 0 | F90: 0 | G90: -50738208.69
A91: 3.1 | B91: 1.1.3.99.04.01.0. | C91: Previsiones para ventas de servicios a cobrar c/p * | D91: -50738208.69 | E91: 0 | F91: 0 | G91: -50738208.69
A92: 3.1 | B92: 1.1.3.99.04.01.0.99999 | C92: Previsiones para ventas de servicios a cobrar c/p * | D92: -50738208.69 | E92: 0 | F92: 0 | G92: -50738208.69
A93: 3.1 | B93: 1.1.3.99.04.02. | C93: Previsiones para derechos administrativos a cobrar c/p * | D93: -640720.86 | E93: 0 | F93: 0 | G93: -640720.86
A94: 3.1 | B94: 1.1.3.99.04.02.0. | C94: Previsiones para derechos administrativos a cobrar c/p * | D94: -640720.86 | E94: 0 | F94: 0 | G94: -640720.86
A95: 3.1 | B95: 1.1.3.99.04.02.0.99999 | C95: Previsiones para derechos administrativos a cobrar c/p * | D95: -640720.86 | E95: 0 | F95: 0 | G95: -640720.86
A96: 3.1 | B96: 1.1.3.99.05. | C96: Previsiones para ingresos de la propiedad a cobrar c/p * | D96: -7015963.19 | E96: 0 | F96: 0 | G96: -7015963.19
A97: 3.1 | B97: 1.1.3.99.05.01. | C97: Previsiones para alquileres y derechos sobre bienes a cobrar c/p * | D97: -7015963.19 | E97: 0 | F97: 0 | G97: -7015963.19
A98: 3.1 | B98: 1.1.3.99.05.01.0. | C98: Previsiones para alquileres y derechos sobre bienes a cobrar c/p * | D98: -7015963.19 | E98: 0 | F98: 0 | G98: -7015963.19
A99: 3.1 | B99: 1.1.3.99.05.01.0.99999 | C99: Previsiones para alquileres y derechos sobre bienes a cobrar c/p * | D99: -7015963.19 | E99: 0 | F99: 0 | G99: -7015963.19
A100: 3.1 | B100: 1.1.4. | C100: Inventarios | D100: 4559673.55 | E100: 181300544.2 | F100: 9621634.11 | G100: 176238583.7
A101: 3.1 | B101: 1.1.4.01. | C101: Materiales y suministros para consumo y prestación de servicios | D101: 4559673.55 | E101: 181300544.2 | F101: 9621634.11 | G101: 176238583.7
A102: 3.1 | B102: 1.1.4.01.01. | C102: Productos químicos y conexos | D102: 1195234.05 | E102: 13013907.8 | F102: 1549370.61 | G102: 12659771.24
A103: 3.1 | B103: 1.1.4.01.01.01. | C103: Combustibles y lubricantes | D103: 0 | E103: 11254837.9 | F103: 952665.41 | G103: 10302172.49
A104: 3.1 | B104: 1.1.4.01.01.01.0. | C104: Combustibles y lubricantes | D104: 0 | E104: 11254837.9 | F104: 952665.41 | G104: 10302172.49
A105: 3.1 | B105: 1.1.4.01.01.01.0.99999 | C105: Combustibles y lubricantes | D105: 0 | E105: 11254837.9 | F105: 952665.41 | G105: 10302172.49
A106: 3.1 | B106: 1.1.4.01.01.04. | C106: Tintas, pinturas y diluyentes | D106: 1195234.05 | E106: 1270978.9 | F106: 439909.2 | G106: 2026303.75
A107: 3.1 | B107: 1.1.4.01.01.04.0. | C107: Tintas, pinturas y diluyentes | D107: 1195234.05 | E107: 1270978.9 | F107: 439909.2 | G107: 2026303.75
A108: 3.1 | B108: 1.1.4.01.01.04.0.99999 | C108: Tintas, pinturas y diluyentes | D108: 1195234.05 | E108: 1270978.9 | F108: 439909.2 | G108: 2026303.75
A109: 3.1 | B109: 1.1.4.01.01.99. | C109: Otros productos químicos y conexos | D109: 0 | E109: 488091 | F109: 156796 | G109: 331295
A110: 3.1 | B110: 1.1.4.01.01.99.0. | C110: Otros productos químicos y conexos | D110: 0 | E110: 488091 | F110: 156796 | G110: 331295
A111: 3.1 | B111: 1.1.4.01.01.99.0.99999 | C111: Otros productos químicos y conexos | D111: 0 | E111: 488091 | F111: 156796 | G111: 331295
A112: 3.1 | B112: 1.1.4.01.03. | C112: Materiales y productos de uso en la construcción y mantenimiento | D112: 0 | E112: 31482285.68 | F112: 2871939.75 | G112: 28610345.93
A113: 3.1 | B113: 1.1.4.01.03.01. | C113: Materiales y productos metálicos | D113: 0 | E113: 26486657.62 | F113: 714734.74 | G113: 25771922.88
A114: 3.1 | B114: 1.1.4.01.03.01.0. | C114: Materiales y productos metálicos | D114: 0 | E114: 26486657.62 | F114: 714734.74 | G114: 25771922.88
A115: 3.1 | B115: 1.1.4.01.03.01.0.99999 | C115: Materiales y productos metálicos | D115: 0 | E115: 26486657.62 | F115: 714734.74 | G115: 25771922.88
A116: 3.1 | B116: 1.1.4.01.03.02. | C116: Materiales y productos minerales y asfálticos | D116: 0 | E116: 3542302 | F116: 1686335 | G116: 1855967
A117: 3.1 | B117: 1.1.4.01.03.02.0. | C117: Materiales y productos minerales y asfálticos | D117: 0 | E117: 3542302 | F117: 1686335 | G117: 1855967
A118: 3.1 | B118: 1.1.4.01.03.02.0.99999 | C118: Materiales y productos minerales y asfálticos | D118: 0 | E118: 3542302 | F118: 1686335 | G118: 1855967
A119: 3.1 | B119: 1.1.4.01.03.03. | C119: Madera y sus derivados | D119: 0 | E119: 1062850 | F119: 365400 | G119: 697450
A120: 3.1 | B120: 1.1.4.01.03.03.0. | C120: Madera y sus derivados | D120: 0 | E120: 1062850 | F120: 365400 | G120: 697450
A121: 3.1 | B121: 1.1.4.01.03.03.0.99999 | C121: Madera y sus derivados | D121: 0 | E121: 1062850 | F121: 365400 | G121: 697450
A122: 3.1 | B122: 1.1.4.01.03.04. | C122: Materiales y productos eléctricos, telefónicos y de cómputo | D122: 0 | E122: 204931.56 | F122: 68647 | G122: 136284.56
A123: 3.1 | B123: 1.1.4.01.03.04.0. | C123: Materiales y productos eléctricos, telefónicos y de cómputo | D123: 0 | E123: 204931.56 | F123: 68647 | G123: 136284.56
A124: 3.1 | B124: 1.1.4.01.03.04.0.99999 | C124: Materiales y productos eléctricos, telefónicos y de cómputo | D124: 0 | E124: 204931.56 | F124: 68647 | G124: 136284.56
A125: 3.1 | B125: 1.1.4.01.03.06. | C125: Materiales y productos de plástico | D125: 0 | E125: 185544.5 | F125: 36823.01 | G125: 148721.49
A126: 3.1 | B126: 1.1.4.01.03.06.0. | C126: Materiales y productos de plástico | D126: 0 | E126: 185544.5 | F126: 36823.01 | G126: 148721.49
A127: 3.1 | B127: 1.1.4.01.03.06.0.99999 | C127: Materiales y productos de plástico | D127: 0 | E127: 185544.5 | F127: 36823.01 | G127: 148721.49
A128: 3.1 | B128: 1.1.4.01.04. | C128: Herramientas, repuestos y accesorios | D128: 0 | E128: 128869299.1 | F128: 3047255.87 | G128: 125822043.2
A129: 3.1 | B129: 1.1.4.01.04.01. | C129: Herramientas e instrumentos | D129: 0 | E129: 1296662.5 | F129: 35621.51 | G129: 1261040.99
A130: 3.1 | B130: 1.1.4.01.04.01.0. | C130: Herramientas e instrumentos | D130: 0 | E130: 1296662.5 | F130: 35621.51 | G130: 1261040.99
A131: 3.1 | B131: 1.1.4.01.04.01.0.99999 | C131: Herramientas e instrumentos | D131: 0 | E131: 1296662.5 | F131: 35621.51 | G131: 1261040.99
A132: 3.1 | B132: 1.1.4.01.04.02. | C132: Repuestos y accesorios Nuevos | D132: 0 | E132: 127572636.6 | F132: 3011634.36 | G132: 124561002.2
A133: 3.1 | B133: 1.1.4.01.04.02.0. | C133: Repuestos y accesorios Nuevos | D133: 0 | E133: 127572636.6 | F133: 3011634.36 | G133: 124561002.2
A134: 3.1 | B134: 1.1.4.01.04.02.0.99999 | C134: Repuestos y accesorios Nuevos | D134: 0 | E134: 127572636.6 | F134: 3011634.36 | G134: 124561002.2
A135: 3.1 | B135: 1.1.4.01.99. | C135: Útiles, materiales y suministros diversos | D135: 3364439.5 | E135: 7935051.66 | F135: 2153067.88 | G135: 9146423.28
A136: 3.1 | B136: 1.1.4.01.99.01. | C136: Útiles y materiales de oficina y cómputo | D136: 788819.78 | E136: 648390.72 | F136: 382533.32 | G136: 1054677.18
A137: 3.1 | B137: 1.1.4.01.99.01.0. | C137: Útiles y materiales de oficina y cómputo | D137: 788819.78 | E137: 648390.72 | F137: 382533.32 | G137: 1054677.18
A138: 3.1 | B138: 1.1.4.01.99.01.0.99999 | C138: Útiles y materiales de oficina y cómputo | D138: 788819.78 | E138: 648390.72 | F138: 382533.32 | G138: 1054677.18
A139: 3.1 | B139: 1.1.4.01.99.03. | C139: Productos de papel, cartón e impresos | D139: 2511724.72 | E139: 1416089.46 | F139: 905771.96 | G139: 3022042.22
A140: 3.1 | B140: 1.1.4.01.99.03.0. | C140: Productos de papel, cartón e impresos | D140: 2511724.72 | E140: 1416089.46 | F140: 905771.96 | G140: 3022042.22
A141: 3.1 | B141: 1.1.4.01.99.03.0.99999 | C141: Productos de papel, cartón e impresos | D141: 2511724.72 | E141: 1416089.46 | F141: 905771.96 | G141: 3022042.22
A142: 3.1 | B142: 1.1.4.01.99.04. | C142: Textiles y vestuario | D142: 0 | E142: 764454.3 | F142: 412910 | G142: 351544.3
A143: 3.1 | B143: 1.1.4.01.99.04.0. | C143: Textiles y vestuario | D143: 0 | E143: 764454.3 | F143: 412910 | G143: 351544.3
A144: 3.1 | B144: 1.1.4.01.99.04.0.99999 | C144: Textiles y vestuario | D144: 0 | E144: 764454.3 | F144: 412910 | G144: 351544.3
A145: 3.1 | B145: 1.1.4.01.99.05. | C145: Útiles y materiales de limpieza | D145: 0 | E145: 2326998.25 | F145: 106425.55 | G145: 2220572.7
A146: 3.1 | B146: 1.1.4.01.99.05.0. | C146: Útiles y materiales de limpieza | D146: 0 | E146: 2326998.25 | F146: 106425.55 | G146: 2220572.7
A147: 3.1 | B147: 1.1.4.01.99.05.0.99999 | C147: Útiles y materiales de limpieza | D147: 0 | E147: 2326998.25 | F147: 106425.55 | G147: 2220572.7
A148: 3.1 | B148: 1.1.4.01.99.06. | C148: Útiles y materiales de resguardo y seguridad | D148: 0 | E148: 2269416.93 | F148: 307029.05 | G148: 1962387.88
A149: 3.1 | B149: 1.1.4.01.99.06.0. | C149: Útiles y materiales de resguardo y seguridad | D149: 0 | E149: 2269416.93 | F149: 307029.05 | G149: 1962387.88
A150: 3.1 | B150: 1.1.4.01.99.06.0.99999 | C150: Útiles y materiales de resguardo y seguridad | D150: 0 | E150: 2269416.93 | F150: 307029.05 | G150: 1962387.88
A151: 3.1 | B151: 1.1.4.01.99.99. | C151: Otros útiles, materiales y suministros diversos | D151: 63895 | E151: 509702 | F151: 38398 | G151: 535199
A152: 3.1 | B152: 1.1.4.01.99.99.0. | C152: Otros útiles, materiales y suministros diversos | D152: 63895 | E152: 509702 | F152: 38398 | G152: 535199
A153: 3.1 | B153: 1.1.4.01.99.99.0.99999 | C153: Otros útiles, materiales y suministros diversos | D153: 63895 | E153: 509702 | F153: 38398 | G153: 535199
A154: 3.1 | B154: 1.1.9. | C154: Otros activos a corto plazo | D154: 22755462.51 | E154: 29227880 | F154: 38123266.69 | G154: 13860075.82
A155: 3.1 | B155: 1.1.9.01. | C155: Gastos a devengar a corto plazo | D155: 22755462.51 | E155: 29227880 | F155: 38123266.69 | G155: 13860075.82
A156: 3.1 | B156: 1.1.9.01.01. | C156: Servicios a devengar c/p | D156: 22755462.51 | E156: 29227880 | F156: 38123266.69 | G156: 13860075.82
A157: 3.1 | B157: 1.1.9.01.01.01. | C157: Primas y gastos de seguros a devengar c/p | D157: 22755462.51 | E157: 29227880 | F157: 38123266.69 | G157: 13860075.82
A158: 3.1 | B158: 1.1.9.01.01.01.0. | C158: Primas y gastos de seguros a devengar c/p | D158: 22755462.51 | E158: 29227880 | F158: 38123266.69 | G158: 13860075.82
A159: 3.1 | B159: 1.1.9.01.01.01.0.99999 | C159: Primas y gastos de seguros a devengar c/p | D159: 22755462.51 | E159: 29227880 | F159: 38123266.69 | G159: 13860075.82
A160: 3.1 | B160: 1.2. | C160: Activo No Corriente | D160: 1.628830304e+11 | E160: 106400602.8 | F160: 350648942.1 | G160: 1.62638782e+11
A161: 3.1 | B161: 1.2.5. | C161: Bienes no concesionados | D161: 1.628830304e+11 | E161: 106400602.8 | F161: 350648942.1 | G161: 1.62638782e+11
A162: 3.1 | B162: 1.2.5.01. | C162: Propiedades, planta y equipos explotados | D162: 2087610295 | E162: 25683435.16 | F162: 325578044.6 | G162: 1787715686
A163: 3.1 | B163: 1.2.5.01.02. | C163: Edificios | D163: 1191815588 | E163: 0 | F163: 156826899.3 | G163: 1034988689
A164: 3.1 | B164: 1.2.5.01.02.01. | C164: Edificios de oficinas atención al públ | D164: 421403917.5 | E164: 0 | F164: 54894718.64 | G164: 366509198.8
A165: 3.1 | B165: 1.2.5.01.02.01.1. | C165: Edificios de oficinas y atención público Valores Origen | D165: 258127776.8 | E165: 0 | F165: 0 | G165: 258127776.8
A166: 3.1 | B166: 1.2.5.01.02.01.1.99999 | C166: Edificios de oficinas y atención público Valores Origen | D166: 258127776.8 | E166: 0 | F166: 0 | G166: 258127776.8
A167: 3.1 | B167: 1.2.5.01.02.01.3. | C167: Edificios oficinas y atención público Depreciación Acumulada | D167: -27447359.32 | E167: 0 | F167: 54894718.64 | G167: -82342077.96
A168: 3.1 | B168: 1.2.5.01.02.01.3.99999 | C168: Edificios oficinas y atención público Depreciación Acumulada | D168: -27447359.32 | E168: 0 | F168: 54894718.64 | G168: -82342077.96
A169: 3.1 | B169: 1.2.5.01.02.01.6. | C169: Edificios oficinas y atención público Porción Terreno Valores Origen | D169: 190723500 | E169: 0 | F169: 0 | G169: 190723500
A170: 3.1 | B170: 1.2.5.01.02.01.6.99999 | C170: Edificios oficinas y atención público Porción Terreno Valores Origen | D170: 190723500 | E170: 0 | F170: 0 | G170: 190723500
A171: 3.1 | B171: 1.2.5.01.02.05. | C171: Locales | D171: 283938685.9 | E171: 0 | F171: 40940118.97 | G171: 242998566.9
A172: 3.1 | B172: 1.2.5.01.02.05.1. | C172: Locales Valores de origen | D172: 198576095.4 | E172: 0 | F172: 0 | G172: 198576095.4
A173: 3.1 | B173: 1.2.5.01.02.05.1.99999 | C173: Locales Valores de origen | D173: 198576095.4 | E173: 0 | F173: 0 | G173: 198576095.4
A174: 3.1 | B174: 1.2.5.01.02.05.3. | C174: Locales Depreciaciones acumuladas * | D174: -20470059.48 | E174: 0 | F174: 40940118.97 | G174: -61410178.45
A175: 3.1 | B175: 1.2.5.01.02.05.3.99999 | C175: Locales Depreciaciones acumuladas * | D175: -20470059.48 | E175: 0 | F175: 40940118.97 | G175: -61410178.45
A176: 3.1 | B176: 1.2.5.01.02.05.6. | C176: Locales Porción terreno: valores de origen | D176: 105832650 | E176: 0 | F176: 0 | G176: 105832650
A177: 3.1 | B177: 1.2.5.01.02.05.6.99999 | C177: Locales Porción terreno: valores de origen | D177: 105832650 | E177: 0 | F177: 0 | G177: 105832650
A178: 3.1 | B178: 1.2.5.01.02.99. | C178: Otros edificios | D178: 486472985.1 | E178: 0 | F178: 60992061.68 | G178: 425480923.4
A179: 3.1 | B179: 1.2.5.01.02.99.1. | C179: Otros edificios Valores de origen | D179: 355511815.9 | E179: 0 | F179: 0 | G179: 355511815.9
A180: 3.1 | B180: 1.2.5.01.02.99.1.99999 | C180: Otros edificios Valores de origen | D180: 355511815.9 | E180: 0 | F180: 0 | G180: 355511815.9
A181: 3.1 | B181: 1.2.5.01.02.99.3. | C181: Otros edificios Depreciaciones acumuladas * | D181: -30496030.84 | E181: 0 | F181: 60992061.68 | G181: -91488092.52
A182: 3.1 | B182: 1.2.5.01.02.99.3.99999 | C182: Otros edificios Depreciaciones acumuladas * | D182: -30496030.84 | E182: 0 | F182: 60992061.68 | G182: -91488092.52
A183: 3.1 | B183: 1.2.5.01.02.99.6. | C183: Otros edificios Porción terreno: valores de origen | D183: 161457200 | E183: 0 | F183: 0 | G183: 161457200
A184: 3.1 | B184: 1.2.5.01.02.99.6.99999 | C184: Otros edificios Porción terreno: valores de origen | D184: 161457200 | E184: 0 | F184: 0 | G184: 161457200
A185: 3.1 | B185: 1.2.5.01.03. | C185: Maquinaria equipos para la producción | D185: 772667317.1 | E185: 3338174.23 | F185: 146557998.2 | G185: 629447493.1
A186: 3.1 | B186: 1.2.5.01.03.01. | C186: Maquinaria para la construcción | D186: 743342363.6 | E186: 0 | F186: 143425126.9 | G186: 599917236.6
A187: 3.1 | B187: 1.2.5.01.03.01.1. | C187: Maquinaria para la construcción Valores de origen | D187: 1801678962 | E187: 0 | F187: 0 | G187: 1801678962
A188: 3.1 | B188: 1.2.5.01.03.01.1.99999 | C188: Maquinaria para la construcción Valores de origen | D188: 1801678962 | E188: 0 | F188: 0 | G188: 1801678962
A189: 3.1 | B189: 1.2.5.01.03.01.3. | C189: Maq para la construcción Depreciaciones acumuladas | D189: -1058336599 | E189: 0 | F189: 143425126.9 | G189: -1201761726
A190: 3.1 | B190: 1.2.5.01.03.01.3.99999 | C190: Maq para la construcción Depreciaciones acumuladas | D190: -1058336599 | E190: 0 | F190: 143425126.9 | G190: -1201761726
A191: 3.1 | B191: 1.2.5.01.03.03. | C191: Planta eléctrica | D191: 3846036.26 | E191: 65652.08 | F191: 296304.74 | G191: 3615383.6
A192: 3.1 | B192: 1.2.5.01.03.03.1. | C192: Planta eléctrica Valores de origen | D192: 5189684.8 | E192: 0 | F192: 0 | G192: 5189684.8
A193: 3.1 | B193: 1.2.5.01.03.03.1.99999 | C193: Planta eléctrica Valores de origen | D193: 5189684.8 | E193: 0 | F193: 0 | G193: 5189684.8 | H193: =D193-F193 -> 5189684.8
A194: 3.1 | B194: 1.2.5.01.03.03.3. | C194: Planta eléctrica Depreciaciones acumuladas * | D194: -1343648.54 | E194: 65652.08 | F194: 296304.74 | G194: -1574301.2 | H194: =D194+E194-F194 -> -1574301.2
A195: 3.1 | B195: 1.2.5.01.03.03.3.99999 | C195: Planta eléctrica Depreciaciones acumuladas * | D195: -1343648.54 | E195: 65652.08 | F195: 296304.74 | G195: -1574301.2
A196: 3.1 | B196: 1.2.5.01.03.06. | C196: Equipos hidráulicos | D196: 202795.79 | E196: 127510.46 | F196: 141617.99 | G196: 188688.26
A197: 3.1 | B197: 1.2.5.01.03.06.1. | C197: Equipos hidráulicos Valores de origen | D197: 280058 | E197: 0 | F197: 0 | G197: 280058
A198: 3.1 | B198: 1.2.5.01.03.06.1.99999 | C198: Equipos hidráulicos Valores de origen | D198: 280058 | E198: 0 | F198: 0 | G198: 280058
A199: 3.1 | B199: 1.2.5.01.03.06.3. | C199: Equipos hidráulicos Depreciaciones acumuladas * | D199: -77262.21 | E199: 127510.46 | F199: 141617.99 | G199: -91369.74
A200: 3.1 | B200: 1.2.5.01.03.06.3.99999 | C200: Equipos hidráulicos Depreciaciones acumuladas * | D200: -77262.21 | E200: 127510.46 | F200: 141617.99 | G200: -91369.74
A201: 3.1 | B201: 1.2.5.01.03.08. | C201: Equipos de medición | D201: 1274259.18 | E201: 0 | F201: 405724.87 | G201: 868534.31
A202: 3.1 | B202: 1.2.5.01.03.08.1. | C202: Equipos de medición Valores de origen | D202: 6452398.73 | E202: 0 | F202: 0 | G202: 6452398.73
A203: 3.1 | B203: 1.2.5.01.03.08.1.99999 | C203: Equipos de medición Valores de origen | D203: 6452398.73 | E203: 0 | F203: 0 | G203: 6452398.73
A204: 3.1 | B204: 1.2.5.01.03.08.3. | C204: Equipos de medición Depreciaciones acumuladas * | D204: -5178139.55 | E204: 0 | F204: 405724.87 | G204: -5583864.42
A205: 3.1 | B205: 1.2.5.01.03.08.3.99999 | C205: Equipos de medición Depreciaciones acumuladas * | D205: -5178139.55 | E205: 0 | F205: 405724.87 | G205: -5583864.42
A206: 3.1 | B206: 1.2.5.01.03.09. | C206: Bombas | D206: 4185504.18 | E206: 419771.55 | F206: 821015.58 | G206: 3784260.15
A207: 3.1 | B207: 1.2.5.01.03.09.1. | C207: Bombas Valores de origen | D207: 5429803 | E207: 0 | F207: 0 | G207: 5429803
A208: 3.1 | B208: 1.2.5.01.03.09.1.99999 | C208: Bombas Valores de origen | D208: 5429803 | E208: 0 | F208: 0 | G208: 5429803
A209: 3.1 | B209: 1.2.5.01.03.09.3. | C209: Bombas Depreciaciones acumuladas * | D209: -1244298.82 | E209: 419771.55 | F209: 821015.58 | G209: -1645542.85
... 796 more rows

Sheet BCPAN
B10: 1. | C10: ACTIVO | D10: 1.639130757e+11 | E10: 1.0390798e+10 | F10: 8168207414 | G10: 1.661356663e+11
B11: 1.1. | C11: Activo Corriente | D11: 2086758324 | E11: 1.033564012e+10 | F11: 8057014155 | G11: 4365384290
B12: 1.1.1. | C12: Efectivo equivalentes de efectivo | D12: 1584721048 | E12: 4777472156 | F12: 4292371655 | G12: 2069821549
B13: 1.1.1.01. | C13: Efectivo | D13: 1584721048 | E13: 4223544704 | F13: 4242371655 | G13: 1565894098
B14: 1.1.1.01.02. | C14: Depósitos bancarios | D14: 1583271048 | E14: 4223544704 | F14: 4242371655 | G14: 1564444098
B15: 1.1.1.01.02.02. | C15: Depósitos bancarios en el sector público interno | D15: 1583271048 | E15: 4223544704 | F15: 4242371655 | G15: 1564444098
B16: 1.1.1.01.02.02.2. | C16: Cuentas corrientes en el sector público interno | D16: 516393102.1 | E16: 1068370962 | F16: 1387313591 | G16: 197450472.8
B17: 1.1.1.01.02.02.2.21101 | C17: Banco Costa Rica | D17: 263227158.7 | E17: 183267268.4 | F17: 387165380 | G17: 59329047.16
B18: 1.1.1.01.02.02.2.21103 | C18: Banco Nacional de Costa Rica | D18: 253165943.4 | E18: 885103693.5 | F18: 1000148211 | G18: 138121425.6
B19: 1.1.1.01.02.02.3. | C19: Caja Única | D19: 1066877946 | E19: 3155173743 | F19: 2855058063 | G19: 1366993625
B20: 1.1.1.01.02.02.3.11206 | C20: Ministerio de Hacienda | D20: 1066877946 | E20: 3155173743 | F20: 2855058063 | G20: 1366993625
B21: 1.1.1.01.02.02.9. | C21: Otros depósitos bancarios sector público interno | D21: 0 | E21: 0 | F21: 0 | G21: 0
B22: 1.1.1.01.02.02.9.99999 | C22: Otros depósitos bancarios sector público interno | D22: 0 | E22: 0 | F22: 0 | G22: 0
B23: 1.1.1.01.03. | C23: Cajas chicas fondos rotatorios | D23: 1450000 | E23: 0 | F23: 0 | G23: 1450000
B24: 1.1.1.01.03.01. | C24: Cajas chicas | D24: 450000 | E24: 0 | F24: 0 | G24: 450000
B25: 1.1.1.01.03.01.2. | C25: Cajas chicas en el país | D25: 450000 | E25: 0 | F25: 0 | G25: 450000
B26: 1.1.1.01.03.01.2.99999 | C26: Cajas chicas en el país | D26: 450000 | E26: 0 | F26: 0 | G26: 450000
B27: 1.1.1.01.03.02. | C27: Fondos rotatorios | D27: 1000000 | E27: 0 | F27: 0 | G27: 1000000
B28: 1.1.1.01.03.02.2. | C28: Fondos rotatorios en el sector público interno | D28: 1000000 | E28: 0 | F28: 0 | G28: 1000000
B29: 1.1.1.01.03.02.2.99999 | C29: Fondos rotatorios en el sector público interno | D29: 1000000 | E29: 0 | F29: 0 | G29: 1000000
B30: 1.1.1.02. | C30: Equivalentes de efectivo | D30: 0 | E30: 553927451.6 | F30: 50000000 | G30: 503927451.6
B31: 1.1.1.02.99. | C31: Otros equivalentes de efectivo | D31: 0 | E31: 553927451.6 | F31: 50000000 | G31: 503927451.6
B32: 1.1.1.02.99.02. | C32: Otros equivalentes de efectivo en el sector público interno | D32: 0 | E32: 553927451.6 | F32: 50000000 | G32: 503927451.6
B33: 1.1.1.02.99.02.0. | C33: Otros equivalentes de efectivo en el sector público interno | D33: 0 | E33: 553927451.6 | F33: 50000000 | G33: 503927451.6
B34: 1.1.1.02.99.02.0.21101 | C34: Banco Costa Rica | D34: 0 | E34: 353054742.5 | F34: 0 | G34: 353054742.5
B35: 1.1.1.02.99.02.0.21103 | C35: Banco Nacional de Costa Rica | D35: 0 | E35: 200872709.1 | F35: 50000000 | G35: 150872709.1
B36: 1.1.2. | C36: Inversiones a corto plazo | D36: 0 | E36: 550126280.8 | F36: 550126280.8 | G36: 0
B37: 1.1.2.01. | C37: Títulos y valores a valor razonable a corto plazo | D37: 0 | E37: 550000000 | F37: 550000000 | G37: 0
B38: 1.1.2.01.02. | C38: Títulos y valores a valor razonable del sector público interno c/p | D38: 0 | E38: 550000000 | F38: 550000000 | G38: 0
B39: 1.1.2.01.02.06. | C39: Títulos y valores a valor razonable de Instituciones Públicas Financieras c/p | D39: 0 | E39: 550000000 | F39: 550000000 | G39: 0
B40: 1.1.2.01.02.06.0. | C40: Títulos y valores a valor razonable de Instituciones Públicas Financieras c/p | D40: 0 | E40: 550000000 | F40: 550000000 | G40: 0
B41: 1.1.2.01.02.06.0.21101 | C41: Títulos y valores a valor razonable de Instituciones Públicas Financieras c/p Banco de Costa Rica | D41: 0 | E41: 350000000 | F41: 350000000 | G41: 0
B42: 1.1.2.01.02.06.0.21103 | C42: Titulos y valores a Valores a valor de Instituciones Públicas Dinancieras del Banco Nacional de Costa Rica | D42: 0 | E42: 200000000 | F42: 200000000 | G42: 0
B43: 1.1.2.98. | C43: Otras inversiones a corto plazo | D43: 0 | E43: 126280.81 | F43: 126280.81 | G43: 0
B44: 1.1.2.98.01. | C44: Rentas a cobrar por títulos y valores c/p | D44: 0 | E44: 126280.81 | F44: 126280.81 | G44: 0
B45: 1.1.2.98.01.02. | C45: Rentas a cobrar por títulos y valores del sector público interno c/p | D45: 0 | E45: 126280.81 | F45: 126280.81 | G45: 0
B46: 1.1.2.98.01.02.0. | C46: Rentas a cobrar por títulos y valores del sector público interno c/p | D46: 0 | E46: 126280.81 | F46: 126280.81 | G46: 0
B47: 1.1.2.98.01.02.0.21101 | C47: Banco De Costa Rica | D47: 0 | E47: 85506.54 | F47: 85506.54 | G47: 0
B48: 1.1.2.98.01.02.0.21103 | C48: Banco Nacional De Costa Rica | D48: 0 | E48: 40774.27 | F48: 40774.27 | G48: 0
B49: 1.1.3. | C49: Cuentas a cobrar a c/p | D49: 468911545 | E49: 4976544554 | F49: 3171764438 | G49: 2273691660
B50: 1.1.3.01. | C50: Impuestos a cobrar a c/p | D50: 318807984.7 | E50: 1158045897 | F50: 856071585.5 | G50: 620782295.9
B51: 1.1.3.01.02. | C51: Impuestos sobre la propiedad a cobrar c/p | D51: 309227739.9 | E51: 927068932.3 | F51: 673743159.7 | G51: 562553512.5
B52: 1.1.3.01.02.01. | C52: Impuesto sobre la propiedad de bienes inmuebles a cobrar c/p | D52: 309227739.9 | E52: 927068932.3 | F52: 673743159.7 | G52: 562553512.5
B53: 1.1.3.01.02.01.0. | C53: Impuesto sobre la propiedad de bienes inmuebles a cobrar c/p | D53: 309227739.9 | E53: 927068932.3 | F53: 673743159.7 | G53: 562553512.5
B54: 1.1.3.01.02.01.0.99999 | C54: Impuesto sobre la propiedad de bienes inmuebles a cobrar c/p | D54: 309227739.9 | E54: 927068932.3 | F54: 673743159.7 | G54: 562553512.5
B55: 1.1.3.01.03. | C55: Impuestos sobre bienes y servicios a cobrar c/p | D55: 9580244.76 | E55: 230976964.5 | F55: 182328425.8 | G55: 58228783.44
B56: 1.1.3.01.03.02. | C56: Impuestos específicos sobre la producción y consumo de bienes y servicios a cobrar c/p | D56: 8756436.24 | E56: 0 | F56: 8756436.24 | G56: 0
B57: 1.1.3.01.03.02.2. | C57: Impuestos específicos sobre la producción y consumo de servicios a cobrar c/p | D57: 8756436.24 | E57: 0 | F57: 8756436.24 | G57: 0
B58: 1.1.3.01.03.02.2.99999 | C58: Impuestos específicos sobre la producción y consumo de servicios a cobrar c/p | D58: 8756436.24 | E58: 0 | F58: 8756436.24 | G58: 0
B59: 1.1.3.01.03.99. | C59: Otros Impuestos sobre bienes y servicios a cobrar c/p | D59: 823808.52 | E59: 230976964.5 | F59: 173571989.6 | G59: 58228783.44
B60: 1.1.3.01.03.99.1. | C60: Licencias profesionales, comerciales y otros permisos a cobrar c/p | D60: 0 | E60: 221225069.5 | F60: 165675512 | G60: 55549557.49
B61: 1.1.3.01.03.99.1.99999 | C61: Licencias profesionales, comerciales y otros permisos a cobrar c/p | D61: 0 | E61: 221225069.5 | F61: 165675512 | G61: 55549557.49
B62: 1.1.3.01.03.99.9. | C62: Otros impuestos varios sobre bienes y servicios a cobrar c/p | D62: 823808.52 | E62: 9751895 | F62: 7896477.57 | G62: 2679225.95
B63: 1.1.3.01.03.99.9.99999 | C63: Otros impuestos varios sobre bienes y servicios a cobrar c/p | D63: 823808.52 | E63: 9751895 | F63: 7896477.57 | G63: 2679225.95
B64: 1.1.3.04. | C64: Servicios y derechos a cobrar a corto plazo | D64: 132158051.4 | E64: 453751516.7 | F64: 387817064.8 | G64: 198092503.3
B65: 1.1.3.04.01. | C65: Servicios a cobrar c/p | D65: 131559051.4 | E65: 452744516.7 | F65: 386936064.8 | G65: 197367503.3
B66: 1.1.3.04.01.04. | C66: Servicios comunitarios a cobrar c/p | D66: 125434841.4 | E66: 452744516.7 | F66: 380811854.8 | G66: 197367503.3
B67: 1.1.3.04.01.04.0. | C67: Servicios comunitarios a cobrar c/p | D67: 125434841.4 | E67: 452744516.7 | F67: 380811854.8 | G67: 197367503.3
B68: 1.1.3.04.01.04.0.99999 | C68: Servicios comunitarios a cobrar c/p | D68: 125434841.4 | E68: 452744516.7 | F68: 380811854.8 | G68: 197367503.3
B69: 1.1.3.04.01.99. | C69: Otras ventas de servicios a cobrar c/p | D69: 6124210 | E69: 0 | F69: 6124210 | G69: 0
B70: 1.1.3.04.01.99.0. | C70: Otras ventas de servicios a cobrar c/p | D70: 6124210 | E70: 0 | F70: 6124210 | G70: 0
B71: 1.1.3.04.01.99.0.99999 | C71: Otras ventas de servicios a cobrar c/p | D71: 6124210 | E71: 0 | F71: 6124210 | G71: 0
B72: 1.1.3.04.02. | C72: Derechos administrativos a cobrar c/p | D72: 599000 | E72: 1007000 | F72: 881000 | G72: 725000
B73: 1.1.3.04.02.01. | C73: Derechos administrativos a los servicios de transporte a cobrar c/p | D73: 190000 | E73: 430000 | F73: 360000 | G73: 260000
B74: 1.1.3.04.02.01.0. | C74: Derechos administrativos a los servicios de transporte a cobrar c/p | D74: 190000 | E74: 430000 | F74: 360000 | G74: 260000
B75: 1.1.3.04.02.01.0.99999 | C75: Derechos administrativos a los servicios de transporte a cobrar c/p Derecho de piso uso terminal | D75: 190000 | E75: 430000 | F75: 360000 | G75: 260000
B76: 1.1.3.04.02.99. | C76: Otros derechos administrativos a cobrar c/p | D76: 409000 | E76: 577000 | F76: 521000 | G76: 465000
B77: 1.1.3.04.02.99.0. | C77: Otros derechos administrativos a cobrar c/p | D77: 409000 | E77: 577000 | F77: 521000 | G77: 465000
B78: 1.1.3.04.02.99.0.99999 | C78: Otros derechos administrativos a cobrar c/p Derecho cementerio | D78: 409000 | E78: 577000 | F78: 521000 | G78: 465000
B79: 1.1.3.05. | C79: Ingresos de la propiedad a cobrar a corto plazo | D79: 17512427.95 | E79: 0 | F79: 17512427.95 | G79: 0
B80: 1.1.3.05.01. | C80: Alquileres y derechos sobre bienes a cobrar c/p | D80: 17512427.95 | E80: 0 | F80: 17512427.95 | G80: 0
B81: 1.1.3.05.01.01. | C81: Alquileres a cobrar c/p | D81: 17512427.95 | E81: 0 | F81: 17512427.95 | G81: 0
B82: 1.1.3.05.01.01.0. | C82: Alquileres a cobrar c/p | D82: 17512427.95 | E82: 0 | F82: 17512427.95 | G82: 0
B83: 1.1.3.05.01.01.0.99999 | C83: Alquileres a cobrar c/p | D83: 17512427.95 | E83: 0 | F83: 17512427.95 | G83: 0
B84: 1.1.3.06. | C84: Transferencias a cobrar a c/p | D84: 0 | E84: 3358667850 | F84: 1905760546 | G84: 1452907304
B85: 1.1.3.06.02. | C85: Transferencias del sector público interno a cobrar c/p | D85: 0 | E85: 3358667850 | F85: 1905760546 | G85: 1452907304
B86: 1.1.3.06.02.01. | C86: Transferencias del Gobierno Central a cobrar c/p | D86: 0 | E86: 3345400395 | F86: 1899448054 | G86: 1445952341
B87: 1.1.3.06.02.01.0. | C87: Transferencias del Gobierno Central a cobrar c/p | D87: 0 | E87: 3345400395 | F87: 1899448054 | G87: 1445952341
B88: 1.1.3.06.02.01.0.11206 | C88: Ministerio de Hacienda | D88: 0 | E88: 3345400395 | F88: 1899448054 | G88: 1445952341
B89: 1.1.3.06.02.02. | C89: Transferencias de Órganos Desconcentrados a cobrar c/p | D89: 0 | E89: 0 | F89: 0 | G89: 0
B90: 1.1.3.06.02.02.0. | C90: Transferencias de Órganos Desconcentrados a cobrar c/p | D90: 0 | E90: 0 | F90: 0 | G90: 0
B91: 1.1.3.06.02.02.0.12583 | C91: Transfrencias de Organos desconcentrados a cobrar.Consejo Nacional de la Política Pública de la Persona Joven (CPJ) | D91: 0 | E91: 0 | F91: 0 | G91: 0
B92: 1.1.3.06.02.03. | C92: Transferencias de Instituciones Descentralizadas no Empresariales a cobrar c/p | D92: 0 | E92: 13267455.56 | F92: 6312492 | G92: 6954963.56
B93: 1.1.3.06.02.03.0. | C93: Transferencias de Instituciones Descentralizadas no Empresariales a cobrar c/p | D93: 0 | E93: 13267455.56 | F93: 6312492 | G93: 6954963.56
B94: 1.1.3.06.02.03.0.14226 | C94: Transferencias de Instituciones Descentralizadas no Empresariales a cobrar c/p (Aporte IFAM Licores Nacionales y Ext) | D94: 0 | E94: 13267455.56 | F94: 6312492 | G94: 6954963.56
B95: 1.1.3.98. | C95: Otras cuentas a cobrar a corto plazo | D95: 433081 | E95: 6079290 | F95: 4602814.05 | G95: 1909556.95
B96: 1.1.3.98.01. | C96: Multas, sanciones, remates y confiscaciones de origen no tributario a cobrar c/p | D96: 433081 | E96: 6079290 | F96: 4602814.05 | G96: 1909556.95
B97: 1.1.3.98.01.01. | C97: Multas y sanciones administrativas a cobrar c/p | D97: 433081 | E97: 6079290 | F97: 4602814.05 | G97: 1909556.95
B98: 1.1.3.98.01.01.0. | C98: Multas y sanciones administrativas a cobrar c/p | D98: 433081 | E98: 6079290 | F98: 4602814.05 | G98: 1909556.95
B99: 1.1.3.98.01.01.0.99999 | C99: Multas y sanciones administrativas a cobrar c/p | D99: 433081 | E99: 6079290 | F99: 4602814.05 | G99: 1909556.95
B100: 1.1.4. | C100: Inventarios | D100: 12534500.95 | E100: 1085566.8 | F100: 8858735.44 | G100: 4761332.31
B101: 1.1.4.01. | C101: Materiales y suministros para consumo y prestación de servicios | D101: 12534500.95 | E101: 1085566.8 | F101: 8858735.44 | G101: 4761332.31
B102: 1.1.4.01.01. | C102: Productos químicos y conexos | D102: 3728478.72 | E102: 839096.8 | F102: 3236346.52 | G102: 1331229
B103: 1.1.4.01.01.01. | C103: Combustibles y lubricantes | D103: 2605139.37 | E103: 71749 | F103: 2676888.37 | G103: 0
B104: 1.1.4.01.01.01.0. | C104: Combustibles y lubricantes | D104: 2605139.37 | E104: 71749 | F104: 2676888.37 | G104: 0
B105: 1.1.4.01.01.01.0.99999 | C105: Combustibles y lubricantes | D105: 2605139.37 | E105: 71749 | F105: 2676888.37 | G105: 0
B106: 1.1.4.01.01.02. | C106: Productos farmacéuticos y medicinales | D106: 0 | E106: 0 | F106: 0 | G106: 0
B107: 1.1.4.01.01.02.0. | C107: Productos farmacéuticos y medicinales | D107: 0 | E107: 0 | F107: 0 | G107: 0
B108: 1.1.4.01.01.02.0.99999 | C108: Productos farmacéuticos y medicinales | D108: 0 | E108: 0 | F108: 0 | G108: 0
B109: 1.1.4.01.01.04. | C109: Tintas, pinturas y diluyentes | D109: 1123339.35 | E109: 767347.8 | F109: 559458.15 | G109: 1331229
B110: 1.1.4.01.01.04.0. | C110: Tintas, pinturas y diluyentes | D110: 1123339.35 | E110: 767347.8 | F110: 559458.15 | G110: 1331229
B111: 1.1.4.01.01.04.0.99999 | C111: Tintas, pinturas y diluyentes | D111: 1123339.35 | E111: 767347.8 | F111: 559458.15 | G111: 1331229
B112: 1.1.4.01.03. | C112: Materiales y productos de uso en la construcción y mantenimiento | D112: 2669369.38 | E112: 47767 | F112: 2717136.38 | G112: 0
B113: 1.1.4.01.03.01. | C113: Materiales y productos metálicos | D113: 105214.48 | E113: 47767 | F113: 152981.48 | G113: 0
B114: 1.1.4.01.03.01.0. | C114: Materiales y productos metálicos | D114: 105214.48 | E114: 47767 | F114: 152981.48 | G114: 0
B115: 1.1.4.01.03.01.0.99999 | C115: Materiales y productos metálicos | D115: 105214.48 | E115: 47767 | F115: 152981.48 | G115: 0
B116: 1.1.4.01.03.02. | C116: Materiales y productos minerales y asfálticos | D116: 2346000 | E116: 0 | F116: 2346000 | G116: 0
B117: 1.1.4.01.03.02.0. | C117: Materiales y productos minerales y asfálticos | D117: 2346000 | E117: 0 | F117: 2346000 | G117: 0
B118: 1.1.4.01.03.02.0.99999 | C118: Materiales y productos minerales y asfálticos | D118: 2346000 | E118: 0 | F118: 2346000 | G118: 0
B119: 1.1.4.01.03.03. | C119: Madera y sus derivados | D119: 146160 | E119: 0 | F119: 146160 | G119: 0
B120: 1.1.4.01.03.03.0. | C120: Madera y sus derivados | D120: 146160 | E120: 0 | F120: 146160 | G120: 0
B121: 1.1.4.01.03.03.0.99999 | C121: Madera y sus derivados | D121: 146160 | E121: 0 | F121: 146160 | G121: 0
B122: 1.1.4.01.03.04. | C122: Materiales y productos eléctricos, telefónicos y de cómputo | D122: 50747.6 | E122: 0 | F122: 50747.6 | G122: 0
B123: 1.1.4.01.03.04.0. | C123: Materiales y productos eléctricos, telefónicos y de cómputo | D123: 50747.6 | E123: 0 | F123: 50747.6 | G123: 0
B124: 1.1.4.01.03.04.0.99999 | C124: Materiales y productos eléctricos, telefónicos y de cómputo | D124: 50747.6 | E124: 0 | F124: 50747.6 | G124: 0
B125: 1.1.4.01.03.06. | C125: Materiales y productos de plástico | D125: 21247.3 | E125: 0 | F125: 21247.3 | G125: 0
B126: 1.1.4.01.03.06.0. | C126: Materiales y productos de plástico | D126: 21247.3 | E126: 0 | F126: 21247.3 | G126: 0
B127: 1.1.4.01.03.06.0.99999 | C127: Materiales y productos de plástico | D127: 21247.3 | E127: 0 | F127: 21247.3 | G127: 0
B128: 1.1.4.01.04. | C128: Herramientas, repuestos y accesorios | D128: 79780.02 | E128: 0 | F128: 79780.02 | G128: 0
B129: 1.1.4.01.04.01. | C129: Herramientas e instrumentos | D129: 79780.02 | E129: 0 | F129: 79780.02 | G129: 0
B130: 1.1.4.01.04.01.0. | C130: Herramientas e instrumentos | D130: 79780.02 | E130: 0 | F130: 79780.02 | G130: 0
B131: 1.1.4.01.04.01.0.99999 | C131: Herramientas e instrumentos | D131: 79780.02 | E131: 0 | F131: 79780.02 | G131: 0
B132: 1.1.4.01.99. | C132: Útiles, materiales y suministros diversos | D132: 6056872.83 | E132: 198703 | F132: 2825472.52 | G132: 3430103.31
B133: 1.1.4.01.99.01. | C133: Útiles y materiales de oficina y cómputo | D133: 1901512.15 | E133: 169500 | F133: 773811.67 | G133: 1297200.48
B134: 1.1.4.01.99.01.0. | C134: Útiles y materiales de oficina y cómputo | D134: 1901512.15 | E134: 169500 | F134: 773811.67 | G134: 1297200.48
B135: 1.1.4.01.99.01.0.99999 | C135: Útiles y materiales de oficina y cómputo | D135: 1901512.15 | E135: 169500 | F135: 773811.67 | G135: 1297200.48
B136: 1.1.4.01.99.02. | C136: Útiles y materiales médico, hospitalario y de investigación | D136: 17699.12 | E136: 0 | F136: 17699.12 | G136: 0
B137: 1.1.4.01.99.02.0. | C137: Útiles y materiales médico, hospitalario y de investigación | D137: 17699.12 | E137: 0 | F137: 17699.12 | G137: 0
B138: 1.1.4.01.99.02.0.99999 | C138: Útiles y materiales médico, hospitalario y de investigación | D138: 17699.12 | E138: 0 | F138: 17699.12 | G138: 0
B139: 1.1.4.01.99.03. | C139: Productos de papel, cartón e impresos | D139: 3029710.76 | E139: 0 | F139: 967688.93 | G139: 2062021.83
B140: 1.1.4.01.99.03.0. | C140: Productos de papel, cartón e impresos | D140: 3029710.76 | E140: 0 | F140: 967688.93 | G140: 2062021.83
B141: 1.1.4.01.99.03.0.99999 | C141: Productos de papel, cartón e impresos | D141: 3029710.76 | E141: 0 | F141: 967688.93 | G141: 2062021.83
B142: 1.1.4.01.99.04. | C142: Textiles y vestuario | D142: 86554.74 | E142: 0 | F142: 86554.74 | G142: 0
B143: 1.1.4.01.99.04.0. | C143: Textiles y vestuario | D143: 86554.74 | E143: 0 | F143: 86554.74 | G143: 0
B144: 1.1.4.01.99.04.0.99999 | C144: Textiles y vestuario | D144: 86554.74 | E144: 0 | F144: 86554.74 | G144: 0
B145: 1.1.4.01.99.05. | C145: Útiles y materiales de limpieza | D145: 76360.05 | E145: 0 | F145: 76360.05 | G145: 0
B146: 1.1.4.01.99.05.0. | C146: Útiles y materiales de limpieza | D146: 76360.05 | E146: 0 | F146: 76360.05 | G146: 0
B147: 1.1.4.01.99.05.0.99999 | C147: Útiles y materiales de limpieza | D147: 76360.05 | E147: 0 | F147: 76360.05 | G147: 0
B148: 1.1.4.01.99.06. | C148: Útiles y materiales de resguardo y seguridad | D148: 582181.16 | E148: 0 | F148: 582181.16 | G148: 0
B149: 1.1.4.01.99.06.0. | C149: Útiles y materiales de resguardo y seguridad | D149: 582181.16 | E149: 0 | F149: 582181.16 | G149: 0
B150: 1.1.4.01.99.06.0.99999 | C150: Útiles y materiales de resguardo y seguridad | D150: 582181.16 | E150: 0 | F150: 582181.16 | G150: 0
B151: 1.1.4.01.99.99. | C151: Otros útiles, materiales y suministros diversos | D151: 362854.85 | E151: 29203 | F151: 321176.85 | G151: 70881
B152: 1.1.4.01.99.99.0. | C152: Otros útiles, materiales y suministros diversos | D152: 362854.85 | E152: 29203 | F152: 321176.85 | G152: 70881
B153: 1.1.4.01.99.99.0.99999 | C153: Otros útiles, materiales y suministros diversos | D153: 362854.85 | E153: 29203 | F153: 321176.85 | G153: 70881
B154: 1.1.9. | C154: Otros activos a corto plazo | D154: 20591230.43 | E154: 30411564 | F154: 33893045.75 | G154: 17109748.68
B155: 1.1.9.01. | C155: Gastos a devengar a corto plazo | D155: 20591230.43 | E155: 30411564 | F155: 33893045.75 | G155: 17109748.68
B156: 1.1.9.01.01. | C156: Servicios a devengar c/p | D156: 20591230.43 | E156: 30411564 | F156: 33893045.75 | G156: 17109748.68
B157: 1.1.9.01.01.01. | C157: Primas y gastos de seguros a devengar c/p | D157: 20591230.43 | E157: 30411564 | F157: 33893045.75 | G157: 17109748.68
B158: 1.1.9.01.01.01.0. | C158: Primas y gastos de seguros a devengar c/p | D158: 20591230.43 | E158: 30411564 | F158: 33893045.75 | G158: 17109748.68
B159: 1.1.9.01.01.01.0.99999 | C159: Primas y gastos de seguros a devengar c/p | D159: 20591230.43 | E159: 30411564 | F159: 33893045.75 | G159: 17109748.68
B160: 1.2. | C160: Activo No Corriente | D160: 1.618263174e+11 | E160: 55157876.79 | F160: 111193259.2 | G160: 1.61770282e+11
B161: 1.2.5. | C161: Bienes no concesionados | D161: 1.618263174e+11 | E161: 55157876.79 | F161: 111193259.2 | G161: 1.61770282e+11
B162: 1.2.5.01. | C162: Propiedades, planta y equipos explotados | D162: 1066120805 | E162: 19934393.95 | F162: 111193259.2 | G162: 974861939.8
B163: 1.2.5.01.03. | C163: Maquinaria equipos para la producción | D163: 896584571.8 | E163: 1635197.46 | F163: 79788621.95 | G163: 818431147.3
B164: 1.2.5.01.03.01. | C164: Maquinaria para la construcción | D164: 867749117.4 | E164: 1635197.46 | F164: 77935126.22 | G164: 791449188.6
B165: 1.2.5.01.03.01.1. | C165: Maquinaria para la construcción Valores de origen | D165: 1809179858 | E165: 0 | F165: 5643007.03 | G165: 1803536851
B166: 1.2.5.01.03.01.1.99999 | C166: Maquinaria para la construcción Valores de origen | D166: 1809179858 | E166: 0 | F166: 5643007.03 | G166: 1803536851
B167: 1.2.5.01.03.01.3. | C167: Maq para la construcción Depreciaciones acumuladas | D167: -941430740.5 | E167: 1635197.46 | F167: 72292119.19 | G167: -1012087662
B168: 1.2.5.01.03.01.3.99999 | C168: Maq para la construcción Depreciaciones acumuladas | D168: -941430740.5 | E168: 1635197.46 | F168: 72292119.19 | G168: -1012087662
B169: 1.2.5.01.03.08. | C169: Equipos de medición | D169: 1884854.07 | E169: 0 | F169: 405724.85 | G169: 1479129.22
B170: 1.2.5.01.03.08.1. | C170: Equipos de medición Valores de origen | D170: 6452398.73 | E170: 0 | F170: 0 | G170: 6452398.73
B171: 1.2.5.01.03.08.1.99999 | C171: Equipos de medición Valores de origen | D171: 6452398.73 | E171: 0 | F171: 0 | G171: 6452398.73
B172: 1.2.5.01.03.08.3. | C172: Equipos de medición Depreciaciones acumuladas * | D172: -4567544.66 | E172: 0 | F172: 405724.85 | G172: -4973269.51
B173: 1.2.5.01.03.08.3.99999 | C173: Equipos de medición Depreciaciones acumuladas * | D173: -4567544.66 | E173: 0 | F173: 405724.85 | G173: -4973269.51
B174: 1.2.5.01.03.09. | C174: Bombas | D174: 473544.84 | E174: 0 | F174: 49987.27 | G174: 423557.57
B175: 1.2.5.01.03.09.1. | C175: Bombas Valores de origen | D175: 861668.6 | E175: 0 | F175: 0 | G175: 861668.6
B176: 1.2.5.01.03.09.1.99999 | C176: Bombas Valores de origen | D176: 861668.6 | E176: 0 | F176: 0 | G176: 861668.6
B177: 1.2.5.01.03.09.3. | C177: Bombas Depreciaciones acumuladas * | D177: -388123.76 | E177: 0 | F177: 49987.27 | G177: -438111.03
B178: 1.2.5.01.03.09.3.99999 | C178: Bombas Depreciaciones acumuladas * | D178: -388123.76 | E178: 0 | F178: 49987.27 | G178: -438111.03
B179: 1.2.5.01.03.99. | C179: Otra maquinarias y equipos para la producción | D179: 26477055.47 | E179: 0 | F179: 1397783.61 | G179: 25079271.86
B180: 1.2.5.01.03.99.1. | C180: Otra maquinarias y equipos para la producción Valor Origen | D180: 34594983.63 | E180: 0 | F180: 0 | G180: 34594983.63
B181: 1.2.5.01.03.99.1.99999 | C181: Otra maquinarias y equipos para la producción Valor Origen | D181: 34594983.63 | E181: 0 | F181: 0 | G181: 34594983.63
B182: 1.2.5.01.03.99.3. | C182: Otra maquinarias y equipos para la producción Depreciación Acumulada | D182: -8117928.16 | E182: 0 | F182: 1397783.61 | G182: -9515711.77
B183: 1.2.5.01.03.99.3.99999 | C183: Otra maquinarias y equipos para la producción Depreciación Acumulada | D183: -8117928.16 | E183: 0 | F183: 1397783.61 | G183: -9515711.77
B184: 1.2.5.01.04. | C184: Equipos de transporte, tracción elevación | D184: 80690053.47 | E184: 0 | F184: 6951440.47 | G184: 73738613
B185: 1.2.5.01.04.01. | C185: Motocicletas | D185: 3100900.2 | E185: 0 | F185: 531521.6 | G185: 2569378.6
B186: 1.2.5.01.04.01.1. | C186: Motocicletas Valores de origen | D186: 12235894 | E186: 0 | F186: 0 | G186: 12235894
B187: 1.2.5.01.04.01.1.99999 | C187: Motocicletas Valores de origen | D187: 12235894 | E187: 0 | F187: 0 | G187: 12235894
B188: 1.2.5.01.04.01.3. | C188: Motocicletas Depreciaciones acumuladas * | D188: -9134993.8 | E188: 0 | F188: 531521.6 | G188: -9666515.4
B189: 1.2.5.01.04.01.3.99999 | C189: Motocicletas Depreciaciones acumuladas * | D189: -9134993.8 | E189: 0 | F189: 531521.6 | G189: -9666515.4
B190: 1.2.5.01.04.02. | C190: Vehículos | D190: 77589153.27 | E190: 0 | F190: 6419918.87 | G190: 71169234.4
B191: 1.2.5.01.04.02.1. | C191: Vehículos Valores de origen | D191: 184744469.8 | E191: 0 | F191: 0 | G191: 184744469.8
B192: 1.2.5.01.04.02.1.99999 | C192: Vehículos Valores de origen | D192: 184744469.8 | E192: 0 | F192: 0 | G192: 184744469.8
B193: 1.2.5.01.04.02.3. | C193: Vehículos Depreciaciones acumuladas * | D193: -107155316.5 | E193: 0 | F193: 6419918.87 | G193: -113575235.3
B194: 1.2.5.01.04.02.3.99999 | C194: Vehículos Depreciaciones acumuladas * | D194: -107155316.5 | E194: 0 | F194: 6419918.87 | G194: -113575235.3
B195: 1.2.5.01.05. | C195: Equipos de comunicación | D195: 20005819.67 | E195: 1520426.74 | F195: 4581159.99 | G195: 16945086.42
B196: 1.2.5.01.05.01. | C196: Antenas radares | D196: 698018.83 | E196: 0 | F196: 26777.52 | G196: 671241.31
B197: 1.2.5.01.05.01.1. | C197: Antenas y radares Valores de origen | D197: 803325.36 | E197: 0 | F197: 0 | G197: 803325.36
B198: 1.2.5.01.05.01.1.99999 | C198: Antenas y radares Valores de origen | D198: 803325.36 | E198: 0 | F198: 0 | G198: 803325.36
B199: 1.2.5.01.05.01.3. | C199: Antenas y radares Depreciaciones acumuladas * | D199: -105306.53 | E199: 0 | F199: 26777.52 | G199: -132084.05
B200: 1.2.5.01.05.01.3.99999 | C200: Antenas y radares Depreciaciones acumuladas * | D200: -105306.53 | E200: 0 | F200: 26777.52 | G200: -132084.05
B201: 1.2.5.01.05.02. | C201: Equipos de telefonía | D201: 2581284.66 | E201: 910413.78 | F201: 2422462.58 | G201: 1069235.86
B202: 1.2.5.01.05.02.1. | C202: Equipos de telefonía Valores de origen | D202: 5448484.72 | E202: 346475.21 | F202: 1990371.43 | G202: 3804588.5
B203: 1.2.5.01.05.02.1.99999 | C203: Equipos de telefonía Valores de origen | D203: 5448484.72 | E203: 346475.21 | F203: 1990371.43 | G203: 3804588.5
B204: 1.2.5.01.05.02.3. | C204: Equipos de telefonía Depreciaciones acumuladas * | D204: -2867200.06 | E204: 563938.57 | F204: 432091.15 | G204: -2735352.64
B205: 1.2.5.01.05.02.3.99999 | C205: Equipos de telefonía Depreciaciones acumuladas * | D205: -2867200.06 | E205: 563938.57 | F205: 432091.15 | G205: -2735352.64
B206: 1.2.5.01.05.04. | C206: Equipos de audio video | D206: 16726516.18 | E206: 610012.96 | F206: 2131919.89 | G206: 15204609.25
B207: 1.2.5.01.05.04.1. | C207: Equipos de audio y video Valores de origen | D207: 22233829.48 | E207: 131945.5 | F207: 544475.21 | G207: 21821299.77
B208: 1.2.5.01.05.04.1.99999 | C208: Equipos de audio y video Valores de origen | D208: 22233829.48 | E208: 131945.5 | F208: 544475.21 | G208: 21821299.77
B209: 1.2.5.01.05.04.3. | C209: Equipos de audio y video Depreciaciones acumuladas | D209: -5507313.3 | E209: 478067.46 | F209: 1587444.68 | G209: -6616690.52
... 821 more rows

Sheet Notas BS
A1: Notas Estado de Situación Financiera o Balance General Comparativo
A2: ACTIVO
A4: Cuenta | B4: Descripción | C4: Nota | D4: Periodo Actual | E4: Periodo Anterior | F4: Diferencia
F5: %
A6: 1.1.1. | B6: =+AnalisisBS!$B$10 -> Efectivo y equivalentes de efectivo | C6: =+AnalisisBS!C10 -> 03 | D6: =SUMIF(AnalisisBS!$A$10:$A$8003,$A6,AnalisisBS!$D$10:$D$8003) -> 1625426.439 | E6: =SUMIF(AnalisisBS!$A$10:$A$8003,$A6,AnalisisBS!$F$10:$F$8003) -> 2069821.549 | F6: =SUMIF(AnalisisBS!$A$10:$A$8003,$A6,AnalisisBS!$I$10:$I$8003) -> -0.2147021374
A8: Cuenta | B8: Descripción | C8: Nota | D8: Periodo Actual | E8: Periodo Anterior | F8: Diferencia
F9: %
A10: 1.1.2. | B10: =+AnalisisBS!$B$13 -> Inversiones a corto plazo | C10: =+AnalisisBS!C13 -> 04 | D10: =SUMIF(AnalisisBS!$A$10:$A$8003,$A10,AnalisisBS!$D$10:$D$8003) -> 0 | E10: =SUMIF(AnalisisBS!$A$10:$A$8003,$A10,AnalisisBS!$F$10:$F$8003) -> 0 | F10: =SUMIF(AnalisisBS!$A$10:$A$8003,$A10,AnalisisBS!$I$10:$I$8003)*100 -> 0
A12: Cuenta | B12: Descripción | C12: Nota | D12: Periodo Actual | E12: Periodo Anterior | F12: Diferencia
F13: %
A14: 1.1.3. | B14: =+AnalisisBS!$B$19 -> Cuentas a cobrar a corto plazo | C14: =+AnalisisBS!C19 -> 05 | D14: =SUMIF(AnalisisBS!$A$10:$A$8003,$A14,AnalisisBS!$D$10:$D$8003) -> 2521436.034 | E14: =SUMIF(AnalisisBS!$A$10:$A$8003,$A14,AnalisisBS!$F$10:$F$8003) -> 2273691.66 | F14: =SUMIF(AnalisisBS!$A$10:$A$8003,$A14,AnalisisBS!$I$10:$I$8003) -> 0.1089612886
A16: Cuenta | B16: Descripción | C16: Nota | D16: Periodo Actual | E16: Periodo Anterior | F16: Diferencia
F17: %
A18: 1.1.4. | B18: =+AnalisisBS!$B$37 -> Inventarios | C18: =+AnalisisBS!C37 -> 06 | D18: =SUMIF(AnalisisBS!$A$10:$A$8003,$A18,AnalisisBS!$D$10:$D$8003) -> 176238.5837 | E18: =SUMIF(AnalisisBS!$A$10:$A$8003,$A18,AnalisisBS!$F$10:$F$8003) -> 4761.33231 | F18: =SUMIF(AnalisisBS!$A$10:$A$8003,$A18,AnalisisBS!$I$10:$I$8003) -> 36.01455227
A20: Cuenta | B20: Descripción | C20: Nota | D20: Periodo Actual | E20: Periodo Anterior | F20: Diferencia
F21: %
A22: 1.1.9. | B22: =+AnalisisBS!$B$43 -> Otros activos a corto plazo | C22: =+AnalisisBS!C43 -> 07 | D22: =SUMIF(AnalisisBS!$A$10:$A$8003,$A22,AnalisisBS!$D$10:$D$8003) -> 13860.07582 | E22: =SUMIF(AnalisisBS!$A$10:$A$8003,$A22,AnalisisBS!$F$10:$F$8003) -> 17109.74868 | F22: =SUMIF(AnalisisBS!$A$10:$A$8003,$A22,AnalisisBS!$I$10:$I$8003) -> -0.1899310692
A24: Cuenta | B24: Descripción | C24: Nota | D24: Periodo Actual | E24: Periodo Anterior | F24: Diferencia
F25: %
A26: 1.2.2. | B26: =+AnalisisBS!$B$50 -> Inversiones a largo plazo | C26: =+AnalisisBS!C50 -> 08 | D26: =SUMIF(AnalisisBS!$A$10:$A$8003,$A26,AnalisisBS!$D$10:$D$8003) -> 0 | E26: =SUMIF(AnalisisBS!$A$10:$A$8003,$A26,AnalisisBS!$F$10:$F$8003) -> 0 | F26: =SUMIF(AnalisisBS!$A$10:$A$8003,$A26,AnalisisBS!$I$10:$I$8003) -> 0
A28: Cuenta | B28: Descripción | C28: Nota | D28: Periodo Actual | E28: Periodo Anterior | F28: Diferencia
F29: %
A30: 1.2.3. | B30: =+AnalisisBS!$B$56 -> Cuentas a cobrar a largo plazo | C30: =+AnalisisBS!C56 -> 09 | D30: =SUMIF(AnalisisBS!$A$10:$A$8003,$A30,AnalisisBS!$D$10:$D$8003) -> 0 | E30: =SUMIF(AnalisisBS!$A$10:$A$8003,$A30,AnalisisBS!$F$10:$F$8003) -> 0 | F30: =SUMIF(AnalisisBS!$A$10:$A$8003,$A30,AnalisisBS!$I$10:$I$8003) -> 0
A32: Cuenta | B32: Descripción | C32: Nota | D32: Periodo Actual | E32: Periodo Anterior | F32: Diferencia
F33: %
A34: 1.2.5. | B34: =+AnalisisBS!$B$64 -> Bienes no concesionados | C34: =+AnalisisBS!C64 -> 10 | D34: =SUMIF(AnalisisBS!$A$10:$A$8003,$A34,AnalisisBS!$D$10:$D$8003) -> 162638782 | E34: =SUMIF(AnalisisBS!$A$10:$A$8003,$A34,AnalisisBS!$F$10:$F$8003) -> 161770282 | F34: =SUMIF(AnalisisBS!$A$10:$A$8003,$A34,AnalisisBS!$I$10:$I$8003) -> 0.005368724129
A36: Cuenta | B36: Descripción | C36: Nota | D36: Periodo Actual | E36: Periodo Anterior | F36: Diferencia
F37: %
A38: 1.2.5.01. | B38: =+AnalisisBS!$B$65 -> Propiedades, planta y equipos explotados | C38: =+AnalisisBS!C64 -> 10 | D38: =SUMIF(AnalisisBS!$A$10:$A$8003,$A38,AnalisisBS!$D$10:$D$8003) -> 1787715.686 | E38: =SUMIF(AnalisisBS!$A$10:$A$8003,$A38,AnalisisBS!$F$10:$F$8003) -> 974861.9398 | F38: =SUMIF(AnalisisBS!$A$10:$A$8003,$A38,AnalisisBS!$I$10:$I$8003) -> 0.8338142184
A40: Cuenta | B40: Descripción | C40: Nota | D40: Periodo Actual | E40: Periodo Anterior | F40: Diferencia
F41: %
A42: 1.2.5.02. | B42: =+AnalisisBS!$B$66 -> Propiedades de inversión | C42: =+AnalisisBS!C64 -> 10 | D42: =SUMIF(AnalisisBS!$A$10:$A$8003,$A42,AnalisisBS!$D$10:$D$8003) -> 0 | E42: =SUMIF(AnalisisBS!$A$10:$A$8003,$A42,AnalisisBS!$F$10:$F$8003) -> 0 | F42: =SUMIF(AnalisisBS!$A$10:$A$8003,$A42,AnalisisBS!$I$10:$I$8003) -> 0
A44: Cuenta | B44: Descripción | C44: Nota | D44: Periodo Actual | E44: Periodo Anterior | F44: Diferencia
F45: %
A46: 1.2.5.03. | B46: =+AnalisisBS!$B$67 -> Activos biológicos no concesionados | C46: =+AnalisisBS!C64 -> 10 | D46: =SUMIF(AnalisisBS!$A$10:$A$8003,$A46,AnalisisBS!$D$10:$D$8003) -> 0 | E46: =SUMIF(AnalisisBS!$A$10:$A$8003,$A46,AnalisisBS!$F$10:$F$8003) -> 0 | F46: =SUMIF(AnalisisBS!$A$10:$A$8003,$A46,AnalisisBS!$I$10:$I$8003) -> 0
A48: Cuenta | B48: Descripción | C48: Nota | D48: Periodo Actual | E48: Periodo Anterior | F48: Diferencia
F49: %
A50: 1.2.5.04. | B50: =+AnalisisBS!$B$68 -> Bienes de infraestructura y de beneficio y uso público en servicio | C50: =+AnalisisBS!C64 -> 10 | D50: =SUMIF(AnalisisBS!$A$10:$A$8003,$A50,AnalisisBS!$D$10:$D$8003) -> 160765498.1 | E50: =SUMIF(AnalisisBS!$A$10:$A$8003,$A50,AnalisisBS!$F$10:$F$8003) -> 160765498.1 | F50: =SUMIF(AnalisisBS!$A$10:$A$8003,$A50,AnalisisBS!$I$10:$I$8003) -> 0
A52: Cuenta | B52: Descripción | C52: Nota | D52: Periodo Actual | E52: Periodo Anterior | F52: Diferencia
F53: %
A54: 1.2.5.05. | B54: =+AnalisisBS!$B$69 -> Bienes históricos y culturales | C54: =+AnalisisBS!C64 -> 10 | D54: =SUMIF(AnalisisBS!$A$10:$A$8003,$A54,AnalisisBS!$D$10:$D$8003) -> 0 | E54: =SUMIF(AnalisisBS!$A$10:$A$8003,$A54,AnalisisBS!$F$10:$F$8003) -> 0 | F54: =SUMIF(AnalisisBS!$A$10:$A$8003,$A54,AnalisisBS!$I$10:$I$8003) -> 0
A56: Cuenta | B56: Descripción | C56: Nota | D56: Periodo Actual | E56: Periodo Anterior | F56: Diferencia
F57: %
A58: 1.2.5.06. | B58: =+AnalisisBS!$B$70 -> Recursos naturales en explotación | C58: =+AnalisisBS!C64 -> 10 | D58: =SUMIF(AnalisisBS!$A$10:$A$8003,$A58,AnalisisBS!$D$10:$D$8003) -> 0 | E58: =SUMIF(AnalisisBS!$A$10:$A$8003,$A58,AnalisisBS!$F$10:$F$8003) -> 0 | F58: =SUMIF(AnalisisBS!$A$10:$A$8003,$A58,AnalisisBS!$I$10:$I$8003) -> 0
A60: Cuenta | B60: Descripción | C60: Nota | D60: Periodo Actual | E60: Periodo Anterior | F60: Diferencia
F61: %
A62: 1.2.5.07. | B62: =+AnalisisBS!$B$71 -> Recursos naturales en conservación | C62: =+AnalisisBS!C64 -> 10 | D62: =SUMIF(AnalisisBS!$A$10:$A$8003,$A62,AnalisisBS!$D$10:$D$8003) -> 0 | E62: =SUMIF(AnalisisBS!$A$10:$A$8003,$A62,AnalisisBS!$F$10:$F$8003) -> 0 | F62: =SUMIF(AnalisisBS!$A$10:$A$8003,$A62,AnalisisBS!$I$10:$I$8003) -> 0
A64: Cuenta | B64: Descripción | C64: Nota | D64: Periodo Actual | E64: Periodo Anterior | F64: Diferencia
F65: %
A66: 1.2.5.08. | B66: =+AnalisisBS!$B$72 -> Bienes intangibles no concesionados | C66: =+AnalisisBS!C64 -> 10 | D66: =SUMIF(AnalisisBS!$A$10:$A$8003,$A66,AnalisisBS!$D$10:$D$8003) -> 7987.29414 | E66: =SUMIF(AnalisisBS!$A$10:$A$8003,$A66,AnalisisBS!$F$10:$F$8003) -> 29921.98516 | F66: =SUMIF(AnalisisBS!$A$10:$A$8003,$A66,AnalisisBS!$I$10:$I$8003) -> -0.733062693
A68: Cuenta | B68: Descripción | C68: Nota | D68: Periodo Actual | E68: Periodo Anterior | F68: Diferencia
F69: %
A70: 1.2.5.99. | B70: =+AnalisisBS!$B$73 -> Bienes no concesionados en proceso de producción | C70: =+AnalisisBS!C64 -> 10 | D70: =SUMIF(AnalisisBS!$A$10:$A$8003,$A70,AnalisisBS!$D$10:$D$8003) -> 77580.96105 | E70: =SUMIF(AnalisisBS!$A$10:$A$8003,$A70,AnalisisBS!$F$10:$F$8003) -> 0 | F70: =SUMIF(AnalisisBS!$A$10:$A$8003,$A70,AnalisisBS!$I$10:$I$8003) -> 0
A72: Cuenta | B72: Descripción | C72: Nota | D72: Periodo Actual | E72: Periodo Anterior | F72: Diferencia
F73: %
A74: 1.2.6. | B74: =+AnalisisBS!$B$74 -> Bienes concesionados | C74: =+AnalisisBS!C74 -> 11 | D74: =SUMIF(AnalisisBS!$A$10:$A$8003,$A74,AnalisisBS!$D$10:$D$8003) -> 0 | E74: =SUMIF(AnalisisBS!$A$10:$A$8003,$A74,AnalisisBS!$F$10:$F$8003) -> 0 | F74: =SUMIF(AnalisisBS!$A$10:$A$8003,$A74,AnalisisBS!$I$10:$I$8003) -> 0
A76: Cuenta | B76: Descripción | C76: Nota | D76: Periodo Actual | E76: Periodo Anterior | F76: Diferencia
F77: %
A78: 1.2.6.01. | B78: =+AnalisisBS!$B$75 -> Propiedades, planta y equipos concesionados | C78: =+AnalisisBS!C74 -> 11 | D78: =SUMIF(AnalisisBS!$A$10:$A$8003,$A78,AnalisisBS!$D$10:$D$8003) -> 0 | E78: =SUMIF(AnalisisBS!$A$10:$A$8003,$A78,AnalisisBS!$F$10:$F$8003) -> 0 | F78: =SUMIF(AnalisisBS!$A$10:$A$8003,$A78,AnalisisBS!$I$10:$I$8003) -> 0
A80: Cuenta | B80: Descripción | C80: Nota | D80: Periodo Actual | E80: Periodo Anterior | F80: Diferencia
F81: %
A82: 1.2.6.03. | B82: =+AnalisisBS!$B$76 -> Activos biológicos concesionados | C82: =+AnalisisBS!C74 -> 11 | D82: =SUMIF(AnalisisBS!$A$10:$A$8003,$A82,AnalisisBS!$D$10:$D$8003) -> 0 | E82: =SUMIF(AnalisisBS!$A$10:$A$8003,$A82,AnalisisBS!$F$10:$F$8003) -> 0 | F82: =SUMIF(AnalisisBS!$A$10:$A$8003,$A82,AnalisisBS!$I$10:$I$8003) -> 0
A84: Cuenta | B84: Descripción | C84: Nota | D84: Periodo Actual | E84: Periodo Anterior | F84: Diferencia
F85: %
A86: 1.2.6.04. | B86: =+AnalisisBS!$B$77 -> Bienes de infraestructura y de beneficio y uso público concesionados | C86: =+AnalisisBS!C74 -> 11 | D86: =SUMIF(AnalisisBS!$A$10:$A$8003,$A86,AnalisisBS!$D$10:$D$8003) -> 0 | E86: =SUMIF(AnalisisBS!$A$10:$A$8003,$A86,AnalisisBS!$F$10:$F$8003) -> 0 | F86: =SUMIF(AnalisisBS!$A$10:$A$8003,$A86,AnalisisBS!$I$10:$I$8003) -> 0
A88: Cuenta | B88: Descripción | C88: Nota | D88: Periodo Actual | E88: Periodo Anterior | F88: Diferencia
F89: %
A90: 1.2.6.06. | B90: =+AnalisisBS!$B$78 -> Recursos naturales concesionados | C90: =+AnalisisBS!C74 -> 11 | D90: =SUMIF(AnalisisBS!$A$10:$A$8003,$A90,AnalisisBS!$D$10:$D$8003) -> 0 | E90: =SUMIF(AnalisisBS!$A$10:$A$8003,$A90,AnalisisBS!$F$10:$F$8003) -> 0 | F90: =SUMIF(AnalisisBS!$A$10:$A$8003,$A90,AnalisisBS!$I$10:$I$8003) -> 0
A92: Cuenta | B92: Descripción | C92: Nota | D92: Periodo Actual | E92: Periodo Anterior | F92: Diferencia
F93: %
A94: 1.2.6.08. | B94: =+AnalisisBS!$B$79 -> Bienes intangibles concesionados | C94: =+AnalisisBS!C74 -> 11 | D94: =SUMIF(AnalisisBS!$A$10:$A$8003,$A94,AnalisisBS!$D$10:$D$8003) -> 0 | E94: =SUMIF(AnalisisBS!$A$10:$A$8003,$A94,AnalisisBS!$F$10:$F$8003) -> 0 | F94: =SUMIF(AnalisisBS!$A$10:$A$8003,$A94,AnalisisBS!$I$10:$I$8003) -> 0
A96: Cuenta | B96: Descripción | C96: Nota | D96: Periodo Actual | E96: Periodo Anterior | F96: Diferencia
F97: %
A98: 1.2.6.99. | B98: =+AnalisisBS!$B$80 -> Bienes concesionados en proceso de producción | C98: =+AnalisisBS!C74 -> 11 | D98: =SUMIF(AnalisisBS!$A$10:$A$8003,$A98,AnalisisBS!$D$10:$D$8003) -> 0 | E98: =SUMIF(AnalisisBS!$A$10:$A$8003,$A98,AnalisisBS!$F$10:$F$8003) -> 0 | F98: =SUMIF(AnalisisBS!$A$10:$A$8003,$A98,AnalisisBS!$I$10:$I$8003) -> 0
A100: Cuenta | B100: Descripción | C100: Nota | D100: Periodo Actual | E100: Periodo Anterior | F100: Diferencia
F101: %
A102: 1.2.7. | B102: =+AnalisisBS!$B$81 -> Inversiones patrimoniales - Método de participación | C102: =+AnalisisBS!C81 -> 12 | D102: =SUMIF(AnalisisBS!$A$10:$A$8003,$A102,AnalisisBS!$D$10:$D$8003) -> 0 | E102: =SUMIF(AnalisisBS!$A$10:$A$8003,$A102,AnalisisBS!$F$10:$F$8003) -> 0 | F102: =SUMIF(AnalisisBS!$A$10:$A$8003,$A102,AnalisisBS!$I$10:$I$8003) -> 0
A104: Cuenta | B104: Descripción | C104: Nota | D104: Periodo Actual | E104: Periodo Anterior | F104: Diferencia
F105: %
A106: 1.2.9. | B106: =+AnalisisBS!$B$86 -> Otros activos a largo plazo | C106: =+AnalisisBS!C86 -> 13 | D106: =SUMIF(AnalisisBS!$A$10:$A$8003,$A106,AnalisisBS!$D$10:$D$8003) -> 0 | E106: =SUMIF(AnalisisBS!$A$10:$A$8003,$A106,AnalisisBS!$F$10:$F$8003) -> 0 | F106: =SUMIF(AnalisisBS!$A$10:$A$8003,$A106,AnalisisBS!$I$10:$I$8003) -> 0
A108: Cuenta | B108: Descripción | C108: Nota | D108: Periodo Actual | E108: Periodo Anterior | F108: Diferencia
F109: %
A110: 1.2.9.01. | B110: =+AnalisisBS!B87 -> Gastos a devengar a largo plazo | C110: =+AnalisisBS!C86 -> 13 | D110: =SUMIF(AnalisisBS!$A$10:$A$8003,$A110,AnalisisBS!$D$10:$D$8003) -> 0 | E110: =SUMIF(AnalisisBS!$A$10:$A$8003,$A110,AnalisisBS!$F$10:$F$8003) -> 0 | F110: =SUMIF(AnalisisBS!$A$10:$A$8003,$A110,AnalisisBS!$I$10:$I$8003) -> 0
A113: PASIVO
A115: Cuenta | B115: Descripción | C115: Nota | D115: Periodo Actual | E115: Periodo Anterior | F115: Diferencia
F116: %
A117: 2.1.1. | B117: =+AnalisisBS!$B$95 -> Deudas a corto plazo | C117: =+AnalisisBS!C95 -> 14 | D117: =SUMIF(AnalisisBS!$A$10:$A$8003,$A117,AnalisisBS!$D$10:$D$8003) -> 290213.4014 | E117: =SUMIF(AnalisisBS!$A$10:$A$8003,$A117,AnalisisBS!$F$10:$F$8003) -> 334957.0733 | F117: =SUMIF(AnalisisBS!$A$10:$A$8003,$A117,AnalisisBS!$I$10:$I$8003) -> -0.1335803165
A119: Cuenta | B119: Descripción | C119: Nota | D119: Periodo Actual | E119: Periodo Anterior | F119: Diferencia
F120: %
A121: 2.1.2. | B121: =+AnalisisBS!$B$106 -> Endeudamiento público a corto plazo | C121: =+AnalisisBS!C106 -> 15 | D121: =SUMIF(AnalisisBS!$A$10:$A$8003,$A121,AnalisisBS!$D$10:$D$8003) -> 248669.3421 | E121: =SUMIF(AnalisisBS!$A$10:$A$8003,$A121,AnalisisBS!$F$10:$F$8003) -> 304448.2722 | F121: =SUMIF(AnalisisBS!$A$10:$A$8003,$A121,AnalisisBS!$I$10:$I$8003) -> -0.1832131604
A123: Cuenta | B123: Descripción | C123: Nota | D123: Periodo Actual | E123: Periodo Anterior | F123: Diferencia
F124: %
A125: 2.1.3. | B125: =+AnalisisBS!$B$112 -> Fondos de terceros y en garantía | C125: =+AnalisisBS!C112 -> 16 | D125: =SUMIF(AnalisisBS!$A$10:$A$8003,$A125,AnalisisBS!$D$10:$D$8003) -> 905829.1208 | E125: =SUMIF(AnalisisBS!$A$10:$A$8003,$A125,AnalisisBS!$F$10:$F$8003) -> 938165.6131 | F125: =SUMIF(AnalisisBS!$A$10:$A$8003,$A125,AnalisisBS!$I$10:$I$8003) -> -0.0344677868
A127: Cuenta | B127: Descripción | C127: Nota | D127: Periodo Actual | E127: Periodo Anterior | F127: Diferencia
F128: %
A129: 2.1.3.03. | B129: =+AnalisisBS!B115 -> Depósitos en garantía | C129: =+AnalisisBS!C112 -> 16 | D129: =SUMIF(AnalisisBS!$A$10:$A$8003,$A129,AnalisisBS!$D$10:$D$8003) -> 64880.78311 | E129: =SUMIF(AnalisisBS!$A$10:$A$8003,$A129,AnalisisBS!$F$10:$F$8003) -> 90085.72698 | F129: =SUMIF(AnalisisBS!$A$10:$A$8003,$A129,AnalisisBS!$I$10:$I$8003) -> -0.2797884273
A131: Cuenta | B131: Descripción | C131: Nota | D131: Periodo Actual | E131: Periodo Anterior | F131: Diferencia
F132: %
A133: 2.1.4. | B133: =+AnalisisBS!$B$118 -> Provisiones y reservas técnicas a corto plazo | C133: =+AnalisisBS!C118 -> 17 | D133: =SUMIF(AnalisisBS!$A$10:$A$8003,$A133,AnalisisBS!$D$10:$D$8003) -> 0 | E133: =SUMIF(AnalisisBS!$A$10:$A$8003,$A133,AnalisisBS!$F$10:$F$8003) -> 0 | F133: =SUMIF(AnalisisBS!$A$10:$A$8003,$A133,AnalisisBS!$I$10:$I$8003) -> 0
A135: Cuenta | B135: Descripción | C135: Nota | D135: Periodo Actual | E135: Periodo Anterior | F135: Diferencia
F136: %
A137: 2.1.4.01. | B137: =+AnalisisBS!$B$119 -> Provisiones a corto plazo | C137: =+AnalisisBS!C118 -> 17 | D137: =SUMIF(AnalisisER!$A$10:$A$8006,$A137,AnalisisER!$D$10:$D$8006) -> 0 | E137: =SUMIF(AnalisisER!$A$10:$A$8006,$A137,AnalisisER!$F$10:$F$8006) -> 0 | F137: =SUMIF(AnalisisER!$A$10:$A$8006,$A137,AnalisisER!$I$10:$I$8006) -> 0
A139: Cuenta | B139: Descripción | C139: Nota | D139: Periodo Actual | E139: Periodo Anterior | F139: Diferencia
F140: %
A141: 2.1.9. | B141: =+AnalisisBS!$B$121 -> Otros pasivos a corto plazo | C141: =+AnalisisBS!C121 -> 18 | D141: =SUMIF(AnalisisBS!$A$10:$A$8003,$A141,AnalisisBS!$D$10:$D$8003) -> 0 | E141: =SUMIF(AnalisisBS!$A$10:$A$8003,$A141,AnalisisBS!$F$10:$F$8003) -> 556.53649 | F141: =SUMIF(AnalisisBS!$A$10:$A$8003,$A141,AnalisisBS!$I$10:$I$8003) -> -1
A143: Cuenta | B143: Descripción | C143: Nota | D143: Periodo Actual | E143: Periodo Anterior | F143: Diferencia
F144: %
A145: 2.1.9.01. | B145: =+AnalisisBS!B122 -> Ingresos a devengar a corto plazo | C145: =+AnalisisBS!C121 -> 18 | D145: =SUMIF(AnalisisBS!$A$10:$A$8003,$A145,AnalisisBS!$D$10:$D$8003) -> 0 | E145: =SUMIF(AnalisisBS!$A$10:$A$8003,$A145,AnalisisBS!$F$10:$F$8003) -> 0 | F145: =SUMIF(AnalisisBS!$A$10:$A$8003,$A145,AnalisisBS!$I$10:$I$8003) -> 0
A147: Cuenta | B147: Descripción | C147: Nota | D147: Periodo Actual | E147: Periodo Anterior | F147: Diferencia
F148: %
A149: 2.2.1. | B149: =+AnalisisBS!$B$128 -> Deudas a largo plazo | C149: =+AnalisisBS!C128 -> 19 | D149: =SUMIF(AnalisisBS!$A$10:$A$8003,$A149,AnalisisBS!$D$10:$D$8003) -> 0 | E149: =SUMIF(AnalisisBS!$A$10:$A$8003,$A149,AnalisisBS!$F$10:$F$8003) -> 0 | F149: =SUMIF(AnalisisBS!$A$10:$A$8003,$A149,AnalisisBS!$I$10:$I$8003) -> 0
A151: Cuenta | B151: Descripción | C151: Nota | D151: Periodo Actual | E151: Periodo Anterior | F151: Diferencia
F152: %
A153: 2.2.2. | B153: =+AnalisisBS!$B$136 -> Endeudamiento público a largo plazo | C153: =+AnalisisBS!C136 -> 20 | D153: =SUMIF(AnalisisBS!$A$10:$A$8003,$A153,AnalisisBS!$D$10:$D$8003) -> 1153101.091 | E153: =SUMIF(AnalisisBS!$A$10:$A$8003,$A153,AnalisisBS!$F$10:$F$8003) -> 1292935.625 | F153: =SUMIF(AnalisisBS!$A$10:$A$8003,$A153,AnalisisBS!$I$10:$I$8003) -> -0.1081527429
A155: Cuenta | B155: Descripción | C155: Nota | D155: Periodo Actual | E155: Periodo Anterior | F155: Diferencia
F156: %
A157: 2.2.3. | B157: =+AnalisisBS!$B$140 -> Fondos de terceros y en garantía | C157: =+AnalisisBS!C140 -> 21 | D157: =SUMIF(AnalisisBS!$A$10:$A$8003,$A157,AnalisisBS!$D$10:$D$8003) -> 0 | E157: =SUMIF(AnalisisBS!$A$10:$A$8003,$A157,AnalisisBS!$F$10:$F$8003) -> 0 | F157: =SUMIF(AnalisisBS!$A$10:$A$8003,$A157,AnalisisBS!$I$10:$I$8003) -> 0
A159: Cuenta | B159: Descripción | C159: Nota | D159: Periodo Actual | E159: Periodo Anterior | F159: Diferencia
F160: %
A161: 2.2.4. | B161: =+AnalisisBS!$B$143 -> Provisiones y reservas técnicas a largo plazo | C161: =+AnalisisBS!C143 -> 22 | D161: =SUMIF(AnalisisBS!$A$10:$A$8003,$A161,AnalisisBS!$D$10:$D$8003) -> 9216.66 | E161: =SUMIF(AnalisisBS!$A$10:$A$8003,$A161,AnalisisBS!$F$10:$F$8003) -> 0 | F161: =SUMIF(AnalisisBS!$A$10:$A$8003,$A161,AnalisisBS!$I$10:$I$8003) -> 0
A163: Cuenta | B163: Descripción | C163: Nota | D163: Periodo Actual | E163: Periodo Anterior | F163: Diferencia
F164: %
A165: 2.2.4.01. | B165: =+AnalisisBS!B144 -> Provisiones a largo plazo | C165: =+AnalisisBS!C143 -> 22 | D165: =SUMIF(AnalisisBS!$A$10:$A$8003,$A165,AnalisisBS!$D$10:$D$8003) -> 9216.66 | E165: =SUMIF(AnalisisBS!$A$10:$A$8003,$A165,AnalisisBS!$F$10:$F$8003) -> 0 | F165: =SUMIF(AnalisisBS!$A$10:$A$8003,$A165,AnalisisBS!$I$10:$I$8003) -> 0
A167: Cuenta | B167: Descripción | C167: Nota | D167: Periodo Actual | E167: Periodo Anterior | F167: Diferencia
F168: %
A169: 2.2.9. | B169: =+AnalisisBS!$B$146 -> Otros pasivos a largo plazo | C169: =+AnalisisBS!C146 -> 23 | D169: =SUMIF(AnalisisBS!$A$10:$A$8003,$A169,AnalisisBS!$D$10:$D$8003) -> 0 | E169: =SUMIF(AnalisisBS!$A$10:$A$8003,$A169,AnalisisBS!$F$10:$F$8003) -> 0 | F169: =SUMIF(AnalisisBS!$A$10:$A$8003,$A169,AnalisisBS!$I$10:$I$8003) -> 0
A171: Cuenta | B171: Descripción | C171: Nota | D171: Periodo Actual | E171: Periodo Anterior | F171: Diferencia
F172: %
A173: 2.2.9.01. | B173: =+AnalisisBS!B147 -> Ingresos a devengar a largo plazo | C173: =+AnalisisBS!C146 -> 23 | D173: =SUMIF(AnalisisBS!$A$10:$A$8003,$A173,AnalisisBS!$D$10:$D$8003) -> 0 | E173: =SUMIF(AnalisisBS!$A$10:$A$8003,$A173,AnalisisBS!$F$10:$F$8003) -> 0 | F173: =SUMIF(AnalisisBS!$A$10:$A$8003,$A173,AnalisisBS!$I$10:$I$8003) -> 0
A176: PATRIMONIO
A178: Cuenta | B178: Descripción | C178: Nota | D178: Periodo Actual | E178: Periodo Anterior | F178: Diferencia
F179: %
A180: 3.1.1. | B180: =+AnalisisBS!$B$155 -> Capital | C180: =+AnalisisBS!C155 -> 24 | D180: =SUMIF(AnalisisBS!$A$10:$A$8003,$A180,AnalisisBS!$D$10:$D$8003) -> 0.5248 | E180: =SUMIF(AnalisisBS!$A$10:$A$8003,$A180,AnalisisBS!$F$10:$F$8003) -> 0.5248 | F180: =SUMIF(AnalisisBS!$A$10:$A$8003,$A180,AnalisisBS!$I$10:$I$8003) -> 0
A182: Cuenta | B182: Descripción | C182: Nota | D182: Periodo Actual | E182: Periodo Anterior | F182: Diferencia
F183: %
A184: 3.1.1.01. | B184: =+AnalisisBS!$B$156 -> Capital inicial | C184: =+AnalisisBS!C155 -> 24 | D184: =SUMIF(AnalisisBS!$A$10:$A$8003,$A184,AnalisisBS!$D$10:$D$8003) -> 0.5248 | E184: =SUMIF(AnalisisBS!$A$10:$A$8003,$A184,AnalisisBS!$F$10:$F$8003) -> 0.5248 | F184: =SUMIF(AnalisisBS!$A$10:$A$8003,$A184,AnalisisBS!$I$10:$I$8003) -> 0
A186: Cuenta | B186: Descripción | C186: Nota | D186: Periodo Actual | E186: Periodo Anterior | F186: Diferencia
F187: %
A188: 3.1.1.02. | B188: =+AnalisisBS!$B$157 -> Incorporaciones al capital | C188: =+AnalisisBS!C155 -> 24 | D188: =SUMIF(AnalisisBS!$A$10:$A$8003,$A188,AnalisisBS!$D$10:$D$8003) -> 0 | E188: =SUMIF(AnalisisBS!$A$10:$A$8003,$A188,AnalisisBS!$F$10:$F$8003) -> 0 | F188: =SUMIF(AnalisisBS!$A$10:$A$8003,$A188,AnalisisBS!$I$10:$I$8003) -> 0
A190: Cuenta | B190: Descripción | C190: Nota | D190: Periodo Actual | E190: Periodo Anterior | F190: Diferencia
F191: %
A192: 3.1.2. | B192: =+AnalisisBS!$B$158 -> Transferencias de capital | C192: =+AnalisisBS!C158 -> 25 | D192: =SUMIF(AnalisisBS!$A$10:$A$8003,$A192,AnalisisBS!$D$10:$D$8003) -> 0 | E192: =SUMIF(AnalisisBS!$A$10:$A$8003,$A192,AnalisisBS!$F$10:$F$8003) -> 0 | F192: =SUMIF(AnalisisBS!$A$10:$A$8003,$A192,AnalisisBS!$I$10:$I$8003) -> 0
A194: Cuenta | B194: Descripción | C194: Nota | D194: Periodo Actual | E194: Periodo Anterior | F194: Diferencia
F195: %
A196: 3.1.3. | B196: =+AnalisisBS!$B$161 -> Reservas | C196: =+AnalisisBS!C161 -> 26 | D196: =SUMIF(AnalisisBS!$A$10:$A$8003,$A196,AnalisisBS!$D$10:$D$8003) -> 0 | E196: =SUMIF(AnalisisBS!$A$10:$A$8003,$A196,AnalisisBS!$F$10:$F$8003) -> 0 | F196: =SUMIF(AnalisisBS!$A$10:$A$8003,$A196,AnalisisBS!$I$10:$I$8003) -> 0
A198: Cuenta | B198: Descripción | C198: Nota | D198: Periodo Actual | E198: Periodo Anterior | F198: Diferencia
F199: %
A200: 3.1.4. | B200: =+AnalisisBS!$B$164 -> Variaciones no asignables a reservas | C200: =+AnalisisBS!C164 -> 27 | D200: =SUMIF(AnalisisBS!$A$10:$A$8003,$A200,AnalisisBS!$D$10:$D$8003) -> 0 | E200: =SUMIF(AnalisisBS!$A$10:$A$8003,$A200,AnalisisBS!$F$10:$F$8003) -> 0 | F200: =SUMIF(AnalisisBS!$A$10:$A$8003,$A200,AnalisisBS!$I$10:$I$8003) -> 0
A202: Cuenta | B202: Descripción | C202: Nota | D202: Periodo Actual | E202: Periodo Anterior | F202: Diferencia
F203: %
A204: 3.1.5. | B204: =+AnalisisBS!$B$169 -> Resultados acumulados | C204: =+AnalisisBS!C169 -> 28 | D204: =SUMIF(AnalisisBS!$A$10:$A$8003,$A204,AnalisisBS!$D$10:$D$8003) -> 164368713 | E204: =SUMIF(AnalisisBS!$A$10:$A$8003,$A204,AnalisisBS!$F$10:$F$8003) -> 163264602.7 | F204: =SUMIF(AnalisisBS!$A$10:$A$8003,$A204,AnalisisBS!$I$10:$I$8003) -> 0.006762705108
A206: Cuenta | B206: Descripción | C206: Nota | D206: Periodo Actual | E206: Periodo Anterior | F206: Diferencia
F207: %
A208: 3.1.5.01. | B208: =+AnalisisBS!$B$170 -> Resultados acumulados de ejercicios anteriores | C208: =+AnalisisBS!C169 -> 28 | D208: =SUMIF(AnalisisBS!$A$10:$A$8003,$A208,AnalisisBS!$D$10:$D$8003) -> 163345806.1 | E208: =SUMIF(AnalisisBS!$A$10:$A$8003,$A208,AnalisisBS!$F$10:$F$8003) -> 161895939.4 | F208: =SUMIF(AnalisisBS!$A$10:$A$8003,$A208,AnalisisBS!$I$10:$I$8003) -> 0.008955546456
A210: Cuenta | B210: Descripción | C210: Nota | D210: Periodo Actual | E210: Periodo Anterior | F210: Diferencia
F211: %
A212: 3.1.5.02. | B212: =+AnalisisBS!$B$171 -> Resultado del ejercicio | C212: =+AnalisisBS!C169 -> 28 | D212: =SUMIF(AnalisisBS!$A$10:$A$8003,$A212,AnalisisBS!$D$10:$D$8003) -> 1022906.964 | E212: =SUMIF(AnalisisBS!$A$10:$A$8003,$A212,AnalisisBS!$F$10:$F$8003) -> 1368663.209 | F212: =SUMIF(AnalisisBS!$A$10:$A$8003,$A212,AnalisisBS!$I$10:$I$8003) -> -0.2526233205
A214: Cuenta | B214: Descripción | C214: Nota | D214: Periodo Actual | E214: Periodo Anterior | F214: Diferencia
F215: %
A216: 3.2.1. | B216: =+AnalisisBS!$B$173 -> Intereses minoritarios - Participaciones en el patrimonio de entidades controladas | C216: =+AnalisisBS!C173 -> 29 | D216: =SUMIF(AnalisisBS!$A$10:$A$8003,$A216,AnalisisBS!$D$10:$D$8003) -> 0 | E216: =SUMIF(AnalisisBS!$A$10:$A$8003,$A216,AnalisisBS!$F$10:$F$8003) -> 0 | F216: =SUMIF(AnalisisBS!$A$10:$A$8003,$A216,AnalisisBS!$I$10:$I$8003) -> 0
A218: Cuenta | B218: Descripción | C218: Nota | D218: Periodo Actual | E218: Periodo Anterior | F218: Diferencia
F219: %
A220: 3.2.2. | B220: =+AnalisisBS!$B$176 -> Intereses minoritarios - Evolución | C220: =+AnalisisBS!C176 -> 30 | D220: =SUMIF(AnalisisBS!$A$10:$A$8003,$A220,AnalisisBS!$D$10:$D$8003) -> 0 | E220: =SUMIF(AnalisisBS!$A$10:$A$8003,$A220,AnalisisBS!$F$10:$F$8003) -> 0 | F220: =SUMIF(AnalisisBS!$A$10:$A$8003,$A220,AnalisisBS!$I$10:$I$8003) -> 0

Sheet Notas ER
A1: Notas Estado de Rendimiento Financiero Comparativo
A2: INGRESOS
A5: Cuenta | B5: Descripción | C5: Nota | D5: Periodo Actual | E5: Periodo Anterior | F5: Diferencia
F6: %
A7: 4.1.1. | B7: =+AnalisisER!$B$10 -> Impuestos sobre los ingresos, las utilidades y las ganancias de capital | C7: =+AnalisisER!C10 -> 31 | D7: =SUMIF(AnalisisER!$A$10:$A$8006,$A7,AnalisisER!$D$10:$D$8006) -> 0 | E7: =SUMIF(AnalisisER!$A$10:$A$8006,$A7,AnalisisER!$F$10:$F$8006) -> 0 | F7: =SUMIF(AnalisisER!$A$10:$A$8006,$A7,AnalisisER!$I$10:$I$8006) -> 0
A9: Cuenta | B9: Descripción | C9: Nota | D9: Periodo Actual | E9: Periodo Anterior | F9: Diferencia
F10: %
A11: 4.1.2. | B11: =+AnalisisER!$B$15 -> Impuestos sobre la propiedad | C11: =+AnalisisER!C15 -> 32 | D11: =SUMIF(AnalisisER!$A$10:$A$8006,$A11,AnalisisER!$D$10:$D$8006) -> 546116.2014 | E11: =SUMIF(AnalisisER!$A$10:$A$8006,$A11,AnalisisER!$F$10:$F$8006) -> 641452.7166 | F11: =SUMIF(AnalisisER!$A$10:$A$8006,$A11,AnalisisER!$I$10:$I$8006) -> -0.1486259435
A13: Cuenta | B13: Descripción | C13: Nota | D13: Periodo Actual | E13: Periodo Anterior | F13: Diferencia
F14: %
A15: 4.1.3. | B15: =+AnalisisER!$B$22 -> Impuestos sobre bienes y servicios | C15: =+AnalisisER!C22 -> 33 | D15: =SUMIF(AnalisisER!$A$10:$A$8006,$A15,AnalisisER!$D$10:$D$8006) -> 266034.7025 | E15: =SUMIF(AnalisisER!$A$10:$A$8006,$A15,AnalisisER!$F$10:$F$8006) -> 275314.8896 | F15: =SUMIF(AnalisisER!$A$10:$A$8006,$A15,AnalisisER!$I$10:$I$8006) -> -0.03370753799
A17: Cuenta | B17: Descripción | C17: Nota | D17: Periodo Actual | E17: Periodo Anterior | F17: Diferencia
F18: %
A19: 4.1.4. | B19: =+AnalisisER!$B$26 -> Impuestos sobre el comercio exterior y transacciones internacionales | C19: =+AnalisisER!C26 -> 34 | D19: =SUMIF(AnalisisER!$A$10:$A$8006,$A19,AnalisisER!$D$10:$D$8006) -> 0 | E19: =SUMIF(AnalisisER!$A$10:$A$8006,$A19,AnalisisER!$F$10:$F$8006) -> 0 | F19: =SUMIF(AnalisisER!$A$10:$A$8006,$A19,AnalisisER!$I$10:$I$8006) -> 0
A21: Cuenta | B21: Descripción | C21: Nota | D21: Periodo Actual | E21: Periodo Anterior | F21: Diferencia
F22: %
A23: 4.1.9. | B23: =+AnalisisER!$B$30 -> Otros impuestos | C23: =+AnalisisER!C30 -> 35 | D23: =SUMIF(AnalisisER!$A$10:$A$8006,$A23,AnalisisER!$D$10:$D$8006) -> 0 | E23: =SUMIF(AnalisisER!$A$10:$A$8006,$A23,AnalisisER!$F$10:$F$8006) -> 0 | F23: =SUMIF(AnalisisER!$A$10:$A$8006,$A23,AnalisisER!$I$10:$I$8006) -> 0
A25: Cuenta | B25: Descripción | C25: Nota | D25: Periodo Actual | E25: Periodo Anterior | F25: Diferencia
F26: %
A27: 4.2.1. | B27: =+AnalisisER!$B$33 -> Contribuciones a la seguridad social | C27: =+AnalisisER!C33 -> 36 | D27: =SUMIF(AnalisisER!$A$10:$A$8006,$A27,AnalisisER!$D$10:$D$8006) -> 0 | E27: =SUMIF(AnalisisER!$A$10:$A$8006,$A27,AnalisisER!$F$10:$F$8006) -> 0 | F27: =SUMIF(AnalisisER!$A$10:$A$8006,$A27,AnalisisER!$I$10:$I$8006) -> 0
A29: Cuenta | B29: Descripción | C29: Nota | D29: Periodo Actual | E29: Periodo Anterior | F29: Diferencia
F30: %
A31: 4.2.9. | B31: =+AnalisisER!$B$37 -> Contribuciones sociales diversas | C31: =+AnalisisER!C37 -> 37 | D31: =SUMIF(AnalisisER!$A$10:$A$8006,$A31,AnalisisER!$D$10:$D$8006) -> 0 | E31: =SUMIF(AnalisisER!$A$10:$A$8006,$A31,AnalisisER!$F$10:$F$8006) -> 0 | F31: =SUMIF(AnalisisER!$A$10:$A$8006,$A31,AnalisisER!$I$10:$I$8006) -> 0
A33: Cuenta | B33: Descripción | C33: Nota | D33: Periodo Actual | E33: Periodo Anterior | F33: Diferencia
F34: %
A35: 4.3.1. | B35: =+AnalisisER!$B$40 -> Multas y sanciones administrativas | C35: =+AnalisisER!C40 -> 38 | D35: =SUMIF(AnalisisER!$A$10:$A$8006,$A35,AnalisisER!$D$10:$D$8006) -> 0 | E35: =SUMIF(AnalisisER!$A$10:$A$8006,$A35,AnalisisER!$F$10:$F$8006) -> 0 | F35: =SUMIF(AnalisisER!$A$10:$A$8006,$A35,AnalisisER!$I$10:$I$8006) -> 0
A37: Cuenta | B37: Descripción | C37: Nota | D37: Periodo Actual | E37: Periodo Anterior | F37: Diferencia
F38: %
A39: 4.3.2. | B39: =+AnalisisER!$B$45 -> Remates y confiscaciones de origen no tributario | C39: =+AnalisisER!C45 -> 39 | D39: =SUMIF(AnalisisER!$A$10:$A$8006,$A39,AnalisisER!$D$10:$D$8006) -> 0 | E39: =SUMIF(AnalisisER!$A$10:$A$8006,$A39,AnalisisER!$F$10:$F$8006) -> 0 | F39: =SUMIF(AnalisisER!$A$10:$A$8006,$A39,AnalisisER!$I$10:$I$8006) -> 0
A41: Cuenta | B41: Descripción | C41: Nota | D41: Periodo Actual | E41: Periodo Anterior | F41: Diferencia
F42: %
A43: 4.3.3. | B43: =+AnalisisER!$B$47 -> Intereses Moratorios | C43: =+AnalisisER!C47 -> 40 | D43: =SUMIF(AnalisisER!$A$10:$A$8006,$A43,AnalisisER!$D$10:$D$8006) -> 0 | E43: =SUMIF(AnalisisER!$A$10:$A$8006,$A43,AnalisisER!$F$10:$F$8006) -> 0 | F43: =SUMIF(AnalisisER!$A$10:$A$8006,$A43,AnalisisER!$I$10:$I$8006) -> 0
A45: Cuenta | B45: Descripción | C45: Nota | D45: Periodo Actual | E45: Periodo Anterior | F45: Diferencia
F46: %
A47: 4.4.1. | B47: =+AnalisisER!$B$51 -> Ventas de bienes y servicios | C47: =+AnalisisER!C51 -> 41 | D47: =SUMIF(AnalisisER!$A$10:$A$8006,$A47,AnalisisER!$D$10:$D$8006) -> 321394.1462 | E47: =SUMIF(AnalisisER!$A$10:$A$8006,$A47,AnalisisER!$F$10:$F$8006) -> 306537.0226 | F47: =SUMIF(AnalisisER!$A$10:$A$8006,$A47,AnalisisER!$I$10:$I$8006) -> 0.04846763198
A49: Cuenta | B49: Descripción | C49: Nota | D49: Periodo Actual | E49: Periodo Anterior | F49: Diferencia
F50: %
A51: 4.4.2. | B51: =+AnalisisER!$B$54 -> Derechos administrativos | C51: =+AnalisisER!C54 -> 42 | D51: =SUMIF(AnalisisER!$A$10:$A$8006,$A51,AnalisisER!$D$10:$D$8006) -> 467 | E51: =SUMIF(AnalisisER!$A$10:$A$8006,$A51,AnalisisER!$F$10:$F$8006) -> 408 | F51: =SUMIF(AnalisisER!$A$10:$A$8006,$A51,AnalisisER!$I$10:$I$8006) -> 0.1446078431
A53: Cuenta | B53: Descripción | C53: Nota | D53: Periodo Actual | E53: Periodo Anterior | F53: Diferencia
F54: %
A55: 4.4.3. | B55: =+AnalisisER!$B$57 -> Comisiones por préstamos | C55: =+AnalisisER!C57 -> 43 | D55: =SUMIF(AnalisisER!$A$10:$A$8006,$A55,AnalisisER!$D$10:$D$8006) -> 0 | E55: =SUMIF(AnalisisER!$A$10:$A$8006,$A55,AnalisisER!$F$10:$F$8006) -> 0 | F55: =SUMIF(AnalisisER!$A$10:$A$8006,$A55,AnalisisER!$I$10:$I$8006) -> 0
A57: Cuenta | B57: Descripción | C57: Nota | D57: Periodo Actual | E57: Periodo Anterior | F57: Diferencia
F58: %
A59: 4.4.4. | B59: =+AnalisisER!$B$61 -> Resultados positivos por ventas de inversiones | C59: =+AnalisisER!C61 -> 44 | D59: =SUMIF(AnalisisER!$A$10:$A$8006,$A59,AnalisisER!$D$10:$D$8006) -> 0 | E59: =SUMIF(AnalisisER!$A$10:$A$8006,$A59,AnalisisER!$F$10:$F$8006) -> 0 | F59: =SUMIF(AnalisisER!$A$10:$A$8006,$A59,AnalisisER!$I$10:$I$8006) -> 0
A61: Cuenta | B61: Descripción | C61: Nota | D61: Periodo Actual | E61: Periodo Anterior | F61: Diferencia
F62: %
A63: 4.4.5. | B63: =+AnalisisER!$B$64 -> Resultados positivos por ventas e intercambio de bienes | C63: =+AnalisisER!C64 -> 45 | D63: =SUMIF(AnalisisER!$A$10:$A$8006,$A63,AnalisisER!$D$10:$D$8006) -> 0 | E63: =SUMIF(AnalisisER!$A$10:$A$8006,$A63,AnalisisER!$F$10:$F$8006) -> 0 | F63: =SUMIF(AnalisisER!$A$10:$A$8006,$A63,AnalisisER!$I$10:$I$8006) -> 0
A65: Cuenta | B65: Descripción | C65: Nota | D65: Periodo Actual | E65: Periodo Anterior | F65: Diferencia
F66: %
A67: 4.4.6. | B67: =+AnalisisER!B75 -> Resultados positivos por la recuperación de dinero mal acreditado de periodos anteriores | C67: =+AnalisisER!C75 -> 46 | D67: =SUMIF(AnalisisER!$A$10:$A$8006,$A67,AnalisisER!$D$10:$D$8006) -> 0 | E67: =SUMIF(AnalisisER!$A$10:$A$8006,$A67,AnalisisER!$F$10:$F$8006) -> 0 | F67: =SUMIF(AnalisisER!$A$10:$A$8006,$A67,AnalisisER!$I$10:$I$8006) -> 0
A69: Cuenta | B69: Descripción | C69: Nota | D69: Periodo Actual | E69: Periodo Anterior | F69: Diferencia
F70: %
A71: 4.5.1. | B71: =+AnalisisER!$B$78 -> Rentas de inversiones y de colocación de efectivo | C71: =+AnalisisER!C78 -> 47 | D71: =SUMIF(AnalisisER!$A$10:$A$8006,$A71,AnalisisER!$D$10:$D$8006) -> 19879.0485 | E71: =SUMIF(AnalisisER!$A$10:$A$8006,$A71,AnalisisER!$F$10:$F$8006) -> 4944.57291 | F71: =SUMIF(AnalisisER!$A$10:$A$8006,$A71,AnalisisER!$I$10:$I$8006) -> 3.020377262
A73: Cuenta | B73: Descripción | C73: Nota | D73: Periodo Actual | E73: Periodo Anterior | F73: Diferencia
F74: %
A75: 4.5.2. | B75: =+AnalisisER!$B$82 -> Alquileres y derechos sobre bienes | C75: =+AnalisisER!C82 -> 48 | D75: =SUMIF(AnalisisER!$A$10:$A$8006,$A75,AnalisisER!$D$10:$D$8006) -> 27947.12832 | E75: =SUMIF(AnalisisER!$A$10:$A$8006,$A75,AnalisisER!$F$10:$F$8006) -> 28681.52824 | F75: =SUMIF(AnalisisER!$A$10:$A$8006,$A75,AnalisisER!$I$10:$I$8006) -> -0.02560532737
A77: Cuenta | B77: Descripción | C77: Nota | D77: Periodo Actual | E77: Periodo Anterior | F77: Diferencia
F78: %
A79: 4.5.2.01. | B79: =+AnalisisER!$B$83 -> Alquileres | C79: =+AnalisisER!C82 -> 48 | D79: =SUMIF(AnalisisER!$A$10:$A$8006,$A79,AnalisisER!$D$10:$D$8006) -> 27947.12832 | E79: =SUMIF(AnalisisER!$A$10:$A$8006,$A79,AnalisisER!$F$10:$F$8006) -> 28681.52824 | F79: =SUMIF(AnalisisER!$A$10:$A$8006,$A79,AnalisisER!$I$10:$I$8006) -> -0.02560532737
A81: Cuenta | B81: Descripción | C81: Nota | D81: Periodo Actual | E81: Periodo Anterior | F81: Diferencia
F82: %
A83: 4.5.9. | B83: =+AnalisisER!$B$86 -> Otros ingresos de la propiedad | C83: =+AnalisisER!C86 -> 49 | D83: =SUMIF(AnalisisER!$A$10:$A$8006,$A83,AnalisisER!$D$10:$D$8006) -> 0 | E83: =SUMIF(AnalisisER!$A$10:$A$8006,$A83,AnalisisER!$F$10:$F$8006) -> 0 | F83: =SUMIF(AnalisisER!$A$10:$A$8006,$A83,AnalisisER!$I$10:$I$8006) -> 0
A85: Cuenta | B85: Descripción | C85: Nota | D85: Periodo Actual | E85: Periodo Anterior | F85: Diferencia
F86: %
A87: 4.6.1. | B87: =+AnalisisER!$B$94 -> Transferencias corrientes | C87: =+AnalisisER!C94 -> 50 | D87: =SUMIF(AnalisisER!$A$10:$A$8006,$A87,AnalisisER!$D$10:$D$8006) -> 18390.35778 | E87: =SUMIF(AnalisisER!$A$10:$A$8006,$A87,AnalisisER!$F$10:$F$8006) -> 19800.99356 | F87: =SUMIF(AnalisisER!$A$10:$A$8006,$A87,AnalisisER!$I$10:$I$8006) -> -0.07124065647
A89: Cuenta | B89: Descripción | C89: Nota | D89: Periodo Actual | E89: Periodo Anterior | F89: Diferencia
F90: %
A91: 4.6.2. | B91: =+AnalisisER!$B$98 -> Transferencias de capital | C91: =+AnalisisER!C98 -> 51 | D91: =SUMIF(AnalisisER!$A$10:$A$8006,$A91,AnalisisER!$D$10:$D$8006) -> 4139431.351 | E91: =SUMIF(AnalisisER!$A$10:$A$8006,$A91,AnalisisER!$F$10:$F$8006) -> 3345400.395 | F91: =SUMIF(AnalisisER!$A$10:$A$8006,$A91,AnalisisER!$I$10:$I$8006) -> 0.2373500516
A93: Cuenta | B93: Descripción | C93: Nota | D93: Periodo Actual | E93: Periodo Anterior | F93: Diferencia
F94: %
A95: 4.9.1. | B95: =+AnalisisER!$B$103 -> Resultados positivos por tenencia y por exposición a la inflación | C95: =+AnalisisER!C103 -> 52 | D95: =SUMIF(AnalisisER!$A$10:$A$8006,$A95,AnalisisER!$D$10:$D$8006) -> 0 | E95: =SUMIF(AnalisisER!$A$10:$A$8006,$A95,AnalisisER!$F$10:$F$8006) -> 0 | F95: =SUMIF(AnalisisER!$A$10:$A$8006,$A95,AnalisisER!$I$10:$I$8006) -> 0
A97: Cuenta | B97: Descripción | C97: Nota | D97: Periodo Actual | E97: Periodo Anterior | F97: Diferencia
F98: %
A99: 4.9.2. | B99: =+AnalisisER!$B$110 -> Reversión de consumo de bienes | C99: =+AnalisisER!C110 -> 53 | D99: =SUMIF(AnalisisER!$A$10:$A$8006,$A99,AnalisisER!$D$10:$D$8006) -> 0 | E99: =SUMIF(AnalisisER!$A$10:$A$8006,$A99,AnalisisER!$F$10:$F$8006) -> 0 | F99: =SUMIF(AnalisisER!$A$10:$A$8006,$A99,AnalisisER!$I$10:$I$8006) -> 0
A101: Cuenta | B101: Descripción | C101: Nota | D101: Periodo Actual | E101: Periodo Anterior | F101: Diferencia
F102: %
A103: 4.9.3. | B103: =+AnalisisER!$B$113 -> Reversión de pérdidas por deterioro y desvalorización de bienes | C103: =+AnalisisER!C113 -> 54 | D103: =SUMIF(AnalisisER!$A$10:$A$8006,$A103,AnalisisER!$D$10:$D$8006) -> 0 | E103: =SUMIF(AnalisisER!$A$10:$A$8006,$A103,AnalisisER!$F$10:$F$8006) -> 0 | F103: =SUMIF(AnalisisER!$A$10:$A$8006,$A103,AnalisisER!$I$10:$I$8006) -> 0
A105: Cuenta | B105: Descripción | C105: Nota | D105: Periodo Actual | E105: Periodo Anterior | F105: Diferencia
F106: %
A107: 4.9.4. | B107: =+AnalisisER!$B$119 -> Recuperación de previsiones | C107: =+AnalisisER!C119 -> 55 | D107: =SUMIF(AnalisisER!$A$10:$A$8006,$A107,AnalisisER!$D$10:$D$8006) -> 0 | E107: =SUMIF(AnalisisER!$A$10:$A$8006,$A107,AnalisisER!$F$10:$F$8006) -> 0 | F107: =SUMIF(AnalisisER!$A$10:$A$8006,$A107,AnalisisER!$I$10:$I$8006) -> 0
A109: Cuenta | B109: Descripción | C109: Nota | D109: Periodo Actual | E109: Periodo Anterior | F109: Diferencia
F110: %
A111: 4.9.5. | B111: =+AnalisisER!$B$123 -> Recuperación de provisiones y reservas técnicas | C111: =+AnalisisER!C123 -> 56 | D111: =SUMIF(AnalisisER!$A$10:$A$8006,$A111,AnalisisER!$D$10:$D$8006) -> 0 | E111: =SUMIF(AnalisisER!$A$10:$A$8006,$A111,AnalisisER!$F$10:$F$8006) -> 0 | F111: =SUMIF(AnalisisER!$A$10:$A$8006,$A111,AnalisisER!$I$10:$I$8006) -> 0
A113: Cuenta | B113: Descripción | C113: Nota | D113: Periodo Actual | E113: Periodo Anterior | F113: Diferencia
F114: %
A115: 4.9.6. | B115: =+AnalisisER!$B$128 -> Resultados positivos de inversiones patrimoniales y participación de los intereses minoritarios | C115: =+AnalisisER!C128 -> 57 | D115: =SUMIF(AnalisisER!$A$10:$A$8006,$A115,AnalisisER!$D$10:$D$8006) -> 0 | E115: =SUMIF(AnalisisER!$A$10:$A$8006,$A115,AnalisisER!$F$10:$F$8006) -> 0 | F115: =SUMIF(AnalisisER!$A$10:$A$8006,$A115,AnalisisER!$I$10:$I$8006) -> 0
A117: Cuenta | B117: Descripción | C117: Nota | D117: Periodo Actual | E117: Periodo Anterior | F117: Diferencia
F118: %
A119: 4.9.9. | B119: =+AnalisisER!$B$131 -> Otros ingresos y resultados positivos | C119: =+AnalisisER!C131 -> 58 | D119: =SUMIF(AnalisisER!$A$10:$A$8006,$A119,AnalisisER!$D$10:$D$8006) -> 293.16007 | E119: =SUMIF(AnalisisER!$A$10:$A$8006,$A119,AnalisisER!$F$10:$F$8006) -> 182.64691 | F119: =SUMIF(AnalisisER!$A$10:$A$8006,$A119,AnalisisER!$I$10:$I$8006) -> 0.605064493
A122: GASTOS
A124: Cuenta | B124: Descripción | C124: Nota | D124: Periodo Actual | E124: Periodo Anterior | F124: Diferencia
F125: %
A126: 5.1.1. | B126: =+AnalisisER!$B$137 -> Gastos en personal | C126: =+AnalisisER!C137 -> 59 | D126: =SUMIF(AnalisisER!$A$10:$A$8006,$A126,AnalisisER!$D$10:$D$8006) -> 874715.4666 | E126: =SUMIF(AnalisisER!$A$10:$A$8006,$A126,AnalisisER!$F$10:$F$8006) -> 778033.4292 | F126: =SUMIF(AnalisisER!$A$10:$A$8006,$A126,AnalisisER!$I$10:$I$8006) -> 0.1242646316
A128: Cuenta | B128: Descripción | C128: Nota | D128: Periodo Actual | E128: Periodo Anterior | F128: Diferencia
F129: %
A130: 5.1.2. | B130: =+AnalisisER!$B$146 -> Servicios | C130: =+AnalisisER!C146 -> 60 | D130: =SUMIF(AnalisisER!$A$10:$A$8006,$A130,AnalisisER!$D$10:$D$8006) -> 2648257.373 | E130: =SUMIF(AnalisisER!$A$10:$A$8006,$A130,AnalisisER!$F$10:$F$8006) -> 1917335.682 | F130: =SUMIF(AnalisisER!$A$10:$A$8006,$A130,AnalisisER!$I$10:$I$8006) -> 0.3812173829
A132: Cuenta | B132: Descripción | C132: Nota | D132: Periodo Actual | E132: Periodo Anterior | F132: Diferencia
F133: %
A134: 5.1.2.01. | B134: =+AnalisisER!$B$147 -> Alquileres y derechos sobre bienes | C134: =+AnalisisER!C146 -> 60 | D134: =SUMIF(AnalisisER!$A$10:$A$8006,$A134,AnalisisER!$D$10:$D$8006) -> 139130.5172 | E134: =SUMIF(AnalisisER!$A$10:$A$8006,$A134,AnalisisER!$F$10:$F$8006) -> 86500.4869 | F134: =SUMIF(AnalisisER!$A$10:$A$8006,$A134,AnalisisER!$I$10:$I$8006) -> 0.6084362315
A136: Cuenta | B136: Descripción | C136: Nota | D136: Periodo Actual | E136: Periodo Anterior | F136: Diferencia
F137: %
A138: 5.1.3. | B138: =+AnalisisER!$B$156 -> Materiales y suministros consumidos | C138: =+AnalisisER!C156 -> 61 | D138: =SUMIF(AnalisisER!$A$10:$A$8006,$A138,AnalisisER!$D$10:$D$8006) -> 366007.0307 | E138: =SUMIF(AnalisisER!$A$10:$A$8006,$A138,AnalisisER!$F$10:$F$8006) -> 317393.329 | F138: =SUMIF(AnalisisER!$A$10:$A$8006,$A138,AnalisisER!$I$10:$I$8006) -> 0.1531654803
A140: Cuenta | B140: Descripción | C140: Nota | D140: Periodo Actual | E140: Periodo Anterior | F140: Diferencia
F141: %
A142: 5.1.4. | B142: =+AnalisisER!$B$162 -> Consumo de bienes distintos de inventarios | C142: =+AnalisisER!C162 -> 62 | D142: =SUMIF(AnalisisER!$A$10:$A$8006,$A142,AnalisisER!$D$10:$D$8006) -> 260028.2229 | E142: =SUMIF(AnalisisER!$A$10:$A$8006,$A142,AnalisisER!$F$10:$F$8006) -> 92979.63866 | F142: =SUMIF(AnalisisER!$A$10:$A$8006,$A142,AnalisisER!$I$10:$I$8006) -> 1.796614685
A144: Cuenta | B144: Descripción | C144: Nota | D144: Periodo Actual | E144: Periodo Anterior | F144: Diferencia
F145: %
A146: 5.1.5. | B146: =+AnalisisER!$B$165 -> Pérdidas por deterioro y desvalorización de bienes | C146: =+AnalisisER!C165 -> 63 | D146: =SUMIF(AnalisisER!$A$10:$A$8006,$A146,AnalisisER!$D$10:$D$8006) -> 155.07773 | E146: =SUMIF(AnalisisER!$A$10:$A$8006,$A146,AnalisisER!$F$10:$F$8006) -> 0 | F146: =SUMIF(AnalisisER!$A$10:$A$8006,$A146,AnalisisER!$I$10:$I$8006) -> 0
A148: Cuenta | B148: Descripción | C148: Nota | D148: Periodo Actual | E148: Periodo Anterior | F148: Diferencia
F149: %
A150: 5.1.6. | B150: =+AnalisisER!$B$168 -> Deterioro y pérdidas de inventarios | C150: =+AnalisisER!C168 -> 64 | D150: =SUMIF(AnalisisER!$A$10:$A$8006,$A150,AnalisisER!$D$10:$D$8006) -> 0 | E150: =SUMIF(AnalisisER!$A$10:$A$8006,$A150,AnalisisER!$F$10:$F$8006) -> 0 | F150: =SUMIF(AnalisisER!$A$10:$A$8006,$A150,AnalisisER!$I$10:$I$8006) -> 0
A152: Cuenta | B152: Descripción | C152: Nota | D152: Periodo Actual | E152: Periodo Anterior | F152: Diferencia
F153: %
A154: 5.1.7. | B154: =+AnalisisER!$B$172 -> Deterioro de inversiones y cuentas a cobrar | C154: =+AnalisisER!C172 -> 65 | D154: =SUMIF(AnalisisER!$A$10:$A$8006,$A154,AnalisisER!$D$10:$D$8006) -> 0 | E154: =SUMIF(AnalisisER!$A$10:$A$8006,$A154,AnalisisER!$F$10:$F$8006) -> 0 | F154: =SUMIF(AnalisisER!$A$10:$A$8006,$A154,AnalisisER!$I$10:$I$8006) -> 0
A156: Cuenta | B156: Descripción | C156: Nota | D156: Periodo Actual | E156: Periodo Anterior | F156: Diferencia
F157: %
A158: 5.1.8. | B158: =+AnalisisER!$B$175 -> Cargos por provisiones y reservas técnicas | C158: =+AnalisisER!C175 -> 66 | D158: =SUMIF(AnalisisER!$A$10:$A$8006,$A158,AnalisisER!$D$10:$D$8006) -> 181.5 | E158: =SUMIF(AnalisisER!$A$10:$A$8006,$A158,AnalisisER!$F$10:$F$8006) -> 0 | F158: =SUMIF(AnalisisER!$A$10:$A$8006,$A158,AnalisisER!$I$10:$I$8006) -> 0
A160: Cuenta | B160: Descripción | C160: Nota | D160: Periodo Actual | E160: Periodo Anterior | F160: Diferencia
F161: %
A162: 5.1.8.01 | B162: =+AnalisisER!$B$176 -> Cargos por litigios y demandas | C162: =+AnalisisER!$C$175 -> 66 | D162: =SUMIF(AnalisisER!$A$10:$A$8006,$A162,AnalisisER!$D$10:$D$8006) -> 0 | E162: =SUMIF(AnalisisER!$A$10:$A$8006,$A162,AnalisisER!$F$10:$F$8006) -> 0 | F162: =SUMIF(AnalisisER!$A$10:$A$8006,$A162,AnalisisER!$I$10:$I$8006) -> 0
A164: Cuenta | B164: Descripción | C164: Nota | D164: Periodo Actual | E164: Periodo Anterior | F164: Diferencia
F165: %
A166: 5.2.1. | B166: =+AnalisisER!$B$181 -> Intereses sobre endeudamiento público | C166: =+AnalisisER!C181 -> 67 | D166: =SUMIF(AnalisisER!$A$10:$A$8006,$A166,AnalisisER!$D$10:$D$8006) -> 82462.5948 | E166: =SUMIF(AnalisisER!$A$10:$A$8006,$A166,AnalisisER!$F$10:$F$8006) -> 56440.39514 | F166: =SUMIF(AnalisisER!$A$10:$A$8006,$A166,AnalisisER!$I$10:$I$8006) -> 0.4610562983
A168: Cuenta | B168: Descripción | C168: Nota | D168: Periodo Actual | E168: Periodo Anterior | F168: Diferencia
F169: %
A170: 5.2.9. | B170: =+AnalisisER!$B$186 -> Otros gastos financieros | C170: =+AnalisisER!C186 -> 68 | D170: =SUMIF(AnalisisER!$A$10:$A$8006,$A170,AnalisisER!$D$10:$D$8006) -> 0 | E170: =SUMIF(AnalisisER!$A$10:$A$8006,$A170,AnalisisER!$F$10:$F$8006) -> 0 | F170: =SUMIF(AnalisisER!$A$10:$A$8006,$A170,AnalisisER!$I$10:$I$8006) -> 0
A172: Cuenta | B172: Descripción | C172: Nota | D172: Periodo Actual | E172: Periodo Anterior | F172: Diferencia
F173: %
A174: 5.3.1. | B174: =+AnalisisER!$B$193 -> Costo de ventas de bienes y servicios | C174: =+AnalisisER!C193 -> 69 | D174: =SUMIF(AnalisisER!$A$10:$A$8006,$A174,AnalisisER!$D$10:$D$8006) -> 0 | E174: =SUMIF(AnalisisER!$A$10:$A$8006,$A174,AnalisisER!$F$10:$F$8006) -> 0 | F174: =SUMIF(AnalisisER!$A$10:$A$8006,$A174,AnalisisER!$I$10:$I$8006) -> 0
A176: Cuenta | B176: Descripción | C176: Nota | D176: Periodo Actual | E176: Periodo Anterior | F176: Diferencia
F177: %
A178: 5.3.2. | B178: =+AnalisisER!$B$196 -> Resultados negativos por ventas de inversiones | C178: =+AnalisisER!C196 -> 70 | D178: =SUMIF(AnalisisER!$A$10:$A$8006,$A178,AnalisisER!$D$10:$D$8006) -> 0 | E178: =SUMIF(AnalisisER!$A$10:$A$8006,$A178,AnalisisER!$F$10:$F$8006) -> 0 | F178: =SUMIF(AnalisisER!$A$10:$A$8006,$A178,AnalisisER!$I$10:$I$8006) -> 0
A180: Cuenta | B180: Descripción | C180: Nota | D180: Periodo Actual | E180: Periodo Anterior | F180: Diferencia
F181: %
A182: 5.3.3. | B182: =+AnalisisER!$B$199 -> Resultados negativos por ventas e intercambio de bienes | C182: =+AnalisisER!C199 -> 71 | D182: =SUMIF(AnalisisER!$A$10:$A$8006,$A182,AnalisisER!$D$10:$D$8006) -> 0 | E182: =SUMIF(AnalisisER!$A$10:$A$8006,$A182,AnalisisER!$F$10:$F$8006) -> 0 | F182: =SUMIF(AnalisisER!$A$10:$A$8006,$A182,AnalisisER!$I$10:$I$8006) -> 0
A184: Cuenta | B184: Descripción | C184: Nota | D184: Periodo Actual | E184: Periodo Anterior | F184: Diferencia
F185: %
A186: 5.4.1. | B186: =+AnalisisER!$B$210 -> Transferencias corrientes | C186: =+AnalisisER!C210 -> 72 | D186: =SUMIF(AnalisisER!$A$10:$A$8006,$A186,AnalisisER!$D$10:$D$8006) -> 75522.9247 | E186: =SUMIF(AnalisisER!$A$10:$A$8006,$A186,AnalisisER!$F$10:$F$8006) -> 91552.21402 | F186: =SUMIF(AnalisisER!$A$10:$A$8006,$A186,AnalisisER!$I$10:$I$8006) -> -0.1750835793
A188: Cuenta | B188: Descripción | C188: Nota | D188: Periodo Actual | E188: Periodo Anterior | F188: Diferencia
F189: %
A190: 5.4.2. | B190: =+AnalisisER!$B$214 -> Transferencias de capital | C190: =+AnalisisER!C214 -> 73 | D190: =SUMIF(AnalisisER!$A$10:$A$8006,$A190,AnalisisER!$D$10:$D$8006) -> 0 | E190: =SUMIF(AnalisisER!$A$10:$A$8006,$A190,AnalisisER!$F$10:$F$8006) -> 0 | F190: =SUMIF(AnalisisER!$A$10:$A$8006,$A190,AnalisisER!$I$10:$I$8006) -> 0
A192: Cuenta | B192: Descripción | C192: Nota | D192: Periodo Actual | E192: Periodo Anterior | F192: Diferencia
F193: %
A194: 5.9.1. | B194: =+AnalisisER!$B$219 -> Resultados negativos por tenencia y por exposición a la inflación | C194: =+AnalisisER!C219 -> 74 | D194: =SUMIF(AnalisisER!$A$10:$A$8006,$A194,AnalisisER!$D$10:$D$8006) -> 9715.941 | E194: =SUMIF(AnalisisER!$A$10:$A$8006,$A194,AnalisisER!$F$10:$F$8006) -> 0 | F194: =SUMIF(AnalisisER!$A$10:$A$8006,$A194,AnalisisER!$I$10:$I$8006) -> 0
A196: Cuenta | B196: Descripción | C196: Nota | D196: Periodo Actual | E196: Periodo Anterior | F196: Diferencia
F197: %
A198: 5.9.2. | B198: =+AnalisisER!$B$226 -> Resultados negativos de inversiones patrimoniales y participación de los intereses minoritarios | C198: =+AnalisisER!C226 -> 75 | D198: =SUMIF(AnalisisER!$A$10:$A$8006,$A198,AnalisisER!$D$10:$D$8006) -> 0 | E198: =SUMIF(AnalisisER!$A$10:$A$8006,$A198,AnalisisER!$F$10:$F$8006) -> 0 | F198: =SUMIF(AnalisisER!$A$10:$A$8006,$A198,AnalisisER!$I$10:$I$8006) -> 0
A200: Cuenta | B200: Descripción | C200: Nota | D200: Periodo Actual | E200: Periodo Anterior | F200: Diferencia
F201: %
A202: 5.9.9. | B202: =+AnalisisER!$B$229 -> Otros gastos y resultados negativos | C202: =+AnalisisER!C229 -> 76 | D202: =SUMIF(AnalisisER!$A$10:$A$8006,$A202,AnalisisER!$D$10:$D$8006) -> 4e-05 | E202: =SUMIF(AnalisisER!$A$10:$A$8006,$A202,AnalisisER!$F$10:$F$8006) -> 324.86816 | F202: =SUMIF(AnalisisER!$A$10:$A$8006,$A202,AnalisisER!$I$10:$I$8006) -> -0.9999998769

Sheet Notas Flujo
A1: Notas Estado de Flujo de Efectivo Comparativo
A3: FLUJOS DE EFECTIVO DE LAS ACTIVIDADES DE OPERACIÓN
A5: Descripción | B5: Nota | C5: Periodo Actual | D5: Periodo Anterior | E5: Diferencia
E6: %
A7: Cobros | B7: =+AnalisisFlujo!C9 -> 77 | C7: =SUMIF(AnalisisFlujo!$C$9:$C$8000,$B7,AnalisisFlujo!$D$9:$D$8000) -> 3527002.578 | D7: =SUMIF(AnalisisFlujo!$C$9:$C$8000,$B7,AnalisisFlujo!$F$9:$F$8000) -> 2842506.999 | E7: =SUMIF(AnalisisFlujo!$C$9:$C$8000,$B7,AnalisisFlujo!$I$9:$I$8000) -> 0.2408069986
A9: Descripción | B9: Nota | C9: Periodo Actual | D9: Periodo Anterior | E9: Diferencia
E10: %
A11: Pagos | B11: =+AnalisisFlujo!C18 -> 78 | C11: =SUMIF(AnalisisFlujo!$C$9:$C$8000,$B11,AnalisisFlujo!$D$9:$D$8000) -> 4178746.17 | D11: =SUMIF(AnalisisFlujo!$C$9:$C$8000,$B11,AnalisisFlujo!$F$9:$F$8000) -> 2870522.16 | E11: =SUMIF(AnalisisFlujo!$C$9:$C$8000,$B11,AnalisisFlujo!$I$9:$I$8000) -> 0.4557442643
A14: FLUJOS DE EFECTIVO DE LAS ACTIVIDADES DE INVERSIÓN
A16: Descripción | B16: Nota | C16: Periodo Actual | D16: Periodo Anterior | E16: Diferencia
E17: %
A18: Cobros | B18: =+AnalisisFlujo!C27 -> 79 | C18: =SUMIF(AnalisisFlujo!$C$9:$C$8000,$B18,AnalisisFlujo!$D$9:$D$8000) -> 0 | D18: =SUMIF(AnalisisFlujo!$C$9:$C$8000,$B18,AnalisisFlujo!$F$9:$F$8000) -> 0 | E18: =SUMIF(AnalisisFlujo!$C$9:$C$8000,$B18,AnalisisFlujo!$I$9:$I$8000) -> 0
A20: Descripción | B20: Nota | C20: Periodo Actual | D20: Periodo Anterior | E20: Diferencia
E21: %
A22: Pagos | B22: =+AnalisisFlujo!C33 -> 80 | C22: =SUMIF(AnalisisFlujo!$C$9:$C$8000,$B22,AnalisisFlujo!$D$9:$D$8000) -> 105304.1104 | D22: =SUMIF(AnalisisFlujo!$C$9:$C$8000,$B22,AnalisisFlujo!$F$9:$F$8000) -> 36944.25629 | E22: =SUMIF(AnalisisFlujo!$C$9:$C$8000,$B22,AnalisisFlujo!$I$9:$I$8000) -> 1.850351341
A25: FLUJOS DE EFECTIVO DE LAS ACTIVIDADES DE FINANCIACIÓN
A27: Descripción | B27: Nota | C27: Periodo Actual | D27: Periodo Anterior | E27: Diferencia
E28: %
A29: Cobros | B29: =+AnalisisFlujo!C42 -> 81 | C29: =SUMIF(AnalisisFlujo!$C$9:$C$8000,$B29,AnalisisFlujo!$D$9:$D$8000) -> 0 | D29: =SUMIF(AnalisisFlujo!$C$9:$C$8000,$B29,AnalisisFlujo!$F$9:$F$8000) -> 738902.3612 | E29: =SUMIF(AnalisisFlujo!$C$9:$C$8000,$B29,AnalisisFlujo!$I$9:$I$8000) -> -1
A31: Descripción | B31: Nota | C31: Periodo Actual | D31: Periodo Anterior | E31: Diferencia
E32: %
A33: Pagos | B33: =+AnalisisFlujo!C46 -> 82 | C33: =SUMIF(AnalisisFlujo!$C$9:$C$8000,$B33,AnalisisFlujo!$D$9:$D$8000) -> 323293.2527 | D33: =SUMIF(AnalisisFlujo!$C$9:$C$8000,$B33,AnalisisFlujo!$F$9:$F$8000) -> 188842.4421 | E33: =SUMIF(AnalisisFlujo!$C$9:$C$8000,$B33,AnalisisFlujo!$I$9:$I$8000) -> 0.7119734795
A35: Descripción | B35: Nota | C35: Periodo Actual | D35: Periodo Anterior | E35: Diferencia
E36: %
A37: =+AnalisisFlujo!A56 -> Efectivo y equivalentes de efectivo al final del ejercicio | B37: =+AnalisisFlujo!C56 -> 83 | C37: =SUMIF(AnalisisFlujo!$C$9:$C$8000,$B37,AnalisisFlujo!$D$9:$D$8000) -> 1625426.434 | D37: =SUMIF(AnalisisFlujo!$C$9:$C$8000,$B37,AnalisisFlujo!$F$9:$F$8000) -> 2069821.55 | E37: =SUMIF(AnalisisFlujo!$C$9:$C$8000,$B37,AnalisisFlujo!$I$9:$I$8000) -> -0.2147021396

Sheet Notas ECP
A1: Notas Estado de Cambios en el Patrimonio Comparativo
A3: Descripción | B3: Nota | C3: Periodo Actual | D3: Periodo Anterior | E3: Diferencia
E4: %
A5: =+AnalisisECP!B28 -> Saldos del período | B5: =+AnalisisECP!A28 -> 84 | C5: =SUMIF(AnalisisECP!$A$9:$A$8000,$B5,AnalisisECP!$C$9:$C$8000) -> 164368713.5 | D5: =SUMIF(AnalisisECP!$A$9:$A$8000,$B5,AnalisisECP!$E$9:$E$8000) -> 163264603.2 | E5: =SUMIF(AnalisisECP!$A$9:$A$8000,$B5,AnalisisECP!$H$9:$H$8000) -> 0.006762705086

Sheet Texto
B2: La cuenta Efectivo y Equivalentes de Efectivo, representa el (indicar % análisis vertical) % del total de activos, que comparado al periodo anterior genera una variación absoluta de ¢(indicar monto de la variación) que corresponde a un (indicar el aumento o disminución) del (indicar % variación relativa) % de recursos disponibles, producto de
B4: La cuenta
B6: , representa el
B8: % del total de
B12: , que comparado al periodo anterior genera una variación absoluta de ¢
B14: que corresponde a un(a)
B16: del
B18: % de recursos disponibles:
